Workbook

Sheet CF (hidden)
B2: CONDITIONAL FORMATTING MAP
F3: =INDEX(dms_CF_3.6.1, MATCH(dms_TradingName,dms_CF_TradingName))="Y" -> FALSE | G3: =INDEX(dms_CF_3.6.5, MATCH(dms_TradingName,dms_CF_TradingName))="Y" | H3: =INDEX(dms_CF_3.6.6, MATCH(dms_TradingName,dms_CF_TradingName))="Y" -> FALSE | I3: =INDEX(dms_CF_3.6.7.1, MATCH(dms_TradingName,dms_CF_TradingName))="Y" | J3: =INDEX(dms_CF_3.6.7.2, MATCH(dms_TradingName,dms_CF_TradingName))="Y" | K3: =INDEX(dms_CF_3.6.7.3, MATCH(dms_TradingName,dms_CF_TradingName))="Y" | L3: =INDEX(dms_CF_3.6.7.4, MATCH(dms_TradingName,dms_CF_TradingName))="Y" | M3: =INDEX(dms_CF_4.1, MATCH(dms_TradingName,dms_CF_TradingName))="Y" | N3: =INDEX(dms_CF_6.6.1, MATCH(dms_TradingName,dms_CF_TradingName))="Y" | O3: =INDEX(dms_CF_6.8, MATCH(dms_TradingName,dms_CF_TradingName))="Y" | P3: =INDEX(dms_CF_7.12, MATCH(dms_TradingName,dms_CF_TradingName))="Y" | Q3: =INDEX(dms_CF_8.1_A, MATCH(dms_TradingName,dms_CF_TradingName))="Y" | R3: =INDEX(dms_CF_8.1_B, MATCH(dms_TradingName,dms_CF_TradingName))="Y" | S3: =INDEX(dms_CF_8.1_Neg, MATCH(dms_TradingName,dms_CF_TradingName))="Y"
B4: dms_CF_TradingName | C4: JurisdictionList | D4: Sector | E4: Segment | F4: dms_CF_3.6.1 | G4: dms_CF_3.6.5 | H4: dms_CF_3.6.6 | I4: dms_CF_3.6.7.1 | J4: dms_CF_3.6.7.2 | K4: dms_CF_3.6.7.3 | L4: dms_CF_3.6.7.4 | M4: dms_CF_4.1 | N4: dms_CF_6.6.1 | O4: dms_CF_6.8 | P4: dms_CF_7.12 | Q4: dms_CF_8.1_A | R4: dms_CF_8.1_B | S4: dms_CF_8.1_Neg | T4: Spare1 | U4: Spare2
B5: ActewAGL Distribution | C5: ACT | D5: Electricity | E5: Distribution | G5: Y | I5: Y | J5: Y | K5: N | L5: Y | M5: Y | N5: N | O5: Y | P5: Y | Q5: N | R5: Y | S5: Y | T5: N | U5: N
B6: Ausgrid | C6: NSW | D6: Electricity | E6: Distribution | G6: Y | I6: N | J6: N | K6: N | L6: Y | M6: Y | N6: N | O6: Y | P6: Y | Q6: N | R6: Y | S6: Y | T6: N | U6: N
B7: AusNet (D) | C7: Vic | D7: Electricity | E7: Distribution | G7: N | I7: N | J7: N | K7: N | L7: N | M7: Y | N7: N | O7: Y | P7: N | Q7: N | R7: N | S7: Y | T7: N | U7: N
B8: AusNet (T) | C8: Vic | D8: Electricity | E8: Transmission | G8: N | I8: N | J8: N | K8: N | L8: N | M8: Y | N8: N | O8: Y | P8: N | Q8: N | R8: N | S8: Y | T8: N | U8: N
B9: CitiPower | C9: Vic | D9: Electricity | E9: Distribution | G9: N | I9: N | J9: N | K9: N | L9: N | M9: Y | N9: N | O9: Y | P9: N | Q9: N | R9: N | S9: Y | T9: N | U9: N
B10: Directlink | C10: Qld | D10: Electricity | E10: Transmission | G10: N | I10: N | J10: N | K10: N | L10: N | M10: Y | N10: N | O10: Y | P10: N | Q10: N | R10: Y | S10: Y | T10: N | U10: N
B11: ElectraNet | C11: SA | D11: Electricity | E11: Transmission | G11: N | I11: N | J11: N | K11: N | L11: N | M11: Y | N11: N | O11: Y | P11: N | Q11: N | R11: Y | S11: Y | T11: N | U11: N
B12: Endeavour Energy | C12: NSW | D12: Electricity | E12: Distribution | G12: Y | I12: N | J12: N | K12: N | L12: Y | M12: Y | N12: N | O12: Y | P12: Y | Q12: N | R12: Y | S12: Y | T12: N | U12: N
B13: Energex | C13: Qld | D13: Electricity | E13: Distribution | G13: Y | I13: N | J13: N | K13: N | L13: N | M13: Y | N13: N | O13: Y | P13: Y | Q13: N | R13: Y | S13: Y | T13: N | U13: N
B14: Ergon Energy | C14: Qld | D14: Electricity | E14: Distribution | G14: Y | I14: N | J14: N | K14: N | L14: N | M14: Y | N14: N | O14: Y | P14: Y | Q14: N | R14: Y | S14: Y | T14: N | U14: N
B15: Essential Energy | C15: NSW | D15: Electricity | E15: Distribution | G15: Y | I15: N | J15: N | K15: N | L15: Y | M15: Y | N15: N | O15: Y | P15: Y | Q15: N | R15: Y | S15: Y | T15: N | U15: N
B16: Jemena Electricity | C16: Vic | D16: Electricity | E16: Distribution | G16: N | I16: N | J16: N | K16: N | L16: N | M16: Y | N16: N | O16: Y | P16: N | Q16: N | R16: N | S16: Y | T16: N | U16: N
B17: Murraylink | C17: SA | D17: Electricity | E17: Transmission | G17: N | I17: N | J17: N | K17: N | L17: N | M17: Y | N17: N | O17: Y | P17: N | Q17: N | R17: Y | S17: Y | T17: N | U17: N
B18: Power and Water | C18: NT | D18: Electricity | E18: Distribution | G18: N | I18: N | J18: Y | K18: N | L18: N | M18: Y | N18: Y | O18: Y | P18: Y | Q18: N | R18: Y | S18: Y | T18: N | U18: N
B19: Powercor Australia | C19: Vic | D19: Electricity | E19: Distribution | G19: N | I19: N | J19: N | K19: N | L19: N | M19: Y | N19: N | O19: Y | P19: N | Q19: N | R19: N | S19: Y | T19: N | U19: N
B20: Powerlink | C20: Qld | D20: Electricity | E20: Transmission | G20: N | I20: N | J20: N | K20: N | L20: N | M20: Y | N20: N | O20: Y | P20: N | Q20: N | R20: Y | S20: Y | T20: N | U20: N
B21: SA Power Networks | C21: SA | D21: Electricity | E21: Distribution | G21: Y | I21: N | J21: N | K21: N | L21: N | M21: Y | N21: N | O21: Y | P21: Y | Q21: Y | R21: Y | S21: N | T21: N | U21: N
B22: TasNetworks (D) | C22: Tas | D22: Electricity | E22: Distribution | G22: Y | I22: N | J22: N | K22: N | L22: N | M22: Y | N22: N | O22: Y | P22: Y | Q22: N | R22: Y | S22: Y | T22: N | U22: N
B23: TasNetworks (T) | C23: Tas | D23: Electricity | E23: Transmission | G23: N | I23: N | J23: N | K23: N | L23: N | M23: Y | N23: N | O23: Y | P23: N | Q23: N | R23: Y | S23: Y | T23: N | U23: N
B24: TransGrid | C24: NSW | D24: Electricity | E24: Transmission | G24: N | I24: N | J24: N | K24: N | L24: N | M24: Y | N24: N | O24: Y | P24: N | Q24: N | R24: Y | S24: Y | T24: N | U24: N
B25: United Energy | C25: Vic | D25: Electricity | E25: Distribution | G25: N | I25: N | J25: N | K25: N | L25: N | M25: Y | N25: N | O25: Y | P25: N | Q25: N | R25: N | S25: Y | T25: N | U25: N
C124: 0 | E124: =IFERROR(IF(dms_060801_StartCell<>"",IF(dms_Model="ARR",(LOOKUP(2,1/(dms_060801_01_Values<>""),(ROW(dms_060801_01_Values)))),"not an ARR"),0),"0")
C125: =IFERROR(IF(dms_Model="ARR",(MAX(0,dms_0608_LastRow-dms_0608_OffsetRows)),"not an ARR"),"0") -> 0 | E125: =IFERROR(IF(dms_Model="ARR",(MAX(0,dms_0608_LastRow-dms_0608_OffsetRows)),"not an ARR"),"0")

Sheet AER only (hidden)
B1: Data in these columns used for data validation and database purposes.
B2: Date last modified: | C2: 2017-01-16 | D2: added (Albury and Victora) for AGN
C3: 2016-10-17 | D3: updated TransGrid's correct legal name, corrected TasNetworks (T) to June financial year
C4: 2017-02-01 | D4: inserted Power and Water, added NRs (dms_FeederCat_1 and dms_FeederCat_2)
C5: 2017-03-03 | D5: inserted AEMO as a business | AB5: FOR ELECTRICITY BUSINESSES ONLY
C6: 2018-03-28 | D6: major changes to accommodate STPIS
C7: Template Version | D7: 5 | AB7: Feeder Types | AF7: TasNetworks (D) | AG7: MAIFI flag | AH7: Feeder Names
AB9: CBD | AC9: Urban | AD9: Short rural | AE9: long rural | AF9: EXTRA
B10: dms_TradingName_List | C10: dms_TradingNameFull_List | D10: dms_ABN_List | E10: dms_JurisdictionList | F10: dms_Sector_List | G10: dms_Segment_List | H10: dms_FormControl_List | I10: dms_RPT_List | J10: dms_RPTMonth_List | K10: dms_CRCPlength_List | L10: dms_FRCPlength_List | M10: dms_663_List | N10: dms_DeterminationRef_List | O10: dms_Addr1_List | P10: dms_Addr2_List | Q10: dms_Suburb_List | R10: dms_State_List | S10: dms_PostCode_List | T10: dms_PAddr1_List | U10: dms_PAddr2_List | V10: dms_PSuburb_List | W10: dms_PState_List | X10: dms_PPostCode_List | Y10: dms_ContactName1_List | Z10: dms_ContactPh1_List | AA10: dms_ContactEmail_List | AB10: dms_CBD_flag | AC10: dms_Urban_flag | AD10: dms_ShortRural_flag | AE10: dms_LongRural_flag | AF10: dms_FeederType_5_flag | AG10: dms_MAIFI_flag_List | AH10: dms_FeederName_1 | AI10: dms_FeederName_2 | AJ10: dms_FeederName_3 | AK10: dms_FeederName_4 | AL10: dms_FeederName_5 | AM10: dms_Public_Lighting_List | AN10: Column1
B11: ActewAGL Distribution | C11: ActewAGL Distribution | D11: 76670568688 | E11: ACT | F11: Electricity | G11: Distribution | H11: Revenue cap | I11: Financial | J11: June | K11: 5 | L11: 5 | M11: 5 | N11: 2014-19 Distribution Determination | O11: 40 Bunda Street | Q11: CANBERRA | R11: ACT | S11: 2600 | T11: GPO BOX 366 | V11: CANBERRA | W11: ACT | X11: 2601 | Y11: Robert Walker | Z11: 02 6248 3847 | AA11: robert.walker@actewagle.com.au | AB11: NO | AC11: YES | AD11: YES | AE11: NO | AF11: NO | AG11: NO | AH11: CBD | AI11: Urban | AJ11: Short rural | AK11: Long rural | AM11: YES | AN11: ActewAGL Distribution
B12: ActewAGL Distribution (Tx Assets) | C12: ActewAGL Distribution (Tx Assets) | D12: 76670568688 | E12: ACT | F12: Electricity | G12: Distribution | H12: Revenue cap | I12: Financial | J12: June | K12: 5 | L12: 5 | M12: 5 | N12: distribution determination | O12: 40 Bunda Street | Q12: CANBERRA | R12: ACT | S12: 2600 | T12: GPO BOX 366 | V12: CANBERRA | W12: ACT | X12: 2601 | Y12: Robert Walker | Z12: 02 6248 3847 | AA12: robert.walker@actewagle.com.au | AB12: NO | AC12: YES | AD12: YES | AE12: NO | AF12: NO | AG12: NO | AH12: CBD | AI12: Urban | AJ12: Short rural | AK12: Long rural | AM12: NO | AN12: ActewAGL Distribution (Tx Assets)
B13: ActewAGL Gas | C13: ActewAGL Gas | D13: 76670568688 | E13: ACT | F13: Gas | G13: Distribution | H13: Weighted average price cap | I13: Financial | J13: June | K13: 5 | L13: 5 | M13: x | O13: 40 Bunda Street | Q13: CANBERRA | R13: ACT | S13: 2600 | T13: GPO BOX 366 | V13: CANBERRA | W13: ACT | X13: 2601 | Y13: Philip Deamer | Z13: 02 6248 3438 | AA13: GasAAReview@actewagl.com.au | AB13: NO | AC13: NO | AD13: NO | AE13: NO | AF13: NO | AG13: - | AH13: CBD | AI13: Urban | AJ13: Short rural | AK13: Long rural | AM13: NO | AN13: ActewAGL Gas
B14: AEMO | C14: Australian Energy Market Operator Ltd | D14: 94072010327 | E14: Vic | F14: Electricity | G14: Transmission | H14: - | I14: Financial | J14: March | K14: 5 | L14: 5 | M14: x | N14: - | O14: Level 22 | P14: 530 Collins Street | Q14: MELBOURNE | R14: VIC | S14: 3000 | T14: GPO Box 2008 | V14: MELBOURNE | W14: VIC | X14: 3001 | AB14: NO | AC14: NO | AD14: NO | AE14: NO | AF14: NO | AG14: - | AH14: CBD | AI14: Urban | AJ14: Short rural | AK14: Long rural | AM14: NO | AN14: AEMO
B15: AGN (Albury and Victoria) | C15: Australian Gas Networks Limited (reporting data for Albury and Victoria) | D15: 19078551685 | E15: Vic | F15: Gas | G15: Distribution | H15: Weighted average price cap | I15: Calendar | J15: December | K15: 5 | L15: 5 | M15: x | O15: Level 6 | P15: 400 King William Street | Q15: ADELAIDE | R15: SA | S15: 5000 | T15: PO Box 6468 | U15: Halifax Street | V15: ADELAIDE | W15: SA | X15: 5000 | Y15: Craig de Laine | Z15: 08 8418 1129 | AA15: craig.delaine@agn.com.au | AB15: NO | AC15: NO | AD15: NO | AE15: NO | AF15: NO | AG15: - | AH15: CBD | AI15: Urban | AJ15: Short rural | AK15: Long rural | AM15: NO | AN15: AGN (Albury)
B16: AGN (Albury) | C16: Australian Gas Networks Limited (reporting data for Albury) | D16: 19078551685 | E16: Vic | F16: Gas | G16: Distribution | H16: Weighted average price cap | I16: Calendar | J16: December | K16: 5 | L16: 5 | M16: x | O16: Level 6 | P16: 400 King William Street | Q16: ADELAIDE | R16: SA | S16: 5000 | T16: PO Box 6468 | U16: Halifax Street | V16: ADELAIDE | W16: SA | X16: 5000 | Y16: Craig de Laine | Z16: 08 8418 1129 | AA16: craig.delaine@agn.com.au | AB16: NO | AC16: NO | AD16: NO | AE16: NO | AF16: NO | AG16: - | AH16: CBD | AI16: Urban | AJ16: Short rural | AK16: Long rural | AM16: NO
B17: AGN (SA) | C17: Australian Gas Networks Limited (reporting data for SA) | D17: 19078551685 | E17: SA | F17: Gas | G17: Distribution | H17: Weighted average price cap | I17: Financial | J17: June | K17: 5 | L17: 5 | M17: 5 | N17: distribution determination | O17: Level 6 | P17: 400 King William Street | Q17: ADELAIDE | R17: SA | S17: 5000 | T17: PO Box 6468 | U17: Halifax Street | V17: ADELAIDE | W17: SA | X17: 5000 | Y17: Craig de Laine | Z17: 08 8418 1129 | AA17: craig.delaine@agn.com.au | AB17: NO | AC17: NO | AD17: NO | AE17: NO | AF17: NO | AG17: - | AH17: CBD | AI17: Urban | AJ17: Short rural | AK17: Long rural | AM17: NO | AN17: AGN (SA)
B18: AGN (Victoria) | C18: Australian Gas Networks Limited (reporting data for Victoria) | D18: 19078551685 | E18: Vic | F18: Gas | G18: Distribution | H18: Weighted average price cap | I18: Calendar | J18: December | K18: 5 | L18: 5 | M18: x | O18: Level 6 | P18: 400 King William Street | Q18: ADELAIDE | R18: SA | S18: 5000 | T18: PO Box 6468 | U18: Halifax Street | V18: ADELAIDE | W18: SA | X18: 5000 | Y18: Craig de Laine | Z18: 08 8418 1129 | AA18: craig.delaine@agn.com.au | AB18: NO | AC18: NO | AD18: NO | AE18: NO | AF18: NO | AG18: - | AH18: CBD | AI18: Urban | AJ18: Short rural | AK18: Long rural | AM18: NO | AN18: AGN (Victoria)
B19: Amadeus | C19: APT Pipelines (NT) Pty Ltd | D19: 39009737393 | E19: NT | F19: Gas | G19: Transmission | H19: Weighted average price cap | I19: Financial | J19: June | K19: 5 | L19: 5 | M19: x | N19: n/a | O19: Level 19, HSBC Building | P19: 580 George Street | Q19: SYDNEY | R19: NSW | S19: 2000 | T19: Level 19, HSBC Building | U19: 580 George Street | V19: SYDNEY | W19: NSW | X19: 2000 | Y19: Alexandra Curran | Z19: 02 9275 0020 | AA19: alexandra.curran@apa.com.au | AB19: NO | AC19: NO | AD19: NO | AE19: NO | AF19: NO | AG19: - | AH19: CBD | AI19: Urban | AJ19: Short rural | AK19: Long rural | AM19: NO | AN19: Amadeus
B20: APA GasNet | C20: APA GasNet Australia (Operations) Pty Ltd | D20: 065083009 | E20: Vic | F20: Gas | G20: Transmission | H20: Weighted average price cap | I20: Calendar | J20: December | K20: 5 | L20: 5 | M20: x | O20: Level 19, HSBC Building | P20: 580 George Street | Q20: SYDNEY | R20: NSW | S20: 2000 | T20: PO Box R41 | V20: ROYAL EXCHANGE | W20: NSW | X20: 1225 | Y20: Alexandra Curran | Z20: 02 9275 0020 | AA20: alexandra.curran@apa.com.au | AB20: NO | AC20: NO | AD20: NO | AE20: NO | AF20: NO | AG20: - | AH20: CBD | AI20: Urban | AJ20: Short rural | AK20: Long rural | AM20: NO | AN20: APA GasNet
B21: Ausgrid | C21: Ausgrid | D21: 78508211731 | E21: NSW | F21: Electricity | G21: Distribution | H21: Revenue cap | I21: Financial | J21: June | K21: 5 | L21: 5 | M21: 5 | N21: 2014-19 Distribution Determination | O21: 570 George St | Q21: SYDNEY | R21: NSW | S21: 2000 | T21: GPO Box 4009 | V21: SYDNEY | W21: NSW | X21: 2001 | Y21: John Thomson | Z21: 02 9269 2312 | AA21: john.thomson@ausgrid.com.au | AB21: YES | AC21: YES | AD21: YES | AE21: YES | AF21: NO | AG21: NO | AH21: CBD | AI21: Urban | AJ21: Short rural | AK21: Long rural | AM21: YES | AN21: Ausgrid
B22: Ausgrid (Tx Assets) | C22: Ausgrid (Tx Assets) | D22: 67505337385 | E22: NSW | F22: Electricity | G22: Distribution | H22: Revenue cap | I22: Financial | J22: June | K22: 5 | L22: 5 | M22: 5 | N22: distribution determination | O22: 570 George St | Q22: SYDNEY | R22: NSW | S22: 2000 | T22: GPO Box 4009 | V22: SYDNEY | W22: NSW | X22: 2001 | Y22: John Thomson | Z22: 02 9269 2312 | AA22: john.thomson@ausgrid.com.au | AB22: YES | AC22: YES | AD22: YES | AE22: YES | AF22: NO | AG22: NO | AH22: CBD | AI22: Urban | AJ22: Short rural | AK22: Long rural | AM22: NO | AN22: Ausgrid (Tx Assets)
B23: AusNet (D) | C23: AusNet Electricity Services Pty Ltd | D23: 91064651118 | E23: Vic | F23: Electricity | G23: Distribution | H23: Revenue cap | I23: Calendar | J23: December | K23: 5 | L23: 5 | M23: 2 | N23: 2016-20 Distribution Determination | O23: Level 32 | P23: 2 Southbank Boulevard | Q23: SOUTHBANK | R23: Vic | S23: 3006 | T23: Locked Bag 14051 | V23: MELBOURNE CITY MAIL CENTRE | W23: VIC | X23: 8001 | Y23: Thomas Hall | AA23: thomas. hall@ausnetservices.com.au | AB23: NO | AC23: YES | AD23: YES | AE23: YES | AF23: NO | AG23: YES | AH23: CBD | AI23: Urban | AJ23: Short rural | AK23: Long rural | AM23: YES | AN23: AusNet (D)
B24: AusNet (Gas) | C24: AusNet Gas Services | D24: 086015036 | E24: Vic | F24: Gas | G24: Distribution | H24: Weighted average price cap | I24: Calendar | J24: December | K24: 5 | L24: 5 | M24: X | O24: Level 19, HSBC Building | P24: 580 George Street | Q24: SYDNEY | R24: NSW | S24: 2000 | T24: PO Box R41 | V24: ROYAL EXCHANGE | W24: NSW | X24: 1225 | Y24: Alexandra Curran | Z24: 02 9275 0020 | AA24: alexandra.curran@apa.com.au | AB24: NO | AC24: NO | AD24: NO | AE24: NO | AF24: NO | AG24: - | AH24: CBD | AI24: Urban | AJ24: Short rural | AK24: Long rural | AM24: NO | AN24: AusNet (Gas)
B25: AusNet (T) | C25: Ausnet Services (Transmission) Ltd | D25: 48116124362 | E25: Vic | F25: Electricity | G25: Transmission | H25: Revenue cap | I25: Financial | J25: March | K25: 5 | L25: 5 | M25: 2 | N25: transmission determination | O25: Level 32 | P25: 2 Southbank Boulevard | Q25: SOUTHBANK | R25: Vic | S25: 3006 | T25: Locked Bag 14051 | V25: MELBOURNE CITY MAIL CENTRE | W25: Vic | X25: 8001 | Y25: Clare Thompson | Z25: 03 9695 6670 | AA25: clare.e.thompson@ausnetservices.com.au | AB25: NO | AC25: NO | AD25: NO | AE25: NO | AF25: NO | AG25: - | AH25: CBD | AI25: Urban | AJ25: Short rural | AK25: Long rural | AM25: NO | AN25: AusNet (T)
B26: Australian Distribution Co. | C26: Australian Distribution Co. | D26: 11222333444 | E26: - | F26: Electricity | G26: Distribution | H26: Revenue cap | I26: Financial | J26: June | K26: 5 | L26: 5 | M26: 2 | N26: distribution determination | O26: 123 Straight Street | Q26: SYDNEY | R26: NSW | S26: 2000 | T26: PO Box 123 | V26: SYDNEY | W26: NSW | X26: 2000 | Y26: Bob Smith | Z26: 02 1234 5678 | AA26: bob@auselec.net.au | AB26: YES | AC26: YES | AD26: YES | AE26: YES | AF26: NO | AG26: NO | AH26: CBD | AI26: Urban | AJ26: Short rural | AK26: Long rural | AM26: YES | AN26: Australian Distribution Co.
B27: Australian Distribution Co. (Gas) | C27: Australian Gas Distribution Co. | D27: 11222333444 | E27: NSW | F27: Gas | G27: Distribution | H27: Weighted average price cap | I27: Financial | J27: June | K27: 5 | L27: 5 | O27: 123 Straight Street | Q27: SYDNEY | R27: NSW | S27: 2000 | T27: PO Box 123 | V27: SYDNEY | W27: NSW | X27: 2000 | Y27: Bob Smith | Z27: 02 1234 5678 | AA27: bob@auselec.net.au | AB27: NO | AC27: NO | AD27: NO | AE27: NO | AF27: NO | AG27: - | AH27: CBD | AI27: Urban | AJ27: Short rural | AK27: Long rural | AM27: NO | AN27: Australian Distribution Co. (Vic)
B28: Australian Distribution Co. (Vic) | C28: Australian Distribution Co. (Victoria) | D28: 11222333444 | E28: Vic | F28: Electricity | G28: Distribution | H28: Revenue cap | I28: Calendar | J28: December | K28: 5 | L28: 5 | M28: 2 | N28: distribution determination | O28: 123 Straight Street | Q28: MELBOURNE | R28: Vic | S28: 3000 | T28: PO Box 123 | V28: MELBOURNE | W28: VIC | X28: 3000 | Y28: Bob Smith | Z28: 02 1234 5678 | AA28: bob@auselec.net.au | AB28: NO | AC28: NO | AD28: NO | AE28: NO | AF28: NO | AG28: YES | AH28: CBD | AI28: Urban | AJ28: Short rural | AK28: Long rural | AM28: YES | AN28: Australian Distribution Co. (Vic)
B29: Australian Transmission Co. | C29: Australian Transmission Co. | D29: 11222333444 | E29: - | F29: Electricity | G29: Transmission | H29: Revenue cap | I29: Financial | J29: June | K29: 5 | L29: 5 | M29: 5 | N29: transmission determination | O29: 123 Straight Street | Q29: SYDNEY | R29: NSW | S29: 2000 | T29: PO Box 123 | V29: SYDNEY | W29: NSW | X29: 2000 | Y29: Bob Smith | Z29: 02 1234 5678 | AA29: bob@auselec.net.au | AB29: NO | AC29: NO | AD29: NO | AE29: NO | AF29: NO | AG29: - | AH29: CBD | AI29: Urban | AJ29: Short rural | AK29: Long rural | AM29: NO | AN29: Australian Transmission Co.
B30: Central Ranges Pipeline (D) | C30: Central Ranges Pipeline Pty Ltd | D30: 108218355 | E30: NSW | F30: Gas | G30: Distribution | H30: Weighted average price cap | I30: Financial | J30: June | K30: 15 | L30: 5 | M30: 5 | N30: distribution determination | O30: Level 19 | P30: 580 George Street | Q30: SYDNEY | R30: NSW | S30: 2000 | T30: PO Box R41 | V30: ROYAL EXCHANGE | W30: NSW | X30: 1225 | Y30: Scott Young | Z30: 02 9275 0031 | AA30: scott.young@apa.com.au | AB30: NO | AC30: NO | AD30: NO | AE30: NO | AF30: NO | AG30: - | AH30: CBD | AI30: Urban | AJ30: Short rural | AK30: Long rural | AM30: NO
B31: Central Ranges Pipeline (T) | C31: Central Ranges Pipeline Pty Ltd | D31: 108218355 | E31: NSW | F31: Gas | G31: Distribution | H31: Weighted average price cap | I31: Financial | J31: June | K31: 14 | L31: 5 | M31: 5 | N31: transmission determination | O31: Level 19 | P31: 580 George Street | Q31: SYDNEY | R31: NSW | S31: 2000 | T31: PO Box R41 | V31: ROYAL EXCHANGE | W31: NSW | X31: 1225 | Y31: Scott Young | Z31: 02 9275 0031 | AA31: scott.young@apa.com.au | AB31: NO | AC31: NO | AD31: NO | AE31: NO | AF31: NO | AG31: - | AH31: CBD | AI31: Urban | AJ31: Short rural | AK31: Long rural | AM31: NO
B32: CitiPower | C32: CitiPower | D32: 76064651056 | E32: Vic | F32: Electricity | G32: Distribution | H32: Revenue cap | I32: Calendar | J32: December | K32: 5 | L32: 5 | M32: 2 | N32: 2016-20 Distribution Determination | O32: 40 Market Street | Q32: MELBOURNE | R32: Vic | S32: 3000 | T32: Locked Bag 14090 | V32: MELBOURNE | W32: VIC | X32: 8001 | Y32: Hannah Williams | Z32: 03 9683 4088 | AA32: hwilliams@powercor.com.au | AB32: YES | AC32: YES | AD32: NO | AE32: NO | AF32: NO | AG32: YES | AH32: CBD | AI32: Urban | AJ32: Short rural | AK32: Long rural | AM32: YES | AN32: CitiPower
B33: Directlink | C33: Directlink | D33: 16779340889 | E33: Qld | F33: Electricity | G33: Transmission | H33: Revenue cap | I33: Financial | J33: June | K33: 5 | L33: 5 | M33: 5 | N33: transmission determination | O33: Level 19, HSBC Building | P33: 580 George Street | Q33: SYDNEY | R33: NSW | S33: 2000 | T33: PO Box R41 | V33: ROYAL EXCHANGE | W33: NSW | X33: 1225 | Y33: Scott Young | Z33: 02 9275 0031 | AA33: scott.young@apa.com.au | AB33: NO | AC33: NO | AD33: NO | AE33: NO | AF33: NO | AG33: - | AH33: CBD | AI33: Urban | AJ33: Short rural | AK33: Long rural | AM33: NO | AN33: Directlink
B34: ElectraNet | C34: ElectraNet | D34: 41094482416 | E34: SA | F34: Electricity | G34: Transmission | H34: Revenue cap | I34: Financial | J34: June | K34: 5 | L34: 5 | M34: 5 | N34: transmission determination | O34: 52-55 East Terrace | P34: Rymill Park | Q34: ADELAIDE | R34: SA | S34: 5000 | T34: PO Box 7096 | U34: Hutt Street Post Office | V34: ADELAIDE | W34: SA | X34: 5000 | Y34: Bill Jackson | Z34: 08 8404 7969 | AA34: jackson.bill@electranet.com.au | AB34: NO | AC34: NO | AD34: NO | AE34: NO | AF34: NO | AG34: - | AH34: CBD | AI34: Urban | AJ34: Short rural | AK34: Long rural | AM34: NO | AN34: ElectraNet
B35: Endeavour Energy | C35: Endeavour Energy | D35: 11247365823 | E35: NSW | F35: Electricity | G35: Distribution | H35: Revenue cap | I35: Financial | J35: June | K35: 5 | L35: 5 | M35: 5 | N35: 2014-19 Distribution Determination | O35: 51 Huntingwood Drive | Q35: HUNTINGWOOD | R35: NSW | S35: 2148 | T35: PO Box 811 | V35: SEVEN HILLS | W35: NSW | X35: 1730 | Y35: Jon Hocking | Z35: 02 9853 4386 / 0407 348 156 | AA35: Jon.Hocking@Endeavourenergy.com.au | AB35: NO | AC35: YES | AD35: YES | AE35: YES | AF35: NO | AG35: NO | AH35: CBD | AI35: Urban | AJ35: Short rural | AK35: Long rural | AM35: YES | AN35: Endeavour Energy
B36: Energex | C36: Energex | D36: 40078849055 | E36: Qld | F36: Electricity | G36: Distribution | H36: Revenue cap | I36: Financial | J36: June | K36: 5 | L36: 5 | M36: 5 | N36: 2015-20 Distribution Determination | O36: 26 Reddacliff Street | Q36: NEWSTEAD | R36: Qld | S36: 4006 | T36: 26 Reddacliff Street | V36: NEWSTEAD | W36: QLD | X36: 4006 | Y36: Jenny Doyle, Group Manager Regulatory Affairs | Z36: (07) 3851 6416 | AA36: jenny.doyle@ergon.com.au | AB36: YES | AC36: YES | AD36: YES | AE36: NO | AF36: NO | AG36: NO | AH36: CBD | AI36: Urban | AJ36: Short rural | AK36: Long rural | AM36: YES | AN36: Energex
B37: Ergon Energy | C37: Ergon Energy | D37: 50087646062 | E37: Qld | F37: Electricity | G37: Distribution | H37: Revenue cap | I37: Financial | J37: June | K37: 5 | L37: 5 | M37: 5 | N37: 2015-20 Distribution Determination | O37: 22 Walker Street | Q37: TOWNSVILLE | R37: Qld | S37: 4810 | T37: Po Box 264 | V37: FORTITUDE VALLEY | W37: QLD | X37: 4006 | Y37: Jenny Doyle, Group Manager Regulatory Affairs | Z37: (07) 3851 6416 | AA37: jenny.doyle@ergon.com.au | AB37: NO | AC37: YES | AD37: YES | AE37: YES | AF37: NO | AG37: NO | AH37: CBD | AI37: Urban | AJ37: Short rural | AK37: Long rural | AM37: YES | AN37: Ergon Energy
B38: Essential Energy | C38: Essential Energy | D38: 37428185226 | E38: NSW | F38: Electricity | G38: Distribution | H38: Revenue cap | I38: Financial | J38: June | K38: 5 | L38: 5 | M38: 5 | N38: 2014-19 Distribution Determination | O38: 8 Buller Street | Q38: PORT MACQUARIE | R38: NSW | S38: 2444 | T38: PO Box 5730 | V38: PORT MACQUARIE | W38: NSW | X38: 2444 | Y38: Catherine Waddell | Z38: 02 6338 3553 | AA38: catherine.waddell@essentialenergy.com.au | AB38: NO | AC38: NO | AD38: YES | AE38: YES | AF38: NO | AG38: NO | AH38: CBD | AI38: Urban | AJ38: Short rural | AK38: Long rural | AM38: YES | AN38: Essential Energy
B39: Jemena Electricity | C39: Jemena Electricity | D39: 82064651083 | E39: Vic | F39: Electricity | G39: Distribution | H39: Revenue cap | I39: Calendar | J39: December | K39: 5 | L39: 5 | M39: 2 | N39: 2016-20 Distribution Determination | O39: Level 16 | P39: 567 Collins Street | Q39: MELBOURNE | R39: VIC | S39: 3000 | T39: PO Box 16182 | V39: MELBOURNE | W39: VIC | X39: 8001 | Y39: Matthew Serpell | Z39: 03 9173 8231 | AA39: matthew.serpell@jemena.com.au | AB39: NO | AC39: YES | AD39: YES | AE39: NO | AF39: NO | AG39: YES | AH39: CBD | AI39: Urban | AJ39: Short rural | AK39: Long rural | AM39: YES | AN39: Jemena Electricity
B40: JGN | C40: Jemena Gas Networks (NSW) Ltd | D40: 003 004 322 | E40: NSW | F40: Gas | G40: Distribution | H40: Weighted average price cap | I40: Financial | J40: June | K40: 5 | L40: 5 | O40: Level 16 | P40: 567 Collins Street | Q40: MELBOURNE | R40: VIC | S40: 3000 | T40: PO Box 16182 | V40: MELBOURNE | W40: VIC | X40: 8001 | Y40: Scott Young | AB40: NO | AC40: NO | AD40: NO | AE40: NO | AF40: NO | AG40: - | AH40: CBD | AI40: Urban | AJ40: Short rural | AK40: Long rural | AM40: NO | AN40: JGN
B41: Multinet Gas | C41: Multinet Gas (DB No.1) Pty Ltd (ACN 086 026 986), Multinet Gas (DB No.2) Pty Ltd (ACN 086 230 122) | D41: 086026986 | E41: Vic | F41: Gas | G41: Distribution | H41: Weighted average price cap | I41: Calendar | J41: December | K41: 5 | L41: 5 | M41: x | O41: 43-45 Centreway | Q41: MT WAVERLEY | R41: Vic | S41: 3149 | Y41: Andrew Schille | Z41: 03 8846 9860 | AA41: andrew.schille@ue.com.au | AB41: NO | AC41: NO | AD41: NO | AE41: NO | AF41: NO | AG41: - | AH41: CBD | AI41: Urban | AJ41: Short rural | AK41: Long rural | AM41: NO | AN41: Multinet Gas
B42: Murraylink | C42: Murraylink | D42: 79181207909 | E42: SA | F42: Electricity | G42: Transmission | H42: Revenue cap | I42: Financial | J42: June | K42: 5 | L42: 5 | M42: 5 | N42: transmission determination | O42: Level 19 | P42: 580 George Street | Q42: SYDNEY | R42: NSW | S42: 2000 | T42: PO Box R41 | V42: ROYAL EXCHANGE | W42: NSW | X42: 1225 | Y42: Scott Young | Z42: 02 9275 0031 | AA42: scott.young@apa.com.au | AB42: NO | AC42: NO | AD42: NO | AE42: NO | AF42: NO | AG42: - | AH42: CBD | AI42: Urban | AJ42: Short rural | AK42: Long rural | AM42: NO | AN42: Murraylink
B43: Power and Water | C43: Power and Water Corporation | D43: 15947352360 | E43: NT | F43: Electricity | G43: Distribution | H43: Revenue cap | I43: Financial | J43: June | K43: 5 | L43: 5 | M43: x | N43: distribution determination | O43: GPO Box 1921 | Q43: DARWIN | R43: NT | S43: 801 | T43: GPO Box 1921 | V43: DARWIN | W43: NT | X43: 801 | Y43: Lucy Moon | Z43: 08 8924 5822 | AA43: Lucy.Moon@powerwater.com.au | AB43: YES | AC43: YES | AD43: YES | AE43: YES | AF43: NO | AG43: NO | AH43: CBD | AI43: Urban | AJ43: Short rural | AK43: Long rural | AM43: NO | AN43: Power and Water
B44: Powercor Australia | C44: Powercor Australia | D44: 89064651109 | E44: Vic | F44: Electricity | G44: Distribution | H44: Revenue cap | I44: Calendar | J44: December | K44: 5 | L44: 5 | M44: 2 | N44: 2016-20 Distribution Determination | O44: 40 Market Street | Q44: MELBOURNE | R44: Vic | S44: 3000 | T44: Locked bag 14090 | V44: MELBOURNE | W44: VIC | X44: 8001 | Y44: Hannah Williams | Z44: 03 9683 4088 | AA44: hwilliams@powercor.com.au | AB44: NO | AC44: NO | AD44: YES | AE44: YES | AF44: NO | AG44: YES | AH44: CBD | AI44: Urban | AJ44: Short rural | AK44: Long rural | AM44: YES | AN44: Powercor Australia
B45: Powerlink | C45: Queensland Electricity Transmission Corporation Limited trading as Powerlink Queensland | D45: 82078849233 | E45: Qld | F45: Electricity | G45: Transmission | H45: Revenue cap | I45: Financial | J45: June | K45: 5 | L45: 5 | M45: 5 | N45: transmission determination | O45: 33 Harold St | Q45: VIRGINIA | R45: Qld | S45: 4014 | T45: PO Box 1193 | V45: VIRGINIA | W45: QLD | X45: 4014 | Y45: Jennifer Harris | Z45: 07 3860 2667 | AA45: jharris@powerlink.com.au | AB45: NO | AC45: NO | AD45: NO | AE45: NO | AF45: NO | AG45: - | AH45: CBD | AI45: Urban | AJ45: Short rural | AK45: Long rural | AM45: NO | AN45: Powerlink
B46: Roma to Brisbane Pipeline | C46: APT Petroleum Pipelines Limited t/a Roma to Brisbane Pipeline | D46: 009 737 393 | E46: Qld | F46: Gas | G46: Transmission | H46: Weighted average price cap | I46: Financial | J46: June | K46: 5 | L46: 5 | M46: x | N46: n/a | O46: 580 George Street | Q46: SYDNEY | R46: NSW | S46: 2000 | T46: PO Box R41 | V46: ROYAL EXCHANGE | W46: NSW | X46: 1225 | Y46: Mark Allen | Z46: 02 9275 0010 | AA46: mark.allen@apa.com.au | AB46: NO | AC46: NO | AD46: NO | AE46: NO | AF46: NO | AG46: - | AH46: CBD | AI46: Urban | AJ46: Short rural | AK46: Long rural | AM46: NO | AN46: Roma to Brisbane Pipeline
B47: SA Power Networks | C47: SA Power Networks | D47: 13332330749 | E47: SA | F47: Electricity | G47: Distribution | H47: Revenue cap | I47: Financial | J47: June | K47: 5 | L47: 5 | M47: 5 | N47: 2015-20 Distribution Determination | O47: 1 Anzac Highway | Q47: KESWICK | R47: SA | S47: 5035 | T47: GPO Box 77 | V47: ADELAIDE | W47: SA | X47: 5000 | Y47: Richard Sibly | Z47: 08 8404 5613 | AA47: richard.sibly@sapowernetworks.com.au | AB47: NO | AC47: NO | AD47: YES | AE47: YES | AF47: NO | AG47: NO | AH47: CBD | AI47: Urban | AJ47: Short rural | AK47: Long rural | AM47: NO | AN47: SA Power Networks
B48: TasNetworks (D) | C48: TasNetworks (D) | D48: 24167357299 | E48: Tas | F48: Electricity | G48: Distribution | H48: Revenue cap | I48: Financial | J48: June | K48: 5 | L48: 5 | M48: 5 | N48: distribution determination | O48: 1-7 Maria Street | Q48: LENAH VALLEY | R48: Tas | S48: 7008 | T48: PO Box 606 | V48: MOONAH | W48: Tas | X48: 7009 | Y48: John Sayers | Z48: 03 6271 6469 | AA48: john.sayers@tasnetworks.com.au | AB48: YES | AC48: YES | AD48: YES | AE48: YES | AF48: YES | AG48: NO | AH48: Critical Infrastructure | AI48: High density commercial | AJ48: Urban | AK48: High density rural | AL48: Low density rural | AM48: YES | AN48: TasNetworks (D)
B49: TasNetworks (T) | C49: TasNetworks (T) | D49: 24167357299 | E49: Tas | F49: Electricity | G49: Transmission | H49: Revenue cap | I49: Financial | J49: June | K49: 5 | L49: 5 | M49: 5 | N49: transmission determination | O49: 1-7 Maria Street | Q49: LENAH VALLEY | R49: Tas | S49: 7008 | T49: PO Box 606 | V49: MOONAH | W49: Tas | X49: 7009 | Y49: John Sayers | Z49: 03 6271 6469 | AA49: john.sayers@tasnetworks.com.au | AB49: NO | AC49: NO | AD49: NO | AE49: NO | AF49: NO | AG49: - | AH49: CBD | AI49: Urban | AJ49: Short rural | AK49: Long rural | AM49: NO | AN49: TasNetworks (T)
B50: TransGrid | C50: NSW Electricity Networks Operations Pty Ltd trading as TransGrid | D50: 70 250 995 390 | E50: NSW | F50: Electricity | G50: Transmission | H50: Revenue cap | I50: Financial | J50: June | K50: 4 | L50: 5 | M50: 5 | N50: transmission determination | O50: 180 Thomas Street | Q50: SYDNEY | R50: NSW | S50: 2000 | T50: PO Box A1000 | V50: SYDNEY SOUTH | W50: NSW | X50: 1235 | Y50: Garrie Chubb | Z50: 0408 210 221 | AA50: garrie.chubb@transgrid.com.au | AB50: NO | AC50: NO | AD50: NO | AE50: NO | AF50: NO | AG50: - | AH50: CBD | AI50: Urban | AJ50: Short rural | AK50: Long rural | AM50: NO | AN50: TransGrid
B51: United Energy | C51: United Energy | D51: 70064651029 | E51: Vic | F51: Electricity | G51: Distribution | H51: Revenue cap | I51: Calendar | J51: December | K51: 5 | L51: 5 | M51: 2 | N51: 2016-20 Distribution Determination | O51: 43-45 Centreway | Q51: MOUNT WAVERLEY | R51: Vic | S51: 3149 | T51: PO Box 449 | V51: MOUNT WAVERLEY | W51: VIC | X51: 3170 | Y51: Mathew Abraham | Z51: 03 8846 9758 | AA51: mathew.abraham@ue.com.au | AB51: NO | AC51: NO | AD51: YES | AE51: NO | AF51: NO | AG51: YES | AH51: CBD | AI51: Urban | AJ51: Short rural | AK51: Long rural | AM51: YES | AN51: United Energy
Z54: For EB & Reset RINs only | AE54: For AARs only
B55: The Reg Year Ending (dms_RYE) must be set to the last year of the regulatory period. For forecast data is is usually (FRCP_y5) for actual it is a single year (CRY). For historical actual data the RYE will need to be set manually in the business details sheet by setting the dms_Multiyear_flag to 1 and putting the correct value in 'dms_Specified_FinalYear. See cells C67:C68 | N55: Drop down selector box for CA & Reset RINs. | O55: For CA & Reset RINs only | Z55: for DNSP only | AE55: For DNSPs only
B56: dms_Model_List | C56: dms_Worksheet_List | E56: dms_RYE_Formula_Result | N56: dms_0203_ProjectType | O56: dms_020303_01_UOM | P56: dms_020501_01_UOM | Q56: dms_020501_02_UOM | R56: dms_020501_03_UOM | S56: dms_020501_04_UOM | T56: dms_020603_01_UOM | U56: dms_020701_01_UOM | V56: dms_020701_02_UOM | W56: dms_020701_01_Rows | X56: dms_040102_01_UOM | Y56: dms_040102_04_UOM | Z56: dms_030601_01_UOM | AA56: dms_030601_02_UOM | AB56: dms_030701_01_UOM | AC56: dms_030702_01_UOM | AD56: dms_030703_01_UOM | AE56: dms_030605_UOM | AF56: dms_03060703_UOM
B57: ARR | C57: ANNUAL REPORTING STATEMENT | E57: =LEFT(dms_SingleYear_FinalYear_Result,2)&RIGHT(dms_SingleYear_FinalYear_Result,2) -> 2011 | F57: =LEFT(dms_SingleYear_FinalYear_Result,2)&RIGHT(dms_SingleYear_FinalYear_Result,2) | H57: Formula errors are OK | N57: New line on new route - single circuit | O57: Circuit line length in km | P57: 0's | Q57: 0's | R57: 0's | S57: 0's | T57: 0's | U57: km | V57: km | W57: Route line length within zone | X57: 0's | Y57: days | Z57: minutes/customer | AA57: minutes/customer | AB57: Customer / km | AC57: % | AD57: km | AE57: number | AF57: number
B58: CA | C58: CATEGORY ANALYSIS | E58: =LEFT(dms_SingleYear_FinalYear_Result,2)&RIGHT(dms_SingleYear_FinalYear_Result,2) -> 2011 | F58: =LEFT(dms_SingleYear_FinalYear_Result,2)&RIGHT(dms_SingleYear_FinalYear_Result,2) | H58: Formula errors are OK | N58: New line on new route - dual circuit | O58: Circuit line length in km | P58: 0's | Q58: 0's | R58: 0's | S58: 0's | T58: 0's | U58: 0's | V58: 0's | W58: Number of maintenance spans | X58: 0's | Y58: 0's | Z58: minutes/customer | AA58: minutes/customer | AB58: MWh/customer | AC58: Number of spans | AE58: number | AF58: number
B59: CESS | C59: CAPITLAL EXPENDITURE SHARING SCHEMING | E59: 2016 | F59: =LEFT(dms_SingleYear_FinalYear_Result,2)&RIGHT(dms_SingleYear_FinalYear_Result,2) | N59: New line on new route - other | O59: Circuit line length in km | P59: MVA added | Q59: MVA added | R59: MVA added | S59: MVA added | T59: 0's | U59: km | V59: km | W59: Total length of maintenance spans | X59: 0's | Y59: $0s | Z59: interruptions/customer | AA59: interruptions/customer | AB59: kVA / customer | AC59: Number of spans | AE59: number | AF59: number
B60: CPI | C60: CPI | N60: Line rebuild over existing route - single circuit | O60: Circuit line length in km | P60: 0's | Q60: 0's | R60: 0's | S60: 0's | T60: 0's | U60: km | V60: km | W60: Length of vegetation corridors | X60: $0s | Y60: 0's | Z60: interruptions/customer | AA60: interruptions/customer | AC60: Number of spans | AE60: number | AF60: number
B61: EB | C61: ECONOMIC BENCHMARKING | E61: =LEFT(dms_SingleYear_FinalYear_Result,2)&RIGHT(dms_SingleYear_FinalYear_Result,2) -> 2011 | F61: =LEFT(dms_SingleYear_FinalYear_Result,2)&RIGHT(dms_SingleYear_FinalYear_Result,2) | H61: Formula errors are OK | N61: Line rebuild over existing route - dual circuit | O61: Number | P61: total spend $0s | Q61: total spend $0s | R61: total spend $0s | S61: total spend $0s | T61: (per cent) | U61: 0's | V61: 0's | W61: Average number of trees per maintenance span | AC61: Number of spans | AE61: number | AF61: (per cent)
B62: PTRM | C62: POST TAX REVENUE MODEL | E62: =LEFT(dms_MultiYear_FinalYear_Result,2)&RIGHT(dms_MultiYear_FinalYear_Result,2) -> 2018 | F62: =LEFT(dms_MultiYear_FinalYear_Result,2)&RIGHT(dms_MultiYear_FinalYear_Result,2) | N62: Reconductor - Single circuit | O62: Number | P62: net circuit km added | Q62: net circuit km added | R62: net circuit km added | S62: net circuit km added | U62: years | V62: years | W62: Average frequency of cutting cycle | AC62: Years | AE62: number
B63: Reset | C63: REGULATORY REPORTING STATEMENT | E63: =LEFT(dms_MultiYear_FinalYear_Result,2)&RIGHT(dms_MultiYear_FinalYear_Result,2) -> 2018 | F63: =LEFT(dms_MultiYear_FinalYear_Result,2)&RIGHT(dms_MultiYear_FinalYear_Result,2) | H63: Formula errors are OK | N63: Reconductor - Dual circuit | O63: Number | P63: total spend $0s | Q63: total spend $0s | R63: total spend $0s | S63: total spend $0s | AC63: Years | AE63: number
B64: RFM | C64: ROLL FORWARD MODEL | E64: =LEFT(dms_CRCP_FinalYear_Result,2)&RIGHT(dms_CRCP_FinalYear_Result,2) -> 2018 | F64: =LEFT(dms_CRCP_FinalYear_Result,2)&RIGHT(dms_CRCP_FinalYear_Result,2) | N64: Other | P64: net circuit km added | Q64: net circuit km added | R64: net circuit km added | S64: net circuit km added | AC64: Trees | AE64: number
B65: WACC | C65: WEIGHTED AVERAGE COST OF CAPITAL | E65: =LEFT(dms_MultiYear_FinalYear_Result,2)&RIGHT(dms_MultiYear_FinalYear_Result,2) -> 2018 | F65: =LEFT(dms_MultiYear_FinalYear_Result,2)&RIGHT(dms_MultiYear_FinalYear_Result,2) | P65: total spend $0s | Q65: total spend $0s | R65: total spend $0s | S65: total spend $0s | AC65: Trees | AE65: number
P66: 0's | R66: $0s | AC66: Defects | AE66: number
B67: dms_DataQuality_List | C67: dms_Confid_status_List | P67: 0's | AC67: Defects | AE67: number
B68: Actual | C68: Public | P68: 0's | AC68: Spans | AE68: number
B69: Estimate | C69: Confidential | P69: $0s | AC69: km | AE69: (per cent)
B70: Consolidated | AC70: Spans | AE70: (per cent)
K73: STYLES IN USE | O73: For PTRM files - this field set the text for the named range "DMS_Xfactor" which in all cases is simply the text "x factors" - this saves putting in each old gas PTRM file | Z73: for TNSP only
B74: For all files either AER or business needs to be able to specify the type of submission | C74: For PTRM & RFM templates we must provide a choice in case they change their form of control - otherwise it is drawn from the business specific lookup table above. | O74: DMS_Xfactor | Z74: dms_030601_01_UOM | AB74: dms_030701_01_UOM | AC74: dms_030702_01_UOM
B75: dms_SourceList | C75: dms_FormControl_Choices | O75: x factors | Z75: % | AB75: Number of spans | AC75: km
B76: After appeal | C76: Revenue cap | Z76: number | AB76: Years | AC76: %
B77: Draft decision | C77: Revenue yield | Z77: number | AB77: Trees | AC77: km
B78: Final decision | C78: Weighted average price cap | Z78: % | AB78: Defects | AC78: number
B79: PTRM update 1 | Z79: number | AB79: Number of spans
B80: PTRM update 2 | Z80: number | AB80: km
B81: PTRM update 3 | Z81: % | AB81: km
B82: PTRM update 4 | Z82: number | AB82: Number of spans
B83: PTRM update 5 | Z83: number
B84: PTRM update 6 | Z84: %
B85: PTRM update 7 | Z85: number
B86: Regulatory proposal | Z86: %
B87: Reporting | Z87: number
B88: Revised regulatory proposal | Z88: %
Z89: number
B93: Reason for interruption | C93: dms_Reason_Interruption_Detailed | D93: dms_Reason_Interruption | E93: dms_STPIS_Exclusion_List | F93: dms_020301_ProjectType_List | G93: dms_020302_ProjectType_List | H93: dms_N0205_AssetType
B94: Animal | C94: Animal impact | D94: Animal | E94: Weather | F94: New substation establishment | G94: New line on new route - single circuit | H94: Cast Iron
C95: Animal nesting/burrowing, etc and other | D95: Asset failure | E95: Equipment failure | F95: Capacity upgrade | G95: New line on new route - dual circuit | H95: PVC
C96: Other | D96: Other | E96: Operational error | F96: Voltage upgrade | G96: New line on new route - other | H96: Polyamide
B97: Asset failure | C97: LV | D97: Overloads | E97: Vegetation | F97: Other | G97: Line rebuild over existing route - single circuit | H97: High density polyethylene (80)
C98: Distribution substation | D98: Planned | E98: Animals | G98: Line rebuild over existing route - dual circuit | H98: High density polyethylene (100)
C99: HV | D99: Network business | E99: Third party impacts | G99: Reconductor - Single circuit | H99: High density polyethylene (250)
C100: Zone substation | D100: Third party | E100: Transmission failure | G100: Reconductor - Dual circuit | H100: High density polyethylene (575)
C101: Subtransmission | D101: Unknown | E101: Load shedding | G101: Reconductor - Other | H101: Medium density polyethylene
B102: Other | C102: insert description of 'other' | D102: Vegetation | E102: Inter-distributor connection failure | G102: Line upgrade - raising/retensoring | H102: Other polyethylene
B103: Overloads | C103: - | D103: Weather | E103: Other | G103: Line upgrade - voltage upgrade | H103: Unprotected steel
B104: Planned | C104: - | D104: 2 - STPIS Exclusion (3.3)(a) | G104: Line upgrade - capacity | H104: Protected steel
B105: Network business | C105: Network error | D105: 3 - STPIS Exclusion (3.3)(a) | G105: String spare circuit | H105: Other
C106: Switching and protection error | D106: 4 - STPIS Exclusion (3.3)(a) | G106: Other
B107: Third party | C107: Fire | D107: 5 - STPIS Exclusion (3.3)(a)
C108: Other | D108: 6 - STPIS Exclusion (3.3)(a)
C109: Dig-in | D109: 7 - STPIS Exclusion (3.3)(a)
C110: Unauthorised access
C111: Vehicle impact
B112: Unknown | C112: Unknown
B113: Vegetation | C113: Blow-in/Fall-in - NSP responsibility
C114: Grow-in - NSP responsibility
C115: Blow-in/Fall-in - Other responsible party
C116: Grow-in - Other responsible party
B117: Weather
B118: 2 - STPIS Exclusion (3.3)(a)
B119: 3 - STPIS Exclusion (3.3)(a)
B120: 4 - STPIS Exclusion (3.3)(a)
B121: 5 - STPIS Exclusion (3.3)(a)
B122: 6 - STPIS Exclusion (3.3)(a)
B123: 7 - STPIS Exclusion (3.3)(a)
P128: The first row in these tables always refers to CRY in either it's financial or calendar format.
P129: The correct column headings will be correctly generated in the relevant worksheets in Recast RIN templates
B131: These are indeces and lookup values for various dates. All step from the value placed in FRCP_y1 on the business and other details worksheet | O131: These date tables are currently used in the Recast templates to provide column headings and conditional formatting
B132: dms_FRCPlength_Num_List | C132: dms_FinalYear_List | D132: dms_CRCPlength_Num_List | E132: dms_CFinalYear_List | F132: dms_FRCP_years | H132: dms_CRCP_years | J132: dms_CRCP_index | L132: dms_Financial_Years | M132: dms_Calendar_Years | O132: CRY from input cell on business sheet | P132: CRY - financial | Q132: dms_FinYears | R132: CRY calendar | S132: dms_CalYears
B133: 1 | C133: dms_FRCP_y1 | D133: 1 | E133: CRCP_y1 | F133: =FRCP_y1 -> 2020-21 | G133: dms_FRCP_y1 | H133: =IF(dms_RPT="financial",VALUE(LEFT(dms_FRCP_y1,4)-1)&"-"&TEXT(VALUE(MID(dms_FRCP_y1,3,2)),"00"),VALUE(LEFT(dms_FRCP_y1,4)-1)) -> 2019-20 | I133: dms_CRCP_yZ | J133: 1 | L133: 2005-06 | M133: 2006 | O133: =CRY -> 2010-11 | P133: =CRY -> 2010-11 | Q133: dms_CRYf_y1 | R133: =CRY -> 2010-11 | S133: dms_CRYc_y1
B134: 2 | C134: dms_FRCP_y2 | D134: 2 | E134: CRCP_y2 | F134: =IF(dms_RPT="financial",VALUE(LEFT(dms_FRCP_y1,4)+1)&"-"&TEXT(VALUE(RIGHT(dms_FRCP_y1,2)+1),"00"),VALUE(LEFT(dms_FRCP_y1,4)+1)) -> 2021-22 | G134: dms_FRCP_y2 | H134: =IF(dms_RPT="financial",VALUE(LEFT(dms_CRCP_yZ,4)-1)&"-"&TEXT(VALUE(MID(dms_CRCP_yZ,3,2)),"00"),VALUE(LEFT(dms_CRCP_yZ,4)-1)) -> 2018-19 | I134: dms_CRCP_yY | J134: 2 | L134: 2006-07 | M134: 2007 | P134: =VALUE(LEFT(dms_CRYf_y1,4)+1)&"-"&TEXT(MID(dms_CRYf_y1,3,2)+2,"00") -> 2011-12 | Q134: dms_CRYf_y2 | R134: =VALUE(LEFT(dms_CRYc_y1,4)+1) -> 2011 | S134: dms_CRYc_y2
B135: 3 | C135: dms_FRCP_y3 | D135: 3 | E135: CRCP_y3 | F135: =IF(dms_RPT="financial",VALUE(LEFT(dms_FRCP_y2,4)+1)&"-"&TEXT(VALUE(RIGHT(dms_FRCP_y2,2)+1),"00"),VALUE(LEFT(dms_FRCP_y2,4)+1)) -> 2022-23 | G135: dms_FRCP_y3 | H135: =IF(dms_RPT="financial",VALUE(LEFT(dms_CRCP_yY,4)-1)&"-"&TEXT(VALUE(MID(dms_CRCP_yY,3,2)),"00"),VALUE(LEFT(dms_CRCP_yY,4)-1)) -> 2017-18 | I135: dms_CRCP_yX | J135: 3 | L135: 2007-08 | M135: 2008 | P135: =VALUE(LEFT(dms_CRYf_y2,4)+1)&"-"&TEXT(MID(dms_CRYf_y2,3,2)+2,"00") -> 2012-13 | Q135: dms_CRYf_y3 | R135: =VALUE(LEFT(dms_CRYc_y2,4)+1) -> 2012 | S135: dms_CRYc_y3
B136: 4 | C136: dms_FRCP_y4 | D136: 4 | E136: CRCP_y4 | F136: =IF(dms_RPT="financial",VALUE(LEFT(dms_FRCP_y3,4)+1)&"-"&TEXT(VALUE(RIGHT(dms_FRCP_y3,2)+1),"00"),VALUE(LEFT(dms_FRCP_y3,4)+1)) -> 2023-24 | G136: dms_FRCP_y4 | H136: =IF(dms_RPT="financial",VALUE(LEFT(dms_CRCP_yX,4)-1)&"-"&TEXT(VALUE(MID(dms_CRCP_yX,3,2)),"00"),VALUE(LEFT(dms_CRCP_yX,4)-1)) -> 2016-17 | I136: dms_CRCP_yW | J136: 4 | L136: 2008-09 | M136: 2009 | P136: =VALUE(LEFT(dms_CRYf_y3,4)+1)&"-"&TEXT(MID(dms_CRYf_y3,3,2)+2,"00") -> 2013-14 | Q136: dms_CRYf_y4 | R136: =VALUE(LEFT(dms_CRYc_y3,4)+1) -> 2013 | S136: dms_CRYc_y4
B137: 5 | C137: dms_FRCP_y5 | D137: 5 | E137: CRCP_y5 | F137: =IF(dms_RPT="financial",VALUE(LEFT(dms_FRCP_y4,4)+1)&"-"&TEXT(VALUE(RIGHT(dms_FRCP_y4,2)+1),"00"),VALUE(LEFT(dms_FRCP_y4,4)+1)) -> 2024-25 | G137: dms_FRCP_y5 | H137: =IF(dms_RPT="financial",VALUE(LEFT(dms_CRCP_yW,4)-1)&"-"&TEXT(VALUE(MID(dms_CRCP_yW,3,2)),"00"),VALUE(LEFT(dms_CRCP_yW,4)-1)) -> 2015-16 | I137: dms_CRCP_yV | J137: 5 | L137: 2009-10 | M137: 2010 | P137: =VALUE(LEFT(dms_CRYf_y4,4)+1)&"-"&TEXT(MID(dms_CRYf_y4,3,2)+2,"00") -> 2014-15 | Q137: dms_CRYf_y5 | R137: =VALUE(LEFT(dms_CRYc_y4,4)+1) -> 2014 | S137: dms_CRYc_y5
B138: 6 | C138: dms_FRCP_y6 | D138: 6 | E138: CRCP_y6 | F138: =IF(dms_RPT="financial",VALUE(LEFT(dms_FRCP_y5,4)+1)&"-"&TEXT(VALUE(RIGHT(dms_FRCP_y5,2)+1),"00"),VALUE(LEFT(dms_FRCP_y5,4)+1)) -> 2025-26 | G138: dms_FRCP_y6 | H138: =IF(dms_RPT="financial",VALUE(LEFT(dms_CRCP_yV,4)-1)&"-"&TEXT(VALUE(MID(dms_CRCP_yV,3,2)),"00"),VALUE(LEFT(dms_CRCP_yV,4)-1)) -> 2014-15 | I138: dms_CRCP_yU | J138: 6 | L138: 2010-11 | M138: 2011 | P138: =VALUE(LEFT(dms_CRYf_y5,4)+1)&"-"&TEXT(MID(dms_CRYf_y5,3,2)+2,"00") -> 2015-16 | Q138: dms_CRYf_y6 | R138: =VALUE(LEFT(dms_CRYc_y5,4)+1) -> 2015 | S138: dms_CRYc_y6
B139: 7 | C139: dms_FRCP_y7 | D139: 7 | E139: CRCP_y7 | F139: =IF(dms_RPT="financial",VALUE(LEFT(dms_FRCP_y6,4)+1)&"-"&TEXT(VALUE(RIGHT(dms_FRCP_y6,2)+1),"00"),VALUE(LEFT(dms_FRCP_y6,4)+1)) -> 2026-27 | G139: dms_FRCP_y7 | H139: =IF(dms_RPT="financial",VALUE(LEFT(dms_CRCP_yU,4)-1)&"-"&TEXT(VALUE(MID(dms_CRCP_yU,3,2)),"00"),VALUE(LEFT(dms_CRCP_yU,4)-1)) -> 2013-14 | I139: dms_CRCP_yT | J139: 7 | L139: 2011-12 | M139: 2012 | P139: =VALUE(LEFT(dms_CRYf_y6,4)+1)&"-"&TEXT(MID(dms_CRYf_y6,3,2)+2,"00") -> 2016-17 | Q139: dms_CRYf_y7 | R139: =VALUE(LEFT(dms_CRYc_y6,4)+1) -> 2016 | S139: dms_CRYc_y7
B140: 8 | C140: dms_FRCP_y8 | D140: 8 | E140: CRCP_y8 | F140: =IF(dms_RPT="financial",VALUE(LEFT(dms_FRCP_y7,4)+1)&"-"&TEXT(VALUE(RIGHT(dms_FRCP_y7,2)+1),"00"),VALUE(LEFT(dms_FRCP_y7,4)+1)) -> 2027-28 | G140: dms_FRCP_y8 | H140: =IF(dms_RPT="financial",VALUE(LEFT(dms_CRCP_yT,4)-1)&"-"&TEXT(VALUE(MID(dms_CRCP_yT,3,2)),"00"),VALUE(LEFT(dms_CRCP_yT,4)-1)) -> 2012-13 | I140: dms_CRCP_yS | J140: 8 | L140: 2012-13 | M140: 2013 | P140: =VALUE(LEFT(dms_CRYf_y7,4)+1)&"-"&TEXT(MID(dms_CRYf_y7,3,2)+2,"00") -> 2017-18 | Q140: dms_CRYf_y8 | R140: =VALUE(LEFT(dms_CRYc_y7,4)+1) -> 2017 | S140: dms_CRYc_y8
B141: 9 | C141: dms_FRCP_y9 | D141: 9 | E141: CRCP_y9 | F141: =IF(dms_RPT="financial",VALUE(LEFT(dms_FRCP_y8,4)+1)&"-"&TEXT(VALUE(RIGHT(dms_FRCP_y8,2)+1),"00"),VALUE(LEFT(dms_FRCP_y8,4)+1)) -> 2028-29 | G141: dms_FRCP_y9 | H141: =IF(dms_RPT="financial",VALUE(LEFT(dms_CRCP_yS,4)-1)&"-"&TEXT(VALUE(MID(dms_CRCP_yS,3,2)),"00"),VALUE(LEFT(dms_CRCP_yS,4)-1)) -> 2011-12 | I141: dms_CRCP_yR | J141: 9 | L141: 2013-14 | M141: 2014 | P141: =VALUE(LEFT(dms_CRYf_y8,4)+1)&"-"&TEXT(MID(dms_CRYf_y8,3,2)+2,"00") -> 2018-19 | Q141: dms_CRYf_y9 | R141: =VALUE(LEFT(dms_CRYc_y8,4)+1) -> 2018 | S141: dms_CRYc_y9
B142: 10 | C142: dms_FRCP_y10 | D142: 10 | E142: CRCP_y10 | F142: =IF(dms_RPT="financial",VALUE(LEFT(dms_FRCP_y9,4)+1)&"-"&TEXT(VALUE(RIGHT(dms_FRCP_y9,2)+1),"00"),VALUE(LEFT(dms_FRCP_y9,4)+1)) -> 2029-30 | G142: dms_FRCP_y10 | H142: =IF(dms_RPT="financial",VALUE(LEFT(dms_CRCP_yR,4)-1)&"-"&TEXT(VALUE(MID(dms_CRCP_yR,3,2)),"00"),VALUE(LEFT(dms_CRCP_yR,4)-1)) -> 2010-11 | I142: dms_CRCP_yQ | J142: 10 | L142: 2014-15 | M142: 2015 | P142: =VALUE(LEFT(dms_CRYf_y9,4)+1)&"-"&TEXT(MID(dms_CRYf_y9,3,2)+2,"00") -> 2019-20 | Q142: dms_CRYf_y10 | R142: =VALUE(LEFT(dms_CRYc_y9,4)+1) -> 2019 | S142: dms_CRYc_y10
B143: 11 | C143: dms_FRCP_y11 | D143: 11 | E143: CRCP_y11 | F143: =IF(dms_RPT="financial",VALUE(LEFT(dms_FRCP_y10,4)+1)&"-"&TEXT(VALUE(RIGHT(dms_FRCP_y10,2)+1),"00"),VALUE(LEFT(dms_FRCP_y10,4)+1)) -> 2030-31 | G143: dms_FRCP_y11 | H143: =IF(dms_RPT="financial",VALUE(LEFT(dms_CRCP_yQ,4)-1)&"-"&TEXT(VALUE(MID(dms_CRCP_yQ,3,2)),"00"),VALUE(LEFT(dms_CRCP_yQ,4)-1)) -> 2009-10 | I143: dms_CRCP_yP | J143: 11 | L143: 2015-16 | M143: 2016 | P143: =VALUE(LEFT(dms_CRYf_y10,4)+1)&"-"&TEXT(MID(dms_CRYf_y10,3,2)+2,"00") -> 2020-21 | Q143: dms_CRYf_y11 | R143: =VALUE(LEFT(dms_CRYc_y10,4)+1) -> 2020 | S143: dms_CRYc_y11
B144: 12 | C144: dms_FRCP_y12 | D144: 12 | E144: CRCP_y12 | F144: =IF(dms_RPT="financial",VALUE(LEFT(dms_FRCP_y11,4)+1)&"-"&TEXT(VALUE(RIGHT(dms_FRCP_y11,2)+1),"00"),VALUE(LEFT(dms_FRCP_y11,4)+1)) -> 2031-32 | G144: dms_FRCP_y12 | H144: =IF(dms_RPT="financial",VALUE(LEFT(dms_CRCP_yP,4)-1)&"-"&TEXT(VALUE(MID(dms_CRCP_yP,3,2)),"00"),VALUE(LEFT(dms_CRCP_yP,4)-1)) -> 2008-09 | I144: dms_CRCP_yO | J144: 12 | L144: 2016-17 | M144: 2017 | P144: =VALUE(LEFT(dms_CRYf_y11,4)+1)&"-"&TEXT(MID(dms_CRYf_y11,3,2)+2,"00") -> 2021-22 | Q144: dms_CRYf_y12 | R144: =VALUE(LEFT(dms_CRYc_y11,4)+1) -> 2021 | S144: dms_CRYc_y12
B145: 13 | C145: dms_FRCP_y13 | D145: 13 | E145: CRCP_y13 | F145: =IF(dms_RPT="financial",VALUE(LEFT(dms_FRCP_y12,4)+1)&"-"&TEXT(VALUE(RIGHT(dms_FRCP_y12,2)+1),"00"),VALUE(LEFT(dms_FRCP_y12,4)+1)) -> 2032-33 | G145: dms_FRCP_y13 | H145: =IF(dms_RPT="financial",VALUE(LEFT(dms_CRCP_yO,4)-1)&"-"&TEXT(VALUE(MID(dms_CRCP_yO,3,2)),"00"),VALUE(LEFT(dms_CRCP_yO,4)-1)) -> 2007-08 | I145: dms_CRCP_yN | J145: 13 | L145: 2017-18 | M145: 2018 | P145: =VALUE(LEFT(dms_CRYf_y12,4)+1)&"-"&TEXT(MID(dms_CRYf_y12,3,2)+2,"00") -> 2022-23 | Q145: dms_CRYf_y13 | R145: =VALUE(LEFT(dms_CRYc_y12,4)+1) -> 2022 | S145: dms_CRYc_y13
B146: 14 | C146: dms_FRCP_y14 | D146: 14 | E146: CRCP_y14 | F146: =IF(dms_RPT="financial",VALUE(LEFT(dms_FRCP_y13,4)+1)&"-"&TEXT(VALUE(RIGHT(dms_FRCP_y13,2)+1),"00"),VALUE(LEFT(dms_FRCP_y13,4)+1)) -> 2033-34 | G146: dms_FRCP_y14 | H146: =IF(dms_RPT="financial",VALUE(LEFT(dms_CRCP_yN,4)-1)&"-"&TEXT(VALUE(MID(dms_CRCP_yN,3,2)),"00"),VALUE(LEFT(dms_CRCP_yN,4)-1)) -> 2006-07 | I146: dms_CRCP_yM | J146: 14 | L146: 2018-19 | M146: 2019 | P146: =VALUE(LEFT(dms_CRYf_y13,4)+1)&"-"&TEXT(MID(dms_CRYf_y13,3,2)+2,"00") -> 2023-24 | Q146: dms_CRYf_y14 | R146: =VALUE(LEFT(dms_CRYc_y13,4)+1) -> 2023 | S146: dms_CRYc_y14
B147: 15 | C147: dms_FRCP_y15 | D147: 15 | E147: CRCP_y15 | F147: =IF(dms_RPT="financial",VALUE(LEFT(dms_FRCP_y14,4)+1)&"-"&TEXT(VALUE(RIGHT(dms_FRCP_y14,2)+1),"00"),VALUE(LEFT(dms_FRCP_y14,4)+1)) -> 2034-35 | G147: dms_FRCP_y15 | H147: =IF(dms_RPT="financial",VALUE(LEFT(dms_CRCP_yM,4)-1)&"-"&TEXT(VALUE(MID(dms_CRCP_yM,3,2)),"00"),VALUE(LEFT(dms_CRCP_yM,4)-1)) -> 2005-06 | I147: dms_CRCP_yL | J147: 15 | L147: 2019-20 | M147: 2020 | P147: =VALUE(LEFT(dms_CRYf_y14,4)+1)&"-"&TEXT(MID(dms_CRYf_y14,3,2)+2,"00") -> 2024-25 | Q147: dms_CRYf_y15 | R147: =VALUE(LEFT(dms_CRYc_y14,4)+1) -> 2024 | S147: dms_CRYc_y15
L148: 2020-21 | M148: 2021 | P148: =VALUE(LEFT(dms_CRYf_y15,4)+1)&"-"&TEXT(MID(dms_CRYf_y15,3,2)+2,"00") -> 2025-26 | Q148: dms_CRYf_y16 | R148: =VALUE(LEFT(dms_CRYc_y15,4)+1) -> 2025 | S148: dms_CRYc_y16
B149: These are drop down lists for businesses to select the correct FRCP_y1 on the business and other details worksheet. This also populates the column headings in the worksheets | L149: 2021-22 | M149: 2022 | P149: =VALUE(LEFT(dms_CRYf_y16,4)+1)&"-"&TEXT(MID(dms_CRYf_y16,3,2)+2,"00") -> 2026-27 | Q149: dms_CRYf_y17 | R149: =VALUE(LEFT(dms_CRYc_y16,4)+1) -> 2026 | S149: dms_CRYc_y17
B150: dms_RCP_fyear_list | C150: dms_CRY_ListF | D150: dms_CRY_ListC | E150: dms_RCP_cyear_list | F150: dms_FRCP_fyear_list | G150: dms_FRCP_ListF | H150: dms_FRCP_ListC | I150: dms_FRCP_cyear_list | L150: 2022-23 | M150: 2023 | P150: =VALUE(LEFT(dms_CRYf_y17,4)+1)&"-"&TEXT(MID(dms_CRYf_y17,3,2)+2,"00") -> 2027-28 | Q150: dms_CRYf_y18 | R150: =VALUE(LEFT(dms_CRYc_y17,4)+1) -> 2027 | S150: dms_CRYc_y18
B151: dms_y1 | C151: =CRY -> 2010-11 | D151: 2006 | E151: dms_cy1 | F151: dms_frcp_fy1 | G151: 2010-11 | H151: 2011 | I151: dms_crcp_cy1 | L151: 2023-24 | M151: 2024 | P151: =VALUE(LEFT(dms_CRYf_y18,4)+1)&"-"&TEXT(MID(dms_CRYf_y18,3,2)+2,"00") -> 2028-29 | Q151: dms_CRYf_y19 | R151: =VALUE(LEFT(dms_CRYc_y18,4)+1) -> 2028 | S151: dms_CRYc_y19
B152: dms_y2 | C152: =IF(dms_RPT="financial",VALUE(LEFT(CRY,4)+1)&"-"&TEXT(MID(CRY,3,2)+2,"00"),VALUE(LEFT(CRY,4)+1)) -> 2011-12 | D152: 2007 | E152: dms_cy2 | F152: dms_frcp_fy2 | G152: 2011-12 | H152: 2012 | I152: dms_crcp_cy2 | L152: 2024-25 | M152: 2025 | P152: =VALUE(LEFT(dms_CRYf_y19,4)+1)&"-"&TEXT(MID(dms_CRYf_y19,3,2)+2,"00") -> 2029-30 | Q152: dms_CRYf_y20 | R152: =VALUE(LEFT(dms_CRYc_y19,4)+1) -> 2029 | S152: dms_CRYc_y20
B153: dms_y3 | C153: =IF(dms_RPT="financial",VALUE(LEFT(dms_fy2,4)+1)&"-"&TEXT(MID(dms_fy2,3,2)+2,"00"),VALUE(LEFT(dms_fy2,4)+1)) -> 2012-13 | D153: 2008 | E153: dms_cy3 | F153: dms_frcp_fy3 | G153: 2012-13 | H153: 2013 | I153: dms_crcp_cy3 | L153: 2025-26 | M153: 2026
B154: dms_y4 | C154: =IF(dms_RPT="financial",VALUE(LEFT(dms_fy3,4)+1)&"-"&TEXT(MID(dms_fy3,3,2)+2,"00"),VALUE(LEFT(dms_fy3,4)+1)) -> 2013-14 | D154: 2009 | E154: dms_cy4 | F154: dms_frcp_fy4 | G154: 2013-14 | H154: 2014 | I154: dms_crcp_cy4 | L154: 2026-27 | M154: 2027
B155: dms_y5 | C155: =IF(dms_RPT="financial",VALUE(LEFT(dms_fy4,4)+1)&"-"&TEXT(MID(dms_fy4,3,2)+2,"00"),VALUE(LEFT(dms_fy4,4)+1)) -> 2014-15 | D155: 2010 | E155: dms_cy5 | F155: dms_frcp_fy5 | G155: 2014-15 | H155: 2015 | I155: dms_crcp_cy5 | L155: 2027-28 | M155: 2028
B156: dms_y6 | C156: =IF(dms_RPT="financial",VALUE(LEFT(dms_fy5,4)+1)&"-"&TEXT(MID(dms_fy5,3,2)+2,"00"),VALUE(LEFT(dms_fy5,4)+1)) -> 2015-16 | D156: 2011 | E156: dms_cy6 | F156: dms_frcp_fy6 | G156: 2015-16 | H156: 2016 | I156: dms_crcp_cy6 | L156: 2028-29 | M156: 2029
B157: dms_y7 | C157: =IF(dms_RPT="financial",VALUE(LEFT(dms_fy6,4)+1)&"-"&TEXT(MID(dms_fy6,3,2)+2,"00"),VALUE(LEFT(dms_fy6,4)+1)) -> 2016-17 | D157: 2012 | E157: dms_cy7 | F157: dms_frcp_fy7 | G157: 2016-17 | H157: 2017 | I157: dms_crcp_cy7 | L157: 2029-30 | M157: 2030
B158: dms_y8 | C158: =IF(dms_RPT="financial",VALUE(LEFT(dms_fy7,4)+1)&"-"&TEXT(MID(dms_fy7,3,2)+2,"00"),VALUE(LEFT(dms_fy7,4)+1)) -> 2017-18 | D158: 2013 | E158: dms_cy8 | F158: dms_frcp_fy8 | G158: 2017-18 | H158: 2018 | I158: dms_crcp_cy8 | L158: 2030-31 | M158: 2031
B159: dms_y9 | C159: =IF(dms_RPT="financial",VALUE(LEFT(dms_fy8,4)+1)&"-"&TEXT(MID(dms_fy8,3,2)+2,"00"),VALUE(LEFT(dms_fy8,4)+1)) -> 2018-19 | D159: 2014 | E159: dms_cy9 | F159: dms_frcp_fy9 | G159: 2018-19 | H159: 2019 | I159: dms_crcp_cy9 | L159: 2031-32 | M159: 2032
B160: dms_y10 | C160: =IF(dms_RPT="financial",VALUE(LEFT(dms_fy9,4)+1)&"-"&TEXT(MID(dms_fy9,3,2)+2,"00"),VALUE(LEFT(dms_fy9,4)+1)) -> 2019-20 | D160: 2015 | E160: dms_cy10 | F160: dms_frcp_fy10 | G160: 2019-20 | H160: 2020 | I160: dms_crcp_cy10 | L160: 2032-33 | M160: 2033
B161: dms_y11 | C161: =IF(dms_RPT="financial",VALUE(LEFT(dms_fy10,4)+1)&"-"&TEXT(MID(dms_fy10,3,2)+2,"00"),VALUE(LEFT(dms_fy10,4)+1)) -> 2020-21 | D161: 2016 | E161: dms_cy11 | F161: dms_frcp_fy11 | G161: 2020-21 | H161: 2021 | I161: dms_crcp_cy11 | L161: 2033-34 | M161: 2034
B162: dms_y12 | C162: =IF(dms_RPT="financial",VALUE(LEFT(dms_fy11,4)+1)&"-"&TEXT(MID(dms_fy11,3,2)+2,"00"),VALUE(LEFT(dms_fy11,4)+1)) -> 2021-22 | D162: 2017 | E162: dms_cy12 | F162: dms_frcp_fy12 | G162: 2021-22 | H162: 2022 | I162: dms_crcp_cy12 | L162: 2034-35 | M162: 2035
B163: dms_y13 | C163: =IF(dms_RPT="financial",VALUE(LEFT(dms_fy12,4)+1)&"-"&TEXT(MID(dms_fy12,3,2)+2,"00"),VALUE(LEFT(dms_fy12,4)+1)) -> 2022-23 | D163: 2018 | E163: dms_cy13 | F163: dms_frcp_fy13 | G163: 2022-23 | H163: 2023 | I163: dms_crcp_cy13 | L163: 2035-36 | M163: 2036
B164: dms_y14 | C164: =IF(dms_RPT="financial",VALUE(LEFT(dms_fy13,4)+1)&"-"&TEXT(MID(dms_fy13,3,2)+2,"00"),VALUE(LEFT(dms_fy13,4)+1)) -> 2023-24 | D164: 2019 | E164: dms_cy14 | F164: dms_frcp_fy14 | G164: 2023-24 | H164: 2024 | I164: dms_crcp_cy14
B165: dms_y15 | C165: =IF(dms_RPT="financial",VALUE(LEFT(dms_fy14,4)+1)&"-"&TEXT(MID(dms_fy14,3,2)+2,"00"),VALUE(LEFT(dms_fy14,4)+1)) -> 2024-25 | D165: 2020 | E165: dms_cy15 | F165: dms_frcp_fy15 | G165: 2024-25 | H165: 2025 | I165: dms_crcp_cy15
B166: dms_y16 | C166: =IF(dms_RPT="financial",VALUE(LEFT(dms_fy15,4)+1)&"-"&TEXT(MID(dms_fy15,3,2)+2,"00"),VALUE(LEFT(dms_fy15,4)+1)) -> 2025-26 | D166: 2021 | E166: dms_cy16
B167: dms_y17 | C167: =IF(dms_RPT="financial",VALUE(LEFT(dms_fy16,4)+1)&"-"&TEXT(MID(dms_fy16,3,2)+2,"00"),VALUE(LEFT(dms_fy16,4)+1)) -> 2026-27 | D167: 2022 | E167: dms_cy17
B168: dms_y18 | C168: =IF(dms_RPT="financial",VALUE(LEFT(dms_fy17,4)+1)&"-"&TEXT(MID(dms_fy17,3,2)+2,"00"),VALUE(LEFT(dms_fy17,4)+1)) -> 2027-28 | D168: 2023 | E168: dms_cy18
B169: dms_y19 | C169: =IF(dms_RPT="financial",VALUE(LEFT(dms_fy18,4)+1)&"-"&TEXT(MID(dms_fy18,3,2)+2,"00"),VALUE(LEFT(dms_fy18,4)+1)) -> 2028-29 | D169: 2024 | E169: dms_cy19
B170: dms_y20 | C170: =IF(dms_RPT="financial",VALUE(LEFT(dms_fy19,4)+1)&"-"&TEXT(MID(dms_fy19,3,2)+2,"00"),VALUE(LEFT(dms_fy19)+1)) -> 2029-30 | D170: 2025 | E170: dms_cy20
B176: These "row descriptions" are the column headings in the various templates but become row descriptions in the ETL process
C177: Table 6.3 sustained interruptions - row descriptions
C178: dms_060301_CustNo_Affected_Row | D178: dms_060301_Avg_Duration_Sustained_Int_Row | E178: dms_060301_Effect_unplanned_SAIDI_Row | F178: dms_060301_Effect_unplanned_SAIFI_Row
C179: Number of customers affected by the interruption | D179: Average duration of sustained customer interruption | E179: Effect on unplanned SAIDI | F179: Effect on unplanned SAIFI
C183: Table 6.1 telephone answering - row descriptions and start date
C184: dms_060101_Rows | D184: dms_060102_Rows | E184: dms_060101_StartDateTxt
C185: Total number of calls (after removing excluded events) | D185: Number of calls answered within 30 seconds (after excluding excluded events) | E185: =dms_060701_StartDateTxt -> 1-Jul-2010
H189: dms_0603_FeederList | I189: =INDEX(dms_FeederName_1,MATCH(dms_TradingName,dms_TradingName_List)) -> CBD | J189: =INDEX(dms_FeederName_2,MATCH(dms_TradingName,dms_TradingName_List)) -> Urban | K189: =INDEX(dms_FeederName_3,MATCH(dms_TradingName,dms_TradingName_List)) -> Short rural | L189: =INDEX(dms_FeederName_4,MATCH(dms_TradingName,dms_TradingName_List)) -> Long rural
C190: Table 6.7.1 - daily performance data - unplanned - MAIFI -- row descriptions and header named range values
C191: These headings (Lists) are determined from the INDEX/MATCH function on the NSP selected on the Business & other details sheet
B192: dms_060701_Feeder_Header_Lvl4 | C192: =INDEX(dms_FeederName_1,MATCH(dms_TradingName,dms_TradingName_List)) -> CBD | D192: =INDEX(dms_FeederName_1,MATCH(dms_TradingName,dms_TradingName_List)) -> CBD | E192: =INDEX(dms_FeederName_2,MATCH(dms_TradingName,dms_TradingName_List)) -> Urban | F192: =INDEX(dms_FeederName_2,MATCH(dms_TradingName,dms_TradingName_List)) -> Urban | G192: =INDEX(dms_FeederName_3,MATCH(dms_TradingName,dms_TradingName_List)) -> Short rural | H192: =INDEX(dms_FeederName_3,MATCH(dms_TradingName,dms_TradingName_List)) -> Short rural | I192: =INDEX(dms_FeederName_4,MATCH(dms_TradingName,dms_TradingName_List)) -> Long rural | J192: =INDEX(dms_FeederName_4,MATCH(dms_TradingName,dms_TradingName_List)) -> Long rural | K192: =IF((INDEX(dms_FeederName_5,MATCH(dms_TradingName,dms_TradingName_List))=0),"Network",(INDEX(dms_FeederName_5,MATCH(dms_TradingName,dms_TradingName_List)))) -> Network | L192: =IF((INDEX(dms_FeederName_5,MATCH(dms_TradingName,dms_TradingName_List))=0),"Network",(INDEX(dms_FeederName_5,MATCH(dms_TradingName,dms_TradingName_List)))) -> Network | M192: Network | N192: Network
B194: dms_060701_Rows | C194: All events | D194: After removing excluded events | E194: All events | F194: After removing excluded events | G194: All events | H194: After removing excluded events | I194: All events | J194: After removing excluded events | K194: All events | L194: After removing excluded events | M194: All events | N194: After removing excluded events
C195: the number of column headings changes from 10 to 12 depending on the number of feeder categories for the NSP
C200: Table 6.8.1 - row descriptions
C201: dms_060801_01_Rows | D201: dms_060801_02_Rows | E201: dms_060801_03_Rows | F201: dms_060801_04_Rows
C202: Number of interruptions | D202: Duration of interruptions | E202: Total unplanned minutes off supply | F202: Effect on unplanned MAIFI
C207: Table 7.9.4 - market impact component - row descriptions
B208: dms_070904_01_Rows | C208: without exclusions | D208: with exclusions
C214: Use this to add to existing files
C215: ARRs 6.7 STPIS daily performance
C216: dms_060101_Values | D216: dms_060102_Values | E216: dms_060701_Values
C217: dms_LeapYear
C219: ARR's 6.8 STPIS exclusions
C220: dms_060801_Event_Date | D220: dms_060801_OutageID | E220: dms_060801_FeederID | F220: dms_060801_FeederClass | G220: dms_060801_CauseID | H220: dms_060801_01_Values | I220: dms_060801_02_Values | J220: dms_060801_03_Values | K220: dms_060801_Excl_Cat | L220: dms_060801_04_Values
C221: dms_060801_StartCell
C223: CA 6.3 sustained interruptions
C224: dms_060301_Event_Date | D224: dms_060301_Event_Time | E224: dms_060301_AssetID | F224: dms_060301_FeederClass | G224: dms_060301_Reason | H224: dms_060301_DetailedReason | I224: dms_060301_CustNo_Affected_Values | J224: dms_060301_Avg_Duration_Sustained_Int_Values | K224: dms_060301_Effect_unplanned_SAIDI_Values | L224: dms_060301_Effect_unplanned_SAIFI_Values | M224: dms_060301_MED

Sheet Instructions
B2: =CONCATENATE(dms_Sector, " ", dms_Segment," Network Service Provider") -> Gas Distribution Network Service Provider
B3: =IF(dms_Model="Reset","Regulatory Proposal RIN Template","Regulatory Reporting Statement - Historical Information") -> Regulatory Reporting Statement - Historical Information
B4: =CONCATENATE("This template is to be used by ",dms_TradingNameFull," to fulfil its reporting obligations to the AER.") -> This template is to be used by Jemena Gas Networks (NSW) Ltd to fulfil its reporting obligations to the AER.
B5: INSTRUCTIONS
B6: GENERAL | C6: Complete the Business & other details worksheet before entering data or values in any other worksheets. The Business & other details worksheet is linked to other worksheets within the workbook and automatically generates certain column headings and conditional formatting.
B8: CONFIDENTIAL INFORMATION | C8: Please use the macro at the top of each worksheet to identify confidential information in the confidential workbook.
C9: -Do this by selecting the cell or cells that contain confidential information and then run the Mark selection as CONFIDENTIAL macro. This will format the cells a specific colour that is identified by the AER's database which in turn marks that information as confidential. -To reverse this, select the cell or cells and run the Return selection to NON-CONFIDENTIAL macro.
B11: RESPONSES | C11: Please return two (2) files to the AER: 1. A confidential version which must contain a complete set of all responses with confidential information marked using the Mark selection CONFIDENTIAL macro and which has been completed using the locked template file provided by the AER. 2. A public version with confidential information either removed completely or aggregated in some form together with writtten consent to disclose the public version of the response. Use the drop down box on the Business and other details worksheet to identify the file as either confidential ('consolidated') or public.
B13: AMENDMENTS | C13: If an NSP wishes to correct data previously submitted to the AER it should resubmit that data using the original completed submission as the starting point. Please make any necessary changes to the data. Data that is not being amended should be left unchanged. NSPs must identify the reason for the amendments in the Amendment Reason box on the Business and other details worksheet. NSPs may provide further details regarding any amendments in the Amendments worksheet. .
C14: NSP may use Amended Data macro to highlight cells that contain amended data. NB: if data is also CONFIDENTIAL, re-apply the Confidentiality macro after applying the Amended macro
C15: Please resubmit two (2) files - a confidential version and a public version of the amended submission to the AER
B17: UNITS OF MEASURE | C17: All amounts are to be unrounded and reported on a one for one basis: that is 1000 is to be entered as '1000'. Applicable units of measure may be identified in the table column headings or row descriptors.
B19: INPUT / NON-INPUT CELLS
D20: Yellow = Input cell (mandatory)
D21: Darker yellow = input cell (mandatory)
D22: Orange = input cell (if data available)
D23: Grey = Not applicable/No inputs required
D24: PLEASE DO NOT ENTER TEXT into cells that are to contain numeric data.
B27: NAVIGATION | C27: Many tables in the worksheets have been "grouped" to allow for easy navigation. To ungroup or group data use the outline symbols in the left margin (for Row groupings) or above the columns (for column groupings).

Sheet CONTENTS
C3: CONTENTS
C5: SUBMISSION | D5: Business & other details
C7: EXPENDITURE | D7: E1. Expenditure Summary
D8: E2. Mains Repex
D9: E3. Mains Augex
D10: E4. Meter replacement
D11: E5. New Connections
D12: E6. Non-network
D13: E10. Overheads
D14: E11. Labour
D15: E12. ICT
D16: E13. Other capex
D17: E20. Opex
D18: E21. ARS
C20: NETWORK | D20: N1.1. Demand - by customer type
D21: N1.2. Demand - by tariff
D22: N2. Network characteristcs
C24: SERVICE | D24: S1.1. Customer numbers - by customer type
D25: S1.2. Customer numbers - by tariff
D26: S10. Supply quality
D27: S11. Network reliability
D28: S14. Network integrity
C30: FINANCIAL | D30: F1. Income
D31: F2. Capex
D32: F3. Revenue
D33: F4. Opex
D34: F6. Related party transactions
D35: F7. Provisions
D36: F9. Pass throughs

Sheet Business & other details
B1: =IF(dms_MultiYear_ResponseFlag="Yes","REGULATORY REPORTING STATEMENT - HISTORICAL INFORMATION",INDEX(dms_Worksheet_List,MATCH(dms_Model,dms_Model_List))) -> REGULATORY REPORTING STATEMENT - HISTORICAL INFORMATION
B2: =INDEX(dms_TradingNameFull_List,MATCH(dms_TradingName,dms_TradingName_List)) -> Jemena Gas Networks (NSW) Ltd
B3: =CONCATENATE(CRY," to ",dms_MultiYear_FinalYear_Result) -> 2010-11 to 2017-18
B4: BUSINESS & OTHER DETAILS
B7: Instructions
B8: Complete the following business details regulatory template before entering data or values in any other regulatory template. This regulatory template is linked to other cells within the spreadsheet and automatically generates column headings and conditional formatting to distinguish business specific input and non-input cells.
B10: SUBMISSION PARTICULARS INPUT SHEET
B11: ENTITY DETAILS
B13: Short name | C13: JGN | F13: Select business name from drop down list first
B14: ACN / ABN | C14: =INDEX(dms_ABN_List,MATCH(dms_TradingName,dms_TradingName_List)) -> 003 004 322
B17: Business address | C17: Address 1 | E17: =INDEX(dms_Addr1_List,MATCH(dms_TradingName,dms_TradingName_List)) -> Level 16
D18: Address 2 | E18: =IF(ISBLANK(INDEX(dms_Addr2_List,MATCH(dms_TradingName,dms_TradingName_List))),"",(INDEX(dms_Addr2_List,MATCH(dms_TradingName,dms_TradingName_List)))) -> 567 Collins Street
C19: Suburb | E19: =INDEX(dms_Suburb_List,MATCH(dms_TradingName,dms_TradingName_List)) -> MELBOURNE
D20: State | E20: =INDEX(dms_State_List,MATCH(dms_TradingName,dms_TradingName_List)) -> VIC | F20: p/code | G20: =INDEX(dms_PostCode_List,MATCH(dms_TradingName,dms_TradingName_List)) -> 3000
B22: Postal address | C22: Address 1 | E22: =INDEX(dms_PAddr1_List,MATCH(dms_TradingName,dms_TradingName_List)) -> PO Box 16182
D23: Address 2 | E23: =IF(ISBLANK(INDEX(dms_PAddr2_List,MATCH(dms_TradingName,dms_TradingName_List))),"",(INDEX(dms_PAddr2_List,MATCH(dms_TradingName,dms_TradingName_List)))) -> 
C24: Suburb | E24: =INDEX(dms_PSuburb_List,MATCH(dms_TradingName,dms_TradingName_List)) -> MELBOURNE
D25: State | E25: =INDEX(dms_PState_List,MATCH(dms_TradingName,dms_TradingName_List)) -> VIC | F25: p/code | G25: =INDEX(dms_PPostCode_List,MATCH(dms_TradingName,dms_TradingName_List)) -> 8001
B28: Contact name/s | C28: please provide contact details
B29: Contact phone/s
B30: Contact email address/s
B32: REGULATORY CONTROL PERIODS
C33: FRPC_y1 | D33: FRCP_y2 | E33: FRPC_y3 | F33: FRCP_y4 | G33: FRCP_y5
B34: Forthcoming regulatory control period | C34: 2020-21 | D34: =dms_FRCP_y2 -> 2021-22 | E34: =dms_FRCP_y3 -> 2022-23 | F34: =dms_FRCP_y4 -> 2023-24 | G34: =dms_FRCP_y5 -> 2024-25
C35: =dms_FRCP_y6 -> 2025-26 | D35: =dms_FRCP_y7 -> 2026-27 | E35: =dms_FRCP_y8 -> 2027-28 | F35: =dms_FRCP_y9 -> 2028-29 | G35: =dms_FRCP_y10 -> 2029-30
C37: CRPC_y1 | D37: CRCP_y2 | E37: CRPC_y3 | F37: CRCP_y4 | G37: CRCP_y5
B38: Current regulatory control period | C38: =dms_CRCP_FirstYear_Result -> 2015-16 | D38: =IF(dms_RPT="financial",VALUE(LEFT(CRCP_y1,4)+1)&"-"&TEXT(MID(CRCP_y1,3,2)+2,"00"),VALUE(LEFT(CRCP_y1,4)+1)) -> 2016-17 | E38: =IF(dms_RPT="financial",VALUE(LEFT(CRCP_y1,4)+2)&"-"&TEXT(VALUE(MID(CRCP_y1,3,2)+3),"00"),VALUE(LEFT(CRCP_y1,4)+2)) -> 2017-18 | F38: =IF(dms_RPT="financial",VALUE(LEFT(CRCP_y1,4)+3)&"-"&TEXT(MID(CRCP_y1,3,2)+4,"00"),VALUE(LEFT(CRCP_y1,4)+3)) -> 2018-19 | G38: =IF(dms_RPT="financial",VALUE(LEFT(CRCP_y1,4)+4)&"-"&TEXT(MID(CRCP_y1,3,2)+5,"00"),VALUE(LEFT(CRCP_y1,4)+4)) -> 2019-20
C39: =IF(dms_RPT="financial",VALUE(LEFT(CRCP_y1,4)+5)&"-"&TEXT(MID(CRCP_y1,3,2)+6,"00"),VALUE(LEFT(CRCP_y1,4)+5)) -> 2020-21 | D39: =IF(dms_RPT="financial",VALUE(LEFT(CRCP_y1,4)+6)&"-"&TEXT(MID(CRCP_y1,3,2)+7,"00"),VALUE(LEFT(CRCP_y1,4)+6)) -> 2021-22 | E39: =IF(dms_RPT="financial",VALUE(LEFT(CRCP_y1,4)+7)&"-"&TEXT(MID(CRCP_y1,3,2)+8,"00"),VALUE(LEFT(CRCP_y1,4)+7)) -> 2022-23 | F39: =IF(dms_RPT="financial",VALUE(LEFT(CRCP_y1,4)+8)&"-"&TEXT(MID(CRCP_y1,3,2)+9,"00"),VALUE(LEFT(CRCP_y1,4)+8)) -> 2023-24 | G39: =IF(dms_RPT="financial",VALUE(LEFT(CRCP_y1,4)+9)&"-"&TEXT(MID(CRCP_y1,3,2)+10,"00"),VALUE(LEFT(CRCP_y1,4)+9)) -> 2024-25
C40: =IF(dms_RPT="financial",VALUE(LEFT(CRCP_y1,4)+10)&"-"&TEXT(MID(CRCP_y1,3,2)+11,"00"),VALUE(LEFT(CRCP_y1,4)+10)) -> 2025-26 | D40: =IF(dms_RPT="financial",VALUE(LEFT(CRCP_y1,4)+11)&"-"&TEXT(MID(CRCP_y1,3,2)+12,"00"),VALUE(LEFT(CRCP_y1,4)+11)) -> 2026-27 | E40: =IF(dms_RPT="financial",VALUE(LEFT(CRCP_y1,4)+12)&"-"&TEXT(MID(CRCP_y1,3,2)+13,"00"),VALUE(LEFT(CRCP_y1,4)+12)) -> 2027-28 | F40: =IF(dms_RPT="financial",VALUE(LEFT(CRCP_y1,4)+13)&"-"&TEXT(MID(CRCP_y1,3,2)+14,"00"),VALUE(LEFT(CRCP_y1,4)+13)) -> 2028-29 | G40: =IF(dms_RPT="financial",VALUE(LEFT(CRCP_y1,4)+14)&"-"&TEXT(MID(CRCP_y1,3,2)+15,"00"),VALUE(LEFT(CRCP_y1,4)+14)) -> 2029-30
C42: PRCP_y1 | D42: PRCP_y2 | E42: PRCP_y3 | F42: PRCP_y4 | G42: PRCP_y5
B43: Previous regulatory control period | C43: =IF(dms_RPT="financial",VALUE(LEFT(PRCP_y2,4)-1)&"-"&TEXT(VALUE(MID(PRCP_y2,3,2)),"00"),VALUE(LEFT(PRCP_y2,4)-1)) -> 2010-11 | D43: =IF(dms_RPT="financial",VALUE(LEFT(PRCP_y3,4)-1)&"-"&TEXT(VALUE(MID(PRCP_y3,3,2)),"00"),VALUE(LEFT(PRCP_y3,4)-1)) -> 2011-12 | E43: =IF(dms_RPT="financial",VALUE(LEFT(PRCP_y4,4)-1)&"-"&TEXT(VALUE(MID(PRCP_y4,3,2)),"00"),VALUE(LEFT(PRCP_y4,4)-1)) -> 2012-13 | F43: =IF(dms_RPT="financial",VALUE(LEFT(PRCP_y5,4)-1)&"-"&TEXT(VALUE(RIGHT(PRCP_y5,2)-1),"00"),VALUE(LEFT(PRCP_y5,4)-1)) -> 2013-14 | G43: =IF(dms_RPT="financial",VALUE(LEFT(CRCP_y1,4)-1)&"-"&TEXT(VALUE(RIGHT(CRCP_y1,2)-1),"00"),VALUE(LEFT(CRCP_y1,4)-1)) -> 2014-15
B47: Commencing regulatory year | C47: 2010-11 | D47: CRY
B49: Last completed regulatory year | C49: 2017-18 | D49: dms_FinalYear
C53: IF THIS IS AN ABC RIN - make sure the the named range CRY is applied and the named range dms_dollar_nom_UOM is applied
C54: IF THIS IS A RESET RIN - make sure the named ranges CRY and dms_dollar_nom_UOM are NOT present in the workbook
C55: FOR ABC RINS THAT SPAN MULTIPLE YEARS - make sure MultiYear Flag is set and final year entered as required
B57: Source | C57: Reporting | E57: Please select the correct submission type from the dropdown list.
B58: Data quality (actual, estimate, consolidated) | C58: Consolidated
B59: Confidentiality Status (public, confidential) | C59: Public
B60: Amended RIN submission - amendment reason | C60: .
B61: Submission Date | C61: dd/mm/yy | D61: dms_SubmissionDate | E61: Please enter date this file submitted to AER (dd/mm/yyyy)
B62: EBSS - First application of scheme in forthcoming period? | C62: No
B63: Data ingestion data quality | C63: =IF(dms_DQ_2="Confidential","Consolidated","Public") -> Public | D63: dms_DataQuality | E63: =IF(dms_DQ_2="Confidential","Consolidated","Public")
B64: Sector | C64: =INDEX(dms_Sector_List,MATCH(dms_TradingName,dms_TradingName_List)) -> Gas | D64: dms_Sector | E64: =INDEX(dms_Sector_List,MATCH(dms_TradingName,dms_TradingName_List))
B65: Segment | C65: =INDEX(dms_Segment_List,MATCH(dms_TradingName,dms_TradingName_List)) -> Distribution | D65: dms_Segment | E65: =INDEX(dms_Segment_List,MATCH(dms_TradingName,dms_TradingName_List))
B66: Regulatory Year Ending | C66: =IF(dms_MultiYear_Flag=1,LEFT(dms_Specified_FinalYear,2)&RIGHT(dms_Specified_FinalYear,2),INDEX(dms_RYE_Formula_Result,MATCH(dms_Model,dms_Model_List))) -> 2018 | D66: dms_RYE | E66: =IF(dms_MultiYear_Flag=1,LEFT(dms_Specified_FinalYear,2)&RIGHT(dms_Specified_FinalYear,2),INDEX(dms_RYE_Formula_Result,MATCH(dms_Model,dms_Model_List)))
B67: Reporting Period Type | C67: =INDEX(dms_RPT_List,MATCH(dms_TradingName,dms_TradingName_List)) -> Financial | D67: dms_RPT | E67: =INDEX(dms_RPT_List,MATCH(dms_TradingName,dms_TradingName_List))
B68: Model or RIN Type | C68: ARR | D68: dms_Model | E68: Drop down selection
B69: EB/CA Unit of Measure for Monetary Values | C69: $0s | D69: dms_dollar_nom_UOM | E69: If the cover sheet is attached to an ABC RIN apply the NAMED RANGE to the cell
B70: Security Classification | C70: Public | D70: dms_Classification | E70: Always Public
B71: Jurisdiction | C71: =INDEX(dms_JurisdictionList,MATCH(dms_TradingName,dms_TradingName_List)) -> NSW | D71: dms_Jurisdiction | E71: =INDEX(dms_JurisdictionList,MATCH(dms_TradingName,dms_TradingName_List))
B72: FORECAST and MultiYear RINS
B73: CRY-1 (last full calendar year before CRY) | C73: =IF(dms_RPT="financial",VALUE(LEFT(dms_SingleYear_FinalYear_Result,4)),VALUE(LEFT(dms_SingleYear_FinalYear_Result,4)-1)) -> 2010 | D73: dms_Cal_Year_B4_CRY | E73: '=IF(dms_RPT="financial",VALUE(LEFT(dms_SingleYear_FinalYear_Result,4)),VALUE(LEFT(dms_SingleYear_FinalYear_Result,4)-1))
B74: Dollar $ real month | C74: =INDEX(dms_RPTMonth_List,MATCH(dms_TradingName,dms_TradingName_List)) -> June | D74: dms_RPTMonth | E74: =INDEX(dms_RPTMonth_List,MATCH(dms_TradingName,dms_TradingName_List))
B75: Dollar $ real (the last month before the FRCP_y1) | C75: =IF(SUM(dms_SingleYear_Model)>0,CONCATENATE(dms_RPTMonth)&" "&VALUE((LEFT(CRY,2))&RIGHT(CRY,2)),CONCATENATE(dms_RPTMonth)&" "&VALUE((LEFT(dms_CRCP_FinalYear_Result,2)&RIGHT(dms_CRCP_FinalYear_Result,2)))) -> June 2011 | D75: dms_DollarReal | E75: =IF(SUM(dms_SingleYear_Model)>0,CONCATENATE(dms_RPTMonth)&" "&VALUE((LEFT(CRY,2))&RIGHT(CRY,2)),CONCATENATE(dms_RPTMonth)&" "&VALUE((LEFT(dms_CRCP_FinalYear_Result,2)&RIGHT(dms_CRCP_FinalYear_Result,2))))
B76: Dollar $ real previous year (PRCP_y5) | C76: =IF(SUM(dms_SingleYear_Model)>0,CONCATENATE(dms_RPTMonth)&" "&VALUE(((LEFT(CRY,2))&RIGHT(CRY,2))-1),CONCATENATE(dms_RPTMonth)&" "&VALUE(((LEFT(dms_CRCP_FirstYear_Result,2)&RIGHT(dms_CRCP_FirstYear_Result,2))))-1) -> June 2010 | D76: dms_DollarReal_Prev | E76: =IF(SUM(dms_SingleYear_Model)>0,CONCATENATE(dms_RPTMonth)&" "&VALUE(((LEFT(CRY,2))&RIGHT(CRY,2))-1),CONCATENATE(dms_RPTMonth)&" "&VALUE(((LEFT(dms_CRCP_FirstYear_Result,2)&RIGHT(dms_CRCP_FirstYear_Result,2))))-1)
B77: This block works out the various RYE's for ALL RIN types and MODELS
B78: Single Year Model T/F | C78: =IF(dms_Model="EB",1,0) -> 0 | D78: dms_EB
C79: =IF(dms_Model="CA",1,0) -> 0 | D79: dms_CA | E79: =dms_SingleYear_Model
C80: =IF(dms_Model="ARR",1,0) -> 1 | D80: dms_ARR
B81: Is this a single Year RIN? | C81: =IF(SUM(dms_SingleYear_Model)=1,"yes","no") -> yes | D81: dms_SingleYearModel | E81: =IF(SUM(dms_SingleYear_Model)=1,"yes","no")
B82: Single Year Final Year Reference | C82: CRY | D82: dms_SingleYear_FinalYear_Ref | E82: This is the reference for EB, CA & ARR RINs
B83: Single Year Final Year Result | C83: =IFERROR(IF(SUM(dms_SingleYear_Model)<>0,(INDIRECT(dms_SingleYear_FinalYear_Ref)),"not a single year RIN"),"CRY not present") -> 2010-11 | D83: dms_SingleYear_FinalYear_Result | E83: =IFERROR(IF(SUM(dms_SingleYear_Model)<>0,(INDIRECT(dms_SingleYear_FinalYear_Ref)),"not a single year RIN"),"CRY not present")
B84: FRCP length in years | C84: =INDEX(dms_FRCPlength_List,MATCH(dms_TradingName,dms_TradingName_List)) -> 5 | D84: dms_FRCPlength_Num | E84: =INDEX(dms_FRCPlength_List,MATCH(dms_TradingName,dms_TradingName_List))
B85: Multi Year Final Year Reference | C85: =INDEX(dms_FinalYear_List,MATCH(dms_FRCPlength_Num,dms_FRCPlength_Num_List)) -> dms_FRCP_y5 | D85: dms_MultiYear_FinalYear_Ref | E85: =INDEX(dms_FinalYear_List,MATCH(dms_FRCPlength_Num,dms_FRCPlength_Num_List))
B86: Multi Year Final Year Result | C86: =IF(dms_MultiYear_Flag=0,INDIRECT(dms_MultiYear_FinalYear_Ref),dms_Specified_FinalYear) -> 2017-18 | D86: dms_MultiYear_FinalYear_Result | E86: =IF(dms_MultiYear_Flag=0,INDIRECT(dms_MultiYear_FinalYear_Ref),dms_Specified_FinalYear) | I86: Formula errors OK
B87: CRCP length in years | C87: =INDEX(dms_CRCPlength_List,MATCH(dms_TradingName,dms_TradingName_List)) -> 5 | D87: dms_CRCPlength_Num | E87: =INDEX(dms_CRCPlength_List,MATCH(dms_TradingName,dms_TradingName_List))
B88: CRCP Final Year Reference | C88: =INDEX(dms_CFinalYear_List,MATCH(dms_CRCPlength_Num,dms_CRCPlength_Num_List)) -> CRCP_y5 | D88: dms_CRCP_FinalYear_Ref | E88: =INDEX(dms_CFinalYear_List,MATCH(dms_CRCPlength_Num,dms_CRCPlength_Num_List))
B89: CRCP First Year Result | C89: =INDEX(dms_CRCP_years,MATCH(dms_CRCPlength_Num,dms_CRCP_index)) -> 2015-16 | D89: dms_CRCP_FirstYear_Result | E89: =INDEX(dms_CRCP_years,MATCH(dms_CRCPlength_Num,dms_CRCP_index))
B90: CRCP Final Year Result | C90: =IF(dms_MultiYear_Flag=0,(IF(SUM(dms_SingleYear_Model)>0,CRY,dms_CRCP_yZ)),dms_Specified_FinalYear) -> 2017-18 | D90: dms_CRCP_FinalYear_Result | E90: =IF(dms_MultiYear_Flag=0,(IF(SUM(dms_SingleYear_Model)>0,CRY,dms_CRCP_yZ)),dms_Specified_FinalYear)
B91: PTRM/ RFMs
B92: Form of control | C92: =INDEX(dms_FormControl_List,MATCH(dms_TradingName,dms_TradingName_List)) -> Weighted average price cap | D92: dms_FormControl | E92: =INDEX(dms_FormControl_List,MATCH(dms_TradingName,dms_TradingName_List))
B93: ABC RINS THAT SPAN MULTIPLE YEARS
B94: Is this a multi year ABC RIN? | C94: Yes
B95: Multiyear EB, CA or ARR? | C95: =IF(dms_MultiYear_ResponseFlag="No",0,1) -> 1 | D95: dms_MultiYear_Flag | E95: This is set from the answer provided above
C96: =IF(dms_MultiYear_Flag=1,FRY,"not a Multiple year submission") -> 2017-18 | D96: dms_Specified_FinalYear | E96: The result here is returned to dms_CRCP_FinalYear_Result if response to Q in C73 is "yes" and dms_MultiYear_Flag is set to 1
B97: Start year for 5.2 in Multi year ABC RINS | C97: =IFERROR(IF(dms_MultiYear_Flag=1,FRY,CRY),"not an ABC") -> 2017-18 | D97: dms_0502_Inst_Year | E97: =IF(dms_MultiYear_Flag=1,FRY,CRY) | G97: For single year RINS this is CRY - multi year RINS need to start a the end of the span of years (ie. FRY)
B98: EB RINS
B99: Calendar Year for table 3.6 data | C99: =IF(dms_MultiYear_Flag=0,CRY, FRY) -> 2017-18 | D99: dms_0306_Year | E99: =IF(dms_MultiYear_Flag=0,CRY, FRY)
B100: CA RINS
B101: Find how many rows in tables 6.3 sustained interruptions? | E101: dms_060301_MaxRows only returns a valid value when cover sheet is attached to a CA file
C102: =IF(dms_Model<>"CA","not a CA","Is a CA") -> not a CA | E102: =IF(dms_Model<>"CA","not a CA","Is a CA")
B103: dms_060301_Avg_Duration_Sustained_Int_Values present? | C103: =IFERROR(IF(INDEX(dms_060301_Avg_Duration_Sustained_Int_Values,1,1)<>"","yes","no"),"no") -> no | D103: dms_060301_checkvalue | E103: =IFERROR(IF(INDEX(dms_060301_Avg_Duration_Sustained_Int_Values,1,1)<>"","yes","no"),"no")
C104: =IF(AND(dms_Model="CA",(dms_060301_checkvalue="no")),"error - NR not present","no errors") -> no errors | E104: =IF(AND(dms_Model="CA",(dms_060301_checkvalue="no")),"error - NR not present","no errors")
B105: Table 6.3.1 - last row reference | C105: =IFERROR(IF(dms_Model="CA",LOOKUP(2,1/(dms_060301_Avg_Duration_Sustained_Int_Values<>""),(ROW(dms_060301_Avg_Duration_Sustained_Int_Values))),"not a CA"),"6.3 not present") -> not a CA | D105: dms_060301_LastRow | E105: =IFERROR(IF(dms_Model="CA",LOOKUP(2,1/(dms_060301_Avg_Duration_Sustained_Int_Values<>""),(ROW(dms_060301_Avg_Duration_Sustained_Int_Values))),"not a CA"),"6.3 not present")
B106: Table 6.3.1 - max number rows | C106: =IFERROR(IF(dms_Model="CA",(dms_060301_LastRow-15),"not a CA"),"error") -> not a CA | D106: dms_060301_MaxRows | E106: =IFERROR(IF(dms_Model="CA",(dms_060301_LastRow-15),"not a CA"),"error")
B107: Table 6.6.3 - Public lighting repair - no. business days | C107: =INDEX(dms_663_List,MATCH(dms_TradingName,dms_TradingName_List)) -> 0 | D107: dms_663 | E107: =INDEX(dms_663_List,MATCH(dms_TradingName,dms_TradingName_List))
B108: ARR or RESET RINS
B109: How many rows in tables 6.1 or 6.7? (leap year?) | C109: insert dms_LeapYear NR if required | E109: 'dms_LeapYear is used to determine dms_060701_Max_Rows BUT it is only found on worksheet 6.1 or 6.7 and the date value in the cell is used to determine whether it is a leap year
B110: Is dms_LeapYear named range present? | C110: =IFERROR(IF(dms_LeapYear,"yes"),"no") -> no
B111: Table 6.7.1 - includes a leap year? | C111: =IFERROR(IF(MONTH(DATE(YEAR(dms_LeapYear),2,29))=2,"is a leap year","not a leap year"), "dms_LeapYear not present") -> dms_LeapYear not present | D111: dms_LeapYear_Result | E111: =IFERROR(IF(MONTH(DATE(YEAR(dms_LeapYear),2,29))=2,"is a leap year","not a leap year"),"dms_LeapYear not present")
B112: MaxRows if Reset and leap year | C112: =IF(dms_LeapYear_Result="is a leap year",1827,1826) -> 1826 | D112: dms_060701_Reset_MaxRows | E112: =IF(dms_LeapYear_Result="is a leap year",1827,1826) | H112: number of days present in Reset RIN table
B113: MaxRows if ARR and leap year | C113: =IF(dms_LeapYear_Result="is a leap year",366,365) -> 365 | D113: dms_060701_ARR_MaxRows | E113: =IF(dms_LeapYear_Result="is a leap year",366,365) | H113: number of days present in ARR RIN table
B114: Table 6.7.1 - Max Rows (leap year/ non leap year) | C114: =IF(dms_Model="ARR",dms_060701_ARR_MaxRows,IF(dms_Model="Reset",dms_060701_Reset_MaxRows,"not a relevant RIN type")) -> 365 | D114: dms_060701_MaxRows | E114: =IF(dms_Model="ARR",dms_060701_ARR_MaxRows,IF(dms_Model="Reset",dms_060701_Reset_MaxRows,"not a relevant RIN type"))
B115: How many columns in 6.7? (4 or 5 feeder categories) | C115: =IF(dms_FifthFeeder_flag_NSP="NO","This NSP has only 4 feeder categories","This NSP has 5 feeder categories") -> This NSP has only 4 feeder categories
B116: Table 6.7.1 - Last column (# of feeder categories > 4) | C116: =IF(dms_FifthFeeder_flag_NSP="NO",10,12) -> 10 | D116: dms_060701_MaxCols | E116: =IF(dms_FifthFeeder_flag_NSP="NO",8,10)
B117: Table 6.7.1 - Number of offset rows | C117: =IF(dms_Model="ARR",15,9) -> 15 | D117: dms_060701_OffsetRows | E117: =IF(dms_Model="ARR",15,9)
B118: Start date for telephone answering in 6.1 or 6.7? | E118: Using 060101 as naming standard not 060701 for start dates
B119: Table 6.1.1 and 6.7.1 - Start Date as Text | C119: =IF(dms_SingleYearModel="yes",(CONCATENATE(IF(LEN(CRY)=4,"1-Jan-","1-Jul-"),LEFT(CRY,4))),(CONCATENATE(IF(LEN(PRCP_y4)=4,"1-Jan-","1-Jul-"),LEFT(PRCP_y4,4)))) -> 1-Jul-2010 | D119: dms_060101_StartDateTxt | E119: =IF(SUM(dms_SingleYear_Model)>1,(CONCATENATE(IF(LEN(CRY)=4,"1-Jan-","1-Jul-"),LEFT(CRY,4))),(CONCATENATE(IF(LEN(CRCP_y4)=4,"1-Jan-","1-Jul-"),LEFT(CRCP_y4,4))))
B120: Table 6.1.1 and 6.7.1 - Start Date as Date Value | C120: =DATEVALUE(dms_060701_StartDateTxt) -> 40360 | D120: dms_060101_StartDateVal | E120: =DATEVALUE(dms_060701_StartDateTxt)
B121: ARRs
B122: How many rows in table 6.8? | C122: insert dms_060801_StartCell NR if required | E122: dms_060801_StartCell is only found on worksheet 6.8 and is used to determine the starting date for the date range
B123: Is dms_060801_StartCell named range present? | C123: yes | E123: =IFERROR(IF((ROW(dms_060801_StartCell)-1)=1,"yes","yes"),"no")
B124: Table 6.8 - Number of offset rows | C124: 12 | D124: dms_0608_OffsetRows | E124: =IFERROR(IF(dms_Model="ARR",(ROW(dms_060801_StartCell)-1),"not an ARR"),"6.8 error")
B125: Table 6.8 - Last row | C125: 0 | D125: dms_0608_LastRow | E125: =IFERROR(IF(dms_060801_StartCell<>"",IF(dms_Model="ARR",(LOOKUP(2,1/(dms_060801_01_Values<>""),(ROW(dms_060801_01_Values)))),"not an ARR"),0),"0")
B126: Table 6.8 - MaxRows | C126: =IFERROR(IF(dms_Model="ARR",(MAX(0,dms_0608_LastRow-dms_0608_OffsetRows)),"not an ARR"),"0") -> 0 | D126: dms_060801_MaxRows | E126: =IFERROR(IF(dms_Model="ARR",(MAX(0,dms_0608_LastRow-dms_0608_OffsetRows)),"not an ARR"),"0")
B127: TNSP RESET RINS
B128: Table 7.9.4 only appears in TNSPs Reset RIN
B129: Table 7.9.4 - first year | C129: =LEFT(PRCP_y3,4) -> 2012 | D129: dms_070904_Start_Year | E129: =LEFT(PRCP_y3,4)
B130: SUBSET FILES
B131: Is this Submission File a Subset File | C131: NO | D131: dms_Partial
B132: MISC
B133: Distribution Determination Reference | C133: =INDEX(dms_DeterminationRef_List,MATCH(dms_TradingName,dms_TradingName_List)) -> 0 | D133: dms_DeterminationRef
B134: Public lighting NSP? | C134: =INDEX(dms_Public_Lighting_List,MATCH(dms_TradingName,dms_TradingName_List)) -> NO | D134: dms_Public_Lighting | E134: =INDEX(dms_Public_Lighting_List,MATCH(dms_TradingName,dms_TradingName_List))
B135: CBD Feeder for this business | C135: =INDEX(dms_CBD_flag,MATCH(dms_TradingName,dms_TradingName_List)) -> NO | D135: dms_CBD_flag_NSP
B136: Urban Feeder for this business | C136: =INDEX(dms_Urban_flag,MATCH(dms_TradingName,dms_TradingName_List)) -> NO | D136: dms_Urban_flag_NSP
B137: Short rural Feeder for this business | C137: =INDEX(dms_ShortRural_flag,MATCH(dms_TradingName,dms_TradingName_List)) -> NO | D137: dms_ShortRural_flag_NSP
B138: Long rural Feeder for this business | C138: =INDEX(dms_LongRural_flag,MATCH(dms_TradingName,dms_TradingName_List)) -> NO | D138: dms_LongRural_flag_NSP
B139: Fifth Feeder Category (eg. TasNetworks (D)) | C139: =INDEX(dms_FeederType_5_flag,MATCH(dms_TradingName,dms_TradingName_List)) -> NO | D139: dms_FifthFeeder_flag_NSP | E139: =INDEX(dms_FeederType_5_flag,MATCH(dms_TradingName,dms_TradingName_List))
B141: DISCARD FILES
B142: discard this record? | C142: NO | D142: dms_DISCARD | E142: If record is to be discarded from DB set this flag to YES
B144: USES NAMED RANGES FLAG | C144: yes | D144: dms_Defined_Names_Used
B146: REGULATORY YEARS FOR MULTI RYE SUBMISSIONS
B147: Multiple RYE flag | C147: YES | D147: dms_Multi_RYE_flag
C148: Manually specify RYE | D148: Named ranges to apply
C149: 2011 | D149: dms_RYE_01
C150: 2012 | D150: dms_RYE_02
C151: 2013 | D151: dms_RYE_03
C152: 2014 | D152: dms_RYE_04
C153: 2015 | D153: dms_RYE_05
C154: 2016 | D154: dms_RYE_06
C155: 2017 | D155: dms_RYE_07
C156: 2018 | D156: dms_RYE_08
C157: 2019 | D157: dms_RYE_09

Sheet E1. Expenditure Summary
B1: =IF(dms_MultiYear_ResponseFlag="Yes","REGULATORY REPORTING STATEMENT - HISTORICAL INFORMATION",INDEX(dms_Worksheet_List,MATCH(dms_Model,dms_Model_List))) -> REGULATORY REPORTING STATEMENT - HISTORICAL INFORMATION
B2: =INDEX(dms_TradingNameFull_List,MATCH(dms_TradingName,dms_TradingName_List)) -> Jemena Gas Networks (NSW) Ltd
B3: =CONCATENATE(CRY," to ",dms_MultiYear_FinalYear_Result) -> 2010-11 to 2017-18
B4: E1. EXPENDITURE SUMMARY
B7: E1.1 - CAPEX
B8: E1.1.1 - REFERENCE SERVICES
C9: EXPENDITURE
C10: $0's, nominal
C11: =PRCP_y1 -> 2010-11 | D11: =PRCP_y2 -> 2011-12 | E11: =PRCP_y3 -> 2012-13 | F11: =PRCP_y4 -> 2013-14 | G11: =PRCP_y5 -> 2014-15 | H11: =CRCP_y1 -> 2015-16 | I11: =CRCP_y2 -> 2016-17 | J11: =CRCP_y3 -> 2017-18
B12: Connections | C12: 44507966.97 | D12: 50985076.53 | E12: 58420511.09 | F12: 68835064.41 | G12: 72352601.72 | H12: 71032562.85
B13: Mains replacement | C13: 70459.25 | D13: 4645264.36 | E13: 3965475.79 | F13: 4279147.84 | G13: 713848.3824 | H13: 4648099.297
B14: Mains augmentation | C14: 29834896.08 | D14: 26893300.72 | E14: 6423205.006 | F14: 7072827.008 | G14: 8526114.681 | H14: 12773688.45
B15: Telemetry | C15: 270886.7 | D15: 183759.63 | E15: 999941.11 | F15: 265829.72 | G15: 324830.57 | H15: 794202.3
B16: Meter replacement | C16: 11790704.58 | D16: 14628950.68 | E16: 12611534.76 | F16: 14454458.33 | G16: 14492117.81 | H16: 12628133.88
B17: ICT | C17: 37009251.2 | D17: 25908525.08 | E17: 12047017.96 | F17: 9065888.28 | G17: 36752965.44 | H17: 37891612.23
B18: Capitalised network overheads | C18: 15499363.99 | D18: 21031502.92 | E18: 21239399.51 | F18: 22817463.41 | G18: 14318159.68 | H18: 14951337.81
B19: Capitalised corporate overheads | C19: 303361.8996 | D19: 472452.7052 | E19: 1606297.182 | F19: 1905006.246 | G19: 13814249.93 | H19: 15186698.67
B20: Other capex | C20: 16462218.36 | D20: 20792604.6 | E20: 15521851.62 | F20: 25617016.27 | G20: 51876660.46 | H20: 33635166.91
B21: Related party expenditure
B22: Customer contributions included in the above
B23: Total (less customer contributions)
B25: E1.1.2 - NON-REFERENCE SERVICES
B26: Connections | C26: 0 | D26: 0 | E26: 0 | F26: 0 | G26: 0 | H26: 0
B27: Mains replacement | C27: 0 | D27: 0 | E27: 0 | F27: 0 | G27: 0 | H27: 0
B28: Mains augmentation | C28: 0 | D28: 0 | E28: 0 | F28: 0 | G28: 0 | H28: 0
B29: Telemetry | C29: 0 | D29: 0 | E29: 0 | F29: 0 | G29: 0 | H29: 0
B30: Meter replacement | C30: 0 | D30: 0 | E30: 0 | F30: 0 | G30: 0 | H30: 0
B31: ICT | C31: 0 | D31: 0 | E31: 0 | F31: 0 | G31: 0 | H31: 0
B32: Capitalised network overheads | C32: 0 | D32: 0 | E32: 0 | F32: 0 | G32: 0 | H32: 0
B33: Capitalised corporate overheads | C33: 0 | D33: 0 | E33: 0 | F33: 0 | G33: 0 | H33: 0
B34: Other capex | C34: 0 | D34: 0 | E34: 0 | F34: 0 | G34: 0 | H34: 0
B35: Related party expenditure | C35: 0 | D35: 0 | E35: 0 | F35: 0 | G35: 0 | H35: 0
B36: Customer contributions included in the above | C36: 0 | D36: 0 | E36: 0 | F36: 0 | G36: 0 | H36: 0
B37: Total (less customer contributions) | C37: =SUM(C26:C35)-C36 -> 0 | D37: 0 | E37: 0 | F37: 0 | G37: 0 | H37: 0 | I37: 0 | J37: 0
B41: E1.2 - OPEX
B42: E1.2.1 - REFERENCE SERVICES
C43: EXPENDITURE
C44: $0's, nominal
C45: =PRCP_y1 -> 2010-11 | D45: =PRCP_y2 -> 2011-12 | E45: =PRCP_y3 -> 2012-13 | F45: =PRCP_y4 -> 2013-14 | G45: =PRCP_y5 -> 2014-15 | H45: =CRCP_y1 -> 2015-16 | I45: =CRCP_y2 -> 2016-17 | J45: =CRCP_y3 -> 2017-18
B46: Connections
B47: Mains replacement
B48: Mains augmentation
B49: Telemetry
B50: Meter replacement
B51: ICT
B52: Capitalised network overheads
B53: Capitalised corporate overheads
B54: Other capex
B55: Related party expenditure
B56: Customer contributions included in the above
B57: Total (less customer contributions) | C57: =SUM(C46:C55)-C56 -> 0 | D57: 0 | E57: 0 | F57: 0 | G57: 0 | H57: 0 | I57: 0 | J57: 0
B59: E1.2.2 - NON-REFERENCE SERVICES
B60: Connections
B61: Mains replacement
B62: Mains augmentation
B63: Telemetry
B64: Meter replacement
B65: ICT
B66: Capitalised network overheads
B67: Capitalised corporate overheads
B68: Other capex
B69: Related party expenditure
B70: Customer contributions included in the above
B71: Total (less customer contributions) | C71: =SUM(C60:C69)-C70 -> 0 | D71: 0 | E71: 0 | F71: 0 | G71: 0 | H71: 0 | I71: 0 | J71: 0
B75: E1.3 - CAPCONS
B76: E1.3.1 - REFERENCE SERVICES
C77: EXPENDITURE
C78: $0's, nominal
C79: =PRCP_y1 -> 2010-11 | D79: =PRCP_y2 -> 2011-12 | E79: =PRCP_y3 -> 2012-13 | F79: =PRCP_y4 -> 2013-14 | G79: =PRCP_y5 -> 2014-15 | H79: =CRCP_y1 -> 2015-16 | I79: =CRCP_y2 -> 2016-17 | J79: =CRCP_y3 -> 2017-18
B80: Connections | C80: 3253132.92 | D80: 2421080.85 | E80: 2855041.28 | F80: 2690013.3 | G80: 3433662.84 | H80: 2681807.76
B81: Mains replacement | C81: 0 | D81: 0 | E81: 0 | F81: 0 | G81: 0 | H81: 0
B82: Mains augmentation | C82: 1375222.63 | D82: 0 | E82: 2482935 | F82: 0 | G82: 608078.09 | H82: 0
B83: Telemetry | C83: 0 | D83: 0 | E83: 0 | F83: 0 | G83: 0 | H83: 0
B84: Meter replacement | C84: 0 | D84: 0 | E84: 0 | F84: 0 | G84: 0 | H84: 0
B85: ICT | C85: 0 | D85: 0 | E85: 0 | F85: 0 | G85: 0 | H85: 0
B86: Capitalised network overheads | C86: 0 | D86: 0 | E86: 0 | F86: 0 | G86: 0 | H86: 0
B87: Capitalised corporate overheads | C87: 0 | D87: 0 | E87: 0 | F87: 0 | G87: 0 | H87: 0
B88: Other capex | C88: 2864652.27 | D88: 1291852.7 | E88: 0 | F88: 11778350.14 | G88: 519461.84 | H88: 0
B89: Related party expenditure | C89: 0 | D89: 0 | E89: 0 | F89: 0 | G89: 0 | H89: 0
B90: Total | C90: =SUM(C80:C89) -> 7493007.82 | D90: =SUM(D80:D89) -> 3712933.55 | E90: 5337976.28 | F90: 14468363.44 | G90: 4561202.77 | H90: 2681807.76 | I90: 0 | J90: 0
B93: E1.3.2 - NON-REFERENCE SERVICES
C94: EXPENDITURE
C95: $0's, nominal
C96: =PRCP_y1 -> 2010-11 | D96: =PRCP_y2 -> 2011-12 | E96: =PRCP_y3 -> 2012-13 | F96: =PRCP_y4 -> 2013-14 | G96: =PRCP_y5 -> 2014-15 | H96: =CRCP_y1 -> 2015-16 | I96: =CRCP_y2 -> 2016-17 | J96: =CRCP_y3 -> 2017-18
B97: Connections | C97: 0 | D97: 0 | E97: 0 | F97: 0 | G97: 0 | H97: 0
B98: Mains replacement | C98: 0 | D98: 0 | E98: 0 | F98: 0 | G98: 0 | H98: 0
B99: Mains augmentation | C99: 0 | D99: 0 | E99: 0 | F99: 0 | G99: 0 | H99: 0
B100: Telemetry | C100: 0 | D100: 0 | E100: 0 | F100: 0 | G100: 0 | H100: 0
B101: Meter replacement | C101: 0 | D101: 0 | E101: 0 | F101: 0 | G101: 0 | H101: 0
B102: ICT | C102: 0 | D102: 0 | E102: 0 | F102: 0 | G102: 0 | H102: 0
B103: Capitalised network overheads | C103: 0 | D103: 0 | E103: 0 | F103: 0 | G103: 0 | H103: 0
B104: Capitalised corporate overheads | C104: 0 | D104: 0 | E104: 0 | F104: 0 | G104: 0 | H104: 0
B105: Other capex | C105: 0 | D105: 0 | E105: 0 | F105: 0 | G105: 0 | H105: 0
B106: Related party expenditure | C106: 0 | D106: 0 | E106: 0 | F106: 0 | G106: 0 | H106: 0 | I106: 0 | J106: 0
B107: Total | C107: =SUM(C97:C106) -> 0 | D107: =SUM(D97:D106) -> 0 | E107: 0 | F107: 0 | G107: 0 | H107: 0 | I107: 0 | J107: 0
B110: E1.4 - CAPITALISED OVERHEADS
B111: E1.4.1 - REFERENCE SERVICES
C112: EXPENDITURE
C113: $0's, nominal
C114: =PRCP_y1 -> 2010-11 | D114: =PRCP_y2 -> 2011-12 | E114: =PRCP_y3 -> 2012-13 | F114: =PRCP_y4 -> 2013-14 | G114: =PRCP_y5 -> 2014-15 | H114: =CRCP_y1 -> 2015-16 | I114: =CRCP_y2 -> 2016-17 | J114: =CRCP_y3 -> 2017-18
B115: Connections | C115: 6747991.136 | D115: 9436899.004 | E115: 14365190.39 | F115: 16244650.93 | G115: 18149076.48 | H115: 18674580.39
B116: Mains replacement | C116: 14103.5518 | D116: 889564.9107 | E116: 936402.7458 | F116: 966571.24 | G116: 1244900.85 | H116: 1066930.012
B117: Mains augmentation | C117: 5188708.898 | D117: 5189880.839 | E117: 1597010.64 | F117: 1686144.018 | G117: 2613652.52 | H117: 3112440.72
B118: Telemetry | C118: 0 | D118: 0 | E118: 0 | F118: 0 | G118: 0 | H118: 0
B119: Meter replacement | C119: 1899682.293 | D119: 2691888.604 | E119: 3611299.25 | F119: 3786792.981 | G119: 3525901.75 | H119: 3496997.07
B120: ICT | C120: 0 | D120: 0 | E120: 0 | F120: 0 | G120: 0 | H120: 0
B121: Other capex | C121: 1952240.013 | D121: 3295722.271 | E121: 2335793.662 | F121: 2038310.486 | G121: 2598878.01 | H121: 3787088.29
B122: Related party expenditure | C122: 0 | D122: 0 | E122: 0 | F122: 0 | G122: 0 | H122: 0 | I122: 0 | J122: 0
B123: Customer contributions included in the above | C123: 0 | D123: 0 | E123: 0 | F123: 0 | G123: 0 | H123: 0 | I123: 0 | J123: 0
B124: Total (less customer contributions) | C124: =SUM(C115:C122)-C123 -> 15802725.89 | D124: =SUM(D115:D122)-D123 -> 21503955.63 | E124: 22845696.69 | F124: 24722469.66 | G124: 28132409.61 | H124: 30138036.48 | I124: 0 | J124: 0

Sheet E2. Mains Repex
B1: =IF(dms_MultiYear_ResponseFlag="Yes","REGULATORY REPORTING STATEMENT - HISTORICAL INFORMATION",INDEX(dms_Worksheet_List,MATCH(dms_Model,dms_Model_List))) -> REGULATORY REPORTING STATEMENT - HISTORICAL INFORMATION
B2: =INDEX(dms_TradingNameFull_List,MATCH(dms_TradingName,dms_TradingName_List)) -> Jemena Gas Networks (NSW) Ltd
B3: =CONCATENATE(CRY," to ",dms_MultiYear_FinalYear_Result) -> 2010-11 to 2017-18
B4: E2. MAINS REPLACEMENT
B7: Please list all projects here:
B8: Bowral (210KPA) Rehabilitation (BAB-411-000048, BAB-RAA-800048, BAB-411-000030)
B9: Bowral Programmed Mains and Services Area Renewal (M61697)
B10: Kensington Rehabilitation (BAB-411-000034, BAB-RAA-800034, M65209, BAB-411-000036, BAB-RAA-800036, BAB-411-000032, BAB-RAA-800032)
B11: Minor Rehab Project (411Multiple)
B12: Mt Druitt Steel Rehabilitation (BAB-411-000013, BAB-RAA-800013, BAB-411-000014, BAB-RAA-800014, M54612, BAB-411-000016, BAB-RAA-800016, BAB-411-000028, BAB-RAA-800028, BAB-411-000026, BAB-RAA-800026, BAB-RAA-800045, BAB-411-000042, BAB-RAA-800042, BAB-RAA-800046, BAB-411-000043, BAB-RAA-800043, BAB-411-000044, BAB-RAA-800044, BAB-RAA-000003, BAB-411-000007)
B13: Smithfield-Liverpool Programmed Mains and Services Area Renewal (M28159)
B14: Stockton Programmed Mains and Services Area Renewal (M44824)
B15: Warringah (Sector 2) Rehabilitation (M47512)
B16: Warringah Programmed Mains and Services Area Renewal (M39953)
B59: E2.1 - CAPEX
B60: E2.1.1 - PROACTIVE - BY CONNECTION TYPE - BY PROJECT
D61: EXPENDITURE
D62: $0's, nominal
D63: =PRCP_y1 -> 2010-11 | E63: =PRCP_y2 -> 2011-12 | F63: =PRCP_y3 -> 2012-13 | G63: =PRCP_y4 -> 2013-14 | H63: =PRCP_y5 -> 2014-15 | I63: =CRCP_y1 -> 2015-16 | J63: =CRCP_y2 -> 2016-17 | K63: =CRCP_y3 -> 2017-18
B64: A. DIRECT INTERNAL LABOUR EXPENDITURE
B65: =IF(ISBLANK($B$8),"",$B$8) -> Bowral (210KPA) Rehabilitation (BAB-411-000048, BAB-RAA-800048, BAB-411-000030) | D65: 0 | E65: 0 | F65: 0 | G65: 0 | H65: 0 | I65: 1826.37
B66: =IF(ISBLANK($B$9),"",$B$9) -> Bowral Programmed Mains and Services Area Renewal (M61697) | D66: 0 | E66: 0 | F66: 13448.68 | G66: 101638.35 | H66: 0 | I66: 0
B67: =IF(ISBLANK($B$10),"",$B$10) -> Kensington Rehabilitation (BAB-411-000034, BAB-RAA-800034, M65209, BAB-411-000036, BAB-RAA-800036, BAB-411-000032, BAB-RAA-800032) | D67: 0 | E67: 0 | F67: 0 | G67: 29423.05 | H67: 205558.6 | I67: 67110.87
B68: =IF(ISBLANK($B$11),"",$B$11) -> Minor Rehab Project (411Multiple) | D68: 13573.9 | E68: 57695.6 | F68: 12556.84 | G68: 69117.37 | H68: 0 | I68: 0
B69: =IF(ISBLANK($B$12),"",$B$12) -> Mt Druitt Steel Rehabilitation (BAB-411-000013, BAB-RAA-800013, BAB-411-000014, BAB-RAA-800014, M54612, BAB-411-000016, BAB-RAA-800016, BAB-411-000028, BAB-RAA-800028, BAB-411-000026, BAB-RAA-800026, BAB-RAA-800045, BAB-411-000042, BAB-RAA-800042, BAB-RAA-800046, BAB-411-000043, BAB-RAA-800043, BAB-411-000044, BAB-RAA-800044, BAB-RAA-000003, BAB-411-000007) | D69: 0 | E69: 0 | F69: 0 | G69: 9779.94 | H69: 65330.79 | I69: 281575.33
B70: =IF(ISBLANK($B$13),"",$B$13) -> Smithfield-Liverpool Programmed Mains and Services Area Renewal (M28159) | D70: 2407.2 | E70: 172414.91 | F70: 3701.82 | G70: 0 | H70: 0 | I70: 0
B71: =IF(ISBLANK($B$14),"",$B$14) -> Stockton Programmed Mains and Services Area Renewal (M44824) | D71: 0 | E71: 0 | F71: 146966.08 | G71: 214395.31 | H71: 0 | I71: 0
B72: =IF(ISBLANK($B$15),"",$B$15) -> Warringah (Sector 2) Rehabilitation (M47512) | D72: 0 | E72: 0 | F72: 159542.39 | G72: 44562.11 | H72: 0 | I72: 0
B73: =IF(ISBLANK($B$16),"",$B$16) -> Warringah Programmed Mains and Services Area Renewal (M39953) | D73: 3080.14 | E73: 44656.59 | F73: 0 | G73: 0 | H73: 0 | I73: 0
B74: =IF(ISBLANK($B$17),"",$B$17) -> 
B75: =IF(ISBLANK($B$18),"",$B$18) -> 
B76: =IF(ISBLANK($B$19),"",$B$19) -> 
B77: =IF(ISBLANK($B$20),"",$B$20) -> 
B78: =IF(ISBLANK($B$21),"",$B$21) -> 
B79: =IF(ISBLANK($B$22),"",$B$22) -> 
B80: =IF(ISBLANK($B$23),"",$B$23) -> 
B81: =IF(ISBLANK($B$24),"",$B$24) -> 
B82: =IF(ISBLANK($B$25),"",$B$25) -> 
B83: =IF(ISBLANK($B$26),"",$B$26) -> 
B84: =IF(ISBLANK($B$27),"",$B$27) -> 
B85: =IF(ISBLANK($B$28),"",$B$28) -> 
B86: =IF(ISBLANK($B$29),"",$B$29) -> 
B87: =IF(ISBLANK($B$30),"",$B$30) -> 
B88: =IF(ISBLANK($B$31),"",$B$31) -> 
B89: =IF(ISBLANK($B$32),"",$B$32) -> 
B90: =IF(ISBLANK($B$33),"",$B$33) -> 
B91: =IF(ISBLANK($B$34),"",$B$34) -> 
B92: =IF(ISBLANK($B$35),"",$B$35) -> 
B93: =IF(ISBLANK($B$36),"",$B$36) -> 
B94: =IF(ISBLANK($B$37),"",$B$37) -> 
B95: =IF(ISBLANK($B$38),"",$B$38) -> 
B96: =IF(ISBLANK($B$39),"",$B$39) -> 
B97: =IF(ISBLANK($B$40),"",$B$40) -> 
B98: =IF(ISBLANK($B$41),"",$B$41) -> 
B99: =IF(ISBLANK($B$42),"",$B$42) -> 
B100: =IF(ISBLANK($B$43),"",$B$43) -> 
B101: =IF(ISBLANK($B$44),"",$B$44) -> 
B102: =IF(ISBLANK($B$45),"",$B$45) -> 
B103: =IF(ISBLANK($B$46),"",$B$46) -> 
B104: =IF(ISBLANK($B$47),"",$B$47) -> 
B105: =IF(ISBLANK($B$48),"",$B$48) -> 
B106: =IF(ISBLANK($B$49),"",$B$49) -> 
B107: =IF(ISBLANK($B$50),"",$B$50) -> 
B108: =IF(ISBLANK($B$51),"",$B$51) -> 
B109: =IF(ISBLANK($B$52),"",$B$52) -> 
B110: =IF(ISBLANK($B$53),"",$B$53) -> 
B111: =IF(ISBLANK($B$54),"",$B$54) -> 
B112: =IF(ISBLANK($B$55),"",$B$55) -> 
B113: =IF(ISBLANK($B$56),"",$B$56) -> 
B114: =IF(ISBLANK($B$57),"",$B$57) -> 
B115: Aggregate of other projects with total expenditure of less than $500,000 | D115: 0 | E115: 0 | F115: 0 | G115: 0 | H115: 77615.02 | I115: 49236.34
C116: Total | D116: =SUM(D65:D115) -> 19061.24 | E116: =SUM(E65:E115) -> 274767.1 | F116: 336215.81 | G116: 468916.13 | H116: 348504.41 | I116: 399748.91 | J116: 0 | K116: 0
B118: B. DIRECT CONTRACTOR EXPENDITURE
B119: =IF(ISBLANK($B$8),"",$B$8) -> Bowral (210KPA) Rehabilitation (BAB-411-000048, BAB-RAA-800048, BAB-411-000030)
B120: =IF(ISBLANK($B$9),"",$B$9) -> Bowral Programmed Mains and Services Area Renewal (M61697)
B121: =IF(ISBLANK($B$10),"",$B$10) -> Kensington Rehabilitation (BAB-411-000034, BAB-RAA-800034, M65209, BAB-411-000036, BAB-RAA-800036, BAB-411-000032, BAB-RAA-800032)
B122: =IF(ISBLANK($B$11),"",$B$11) -> Minor Rehab Project (411Multiple)
B123: =IF(ISBLANK($B$12),"",$B$12) -> Mt Druitt Steel Rehabilitation (BAB-411-000013, BAB-RAA-800013, BAB-411-000014, BAB-RAA-800014, M54612, BAB-411-000016, BAB-RAA-800016, BAB-411-000028, BAB-RAA-800028, BAB-411-000026, BAB-RAA-800026, BAB-RAA-800045, BAB-411-000042, BAB-RAA-800042, BAB-RAA-800046, BAB-411-000043, BAB-RAA-800043, BAB-411-000044, BAB-RAA-800044, BAB-RAA-000003, BAB-411-000007)
B124: =IF(ISBLANK($B$13),"",$B$13) -> Smithfield-Liverpool Programmed Mains and Services Area Renewal (M28159)
B125: =IF(ISBLANK($B$14),"",$B$14) -> Stockton Programmed Mains and Services Area Renewal (M44824)
B126: =IF(ISBLANK($B$15),"",$B$15) -> Warringah (Sector 2) Rehabilitation (M47512)
B127: =IF(ISBLANK($B$16),"",$B$16) -> Warringah Programmed Mains and Services Area Renewal (M39953)
B128: =IF(ISBLANK($B$17),"",$B$17) -> 
B129: =IF(ISBLANK($B$18),"",$B$18) -> 
B130: =IF(ISBLANK($B$19),"",$B$19) -> 
B131: =IF(ISBLANK($B$20),"",$B$20) -> 
B132: =IF(ISBLANK($B$21),"",$B$21) -> 
B133: =IF(ISBLANK($B$22),"",$B$22) -> 
B134: =IF(ISBLANK($B$23),"",$B$23) -> 
B135: =IF(ISBLANK($B$24),"",$B$24) -> 
B136: =IF(ISBLANK($B$25),"",$B$25) -> 
B137: =IF(ISBLANK($B$26),"",$B$26) -> 
B138: =IF(ISBLANK($B$27),"",$B$27) -> 
B139: =IF(ISBLANK($B$28),"",$B$28) -> 
B140: =IF(ISBLANK($B$29),"",$B$29) -> 
B141: =IF(ISBLANK($B$30),"",$B$30) -> 
B142: =IF(ISBLANK($B$31),"",$B$31) -> 
B143: =IF(ISBLANK($B$32),"",$B$32) -> 
B144: =IF(ISBLANK($B$33),"",$B$33) -> 
B145: =IF(ISBLANK($B$34),"",$B$34) -> 
B146: =IF(ISBLANK($B$35),"",$B$35) -> 
B147: =IF(ISBLANK($B$36),"",$B$36) -> 
B148: =IF(ISBLANK($B$37),"",$B$37) -> 
B149: =IF(ISBLANK($B$38),"",$B$38) -> 
B150: =IF(ISBLANK($B$39),"",$B$39) -> 
B151: =IF(ISBLANK($B$40),"",$B$40) -> 
B152: =IF(ISBLANK($B$41),"",$B$41) -> 
B153: =IF(ISBLANK($B$42),"",$B$42) -> 
B154: =IF(ISBLANK($B$43),"",$B$43) -> 
B155: =IF(ISBLANK($B$44),"",$B$44) -> 
B156: =IF(ISBLANK($B$45),"",$B$45) -> 
B157: =IF(ISBLANK($B$46),"",$B$46) -> 
B158: =IF(ISBLANK($B$47),"",$B$47) -> 
B159: =IF(ISBLANK($B$48),"",$B$48) -> 
B160: =IF(ISBLANK($B$49),"",$B$49) -> 
B161: =IF(ISBLANK($B$50),"",$B$50) -> 
B162: =IF(ISBLANK($B$51),"",$B$51) -> 
B163: =IF(ISBLANK($B$52),"",$B$52) -> 
B164: =IF(ISBLANK($B$53),"",$B$53) -> 
B165: =IF(ISBLANK($B$54),"",$B$54) -> 
B166: =IF(ISBLANK($B$55),"",$B$55) -> 
B167: =IF(ISBLANK($B$56),"",$B$56) -> 
B168: =IF(ISBLANK($B$57),"",$B$57) -> 
B169: Aggregate of other projects with total expenditure of less than $500,000
C170: Total
B172: C. OTHER INTERNAL DIRECT EXPENDITURE
B173: =IF(ISBLANK($B$8),"",$B$8) -> Bowral (210KPA) Rehabilitation (BAB-411-000048, BAB-RAA-800048, BAB-411-000030) | D173: 0 | E173: 0 | F173: 0 | G173: 0 | H173: 0 | I173: 0
B174: =IF(ISBLANK($B$9),"",$B$9) -> Bowral Programmed Mains and Services Area Renewal (M61697) | D174: 0 | E174: 0 | F174: 785.85 | G174: 42511.31 | H174: 0 | I174: 0
B175: =IF(ISBLANK($B$10),"",$B$10) -> Kensington Rehabilitation (BAB-411-000034, BAB-RAA-800034, M65209, BAB-411-000036, BAB-RAA-800036, BAB-411-000032, BAB-RAA-800032) | D175: 0 | E175: 0 | F175: 0 | G175: 1681.15 | H175: 114887.32 | I175: 1358813.63
B176: =IF(ISBLANK($B$11),"",$B$11) -> Minor Rehab Project (411Multiple) | D176: 51398.35 | E176: 4952.51 | F176: 36897.58 | G176: 50504.56 | H176: 0 | I176: 0
B177: =IF(ISBLANK($B$12),"",$B$12) -> Mt Druitt Steel Rehabilitation (BAB-411-000013, BAB-RAA-800013, BAB-411-000014, BAB-RAA-800014, M54612, BAB-411-000016, BAB-RAA-800016, BAB-411-000028, BAB-RAA-800028, BAB-411-000026, BAB-RAA-800026, BAB-RAA-800045, BAB-411-000042, BAB-RAA-800042, BAB-RAA-800046, BAB-411-000043, BAB-RAA-800043, BAB-411-000044, BAB-RAA-800044, BAB-RAA-000003, BAB-411-000007) | D177: 0 | E177: 0 | F177: 0 | G177: 681.53 | H177: 4471.43 | I177: 1225245.1
B178: =IF(ISBLANK($B$13),"",$B$13) -> Smithfield-Liverpool Programmed Mains and Services Area Renewal (M28159) | D178: 0 | E178: 336440.2 | F178: -11526.81 | G178: 0 | H178: 0 | I178: 0
B179: =IF(ISBLANK($B$14),"",$B$14) -> Stockton Programmed Mains and Services Area Renewal (M44824) | D179: 0 | E179: 0 | F179: 90589.42 | G179: 158896.19 | H179: 0 | I179: 0
B180: =IF(ISBLANK($B$15),"",$B$15) -> Warringah (Sector 2) Rehabilitation (M47512) | D180: 0 | E180: 0 | F180: 152974.65 | G180: -789.9 | H180: 0 | I180: 0
B181: =IF(ISBLANK($B$16),"",$B$16) -> Warringah Programmed Mains and Services Area Renewal (M39953) | D181: 0 | E181: 2155.65 | F181: 0 | G181: 0 | H181: 0 | I181: 0
B182: =IF(ISBLANK($B$17),"",$B$17) -> 
B183: =IF(ISBLANK($B$18),"",$B$18) -> 
B184: =IF(ISBLANK($B$19),"",$B$19) -> 
B185: =IF(ISBLANK($B$20),"",$B$20) -> 
B186: =IF(ISBLANK($B$21),"",$B$21) -> 
B187: =IF(ISBLANK($B$22),"",$B$22) -> 
B188: =IF(ISBLANK($B$23),"",$B$23) -> 
B189: =IF(ISBLANK($B$24),"",$B$24) -> 
B190: =IF(ISBLANK($B$25),"",$B$25) -> 
B191: =IF(ISBLANK($B$26),"",$B$26) -> 
B192: =IF(ISBLANK($B$27),"",$B$27) -> 
B193: =IF(ISBLANK($B$28),"",$B$28) -> 
B194: =IF(ISBLANK($B$29),"",$B$29) -> 
B195: =IF(ISBLANK($B$30),"",$B$30) -> 
B196: =IF(ISBLANK($B$31),"",$B$31) -> 
B197: =IF(ISBLANK($B$32),"",$B$32) -> 
B198: =IF(ISBLANK($B$33),"",$B$33) -> 
B199: =IF(ISBLANK($B$34),"",$B$34) -> 
B200: =IF(ISBLANK($B$35),"",$B$35) -> 
B201: =IF(ISBLANK($B$36),"",$B$36) -> 
B202: =IF(ISBLANK($B$37),"",$B$37) -> 
B203: =IF(ISBLANK($B$38),"",$B$38) -> 
B204: =IF(ISBLANK($B$39),"",$B$39) -> 
B205: =IF(ISBLANK($B$40),"",$B$40) -> 
B206: =IF(ISBLANK($B$41),"",$B$41) -> 
B207: =IF(ISBLANK($B$42),"",$B$42) -> 
B208: =IF(ISBLANK($B$43),"",$B$43) -> 
B209: =IF(ISBLANK($B$44),"",$B$44) -> 
B210: =IF(ISBLANK($B$45),"",$B$45) -> 
B211: =IF(ISBLANK($B$46),"",$B$46) -> 
B212: =IF(ISBLANK($B$47),"",$B$47) -> 
B213: =IF(ISBLANK($B$48),"",$B$48) -> 
B214: =IF(ISBLANK($B$49),"",$B$49) -> 
B215: =IF(ISBLANK($B$50),"",$B$50) -> 
B216: =IF(ISBLANK($B$51),"",$B$51) -> 
B217: =IF(ISBLANK($B$52),"",$B$52) -> 
B218: =IF(ISBLANK($B$53),"",$B$53) -> 
B219: =IF(ISBLANK($B$54),"",$B$54) -> 
B220: =IF(ISBLANK($B$55),"",$B$55) -> 
B221: =IF(ISBLANK($B$56),"",$B$56) -> 
B222: =IF(ISBLANK($B$57),"",$B$57) -> 
B223: Aggregate of other projects with total expenditure of less than $500,000 | D223: -0.34 | E223: 0 | F223: 0 | G223: 0 | H223: -2061638.73 | I223: 0
C224: Total | D224: =SUM(D173:D223) -> 51398.01 | E224: 343548.36 | F224: 269720.69 | G224: 253484.84 | H224: -1942279.98 | I224: 2584058.73 | J224: 0 | K224: 0
B226: D. TOTAL OVERHEAD EXPENDITURE
B227: =IF(ISBLANK($B$8),"",$B$8) -> Bowral (210KPA) Rehabilitation (BAB-411-000048, BAB-RAA-800048, BAB-411-000030) | D227: 0 | E227: 0 | F227: 0 | G227: 0 | H227: 15248.37 | I227: 438.33
B228: =IF(ISBLANK($B$9),"",$B$9) -> Bowral Programmed Mains and Services Area Renewal (M61697) | D228: 0 | E228: 0 | F228: 3434.317298 | G228: 231912.71 | H228: 0 | I228: 0
B229: =IF(ISBLANK($B$10),"",$B$10) -> Kensington Rehabilitation (BAB-411-000034, BAB-RAA-800034, M65209, BAB-411-000036, BAB-RAA-800036, BAB-411-000032, BAB-RAA-800032) | D229: 0 | E229: 0 | F229: 0 | G229: 6842.46 | H229: 896063.7 | I229: 404987.64
B230: =IF(ISBLANK($B$11),"",$B$11) -> Minor Rehab Project (411Multiple) | D230: 13221.47332 | E230: 49394.10389 | F230: 6521.711678 | G230: 263508.025 | H230: 0 | I230: 0
B231: =IF(ISBLANK($B$12),"",$B$12) -> Mt Druitt Steel Rehabilitation (BAB-411-000013, BAB-RAA-800013, BAB-411-000014, BAB-RAA-800014, M54612, BAB-411-000016, BAB-RAA-800016, BAB-411-000028, BAB-RAA-800028, BAB-411-000026, BAB-RAA-800026, BAB-RAA-800045, BAB-411-000042, BAB-RAA-800042, BAB-RAA-800046, BAB-411-000043, BAB-RAA-800043, BAB-411-000044, BAB-RAA-800044, BAB-RAA-000003, BAB-411-000007) | D231: 0 | E231: 0 | F231: 0 | G231: 8121.434971 | H231: 19193.69 | I231: 371621.86
B232: =IF(ISBLANK($B$13),"",$B$13) -> Smithfield-Liverpool Programmed Mains and Services Area Renewal (M28159) | D232: 372.3197573 | E232: 731347.9897 | F232: 5710.497541 | G232: 0 | H232: 0 | I232: 0
B233: =IF(ISBLANK($B$14),"",$B$14) -> Stockton Programmed Mains and Services Area Renewal (M44824) | D233: 0 | E233: 0 | F233: 259509.1229 | G233: 409456.21 | H233: 0 | I233: 0
B234: =IF(ISBLANK($B$15),"",$B$15) -> Warringah (Sector 2) Rehabilitation (M47512) | D234: 0 | E234: 0 | F234: 661252.5846 | G234: 33082.15 | H234: 0 | I234: 0
B235: =IF(ISBLANK($B$16),"",$B$16) -> Warringah Programmed Mains and Services Area Renewal (M39953) | D235: 509.8387217 | E235: 108822.817 | F235: -10.85825107 | G235: 0 | H235: 0 | I235: 0
B236: =IF(ISBLANK($B$17),"",$B$17) -> 
B237: =IF(ISBLANK($B$18),"",$B$18) -> 
B238: =IF(ISBLANK($B$19),"",$B$19) -> 
B239: =IF(ISBLANK($B$20),"",$B$20) -> 
B240: =IF(ISBLANK($B$21),"",$B$21) -> 
B241: =IF(ISBLANK($B$22),"",$B$22) -> 
B242: =IF(ISBLANK($B$23),"",$B$23) -> 
B243: =IF(ISBLANK($B$24),"",$B$24) -> 
B244: =IF(ISBLANK($B$25),"",$B$25) -> 
B245: =IF(ISBLANK($B$26),"",$B$26) -> 
B246: =IF(ISBLANK($B$27),"",$B$27) -> 
B247: =IF(ISBLANK($B$28),"",$B$28) -> 
... 516 more rows

Sheet E3. Mains Augex
B1: =IF(dms_MultiYear_ResponseFlag="Yes","REGULATORY REPORTING STATEMENT - HISTORICAL INFORMATION",INDEX(dms_Worksheet_List,MATCH(dms_Model,dms_Model_List))) -> REGULATORY REPORTING STATEMENT - HISTORICAL INFORMATION
B2: =INDEX(dms_TradingNameFull_List,MATCH(dms_TradingName,dms_TradingName_List)) -> Jemena Gas Networks (NSW) Ltd
B3: =CONCATENATE(CRY," to ",dms_MultiYear_FinalYear_Result) -> 2010-11 to 2017-18
B4: E3. MAINS AUGMENTATION
B6: Please list all projects here:
B7: Alexandria to Darlington Interconnect (BAB-414-000058, BAB-DAA-800058, BAB-414-000120, BAB-DAA-800120, BAB-414-000062)
B8: Barangaroo Stage 1A (N70180, BAB-407-000009, BAB-CGG-800009)
B9: Bingara Gorge Gas Network (C407/00022, AAB-407-000038)
B10: Campsie CDP (BAB-DAA-000070-30-01-20)
B11: Caringbah South CDP (M35870)
B12: Dapto Koonawarra CDP (M31570)
B13: East Leppington Feeder Main (P68717, BAB-407-000008, BAB-CGG-800008)
B14: FSA and ASA ZNX Accruals 2015 (BAB-CGH-800005)
B15: Griffith CDP (BAB-414-000028, BAB-DAA-800028, M30146, BAB-414-000030, M28164)
B16: Horsley CDP (BAB-414-000032, BAB-DAA-800032, M31573, BAB-414-000107, BAB-DAA-800107)
B17: Huntlee Gas Network Extension (BAB-CGG-000003)
B18: Illawarra CDPs (M30243, M30249, BAB-DAA-800100, M32032, BAB-414-000122, BAB-DAA-800122, M29647, BAB-414-000108, BAB-DAA-800108, M32999, BAB-DAA-800104, BAB-414-000104, BAB-414-000106)
B19: Installation of Riverwood PRS - Capacity Development Project (M25610)
B20: Jemena Pemulwuy Depot project (BAB-414-000135)
B21: Kensington CDP's (M31073, M37077, M29897)
B22: Lane Cove PRS (M27524, BAB-414-000018)
B23: Loftus/Engadine CDPs (M30004, BAB-414-000105, BAB-DAA-800105)
B24: Marsden Park (BAB-407-000006, BAB-CGG-800006, BAB-407-000013, BAB-407-000018, BAB-CGG-800018)
B25: Newcastle & Central Coast CDPs (M35867, M48809, BAB-414-000027, BAB-DAA-800027, BAB-414-000123, M30253, M30235, BAB-414-000096, BAB-DAA-800096, BAB-DAA-000070-30-00-07, BAB-414-000015, BAB-DAA-000070-30-00-22, BAB-414-000137, BAB-DAA-800137)
B26: Newcastle Gas Storage Facility (A57692, BAB-402-000003, BAB-CGC-800003, AAB-402-000001)
B27: Newcastle MP1 CDP Part 2 (M31726)
B28: Northern Primary Main (BAB-414-000080, BAB-DAA-800080)
B29: Oran Park CDPs (M45834, BAB-414-000083, BAB-DAA-800083)
B30: Orange CDP (M36039)
B31: Penrith - Emu Plains Primary Extension and PRS (M31321, BAB-414-000110, BAB-DAA-800110, BAB-414-000064, BAB-414-000017)
B32: Raby Capacity Projects (M29935)
B33: Rouse HILL CDP's (BAB-414-000082, BAB-DAA-800082, M30043, BAB-DAA-000060-30-01-30, BAB-414-000140, BAB-DAA-800140)
B34: Rutherford (1050-210 kPa) CDP (Largs) (M30265)
B35: Rutherford (Paterson Road) CDP (BAB-414-000086, BAB-DAA-800086)
B36: Southern Highlands CDPs (M28166)
B37: St Andrews to Ingleburn Section Interconnect (BAB-414-000103, BAB-DAA-800103)
B38: Strathfield High Density Reinforcement Project (BAB-DAA-000070-30-01-21)
B39: The Entrance CDP (M23028, BAB-414-000084, BAB-DAA-800084)
B40: Tullimbar CDP (M53824, BAB-414-000040)
B41: Various Capacity Driven SRS installations (BAB-414-000038, M43074, M30293, M30288, M30088, BAB-414-000118, M26372)
B42: Wakehurst Parkway Secondary Main (M35619)
B43: Wollongong North CDP (M32035, M30246)
B44: Wollongong POTS/ Yahllah TRS / Albion Park (M27029, BAB-414-000016, BAB-DAA-800016)
B58: E3.1 - CAPEX BY PROJECT
B59: A. DIRECT INTERNAL LABOUR EXPENDITURE
C60: EXPENDITURE
C61: $0's, nominal
C62: =PRCP_y1 -> 2010-11 | D62: =PRCP_y2 -> 2011-12 | E62: =PRCP_y3 -> 2012-13 | F62: =PRCP_y4 -> 2013-14 | G62: =PRCP_y5 -> 2014-15 | H62: =CRCP_y1 -> 2015-16 | I62: =CRCP_y2 -> 2016-17 | J62: =CRCP_y3 -> 2017-18
B63: =IF(ISBLANK($B$7),"",$B$7) -> Alexandria to Darlington Interconnect (BAB-414-000058, BAB-DAA-800058, BAB-414-000120, BAB-DAA-800120, BAB-414-000062) | C63: 0 | D63: 0 | E63: 0 | F63: 0 | G63: 72273.83 | H63: 172990.42
B64: =IF(ISBLANK($B$8),"",$B$8) -> Barangaroo Stage 1A (N70180, BAB-407-000009, BAB-CGG-800009) | C64: 0 | D64: 0 | E64: 0 | F64: 0 | G64: 1201.68 | H64: 0
B65: =IF(ISBLANK($B$9),"",$B$9) -> Bingara Gorge Gas Network (C407/00022, AAB-407-000038) | C65: 118527.12 | D65: 79104.98 | E65: 2949.85579 | F65: 0 | G65: 0 | H65: 0
B66: =IF(ISBLANK($B$10),"",$B$10) -> Campsie CDP (BAB-DAA-000070-30-01-20) | C66: 0 | D66: 0 | E66: 0 | F66: 0 | G66: 0 | H66: 0
B67: =IF(ISBLANK($B$11),"",$B$11) -> Caringbah South CDP (M35870) | C67: 653.38 | D67: 22522.75 | E67: 0 | F67: 0 | G67: 0 | H67: 0
B68: =IF(ISBLANK($B$12),"",$B$12) -> Dapto Koonawarra CDP (M31570) | C68: 0 | D68: 27094.7 | E68: 0 | F68: 0 | G68: 0 | H68: 0
B69: =IF(ISBLANK($B$13),"",$B$13) -> East Leppington Feeder Main (P68717, BAB-407-000008, BAB-CGG-800008) | C69: 0 | D69: 0 | E69: 0 | F69: 0 | G69: 36436.02 | H69: 7394.53
B70: =IF(ISBLANK($B$14),"",$B$14) -> FSA and ASA ZNX Accruals 2015 (BAB-CGH-800005) | C70: 0 | D70: 0 | E70: 0 | F70: 0 | G70: 0 | H70: 0
B71: =IF(ISBLANK($B$15),"",$B$15) -> Griffith CDP (BAB-414-000028, BAB-DAA-800028, M30146, BAB-414-000030, M28164) | C71: 0 | D71: 5133.7 | E71: 0 | F71: 0 | G71: 15661.61 | H71: 99329.29
B72: =IF(ISBLANK($B$16),"",$B$16) -> Horsley CDP (BAB-414-000032, BAB-DAA-800032, M31573, BAB-414-000107, BAB-DAA-800107) | C72: 7429.53 | D72: 4629.43 | E72: 0 | F72: 0 | G72: 24901.21 | H72: 101432.62
B73: =IF(ISBLANK($B$17),"",$B$17) -> Huntlee Gas Network Extension (BAB-CGG-000003) | C73: 0 | D73: 0 | E73: 0 | F73: 0 | G73: 0 | H73: 5220.5
B74: =IF(ISBLANK($B$18),"",$B$18) -> Illawarra CDPs (M30243, M30249, BAB-DAA-800100, M32032, BAB-414-000122, BAB-DAA-800122, M29647, BAB-414-000108, BAB-DAA-800108, M32999, BAB-DAA-800104, BAB-414-000104, BAB-414-000106) | C74: 41378.25 | D74: 9573.81 | E74: 7337.09 | F74: 0 | G74: 62904.98 | H74: -48297.1
B75: =IF(ISBLANK($B$19),"",$B$19) -> Installation of Riverwood PRS - Capacity Development Project (M25610) | C75: 171255.11 | D75: 97742.99 | E75: 2538.46 | F75: 0 | G75: 0 | H75: 0
B76: =IF(ISBLANK($B$20),"",$B$20) -> Jemena Pemulwuy Depot project (BAB-414-000135) | C76: 0 | D76: 0 | E76: 0 | F76: 0 | G76: 14170.12 | H76: 0
B77: =IF(ISBLANK($B$21),"",$B$21) -> Kensington CDP's (M31073, M37077, M29897) | C77: 181801.25 | D77: 15583.14 | E77: -649.04 | F77: 0 | G77: 0 | H77: 0
B78: =IF(ISBLANK($B$22),"",$B$22) -> Lane Cove PRS (M27524, BAB-414-000018) | C78: 288572.22 | D78: 272516.05 | E78: 38387.48 | F78: 28056.38 | G78: 1655.16 | H78: 0
B79: =IF(ISBLANK($B$23),"",$B$23) -> Loftus/Engadine CDPs (M30004, BAB-414-000105, BAB-DAA-800105) | C79: 4128.6 | D79: 0 | E79: 0 | F79: 0 | G79: 1137.9 | H79: 0
B80: =IF(ISBLANK($B$24),"",$B$24) -> Marsden Park (BAB-407-000006, BAB-CGG-800006, BAB-407-000013, BAB-407-000018, BAB-CGG-800018) | C80: 0 | D80: 0 | E80: 0 | F80: 0 | G80: 104260.92 | H80: 104005.31
B81: =IF(ISBLANK($B$25),"",$B$25) -> Newcastle & Central Coast CDPs (M35867, M48809, BAB-414-000027, BAB-DAA-800027, BAB-414-000123, M30253, M30235, BAB-414-000096, BAB-DAA-800096, BAB-DAA-000070-30-00-07, BAB-414-000015, BAB-DAA-000070-30-00-22, BAB-414-000137, BAB-DAA-800137) | C81: 1253.44 | D81: 28137.05 | E81: 2238.98 | F81: 60289.87 | G81: 13397.65 | H81: 0
B82: =IF(ISBLANK($B$26),"",$B$26) -> Newcastle Gas Storage Facility (A57692, BAB-402-000003, BAB-CGC-800003, AAB-402-000001) | C82: 0 | D82: 0 | E82: 271280.46 | F82: 539659.07 | G82: 413434.93 | H82: 86243.34
B83: =IF(ISBLANK($B$27),"",$B$27) -> Newcastle MP1 CDP Part 2 (M31726) | C83: 111222.61 | D83: 31148.12 | E83: 0 | F83: 0 | G83: 0 | H83: 0
B84: =IF(ISBLANK($B$28),"",$B$28) -> Northern Primary Main (BAB-414-000080, BAB-DAA-800080) | C84: 0 | D84: 0 | E84: 0 | F84: 0 | G84: 4528.38 | H84: 45276.52
B85: =IF(ISBLANK($B$29),"",$B$29) -> Oran Park CDPs (M45834, BAB-414-000083, BAB-DAA-800083) | C85: 0 | D85: 48964.54 | E85: 11580.92 | F85: 0 | G85: 41544.09 | H85: 22576.24
B86: =IF(ISBLANK($B$30),"",$B$30) -> Orange CDP (M36039) | C86: 0 | D86: 41545.94 | E86: 935.12 | F86: 0 | G86: 0 | H86: 0
B87: =IF(ISBLANK($B$31),"",$B$31) -> Penrith - Emu Plains Primary Extension and PRS (M31321, BAB-414-000110, BAB-DAA-800110, BAB-414-000064, BAB-414-000017) | C87: 289447.69 | D87: 518184.79 | E87: 50698.21 | F87: 6235.98 | G87: 261809.42 | H87: 178789.35
B88: =IF(ISBLANK($B$32),"",$B$32) -> Raby Capacity Projects (M29935) | C88: 19174.72 | D88: 0 | E88: 0 | F88: 0 | G88: 0 | H88: 0
B89: =IF(ISBLANK($B$33),"",$B$33) -> Rouse HILL CDP's (BAB-414-000082, BAB-DAA-800082, M30043, BAB-DAA-000060-30-01-30, BAB-414-000140, BAB-DAA-800140) | C89: 0 | D89: 312.9 | E89: 109456.33 | F89: 7773.64 | G89: 7375.63 | H89: 70119.18
B90: =IF(ISBLANK($B$34),"",$B$34) -> Rutherford (1050-210 kPa) CDP (Largs) (M30265) | C90: 0 | D90: 16223.5 | E90: 18055.19 | F90: 0 | G90: 0 | H90: 0
B91: =IF(ISBLANK($B$35),"",$B$35) -> Rutherford (Paterson Road) CDP (BAB-414-000086, BAB-DAA-800086) | C91: 0 | D91: 0 | E91: 0 | F91: 0 | G91: 26154.06 | H91: 102574.24
B92: =IF(ISBLANK($B$36),"",$B$36) -> Southern Highlands CDPs (M28166) | C92: 22333.77 | D92: 0 | E92: 0 | F92: 0 | G92: 0 | H92: 0
B93: =IF(ISBLANK($B$37),"",$B$37) -> St Andrews to Ingleburn Section Interconnect (BAB-414-000103, BAB-DAA-800103) | C93: 0 | D93: 0 | E93: 0 | F93: 0 | G93: 45804.1 | H93: 173162.37
B94: =IF(ISBLANK($B$38),"",$B$38) -> Strathfield High Density Reinforcement Project (BAB-DAA-000070-30-01-21) | C94: 0 | D94: 0 | E94: 0 | F94: 0 | G94: 0 | H94: 0
B95: =IF(ISBLANK($B$39),"",$B$39) -> The Entrance CDP (M23028, BAB-414-000084, BAB-DAA-800084) | C95: 0 | D95: 53693.18 | E95: 5946.95 | F95: 0 | G95: 1866.91 | H95: 0
B96: =IF(ISBLANK($B$40),"",$B$40) -> Tullimbar CDP (M53824, BAB-414-000040) | C96: 0 | D96: 0 | E96: 8787.6 | F96: 95476.25 | G96: 20055.97 | H96: 0
B97: =IF(ISBLANK($B$41),"",$B$41) -> Various Capacity Driven SRS installations (BAB-414-000038, M43074, M30293, M30288, M30088, BAB-414-000118, M26372) | C97: 16986.2 | D97: 3806.48 | E97: 9821.28 | F97: 0 | G97: 18014.34 | H97: 0
B98: =IF(ISBLANK($B$42),"",$B$42) -> Wakehurst Parkway Secondary Main (M35619) | C98: 526632.35 | D98: 4571.35 | E98: 0 | F98: 0 | G98: 0 | H98: 0
B99: =IF(ISBLANK($B$43),"",$B$43) -> Wollongong North CDP (M32035, M30246) | C99: 25186.74 | D99: 2262.24 | E99: 0 | F99: 0 | G99: 0 | H99: 0
B100: =IF(ISBLANK($B$44),"",$B$44) -> Wollongong POTS/ Yahllah TRS / Albion Park (M27029, BAB-414-000016, BAB-DAA-800016) | C100: 277943.08 | D100: 871059.19 | E100: 390488.05 | F100: 26900.5 | G100: 12776.55 | H100: 0
B101: =IF(ISBLANK($B$45),"",$B$45) -> 
B102: =IF(ISBLANK($B$46),"",$B$46) -> 
B103: =IF(ISBLANK($B$47),"",$B$47) -> 
B104: =IF(ISBLANK($B$48),"",$B$48) -> 
B105: =IF(ISBLANK($B$49),"",$B$49) -> 
B106: =IF(ISBLANK($B$50),"",$B$50) -> 
B107: =IF(ISBLANK($B$51),"",$B$51) -> 
B108: =IF(ISBLANK($B$52),"",$B$52) -> 
B109: =IF(ISBLANK($B$53),"",$B$53) -> 
B110: =IF(ISBLANK($B$54),"",$B$54) -> 
B111: =IF(ISBLANK($B$55),"",$B$55) -> 
B112: =IF(ISBLANK($B$56),"",$B$56) -> 
B113: Aggregate of other projects with total expenditure of less than $500,000 | C113: 232658.78 | D113: 198823.83 | E113: 115241.67 | F113: 250648.11 | G113: 177165.53 | H113: 122799.48
B114: Total | C114: =SUM(C63:C113) -> 2336584.84 | D114: =SUM(D63:D113) -> 2352634.66 | E114: 1045094.606 | F114: 1015039.8 | G114: 1378530.99 | H114: 1243616.29 | I114: 0 | J114: 0
B116: B. DIRECT CONTRACTOR EXPENDITURE
C117: EXPENDITURE
C118: $0's, nominal
C119: =PRCP_y1 -> 2010-11 | D119: =PRCP_y2 -> 2011-12 | E119: =PRCP_y3 -> 2012-13 | F119: =PRCP_y4 -> 2013-14 | G119: =PRCP_y5 -> 2014-15 | H119: =CRCP_y1 -> 2015-16 | I119: =CRCP_y2 -> 2016-17 | J119: =CRCP_y3 -> 2017-18
B120: =IF(ISBLANK($B$7),"",$B$7) -> Alexandria to Darlington Interconnect (BAB-414-000058, BAB-DAA-800058, BAB-414-000120, BAB-DAA-800120, BAB-414-000062)
B121: =IF(ISBLANK($B$8),"",$B$8) -> Barangaroo Stage 1A (N70180, BAB-407-000009, BAB-CGG-800009)
B122: =IF(ISBLANK($B$9),"",$B$9) -> Bingara Gorge Gas Network (C407/00022, AAB-407-000038)
B123: =IF(ISBLANK($B$10),"",$B$10) -> Campsie CDP (BAB-DAA-000070-30-01-20)
B124: =IF(ISBLANK($B$11),"",$B$11) -> Caringbah South CDP (M35870)
B125: =IF(ISBLANK($B$12),"",$B$12) -> Dapto Koonawarra CDP (M31570)
B126: =IF(ISBLANK($B$13),"",$B$13) -> East Leppington Feeder Main (P68717, BAB-407-000008, BAB-CGG-800008)
B127: =IF(ISBLANK($B$14),"",$B$14) -> FSA and ASA ZNX Accruals 2015 (BAB-CGH-800005)
B128: =IF(ISBLANK($B$15),"",$B$15) -> Griffith CDP (BAB-414-000028, BAB-DAA-800028, M30146, BAB-414-000030, M28164)
B129: =IF(ISBLANK($B$16),"",$B$16) -> Horsley CDP (BAB-414-000032, BAB-DAA-800032, M31573, BAB-414-000107, BAB-DAA-800107)
B130: =IF(ISBLANK($B$17),"",$B$17) -> Huntlee Gas Network Extension (BAB-CGG-000003)
B131: =IF(ISBLANK($B$18),"",$B$18) -> Illawarra CDPs (M30243, M30249, BAB-DAA-800100, M32032, BAB-414-000122, BAB-DAA-800122, M29647, BAB-414-000108, BAB-DAA-800108, M32999, BAB-DAA-800104, BAB-414-000104, BAB-414-000106)
B132: =IF(ISBLANK($B$19),"",$B$19) -> Installation of Riverwood PRS - Capacity Development Project (M25610)
B133: =IF(ISBLANK($B$20),"",$B$20) -> Jemena Pemulwuy Depot project (BAB-414-000135)
B134: =IF(ISBLANK($B$21),"",$B$21) -> Kensington CDP's (M31073, M37077, M29897)
B135: =IF(ISBLANK($B$22),"",$B$22) -> Lane Cove PRS (M27524, BAB-414-000018)
B136: =IF(ISBLANK($B$23),"",$B$23) -> Loftus/Engadine CDPs (M30004, BAB-414-000105, BAB-DAA-800105)
B137: =IF(ISBLANK($B$24),"",$B$24) -> Marsden Park (BAB-407-000006, BAB-CGG-800006, BAB-407-000013, BAB-407-000018, BAB-CGG-800018)
B138: =IF(ISBLANK($B$25),"",$B$25) -> Newcastle & Central Coast CDPs (M35867, M48809, BAB-414-000027, BAB-DAA-800027, BAB-414-000123, M30253, M30235, BAB-414-000096, BAB-DAA-800096, BAB-DAA-000070-30-00-07, BAB-414-000015, BAB-DAA-000070-30-00-22, BAB-414-000137, BAB-DAA-800137)
B139: =IF(ISBLANK($B$26),"",$B$26) -> Newcastle Gas Storage Facility (A57692, BAB-402-000003, BAB-CGC-800003, AAB-402-000001)
B140: =IF(ISBLANK($B$27),"",$B$27) -> Newcastle MP1 CDP Part 2 (M31726)
B141: =IF(ISBLANK($B$28),"",$B$28) -> Northern Primary Main (BAB-414-000080, BAB-DAA-800080)
B142: =IF(ISBLANK($B$29),"",$B$29) -> Oran Park CDPs (M45834, BAB-414-000083, BAB-DAA-800083)
B143: =IF(ISBLANK($B$30),"",$B$30) -> Orange CDP (M36039)
B144: =IF(ISBLANK($B$31),"",$B$31) -> Penrith - Emu Plains Primary Extension and PRS (M31321, BAB-414-000110, BAB-DAA-800110, BAB-414-000064, BAB-414-000017)
B145: =IF(ISBLANK($B$32),"",$B$32) -> Raby Capacity Projects (M29935)
B146: =IF(ISBLANK($B$33),"",$B$33) -> Rouse HILL CDP's (BAB-414-000082, BAB-DAA-800082, M30043, BAB-DAA-000060-30-01-30, BAB-414-000140, BAB-DAA-800140)
B147: =IF(ISBLANK($B$34),"",$B$34) -> Rutherford (1050-210 kPa) CDP (Largs) (M30265)
B148: =IF(ISBLANK($B$35),"",$B$35) -> Rutherford (Paterson Road) CDP (BAB-414-000086, BAB-DAA-800086)
B149: =IF(ISBLANK($B$36),"",$B$36) -> Southern Highlands CDPs (M28166)
B150: =IF(ISBLANK($B$37),"",$B$37) -> St Andrews to Ingleburn Section Interconnect (BAB-414-000103, BAB-DAA-800103)
B151: =IF(ISBLANK($B$38),"",$B$38) -> Strathfield High Density Reinforcement Project (BAB-DAA-000070-30-01-21)
B152: =IF(ISBLANK($B$39),"",$B$39) -> The Entrance CDP (M23028, BAB-414-000084, BAB-DAA-800084)
B153: =IF(ISBLANK($B$40),"",$B$40) -> Tullimbar CDP (M53824, BAB-414-000040)
B154: =IF(ISBLANK($B$41),"",$B$41) -> Various Capacity Driven SRS installations (BAB-414-000038, M43074, M30293, M30288, M30088, BAB-414-000118, M26372)
B155: =IF(ISBLANK($B$42),"",$B$42) -> Wakehurst Parkway Secondary Main (M35619)
B156: =IF(ISBLANK($B$43),"",$B$43) -> Wollongong North CDP (M32035, M30246)
B157: =IF(ISBLANK($B$44),"",$B$44) -> Wollongong POTS/ Yahllah TRS / Albion Park (M27029, BAB-414-000016, BAB-DAA-800016)
B158: =IF(ISBLANK($B$45),"",$B$45) -> 
B159: =IF(ISBLANK($B$46),"",$B$46) -> 
B160: =IF(ISBLANK($B$47),"",$B$47) -> 
B161: =IF(ISBLANK($B$48),"",$B$48) -> 
B162: =IF(ISBLANK($B$49),"",$B$49) -> 
B163: =IF(ISBLANK($B$50),"",$B$50) -> 
B164: =IF(ISBLANK($B$51),"",$B$51) -> 
B165: =IF(ISBLANK($B$52),"",$B$52) -> 
B166: =IF(ISBLANK($B$53),"",$B$53) -> 
B167: =IF(ISBLANK($B$54),"",$B$54) -> 
B168: =IF(ISBLANK($B$55),"",$B$55) -> 
B169: =IF(ISBLANK($B$56),"",$B$56) -> 
B170: Aggregate of other projects with total expenditure of less than $500,000
B171: Total
B173: C. OTHER INTERNAL DIRECT EXPENDITURE
C174: EXPENDITURE
C175: $0's, nominal
C176: =PRCP_y1 -> 2010-11 | D176: =PRCP_y2 -> 2011-12 | E176: =PRCP_y3 -> 2012-13 | F176: =PRCP_y4 -> 2013-14 | G176: =PRCP_y5 -> 2014-15 | H176: =CRCP_y1 -> 2015-16 | I176: =CRCP_y2 -> 2016-17 | J176: =CRCP_y3 -> 2017-18
B177: =IF(ISBLANK($B$7),"",$B$7) -> Alexandria to Darlington Interconnect (BAB-414-000058, BAB-DAA-800058, BAB-414-000120, BAB-DAA-800120, BAB-414-000062) | C177: 0 | D177: 0 | E177: 0 | F177: 0 | G177: 4737.41 | H177: 303842.35
B178: =IF(ISBLANK($B$8),"",$B$8) -> Barangaroo Stage 1A (N70180, BAB-407-000009, BAB-CGG-800009) | C178: 0 | D178: 0 | E178: 0 | F178: 0 | G178: 92774.47 | H178: 26395.76
B179: =IF(ISBLANK($B$9),"",$B$9) -> Bingara Gorge Gas Network (C407/00022, AAB-407-000038) | C179: 243929.86 | D179: 90048.74 | E179: -6173.14 | F179: 0 | G179: 0 | H179: 0
B180: =IF(ISBLANK($B$10),"",$B$10) -> Campsie CDP (BAB-DAA-000070-30-01-20) | C180: 0 | D180: 0 | E180: 0 | F180: 0 | G180: 0 | H180: 0
B181: =IF(ISBLANK($B$11),"",$B$11) -> Caringbah South CDP (M35870) | C181: 0 | D181: 15536.38 | E181: 0 | F181: 0 | G181: 0 | H181: 0
B182: =IF(ISBLANK($B$12),"",$B$12) -> Dapto Koonawarra CDP (M31570) | C182: 0 | D182: 206782.71 | E182: -37515.9 | F182: 0 | G182: 0 | H182: 0
B183: =IF(ISBLANK($B$13),"",$B$13) -> East Leppington Feeder Main (P68717, BAB-407-000008, BAB-CGG-800008) | C183: 0 | D183: 0 | E183: 0 | F183: 0 | G183: 17622.85 | H183: 61816.43
B184: =IF(ISBLANK($B$14),"",$B$14) -> FSA and ASA ZNX Accruals 2015 (BAB-CGH-800005) | C184: 0 | D184: 0 | E184: 0 | F184: 0 | G184: 0 | H184: 0
B185: =IF(ISBLANK($B$15),"",$B$15) -> Griffith CDP (BAB-414-000028, BAB-DAA-800028, M30146, BAB-414-000030, M28164) | C185: 0 | D185: 249.74 | E185: 0 | F185: 0 | G185: 3490.06 | H185: 276340.83
B186: =IF(ISBLANK($B$16),"",$B$16) -> Horsley CDP (BAB-414-000032, BAB-DAA-800032, M31573, BAB-414-000107, BAB-DAA-800107) | C186: 149490 | D186: -3452.8 | E186: 0 | F186: 0 | G186: 796.54 | H186: 151871.09
B187: =IF(ISBLANK($B$17),"",$B$17) -> Huntlee Gas Network Extension (BAB-CGG-000003) | C187: 0 | D187: 0 | E187: 0 | F187: 0 | G187: 0 | H187: 17979.5
B188: =IF(ISBLANK($B$18),"",$B$18) -> Illawarra CDPs (M30243, M30249, BAB-DAA-800100, M32032, BAB-414-000122, BAB-DAA-800122, M29647, BAB-414-000108, BAB-DAA-800108, M32999, BAB-DAA-800104, BAB-414-000104, BAB-414-000106) | C188: 41556.4 | D188: -7170.63 | E188: 329.99 | F188: 0 | G188: 2031.12 | H188: 0
B189: =IF(ISBLANK($B$19),"",$B$19) -> Installation of Riverwood PRS - Capacity Development Project (M25610) | C189: 190940.89 | D189: 9622.19 | E189: 96.23 | F189: 0 | G189: 0 | H189: 0
B190: =IF(ISBLANK($B$20),"",$B$20) -> Jemena Pemulwuy Depot project (BAB-414-000135) | C190: 0 | D190: 0 | E190: 0 | F190: 0 | G190: 58.14 | H190: 0
B191: =IF(ISBLANK($B$21),"",$B$21) -> Kensington CDP's (M31073, M37077, M29897) | C191: 494290.72 | D191: 76050.84 | E191: -652.21 | F191: 0 | G191: 0 | H191: 0
B192: =IF(ISBLANK($B$22),"",$B$22) -> Lane Cove PRS (M27524, BAB-414-000018) | C192: 534431.18 | D192: 66188.56 | E192: 1175.64 | F192: -46735.09 | G192: 83.98 | H192: 0
B193: =IF(ISBLANK($B$23),"",$B$23) -> Loftus/Engadine CDPs (M30004, BAB-414-000105, BAB-DAA-800105) | C193: 212809.66 | D193: 0 | E193: 0 | F193: 0 | G193: 96.9 | H193: 0
B194: =IF(ISBLANK($B$24),"",$B$24) -> Marsden Park (BAB-407-000006, BAB-CGG-800006, BAB-407-000013, BAB-407-000018, BAB-CGG-800018) | C194: 0 | D194: 0 | E194: 0 | F194: 0 | G194: 66789.8 | H194: 130354.97
B195: =IF(ISBLANK($B$25),"",$B$25) -> Newcastle & Central Coast CDPs (M35867, M48809, BAB-414-000027, BAB-DAA-800027, BAB-414-000123, M30253, M30235, BAB-414-000096, BAB-DAA-800096, BAB-DAA-000070-30-00-07, BAB-414-000015, BAB-DAA-000070-30-00-22, BAB-414-000137, BAB-DAA-800137) | C195: 2309.14 | D195: 20105.77 | E195: 19594.5 | F195: 135545.18 | G195: -376.55 | H195: 0
B196: =IF(ISBLANK($B$26),"",$B$26) -> Newcastle Gas Storage Facility (A57692, BAB-402-000003, BAB-CGC-800003, AAB-402-000001) | C196: 0 | D196: 0 | E196: 52533.87 | F196: 1593834.32 | G196: 1099909.39 | H196: 1320.15
B197: =IF(ISBLANK($B$27),"",$B$27) -> Newcastle MP1 CDP Part 2 (M31726) | C197: 28325.52 | D197: 31462.88 | E197: 0.15 | F197: 0 | G197: 0 | H197: 0
B198: =IF(ISBLANK($B$28),"",$B$28) -> Northern Primary Main (BAB-414-000080, BAB-DAA-800080) | C198: 0 | D198: 0 | E198: 0 | F198: 0 | G198: 0 | H198: 141799.1
B199: =IF(ISBLANK($B$29),"",$B$29) -> Oran Park CDPs (M45834, BAB-414-000083, BAB-DAA-800083) | C199: 0 | D199: 545077.51 | E199: 6515.6 | F199: 0 | G199: 1856.79 | H199: 54.54
B200: =IF(ISBLANK($B$30),"",$B$30) -> Orange CDP (M36039) | C200: 0 | D200: 197269.81 | E200: 0 | F200: 0 | G200: 0 | H200: 0
B201: =IF(ISBLANK($B$31),"",$B$31) -> Penrith - Emu Plains Primary Extension and PRS (M31321, BAB-414-000110, BAB-DAA-800110, BAB-414-000064, BAB-414-000017) | C201: 397644.43 | D201: 212524.57 | E201: 2486.64 | F201: 211.38 | G201: 39466.28 | H201: 64325.92
B202: =IF(ISBLANK($B$32),"",$B$32) -> Raby Capacity Projects (M29935) | C202: 6519.81 | D202: -4342.5 | E202: 0 | F202: 0 | G202: 0 | H202: 0
B203: =IF(ISBLANK($B$33),"",$B$33) -> Rouse HILL CDP's (BAB-414-000082, BAB-DAA-800082, M30043, BAB-DAA-000060-30-01-30, BAB-414-000140, BAB-DAA-800140) | C203: 0 | D203: 20.65 | E203: 715485 | F203: 43378.18 | G203: 1145.19 | H203: 102899.69
B204: =IF(ISBLANK($B$34),"",$B$34) -> Rutherford (1050-210 kPa) CDP (Largs) (M30265) | C204: 0 | D204: 434.24 | E204: 117234.48 | F204: 0 | G204: 0 | H204: 0
B205: =IF(ISBLANK($B$35),"",$B$35) -> Rutherford (Paterson Road) CDP (BAB-414-000086, BAB-DAA-800086) | C205: 0 | D205: 0 | E205: 0 | F205: 0 | G205: 2195 | H205: 336.48
B206: =IF(ISBLANK($B$36),"",$B$36) -> Southern Highlands CDPs (M28166) | C206: 262382.3 | D206: 22445.1 | E206: 0 | F206: 0 | G206: 0 | H206: 0
B207: =IF(ISBLANK($B$37),"",$B$37) -> St Andrews to Ingleburn Section Interconnect (BAB-414-000103, BAB-DAA-800103) | C207: 0 | D207: 0 | E207: 0 | F207: 0 | G207: 2124.6 | H207: 119962.45
B208: =IF(ISBLANK($B$38),"",$B$38) -> Strathfield High Density Reinforcement Project (BAB-DAA-000070-30-01-21) | C208: 0 | D208: 0 | E208: 0 | F208: 0 | G208: 0 | H208: 0
B209: =IF(ISBLANK($B$39),"",$B$39) -> The Entrance CDP (M23028, BAB-414-000084, BAB-DAA-800084) | C209: 0 | D209: 753858.71 | E209: 45671.95 | F209: 0 | G209: 0 | H209: 0
B210: =IF(ISBLANK($B$40),"",$B$40) -> Tullimbar CDP (M53824, BAB-414-000040) | C210: 0 | D210: 0 | E210: 641.16 | F210: 284609.01 | G210: 653099.41 | H210: 0
B211: =IF(ISBLANK($B$41),"",$B$41) -> Various Capacity Driven SRS installations (BAB-414-000038, M43074, M30293, M30288, M30088, BAB-414-000118, M26372) | C211: 18079.08 | D211: 35997.58 | E211: 12600.64 | F211: 0 | G211: 7324.67 | H211: 0
B212: =IF(ISBLANK($B$42),"",$B$42) -> Wakehurst Parkway Secondary Main (M35619) | C212: 1438637.28 | D212: 1750.05 | E212: -1750.05 | F212: 0 | G212: 0 | H212: 0
B213: =IF(ISBLANK($B$43),"",$B$43) -> Wollongong North CDP (M32035, M30246) | C213: 83436.19 | D213: 84022.47 | E213: -1968 | F213: 0 | G213: 0 | H213: 0
B214: =IF(ISBLANK($B$44),"",$B$44) -> Wollongong POTS/ Yahllah TRS / Albion Park (M27029, BAB-414-000016, BAB-DAA-800016) | C214: 1445682.65 | D214: 215459.56 | E214: 230594.18 | F214: -473950.84 | G214: 2139.48 | H214: 0
B215: =IF(ISBLANK($B$45),"",$B$45) -> 
B216: =IF(ISBLANK($B$46),"",$B$46) -> 
... 517 more rows

Sheet E4. Meter replacement
B1: =IF(dms_MultiYear_ResponseFlag="Yes","REGULATORY REPORTING STATEMENT - HISTORICAL INFORMATION",INDEX(dms_Worksheet_List,MATCH(dms_Model,dms_Model_List))) -> REGULATORY REPORTING STATEMENT - HISTORICAL INFORMATION
B2: =INDEX(dms_TradingNameFull_List,MATCH(dms_TradingName,dms_TradingName_List)) -> Jemena Gas Networks (NSW) Ltd
B3: =CONCATENATE(CRY," to ",dms_MultiYear_FinalYear_Result) -> 2010-11 to 2017-18
B4: E4. METER REPLACEMENT
B7: E4.1 - CAPEX
B8: E4.1.1 - NEW METERS ACQUIRED
C9: EXPENDITURE
C10: $0's, nominal
C11: =PRCP_y1 -> 2010-11 | D11: =PRCP_y2 -> 2011-12 | E11: =PRCP_y3 -> 2012-13 | F11: =PRCP_y4 -> 2013-14 | G11: =PRCP_y5 -> 2014-15 | H11: =CRCP_y1 -> 2015-16 | I11: =CRCP_y2 -> 2016-17 | J11: =CRCP_y3 -> 2017-18
B12: A. DIRECT INTERNAL LABOUR EXPENDITURE
B13: Residential | C13: 0 | D13: 0 | E13: 0 | F13: 0 | G13: 0 | H13: 0
B14: Industrial and Commercial | C14: 0 | D14: 0 | E14: 0 | F14: 0 | G14: 0 | H14: 0
B15: Other | C15: 0 | D15: 0 | E15: 0 | F15: 0 | G15: 0 | H15: 0
B16: Total | C16: =SUM(C13:C15) -> 0 | D16: 0 | E16: 0 | F16: 0 | G16: 0 | H16: 0 | I16: 0 | J16: 0
B17: B. DIRECT CONTRACTOR EXPENDITURE
B18: Residential | C18: 0 | D18: 0 | E18: 0 | F18: 0 | G18: 0 | H18: 0 | I18: 0 | J18: 0
B19: Industrial and Commercial | C19: 0 | D19: 0 | E19: 0 | F19: 0 | G19: 0 | H19: 0 | I19: 0 | J19: 0
B20: Other | C20: 0 | D20: 0 | E20: 0 | F20: 0 | G20: 0 | H20: 0 | I20: 0 | J20: 0
B21: Total | C21: =SUM(C18:C20) -> 0 | D21: 0 | E21: 0 | F21: 0 | G21: 0 | H21: 0 | I21: 0 | J21: 0
B22: C. OTHER INTERNAL DIRECT EXPENDITURE
B23: Residential
B24: Industrial and Commercial
B25: Other
B26: Total
B27: D. TOTAL OVERHEAD EXPENDITURE
B28: Residential | C28: 287533.9712 | D28: 461407.0338 | E28: 524763.1411 | F28: 497145.9281 | G28: 163214.5978 | H28: 123839.9394
B29: Industrial and Commercial | C29: 217804.0077 | D29: 281410.388 | E29: 250752.5347 | F29: 214460.033 | G29: 72826.2038 | H29: 61118.19216
B30: Other | C30: 49626.4356 | D30: 98609.10954 | E30: 178456.1322 | F30: 406352.7088 | G30: 73649.57575 | H30: 57031.27206
B31: Total | C31: =SUM(C28:C30) -> 554964.4145 | D31: 841426.5313 | E31: 953971.808 | F31: 1117958.67 | G31: 309690.3773 | H31: 241989.4036 | I31: 0 | J31: 0
B32: E. RELATED PARTY MARGIN EXPENDITURE
B33: Residential | F33: 0 | G33: 0 | H33: 0 | I33: 0 | J33: 0
B34: Industrial and Commercial | F34: 0 | G34: 0 | H34: 0 | I34: 0 | J34: 0
B35: Other | F35: 0 | G35: 0 | H35: 0 | I35: 0 | J35: 0
B36: Total | F36: =SUM(F33:F35) -> 0 | G36: 0 | H36: 0 | I36: 0 | J36: 0
B37: F. CUSTOMER CONTRIBUTIONS included in the above
B38: Residential | C38: 0 | D38: 0 | E38: 0 | F38: 0 | G38: 0 | H38: 0
B39: Industrial and Commercial | C39: 0 | D39: 0 | E39: 0 | F39: 0 | G39: 0 | H39: 0
B40: Other | C40: 0 | D40: 0 | E40: 0 | F40: 0 | G40: 0 | H40: 0
B41: Total | C41: =SUM(C38:C40) -> 0 | D41: 0 | E41: 0 | F41: 0 | G41: 0 | H41: 0 | I41: 0 | J41: 0
B42: TOTAL | F42: =SUM(F16,F21,F26,F31,F36,F41) -> 1117958.67 | G42: 309690.3773 | H42: 241989.4036 | I42: 0 | J42: 0
B45: E4.1.2 - METERS REFURBISHED
C46: EXPENDITURE
C47: $0's, nominal
C48: =PRCP_y1 -> 2010-11 | D48: =PRCP_y2 -> 2011-12 | E48: =PRCP_y3 -> 2012-13 | F48: =PRCP_y4 -> 2013-14 | G48: =PRCP_y5 -> 2014-15 | H48: =CRCP_y1 -> 2015-16 | I48: =CRCP_y2 -> 2016-17 | J48: =CRCP_y3 -> 2017-18
B49: A. DIRECT INTERNAL LABOUR EXPENDITURE
B50: Residential | C50: 0 | D50: 0 | E50: 0 | F50: 0 | G50: 0 | H50: 0
B51: Industrial and Commercial | C51: 0 | D51: 0 | E51: 0 | F51: 0 | G51: 0 | H51: 0
B52: Other | C52: 0 | D52: 0 | E52: 0 | F52: 0 | G52: 0 | H52: 0
B53: Total | C53: =SUM(C50:C52) -> 0 | D53: 0 | E53: 0 | F53: 0 | G53: 0 | H53: 0 | I53: 0 | J53: 0
B54: B. DIRECT CONTRACTOR EXPENDITURE
B55: Residential | C55: 0 | D55: 0 | E55: 0 | F55: 0 | G55: 0 | H55: 0 | I55: 0 | J55: 0
B56: Industrial and Commercial | C56: 0 | D56: 0 | E56: 0 | F56: 0 | G56: 0 | H56: 0 | I56: 0 | J56: 0
B57: Other | C57: 0 | D57: 0 | E57: 0 | F57: 0 | G57: 0 | H57: 0 | I57: 0 | J57: 0
B58: Total | C58: =SUM(C55:C57) -> 0 | D58: 0 | E58: 0 | F58: 0 | G58: 0 | H58: 0 | I58: 0 | J58: 0
B59: C. OTHER INTERNAL DIRECT EXPENDITURE
B60: Residential | C60: 0 | D60: 0 | E60: 0 | F60: 0 | G60: 0 | H60: 0
B61: Industrial and Commercial
B62: Other | C62: 0 | D62: 0 | E62: 0 | F62: 0 | G62: 0 | H62: 0
B63: Total | C63: =SUM(C60:C62) -> 0 | D63: 0 | E63: 0 | F63: 0 | G63: 0 | H63: 0 | I63: 0 | J63: 0
B64: D. TOTAL OVERHEAD EXPENDITURE
B65: Residential | C65: 0 | D65: 0 | E65: 0 | F65: 0 | G65: 0 | H65: 0
B66: Industrial and Commercial | C66: 56583.62637 | D66: 77010.43432 | E66: 97131.15432 | F66: 113012.7649 | G66: 38979.66143 | H66: 25416.89962
B67: Other | C67: 0 | D67: 0 | E67: 0 | F67: 0 | G67: 0 | H67: 0
B68: Total | C68: =SUM(C65:C67) -> 56583.62637 | D68: 77010.43432 | E68: 97131.15432 | F68: 113012.7649 | G68: 38979.66143 | H68: 25416.89962 | I68: 0 | J68: 0
B69: E. RELATED PARTY MARGIN EXPENDITURE
B70: Residential | F70: 0 | G70: 0 | H70: 0 | I70: 0 | J70: 0
B71: Industrial and Commercial | F71: 0 | G71: 0 | H71: 0 | I71: 0 | J71: 0
B72: Other | F72: 0 | G72: 0 | H72: 0 | I72: 0 | J72: 0
B73: Total | F73: =SUM(F70:F72) -> 0 | G73: 0 | H73: 0 | I73: 0 | J73: 0
B74: F. CUSTOMER CONTRIBUTIONS included in the above
B75: Residential | C75: 0 | D75: 0 | E75: 0 | F75: 0 | G75: 0 | H75: 0
B76: Industrial and Commercial | C76: 0 | D76: 0 | E76: 0 | F76: 0 | G76: 0 | H76: 0
B77: Other | C77: 0 | D77: 0 | E77: 0 | F77: 0 | G77: 0 | H77: 0
B78: Total | C78: =SUM(C75:C77) -> 0 | D78: 0 | E78: 0 | F78: 0 | G78: 0 | H78: 0 | I78: 0 | J78: 0
B79: TOTAL | F79: =SUM(F53,F58,F63,F68,F73,F78) -> 113012.7649 | G79: 38979.66143 | H79: 25416.89962 | I79: 0 | J79: 0
B82: E4.1.3 - METER INSTALLATION
C83: EXPENDITURE
C84: $0's, nominal
C85: =PRCP_y1 -> 2010-11 | D85: =PRCP_y2 -> 2011-12 | E85: =PRCP_y3 -> 2012-13 | F85: =PRCP_y4 -> 2013-14 | G85: =PRCP_y5 -> 2014-15 | H85: =CRCP_y1 -> 2015-16 | I85: =CRCP_y2 -> 2016-17 | J85: =CRCP_y3 -> 2017-18
B86: A. DIRECT INTERNAL LABOUR EXPENDITURE
B87: Residential | C87: 1843299.888 | D87: 1903748.651 | E87: 1344715.71 | F87: 1209532.1 | G87: 1407376.73 | H87: 1352979.79
B88: Industrial and Commercial | C88: 1462510.61 | D88: 1887178.878 | E88: 1376631.51 | F88: 1065828.94 | G88: 855142.09 | H88: 931185.37
B89: Other | C89: 22656.4193 | D89: 168947.1209 | E89: 101429.41 | F89: 161345.71 | G89: 141639.52 | H89: 142433.23
B90: Total | C90: =SUM(C87:C89) -> 3328466.917 | D90: 3959874.65 | E90: 2822776.63 | F90: 2436706.75 | G90: 2404158.34 | H90: 2426598.39 | I90: 0 | J90: 0
B91: B. DIRECT CONTRACTOR EXPENDITURE
B92: Residential
B93: Industrial and Commercial
B94: Other
B95: Total
B96: C. OTHER INTERNAL DIRECT EXPENDITURE
B97: Residential | C97: 0 | D97: 0 | E97: 0 | F97: 0 | G97: 0 | H97: 0
B98: Industrial and Commercial | C98: 0 | D98: 0 | E98: 0 | F98: 0 | G98: 0 | H98: 0
B99: Other | C99: 0 | D99: 0 | E99: 0 | F99: 0 | G99: 0 | H99: 0
B100: Total | C100: =SUM(C97:C99) -> 0 | D100: 0 | E100: 0 | F100: 0 | G100: 0 | H100: 0 | I100: 0 | J100: 0
B101: D. TOTAL OVERHEAD EXPENDITURE
B102: Residential | C102: 356374.7861 | D102: 454239.7486 | E102: 524523.4413 | F102: 418843.9593 | G102: 827984.9255 | H102: 870565.2513
B103: Industrial and Commercial | C103: 270358.7921 | D103: 417286.8746 | E103: 448470.1956 | F103: 341108.7285 | G103: 229338.7158 | H103: 550411.1697
B104: Other | C104: 16136.51788 | D104: 127627.953 | E104: 250669.5966 | F104: 517277.381 | G104: 619129.4497 | H104: 430332.8306
B105: Total | C105: =SUM(C102:C104) -> 642870.0961 | D105: 999154.5762 | E105: 1223663.233 | F105: 1277230.069 | G105: 1676453.091 | H105: 1851309.252 | I105: 0 | J105: 0
B106: E. RELATED PARTY MARGIN EXPENDITURE
B107: Residential
B108: Industrial and Commercial
B109: Other
B110: Total
B111: F. CUSTOMER CONTRIBUTIONS included in the above
B112: Residential | C112: 0 | D112: 0 | E112: 0 | F112: 0 | G112: 0 | H112: 0
B113: Industrial and Commercial | C113: 0 | D113: 0 | E113: 0 | F113: 0 | G113: 0 | H113: 0
B114: Other | C114: 0 | D114: 0 | E114: 0 | F114: 0 | G114: 0 | H114: 0
B115: Total | C115: =SUM(C112:C114) -> 0 | D115: 0 | E115: 0 | F115: 0 | G115: 0 | H115: 0 | I115: 0 | J115: 0
B116: TOTAL
B119: E4.1.4 - OTHER METER REPLACEMENT CAPEX
C120: EXPENDITURE
C121: $0's, nominal
C122: =PRCP_y1 -> 2010-11 | D122: =PRCP_y2 -> 2011-12 | E122: =PRCP_y3 -> 2012-13 | F122: =PRCP_y4 -> 2013-14 | G122: =PRCP_y5 -> 2014-15 | H122: =CRCP_y1 -> 2015-16 | I122: =CRCP_y2 -> 2016-17 | J122: =CRCP_y3 -> 2017-18
B123: A. DIRECT INTERNAL LABOUR EXPENDITURE
B124: Residential | C124: 0 | D124: 0 | E124: 0 | F124: 0 | G124: 0 | H124: 0
B125: Industrial and Commercial | C125: 0 | D125: 0 | E125: 0 | F125: 0 | G125: 0 | H125: 0
B126: Other | C126: 725867.2591 | D126: 784636.1925 | E126: 587826.89 | F126: 712364.99 | G126: 605805.71 | H126: 512322.6
B127: Total | C127: =SUM(C124:C126) -> 725867.2591 | D127: =SUM(D124:D126) -> 784636.1925 | E127: 587826.89 | F127: 712364.99 | G127: 605805.71 | H127: 512322.6 | I127: 0 | J127: 0
B128: B. DIRECT CONTRACTOR EXPENDITURE
B129: Residential | C129: 0 | D129: 0 | E129: 0 | F129: 0 | G129: 0 | H129: 0 | I129: 0 | J129: 0
B130: Industrial and Commercial | C130: 0 | D130: 0 | E130: 0 | F130: 0 | G130: 0 | H130: 0 | I130: 0 | J130: 0
B131: Other
B132: Total
B133: C. OTHER INTERNAL DIRECT EXPENDITURE
B134: Residential
B135: Industrial and Commercial
B136: Other
B137: Total
B138: D. TOTAL OVERHEAD EXPENDITURE
B139: Residential | C139: 80128.16539 | D139: 36026.49782 | E139: 248061.4276 | F139: -6295.82742 | G139: 89893.49675 | H139: 43440.78929
B140: Industrial and Commercial | C140: 194243.5918 | D140: 183217.1771 | E140: 396137.4293 | F140: 348257.7744 | G140: 478938.989 | H140: 799164.7285
B141: Other | C141: 370892.3984 | D141: 555053.3877 | E141: 692334.1977 | F141: 936629.5302 | G141: 931946.1345 | H141: 535675.9974
B142: Total | C142: =SUM(C139:C141) -> 645264.1556 | D142: =SUM(D139:D141) -> 774297.0626 | E142: 1336533.055 | F142: 1278591.477 | G142: 1500778.62 | H142: 1378281.515 | I142: 0 | J142: 0
B143: E. RELATED PARTY MARGIN EXPENDITURE
B144: Residential
B145: Industrial and Commercial
B146: Other
B147: Total
B148: F. CUSTOMER CONTRIBUTIONS included in the above
B149: Residential | C149: 0 | D149: 0 | E149: 0 | F149: 0 | G149: 0 | H149: 0
B150: Industrial and Commercial | C150: 0 | D150: 0 | E150: 0 | F150: 0 | G150: 0 | H150: 0
B151: Other | C151: 0 | D151: 0 | E151: 0 | F151: 0 | G151: 0 | H151: 0
B152: Total | C152: =SUM(C149:C151) -> 0 | D152: =SUM(D149:D151) -> 0 | E152: 0 | F152: 0 | G152: 0 | H152: 0 | I152: 0 | J152: 0
B153: TOTAL
B157: E4.2 - VOLUMES
B158: E4.2.1 - NUMBER OF NEW METERS ACQUIRED
C159: VOLUMES
C160: 0's
C161: =PRCP_y1 -> 2010-11 | D161: =PRCP_y2 -> 2011-12 | E161: =PRCP_y3 -> 2012-13 | F161: =PRCP_y4 -> 2013-14 | G161: =PRCP_y5 -> 2014-15 | H161: =CRCP_y1 -> 2015-16 | I161: =CRCP_y2 -> 2016-17 | J161: =CRCP_y3 -> 2017-18
B162: Residential
B163: Industrial and commercial
B164: Other meters
B165: Total
B167: E4.2.2 - NUMBER OF METERS REFURBISHED
C168: VOLUMES
C169: 0's
C170: =PRCP_y1 -> 2010-11 | D170: =PRCP_y2 -> 2011-12 | E170: =PRCP_y3 -> 2012-13 | F170: =PRCP_y4 -> 2013-14 | G170: =PRCP_y5 -> 2014-15 | H170: =CRCP_y1 -> 2015-16 | I170: =CRCP_y2 -> 2016-17 | J170: =CRCP_y3 -> 2017-18
B171: A. REFURBISHABLE METERS REMOVED
B172: Residential | C172: 0 | D172: 0 | E172: 0 | F172: 0 | G172: 0 | H172: 0
B173: Industrial and commercial
B174: Other meters | C174: 0 | D174: 0 | E174: 0 | F174: 0 | G174: 0 | H174: 0
B175: Total
B176: B. METERS DECOMMISSIONED
B177: Residential | C177: 0 | D177: 0 | E177: 0 | F177: 0 | G177: 0 | H177: 0
B178: Industrial and commercial
B179: Other meters | C179: 0 | D179: 0 | E179: 0 | F179: 0 | G179: 0 | H179: 0
B180: Total
B181: TOTAL
B184: E4.2.3 - NUMBER OF METERS INSTALLED
C185: VOLUMES
C186: 0's
C187: =PRCP_y1 -> 2010-11 | D187: =PRCP_y2 -> 2011-12 | E187: =PRCP_y3 -> 2012-13 | F187: =PRCP_y4 -> 2013-14 | G187: =PRCP_y5 -> 2014-15 | H187: =CRCP_y1 -> 2015-16 | I187: =CRCP_y2 -> 2016-17 | J187: =CRCP_y3 -> 2017-18
B188: Residential
B189: Industrial and commercial
B190: Other meters
B191: Total
B195: E4.2.4 - OTHER METER REPLACEMENT VOLUMES
C196: VOLUMES
C197: 0's
C198: =PRCP_y1 -> 2010-11 | D198: =PRCP_y2 -> 2011-12 | E198: =PRCP_y3 -> 2012-13 | F198: =PRCP_y4 -> 2013-14 | G198: =PRCP_y5 -> 2014-15 | H198: =CRCP_y1 -> 2015-16 | I198: =CRCP_y2 -> 2016-17 | J198: =CRCP_y3 -> 2017-18
B199: Residential
B200: Industrial and commercial
B201: Other meters
B202: Total | C202: =SUM(C199:C201) -> 0 | D202: =SUM(D199:D201) -> 0 | E202: 0 | F202: 0 | G202: 0 | H202: 0 | I202: 0 | J202: 0

Sheet E5. New Connections
B1: =IF(dms_MultiYear_ResponseFlag="Yes","REGULATORY REPORTING STATEMENT - HISTORICAL INFORMATION",INDEX(dms_Worksheet_List,MATCH(dms_Model,dms_Model_List))) -> REGULATORY REPORTING STATEMENT - HISTORICAL INFORMATION
B2: =INDEX(dms_TradingNameFull_List,MATCH(dms_TradingName,dms_TradingName_List)) -> Jemena Gas Networks (NSW) Ltd
B3: =CONCATENATE(CRY," to ",dms_MultiYear_FinalYear_Result) -> 2010-11 to 2017-18
B4: E5. NEW CONNECTIONS
B7: E5.1 - CAPEX
B8: E5.1.1 - CAPEX - BY CONNECTION TYPE
B9: A. DIRECT INTERNAL LABOUR EXPENDITURE
D10: EXPENDITURE
D11: $0's, nominal
D12: =PRCP_y1 -> 2010-11 | E12: =PRCP_y2 -> 2011-12 | F12: =PRCP_y3 -> 2012-13 | G12: =PRCP_y4 -> 2013-14 | H12: =PRCP_y5 -> 2014-15 | I12: =CRCP_y1 -> 2015-16 | J12: =CRCP_y2 -> 2016-17 | K12: =CRCP_y3 -> 2017-18
B13: (i) ELECTRICITY TO GAS
B14: Distribution mains | D14: 98467.47795 | E14: 364088.29 | F14: 452302.0054 | G14: 67028.32 | H14: 111216.43 | I14: 209948.96
B15: Inlet service pipes | D15: 111210.6837 | E15: 817108.21 | F15: 964818.82 | G15: 679774.8 | H15: 636434.1 | I15: 758554.58
B16: Meters | D16: 708.4235279 | E16: 21754.46 | F16: 265715.1197 | G16: 26955.89 | H16: 18558.44 | I16: 43259.33
C17: Total | D17: =SUM(D14:D16) -> 210386.5852 | E17: 1202950.96 | F17: 1682835.945 | G17: 773759.01 | H17: 766208.97 | I17: 1011762.87 | J17: 0 | K17: 0
B18: (ii) NEW HOMES
B19: Distribution mains | D19: 130687.6361 | E19: 289172.92 | F19: 1011029.698 | G19: 1343192.75 | H19: 302982.46 | I19: 151584.16
B20: Inlet service pipes | D20: 67367.92117 | E20: 240117.09 | F20: 318742.14 | G20: 1245781.61 | H20: 333052.3 | I20: 747829.71
B21: Meters | D21: 681.1457686 | E21: 124413.08 | F21: 232186.1547 | G21: 3873.9 | H21: 2281.51 | I21: 47589.87
C22: Total | D22: =SUM(D19:D21) -> 198736.7031 | E22: 653703.09 | F22: 1561957.993 | G22: 2592848.26 | H22: 638316.27 | I22: 947003.74 | J22: 0 | K22: 0
B23: (iii) NEW MEDIUM DENSITY / HIGH RISE
B24: Distribution mains | D24: 923.0595723 | E24: 19767.92 | F24: 90989.49585 | G24: 27863.29 | H24: 18384.48 | I24: 77262.3
B25: Inlet service pipes | D25: 30840.0882 | E25: 27132.02 | F25: 29587.07 | G25: 5635.04 | H25: 32917.58 | I25: 121940.44
B26: Meters | D26: 56620.85655 | E26: 639256.16 | F26: 637115.4529 | G26: 1700049.64 | H26: 11617.1 | I26: 238212.89
C27: Total | D27: =SUM(D24:D26) -> 88384.00433 | E27: 686156.1 | F27: 757692.0188 | G27: 1733547.97 | H27: 62919.16 | I27: 437415.63 | J27: 0 | K27: 0
B28: (iv) INDUSTRIAL & COMMERCIAL TARIFF
B29: Distribution mains | D29: 7136.11393 | E29: 46661.47 | F29: 114917.4854 | G29: 44642.6 | H29: 58573.51 | I29: 45660.02
B30: Inlet service pipes | D30: 29796.59522 | E30: 63757.26 | F30: 28922.42 | G30: 15037.8 | H30: 42495.06 | I30: 130232.37
B31: Meters | D31: 25883.9 | E31: 316935.27 | F31: 411275.1927 | G31: 79926.37 | H31: 18951.7 | I31: 44484.55
C32: Total | D32: =SUM(D29:D31) -> 62816.60915 | E32: 427354 | F32: 555115.098 | G32: 139606.77 | H32: 120020.27 | I32: 220376.94 | J32: 0 | K32: 0
B33: (v) INDUSTRIAL & COMMERCIAL CONTRACT
B34: Distribution mains | D34: 65681.81 | E34: 1774.49 | F34: 38682.25964 | G34: 79013.56 | H34: 88734.56 | I34: 130581.23
B35: Inlet service pipes | D35: 51640.6 | E35: 55461.84 | F35: 99847.96 | G35: 196035.02 | H35: 181394.29 | I35: 86542.46
B36: Meters | D36: 3625.89 | E36: 5652.35 | F36: 13139.98 | G36: 7103.17 | H36: 32520.89 | I36: 49296.73
C37: Total | D37: =SUM(D34:D36) -> 120948.3 | E37: 62888.68 | F37: 151670.1996 | G37: 282151.75 | H37: 302649.74 | I37: 266420.42 | J37: 0 | K37: 0
C38: TOTAL | D38: =SUM(D37,D32,D27,D22,D17) -> 681272.2017 | E38: 3033052.83 | F38: 4709271.254 | G38: 5521913.76 | H38: 1890114.41 | I38: 2882979.6 | J38: 0 | K38: 0
B40: B. DIRECT CONTRACTOR EXPENDITURE
D41: EXPENDITURE
D42: $0's, nominal
D43: =PRCP_y1 -> 2010-11 | E43: =PRCP_y2 -> 2011-12 | F43: =PRCP_y3 -> 2012-13 | G43: =PRCP_y4 -> 2013-14 | H43: =PRCP_y5 -> 2014-15 | I43: =CRCP_y1 -> 2015-16 | J43: =CRCP_y2 -> 2016-17 | K43: =CRCP_y3 -> 2017-18
B44: (i) ELECTRICITY TO GAS
B45: Distribution mains
B46: Inlet service pipes
B47: Meters
C48: Total
B49: (ii) NEW HOMES
B50: Distribution mains
B51: Inlet service pipes
B52: Meters
C53: Total
B54: (iii) NEW MEDIUM DENSITY / HIGH RISE
B55: Distribution mains
B56: Inlet service pipes
B57: Meters
C58: Total
B59: (iv) INDUSTRIAL & COMMERCIAL TARIFF
B60: Distribution mains
B61: Inlet service pipes
B62: Meters
C63: Total
B64: (v) INDUSTRIAL & COMMERCIAL CONTRACT
B65: Distribution mains
B66: Inlet service pipes
B67: Meters
C68: Total
C69: TOTAL
B71: C. OTHER INTERNAL DIRECT EXPENDITURE
D72: EXPENDITURE
D73: $0's, nominal
D74: =PRCP_y1 -> 2010-11 | E74: =PRCP_y2 -> 2011-12 | F74: =PRCP_y3 -> 2012-13 | G74: =PRCP_y4 -> 2013-14 | H74: =PRCP_y5 -> 2014-15 | I74: =CRCP_y1 -> 2015-16 | J74: =CRCP_y2 -> 2016-17 | K74: =CRCP_y3 -> 2017-18
B75: (i) ELECTRICITY TO GAS
B76: Distribution mains | D76: 312667.8759 | E76: 200825.47 | F76: 196878.04 | G76: 166273.73 | H76: 276185.12 | I76: 61009.45
B77: Inlet service pipes | D77: 2018556.25 | E77: 1838799.23 | F77: 1678286.15 | G77: 705249.62 | H77: 606375.41 | I77: 40807.61
B78: Meters | D78: 962945.7946 | E78: 1037688.09 | F78: 1071549.3 | G78: 984557.61 | H78: 1023944.8 | I78: 817070.34
C79: Total | D79: =SUM(D76:D78) -> 3294169.92 | E79: 3077312.79 | F79: 2946713.49 | G79: 1856080.96 | H79: 1906505.33 | I79: 918887.4 | J79: 0 | K79: 0
B80: (ii) NEW HOMES
B81: Distribution mains | D81: 163506.3288 | E81: 332956.49 | F81: 318414.27 | G81: -297145.08 | H81: 490425.07 | I81: 179935.41
B82: Inlet service pipes | D82: 931066.4743 | E82: 866245.45 | F82: 798685.86 | G82: 801160.77 | H82: 669903.27 | I82: 201772.08
B83: Meters | D83: 1204865.13 | E83: 1510078.2 | F83: 1911236.35 | G83: 1770883.94 | H83: 2298879.92 | I83: 2339933.72
C84: Total | D84: =SUM(D81:D83) -> 2299437.933 | E84: 2709280.14 | F84: 3028336.48 | G84: 2274899.63 | H84: 3459208.26 | I84: 2721641.21 | J84: 0 | K84: 0
B85: (iii) NEW MEDIUM DENSITY / HIGH RISE
B86: Distribution mains | D86: 64981.32773 | E86: 130841.5 | F86: 128599.95 | G86: 23555.25 | H86: 43314.2 | I86: 25075.24
B87: Inlet service pipes | D87: 242029.8142 | E87: 157937.82 | F87: 205085.95 | G87: -55278.25 | H87: 78039.48 | I87: 8516.57
B88: Meters | D88: 3584823.266 | E88: 2920140.19 | F88: 4879026.11 | G88: 7660061.86 | H88: 9811701.35 | I88: 7770205.05
C89: Total | D89: =SUM(D86:D88) -> 3891834.407 | E89: 3208919.51 | F89: 5212712.01 | G89: 7628338.86 | H89: 9933055.03 | I89: 7803796.86 | J89: 0 | K89: 0
B90: (iv) INDUSTRIAL & COMMERCIAL TARIFF
B91: Distribution mains | D91: 115641.8468 | E91: 232161.58 | F91: 348167.56 | G91: 37540.85 | H91: 100693.85 | I91: 244622.82
B92: Inlet service pipes | D92: 339482.2685 | E92: 278400.81 | F92: 335355.4 | G92: -78110.12 | H92: 89560.09 | I92: 17685.65
B93: Meters | D93: 1475618.35 | E93: 1321285.92 | F93: 1397018.93 | G93: 1888409.18 | H93: 1402686.11 | I93: 1851494.63
C94: Total | D94: =SUM(D91:D93) -> 1930742.465 | E94: 1831848.31 | F94: 2080541.89 | G94: 1847839.91 | H94: 1592940.05 | I94: 2113803.1 | J94: 0 | K94: 0
B95: (v) INDUSTRIAL & COMMERCIAL CONTRACT
B96: Distribution mains | D96: 133626.77 | E96: 22447.45 | F96: 108314.25 | G96: 137947.65 | H96: 125516.24 | I96: 126749.12
B97: Inlet service pipes | D97: 35263.51 | E97: 45596.4 | F97: 133403.88 | G97: 178374.48 | H97: 45761.34 | I97: 78675.62
B98: Meters | D98: 176401.61 | E98: 297571.19 | F98: 123287.04 | G98: 522600.79 | H98: 655334.84 | I98: 623912.65
C99: Total | D99: =SUM(D96:D98) -> 345291.89 | E99: 365615.04 | F99: 365005.17 | G99: 838922.92 | H99: 826612.42 | I99: 829337.39 | J99: 0 | K99: 0
C100: TOTAL | D100: =SUM(D99,D94,D89,D84,D79) -> 11761476.62 | E100: 11192975.79 | F100: 13633309.04 | G100: 14446082.28 | H100: 17718321.09 | I100: 14387465.96 | J100: 0 | K100: 0
B102: D. TOTAL OVERHEAD EXPENDITURE
D103: EXPENDITURE
D104: $0's, nominal
D105: =PRCP_y1 -> 2010-11 | E105: =PRCP_y2 -> 2011-12 | F105: =PRCP_y3 -> 2012-13 | G105: =PRCP_y4 -> 2013-14 | H105: =PRCP_y5 -> 2014-15 | I105: =CRCP_y1 -> 2015-16 | J105: =CRCP_y2 -> 2016-17 | K105: =CRCP_y3 -> 2017-18
B106: (i) ELECTRICITY TO GAS
B107: Distribution mains | D107: 341406.9088 | E107: 512370.0657 | F107: 753451.6281 | G107: 901014.8 | H107: 827435.79 | I107: 598668.6712
B108: Inlet service pipes | D108: 1782148.039 | E108: 2544849.065 | F108: 3215120.933 | G108: 3175537.42 | H108: 2718782.96 | I108: 2644914.684
B109: Meters | D109: 163476.0063 | E109: 227172.291 | F109: 437258.4552 | G109: 382508.06 | H109: 398978.24 | I109: 373070.4015
C110: Total | D110: =SUM(D107:D109) -> 2287030.955 | E110: 3284391.422 | F110: 4405831.016 | G110: 4459060.28 | H110: 3945196.99 | I110: 3616653.756 | J110: 0 | K110: 0
B111: (ii) NEW HOMES
B112: Distribution mains | D112: 714999.598 | E112: 1421955.729 | F112: 2121589.64 | G112: 1992367.75 | H112: 2748856.2 | I112: 2754338.769
B113: Inlet service pipes | D113: 1670290.729 | E113: 2197652.902 | F113: 3218302.189 | G113: 4284808.66 | H113: 4955189.21 | I113: 5694579.639
B114: Meters | D114: 211144.2078 | E114: 313499.9613 | F114: 646400.4503 | G114: 539420.53 | H114: 676836.2 | I114: 772647.146
C115: Total | D115: =SUM(D112:D114) -> 2596434.535 | E115: 3933108.593 | F115: 5986292.279 | G115: 6816596.94 | H115: 8380881.61 | I115: 9221565.554 | J115: 0 | K115: 0
B116: (iii) NEW MEDIUM DENSITY / HIGH RISE
B117: Distribution mains | D117: 128076.5112 | E117: 185943.2285 | F117: 210882.9566 | G117: 344329.23 | H117: 359457.04 | I117: 511431.906
B118: Inlet service pipes | D118: 182252.8045 | E118: 187773.3005 | F118: 292277.4277 | G118: 309059.05 | H118: 383476.83 | I118: 495995.32
B119: Meters | D119: 744722.4927 | E119: 846110.5014 | F119: 1757668.7 | G119: 2283693.34 | H119: 3039578.02 | I119: 3110221.7
C120: Total | D120: =SUM(D117:D119) -> 1055051.808 | E120: 1219827.031 | F120: 2260829.085 | G120: 2937081.62 | H120: 3782511.89 | I120: 4117648.926 | J120: 0 | K120: 0
B121: (iv) INDUSTRIAL & COMMERCIAL TARIFF
B122: Distribution mains | D122: 113708.7212 | E122: 225821.6418 | F122: 382734.1733 | G122: 337938.59 | H122: 419864.13 | I122: 216508.5709
B123: Inlet service pipes | D123: 205638.0079 | E123: 257247.4936 | F123: 355605.5324 | G123: 387955.77 | H123: 409283.61 | I123: 382600.55
B124: Meters | D124: 248042.8244 | E124: 325553.9559 | F124: 515654.2997 | G124: 604910.16 | H124: 458338.54 | I124: 632320.09
C125: Total | D125: =SUM(D122:D124) -> 567389.5534 | E125: 808623.0914 | F125: 1253994.005 | G125: 1330804.52 | H125: 1287486.28 | I125: 1231429.211 | J125: 0 | K125: 0
B126: (v) INDUSTRIAL & COMMERCIAL CONTRACT
B127: Distribution mains | D127: 116714.5249 | E127: 50757.32511 | F127: 156405.9699 | G127: 259675.99 | H127: 236235.59 | I127: 207541.8308
B128: Inlet service pipes | D128: 98105.85456 | E128: 85981.22653 | F128: 259666.8644 | G128: 256293.43 | H128: 343848.93 | I128: 102560.88
B129: Meters | D129: 27263.90507 | E129: 54210.31608 | F129: 42171.17384 | G129: 185138.15 | H129: 172915.19 | I129: 177180.23
C130: Total | D130: =SUM(D127:D129) -> 242084.2845 | E130: 190948.8677 | F130: 458244.0082 | G130: 701107.57 | H130: 752999.71 | I130: 487282.9408 | J130: 0 | K130: 0
C131: TOTAL | D131: =SUM(D130,D125,D120,D115,D110) -> 6747991.136 | E131: 9436899.004 | F131: 14365190.39 | G131: 16244650.93 | H131: 18149076.48 | I131: 18674580.39 | J131: 0 | K131: 0
B133: E. RELATED PARTY MARGIN EXPENDITURE
D134: EXPENDITURE
D135: $0's, nominal
D136: =PRCP_y1 -> 2010-11 | E136: =PRCP_y2 -> 2011-12 | F136: =PRCP_y3 -> 2012-13 | G136: =PRCP_y4 -> 2013-14 | H136: =PRCP_y5 -> 2014-15 | I136: =CRCP_y1 -> 2015-16 | J136: =CRCP_y2 -> 2016-17 | K136: =CRCP_y3 -> 2017-18
B137: (i) ELECTRICITY TO GAS
B138: Distribution mains
B139: Inlet service pipes
B140: Meters
C141: Total
B142: (ii) NEW HOMES
B143: Distribution mains
B144: Inlet service pipes
B145: Meters
C146: Total
B147: (iIi) NEW MEDIUM DENSITY / HIGH RISE
B148: Distribution mains
B149: Inlet service pipes
B150: Meters
C151: Total
B152: (iv) INDUSTRIAL & COMMERCIAL TARIFF
B153: Distribution mains
B154: Inlet service pipes
B155: Meters
C156: Total
B157: (v) INDUSTRIAL & COMMERCIAL CONTRACT
B158: Distribution mains
B159: Inlet service pipes
B160: Meters
C161: Total
C162: TOTAL
B164: F. CUSTOMER CONTRIBUTIONS included in the above
D165: EXPENDITURE
D166: $0's, nominal
D167: =PRCP_y1 -> 2010-11 | E167: =PRCP_y2 -> 2011-12 | F167: =PRCP_y3 -> 2012-13 | G167: =PRCP_y4 -> 2013-14 | H167: =PRCP_y5 -> 2014-15 | I167: =CRCP_y1 -> 2015-16 | J167: =CRCP_y2 -> 2016-17 | K167: =CRCP_y3 -> 2017-18
B168: (i) ELECTRICITY TO GAS
B169: Distribution mains | D169: 0 | E169: 0 | F169: 0 | G169: 0 | H169: 0 | I169: 0
B170: Inlet service pipes | D170: 554458.04 | E170: 636238.35 | F170: 687057.58 | G170: 529187.96 | H170: 416655.79 | I170: 250245.4
B171: Meters | D171: 0 | E171: 0 | F171: 0 | G171: 0 | H171: 0 | I171: 0
C172: Total | D172: =SUM(D169:D171) -> 554458.04 | E172: 636238.35 | F172: 687057.58 | G172: 529187.96 | H172: 416655.79 | I172: 250245.4 | J172: 0 | K172: 0
B173: (ii) NEW HOMES
B174: Distribution mains | D174: 0 | E174: 0 | F174: 0 | G174: 0 | H174: 0 | I174: 0
B175: Inlet service pipes | D175: 779013.28 | E175: 386877.08 | F175: 462299.79 | G175: 436825.14 | H175: 575352.28 | I175: 422573.2
B176: Meters | D176: 0 | E176: 0 | F176: 0 | G176: 0 | H176: 0 | I176: 0
C177: Total | D177: =SUM(D174:D176) -> 779013.28 | E177: 386877.08 | F177: 462299.79 | G177: 436825.14 | H177: 575352.28 | I177: 422573.2 | J177: 0 | K177: 0
B178: (iii) NEW MEDIUM DENSITY / HIGH RISE
B179: Distribution mains | D179: 0 | E179: 0 | F179: 0 | G179: 0 | H179: 0 | I179: 0
B180: Inlet service pipes | D180: 287811.52 | E180: 296213.15 | F180: 85875.45 | G180: 160834.98 | H180: 120984.95 | I180: 811184.16
B181: Meters | D181: 0 | E181: 0 | F181: 0 | G181: 0 | H181: 0 | I181: 0
C182: Total | D182: =SUM(D179:D181) -> 287811.52 | E182: 296213.15 | F182: 85875.45 | G182: 160834.98 | H182: 120984.95 | I182: 811184.16 | J182: 0 | K182: 0
B183: (iv) INDUSTRIAL & COMMERCIAL TARIFF
B184: Distribution mains | D184: 0 | E184: 0 | F184: 0 | G184: 0 | H184: 0 | I184: 0
B185: Inlet service pipes | D185: 814150.08 | E185: 854897.27 | F185: 1189057.46 | G185: 464673.58 | H185: 504100.82 | I185: 672269
B186: Meters | D186: 0 | E186: 0 | F186: 0 | G186: 0 | H186: 0 | I186: 0
C187: Total | D187: =SUM(D184:D186) -> 814150.08 | E187: 854897.27 | F187: 1189057.46 | G187: 464673.58 | H187: 504100.82 | I187: 672269 | J187: 0 | K187: 0
B188: (v) INDUSTRIAL & COMMERCIAL CONTRACT
B189: Distribution mains
B190: Inlet service pipes
B191: Meters
C192: Total
C193: TOTAL
B196: E5.1.2 - UNIT RATES - PER CONNECTION - BY CONNECTION TYPE
D197: RATES PER CONNECTION
D198: $0's
C199: Units | D199: =PRCP_y1 -> 2010-11 | E199: =PRCP_y2 -> 2011-12 | F199: =PRCP_y3 -> 2012-13 | G199: =PRCP_y4 -> 2013-14 | H199: =PRCP_y5 -> 2014-15 | I199: =CRCP_y1 -> 2015-16 | J199: =CRCP_y2 -> 2016-17 | K199: =CRCP_y3 -> 2017-18
B200: A. ELECTRICITY TO GAS
B201: Distribution mains | C201: per metre per connection
B202: Inlet service pipes | C202: per service per connection
B203: Meters | C203: number per connection
B204: B. NEW HOMES
B205: Distribution mains | C205: per metre per connection
B206: Inlet service pipes | C206: per service per connection
B207: Meters | C207: number per connection
B208: C. NEW MEDIUM DENSITY / HIGH RISE
B209: Distribution mains | C209: per metre per connection
... 66 more rows

Sheet E6. Non-network
B1: =IF(dms_MultiYear_ResponseFlag="Yes","REGULATORY REPORTING STATEMENT - HISTORICAL INFORMATION",INDEX(dms_Worksheet_List,MATCH(dms_Model,dms_Model_List))) -> REGULATORY REPORTING STATEMENT - HISTORICAL INFORMATION
B2: =INDEX(dms_TradingNameFull_List,MATCH(dms_TradingName,dms_TradingName_List)) -> Jemena Gas Networks (NSW) Ltd
B3: =CONCATENATE(CRY," to ",dms_MultiYear_FinalYear_Result) -> 2010-11 to 2017-18
B4: E6. NON-NETWORK
B6: E6.5 - TELEMETRY
B8: Please list all projects here:
B9: ELECTRONIC GAUGE PROJECT
B10: Non Dist Fixed Plant FPLT - SCADA Items
B11: SCADA
B25: E6.5.1 - CAPEX BY PROJECT
B26: A. DIRECT INTERNAL LABOUR EXPENDITURE
C27: EXPENDITURE
C28: $0's, nominal
C29: =PRCP_y1 -> 2010-11 | D29: =PRCP_y2 -> 2011-12 | E29: =PRCP_y3 -> 2012-13 | F29: =PRCP_y4 -> 2013-14 | G29: =PRCP_y5 -> 2014-15 | H29: =CRCP_y1 -> 2015-16 | I29: =CRCP_y2 -> 2016-17 | J29: =CRCP_y3 -> 2017-18
B30: =IF(ISBLANK(dms_E65_Projects_01),"",dms_E65_Projects_01) -> ELECTRONIC GAUGE PROJECT | C30: 0 | D30: 0 | E30: 0 | F30: 0 | G30: 0 | H30: 0
B31: =IF(ISBLANK(dms_E65_Projects_02),"",dms_E65_Projects_02) -> Non Dist Fixed Plant FPLT - SCADA Items | C31: 0 | D31: 0 | E31: 249866.49 | F31: 0 | G31: 0 | H31: 0
B32: =IF(ISBLANK(dms_E65_Projects_03),"",dms_E65_Projects_03) -> SCADA | C32: 0 | D32: 0 | E32: 0 | F32: 0 | G32: 0 | H32: 0
B33: =IF(ISBLANK(dms_E65_Projects_04),"",dms_E65_Projects_04) -> 
B34: =IF(ISBLANK(dms_E65_Projects_05),"",dms_E65_Projects_05) -> 
B35: =IF(ISBLANK(dms_E65_Projects_06),"",dms_E65_Projects_06) -> 
B36: =IF(ISBLANK(dms_E65_Projects_07),"",dms_E65_Projects_07) -> 
B37: =IF(ISBLANK(dms_E65_Projects_08),"",dms_E65_Projects_08) -> 
B38: =IF(ISBLANK(dms_E65_Projects_09),"",dms_E65_Projects_09) -> 
B39: =IF(ISBLANK(dms_E65_Projects_10),"",dms_E65_Projects_10) -> 
B40: =IF(ISBLANK(dms_E65_Projects_11),"",dms_E65_Projects_11) -> 
B41: =IF(ISBLANK(dms_E65_Projects_12),"",dms_E65_Projects_12) -> 
B42: =IF(ISBLANK(dms_E65_Projects_13),"",dms_E65_Projects_13) -> 
B43: =IF(ISBLANK(dms_E65_Projects_14),"",dms_E65_Projects_14) -> 
B44: =IF(ISBLANK(dms_E65_Projects_15),"",dms_E65_Projects_15) -> 
B45: Aggregate of other projects with total expenditure of less than $500,000 | C45: 0 | D45: 0 | E45: 0 | F45: 54091.23 | G45: 70859.93 | H45: 0
B46: Total | C46: =SUM(C30:C45) -> 0 | D46: =SUM(D30:D45) -> 0 | E46: 249866.49 | F46: 54091.23 | G46: 70859.93 | H46: 0 | I46: 0 | J46: 0
B48: B. DIRECT CONTRACTOR EXPENDITURE
C49: EXPENDITURE
C50: $0's, nominal
C51: =PRCP_y1 -> 2010-11 | D51: =PRCP_y2 -> 2011-12 | E51: =PRCP_y3 -> 2012-13 | F51: =PRCP_y4 -> 2013-14 | G51: =PRCP_y5 -> 2014-15 | H51: =CRCP_y1 -> 2015-16 | I51: =CRCP_y2 -> 2016-17 | J51: =CRCP_y3 -> 2017-18
B52: =IF(ISBLANK(dms_E65_Projects_01),"",dms_E65_Projects_01) -> ELECTRONIC GAUGE PROJECT | C52: 0 | D52: 0 | E52: 0 | F52: 0 | G52: 0 | H52: 0
B53: =IF(ISBLANK(dms_E65_Projects_02),"",dms_E65_Projects_02) -> Non Dist Fixed Plant FPLT - SCADA Items | C53: 0 | D53: 0 | E53: 34 | F53: 0 | G53: 0 | H53: 0
B54: =IF(ISBLANK(dms_E65_Projects_03),"",dms_E65_Projects_03) -> SCADA | C54: 0 | D54: 0 | E54: 0 | F54: 0 | G54: 0 | H54: 0
B55: =IF(ISBLANK(dms_E65_Projects_04),"",dms_E65_Projects_04) -> 
B56: =IF(ISBLANK(dms_E65_Projects_05),"",dms_E65_Projects_05) -> 
B57: =IF(ISBLANK(dms_E65_Projects_06),"",dms_E65_Projects_06) -> 
B58: =IF(ISBLANK(dms_E65_Projects_07),"",dms_E65_Projects_07) -> 
B59: =IF(ISBLANK(dms_E65_Projects_08),"",dms_E65_Projects_08) -> 
B60: =IF(ISBLANK(dms_E65_Projects_09),"",dms_E65_Projects_09) -> 
B61: =IF(ISBLANK(dms_E65_Projects_10),"",dms_E65_Projects_10) -> 
B62: =IF(ISBLANK(dms_E65_Projects_11),"",dms_E65_Projects_11) -> 
B63: =IF(ISBLANK(dms_E65_Projects_12),"",dms_E65_Projects_12) -> 
B64: =IF(ISBLANK(dms_E65_Projects_13),"",dms_E65_Projects_13) -> 
B65: =IF(ISBLANK(dms_E65_Projects_14),"",dms_E65_Projects_14) -> 
B66: =IF(ISBLANK(dms_E65_Projects_15),"",dms_E65_Projects_15) -> 
B67: Aggregate of other projects with total expenditure of less than $500,000 | C67: 0 | D67: 0 | E67: 0 | F67: 3016.5 | G67: 0 | H67: 0
B68: Total | C68: =SUM(C52:C67) -> 0 | D68: =SUM(D52:D67) -> 0 | E68: 34 | F68: 3016.5 | G68: 0 | H68: 0 | I68: 0 | J68: 0
B70: C. OTHER INTERNAL DIRECT EXPENDITURE
C71: EXPENDITURE
C72: $0's, nominal
C73: =PRCP_y1 -> 2010-11 | D73: =PRCP_y2 -> 2011-12 | E73: =PRCP_y3 -> 2012-13 | F73: =PRCP_y4 -> 2013-14 | G73: =PRCP_y5 -> 2014-15 | H73: =CRCP_y1 -> 2015-16 | I73: =CRCP_y2 -> 2016-17 | J73: =CRCP_y3 -> 2017-18
B74: =IF(ISBLANK(dms_E65_Projects_01),"",dms_E65_Projects_01) -> ELECTRONIC GAUGE PROJECT | C74: 0 | D74: 0 | E74: 0 | F74: 0 | G74: 0 | H74: 666000
B75: =IF(ISBLANK(dms_E65_Projects_02),"",dms_E65_Projects_02) -> Non Dist Fixed Plant FPLT - SCADA Items | C75: 0 | D75: 0 | E75: 750040.62 | F75: 0 | G75: 0 | H75: 0
B76: =IF(ISBLANK(dms_E65_Projects_03),"",dms_E65_Projects_03) -> SCADA | C76: 270886.7 | D76: 183759.63 | E76: 0 | F76: 0 | G76: 0 | H76: 0
B77: =IF(ISBLANK(dms_E65_Projects_04),"",dms_E65_Projects_04) -> 
B78: =IF(ISBLANK(dms_E65_Projects_05),"",dms_E65_Projects_05) -> 
B79: =IF(ISBLANK(dms_E65_Projects_06),"",dms_E65_Projects_06) -> 
B80: =IF(ISBLANK(dms_E65_Projects_07),"",dms_E65_Projects_07) -> 
B81: =IF(ISBLANK(dms_E65_Projects_08),"",dms_E65_Projects_08) -> 
B82: =IF(ISBLANK(dms_E65_Projects_09),"",dms_E65_Projects_09) -> 
B83: =IF(ISBLANK(dms_E65_Projects_10),"",dms_E65_Projects_10) -> 
B84: =IF(ISBLANK(dms_E65_Projects_11),"",dms_E65_Projects_11) -> 
B85: =IF(ISBLANK(dms_E65_Projects_12),"",dms_E65_Projects_12) -> 
B86: =IF(ISBLANK(dms_E65_Projects_13),"",dms_E65_Projects_13) -> 
B87: =IF(ISBLANK(dms_E65_Projects_14),"",dms_E65_Projects_14) -> 
B88: =IF(ISBLANK(dms_E65_Projects_15),"",dms_E65_Projects_15) -> 
B89: Aggregate of other projects with total expenditure of less than $500,000 | C89: 0 | D89: 0 | E89: 0 | F89: 208721.99 | G89: 253970.64 | H89: 128202.3
B90: Total | C90: =SUM(C74:C89) -> 270886.7 | D90: =SUM(D74:D89) -> 183759.63 | E90: 750040.62 | F90: 208721.99 | G90: 253970.64 | H90: 794202.3 | I90: 0 | J90: 0
B92: D. TOTAL OVERHEAD EXPENDITURE
C93: EXPENDITURE
C94: $0's, nominal
C95: =PRCP_y1 -> 2010-11 | D95: =PRCP_y2 -> 2011-12 | E95: =PRCP_y3 -> 2012-13 | F95: =PRCP_y4 -> 2013-14 | G95: =PRCP_y5 -> 2014-15 | H95: =CRCP_y1 -> 2015-16 | I95: =CRCP_y2 -> 2016-17 | J95: =CRCP_y3 -> 2017-18
B96: =IF(ISBLANK(dms_E65_Projects_01),"",dms_E65_Projects_01) -> ELECTRONIC GAUGE PROJECT | C96: 0 | D96: 0 | E96: 0 | F96: 0 | G96: 0 | H96: 0
B97: =IF(ISBLANK(dms_E65_Projects_02),"",dms_E65_Projects_02) -> Non Dist Fixed Plant FPLT - SCADA Items | C97: 0 | D97: 0 | E97: 0 | F97: 0 | G97: 0 | H97: 0
B98: =IF(ISBLANK(dms_E65_Projects_03),"",dms_E65_Projects_03) -> SCADA | C98: 0 | D98: 0 | E98: 0 | F98: 0 | G98: 0 | H98: 0
B99: =IF(ISBLANK(dms_E65_Projects_04),"",dms_E65_Projects_04) -> 
B100: =IF(ISBLANK(dms_E65_Projects_05),"",dms_E65_Projects_05) -> 
B101: =IF(ISBLANK(dms_E65_Projects_06),"",dms_E65_Projects_06) -> 
B102: =IF(ISBLANK(dms_E65_Projects_07),"",dms_E65_Projects_07) -> 
B103: =IF(ISBLANK(dms_E65_Projects_08),"",dms_E65_Projects_08) -> 
B104: =IF(ISBLANK(dms_E65_Projects_09),"",dms_E65_Projects_09) -> 
B105: =IF(ISBLANK(dms_E65_Projects_10),"",dms_E65_Projects_10) -> 
B106: =IF(ISBLANK(dms_E65_Projects_11),"",dms_E65_Projects_11) -> 
B107: =IF(ISBLANK(dms_E65_Projects_12),"",dms_E65_Projects_12) -> 
B108: =IF(ISBLANK(dms_E65_Projects_13),"",dms_E65_Projects_13) -> 
B109: =IF(ISBLANK(dms_E65_Projects_14),"",dms_E65_Projects_14) -> 
B110: =IF(ISBLANK(dms_E65_Projects_15),"",dms_E65_Projects_15) -> 
B111: Aggregate of other projects with total expenditure of less than $500,000 | C111: 0 | D111: 0 | E111: 0 | F111: 0 | G111: 0 | H111: 0
B112: Total | C112: =SUM(C96:C111) -> 0 | D112: =SUM(D96:D111) -> 0 | E112: 0 | F112: 0 | G112: 0 | H112: 0 | I112: 0 | J112: 0
B114: E. RELATED PARTY MARGIN EXPENDITURE
C115: EXPENDITURE
C116: $0's, nominal
C117: =PRCP_y1 -> 2010-11 | D117: =PRCP_y2 -> 2011-12 | E117: =PRCP_y3 -> 2012-13 | F117: =PRCP_y4 -> 2013-14 | G117: =PRCP_y5 -> 2014-15 | H117: =CRCP_y1 -> 2015-16 | I117: =CRCP_y2 -> 2016-17 | J117: =CRCP_y3 -> 2017-18
B118: =IF(ISBLANK(dms_E65_Projects_01),"",dms_E65_Projects_01) -> ELECTRONIC GAUGE PROJECT | C118: 0 | D118: 0 | E118: 0 | F118: 0 | G118: 0 | H118: 0
B119: =IF(ISBLANK(dms_E65_Projects_02),"",dms_E65_Projects_02) -> Non Dist Fixed Plant FPLT - SCADA Items | C119: 0 | D119: 0 | E119: 0 | F119: 0 | G119: 0 | H119: 0
B120: =IF(ISBLANK(dms_E65_Projects_03),"",dms_E65_Projects_03) -> SCADA | C120: 16065.77 | D120: 0 | E120: 0 | F120: 0 | G120: 0 | H120: 0
B121: =IF(ISBLANK(dms_E65_Projects_04),"",dms_E65_Projects_04) -> 
B122: =IF(ISBLANK(dms_E65_Projects_05),"",dms_E65_Projects_05) -> 
B123: =IF(ISBLANK(dms_E65_Projects_06),"",dms_E65_Projects_06) -> 
B124: =IF(ISBLANK(dms_E65_Projects_07),"",dms_E65_Projects_07) -> 
B125: =IF(ISBLANK(dms_E65_Projects_08),"",dms_E65_Projects_08) -> 
B126: =IF(ISBLANK(dms_E65_Projects_09),"",dms_E65_Projects_09) -> 
B127: =IF(ISBLANK(dms_E65_Projects_10),"",dms_E65_Projects_10) -> 
B128: =IF(ISBLANK(dms_E65_Projects_11),"",dms_E65_Projects_11) -> 
B129: =IF(ISBLANK(dms_E65_Projects_12),"",dms_E65_Projects_12) -> 
B130: =IF(ISBLANK(dms_E65_Projects_13),"",dms_E65_Projects_13) -> 
B131: =IF(ISBLANK(dms_E65_Projects_14),"",dms_E65_Projects_14) -> 
B132: =IF(ISBLANK(dms_E65_Projects_15),"",dms_E65_Projects_15) -> 
B133: Aggregate of other projects with total expenditure of less than $500,000 | C133: 0 | D133: 0 | E133: 0 | F133: 0 | G133: 0 | H133: 0
B134: Total | C134: =SUM(C118:C133) -> 16065.77 | D134: =SUM(D118:D133) -> 0 | E134: 0 | F134: 0 | G134: 0 | H134: 0 | I134: 0 | J134: 0
B136: F. CUSTOMER CONTRIBUTIONS included in the above
C137: EXPENDITURE
C138: $0's, nominal
C139: =PRCP_y1 -> 2010-11 | D139: =PRCP_y2 -> 2011-12 | E139: =PRCP_y3 -> 2012-13 | F139: =PRCP_y4 -> 2013-14 | G139: =PRCP_y5 -> 2014-15 | H139: =CRCP_y1 -> 2015-16 | I139: =CRCP_y2 -> 2016-17 | J139: =CRCP_y3 -> 2017-18
B140: =IF(ISBLANK(dms_E65_Projects_01),"",dms_E65_Projects_01) -> ELECTRONIC GAUGE PROJECT | C140: 0 | D140: 0 | E140: 0 | F140: 0 | G140: 0 | H140: 0
B141: =IF(ISBLANK(dms_E65_Projects_02),"",dms_E65_Projects_02) -> Non Dist Fixed Plant FPLT - SCADA Items | C141: 0 | D141: 0 | E141: 0 | F141: 0 | G141: 0 | H141: 0
B142: =IF(ISBLANK(dms_E65_Projects_03),"",dms_E65_Projects_03) -> SCADA | C142: 0 | D142: 0 | E142: 0 | F142: 0 | G142: 0 | H142: 0
B143: =IF(ISBLANK(dms_E65_Projects_04),"",dms_E65_Projects_04) -> 
B144: =IF(ISBLANK(dms_E65_Projects_05),"",dms_E65_Projects_05) -> 
B145: =IF(ISBLANK(dms_E65_Projects_06),"",dms_E65_Projects_06) -> 
B146: =IF(ISBLANK(dms_E65_Projects_07),"",dms_E65_Projects_07) -> 
B147: =IF(ISBLANK(dms_E65_Projects_08),"",dms_E65_Projects_08) -> 
B148: =IF(ISBLANK(dms_E65_Projects_09),"",dms_E65_Projects_09) -> 
B149: =IF(ISBLANK(dms_E65_Projects_10),"",dms_E65_Projects_10) -> 
B150: =IF(ISBLANK(dms_E65_Projects_11),"",dms_E65_Projects_11) -> 
B151: =IF(ISBLANK(dms_E65_Projects_12),"",dms_E65_Projects_12) -> 
B152: =IF(ISBLANK(dms_E65_Projects_13),"",dms_E65_Projects_13) -> 
B153: =IF(ISBLANK(dms_E65_Projects_14),"",dms_E65_Projects_14) -> 
B154: =IF(ISBLANK(dms_E65_Projects_15),"",dms_E65_Projects_15) -> 
B155: Aggregate of other projects with total expenditure of less than $500,000 | C155: 0 | D155: 0 | E155: 0 | F155: 0 | G155: 0 | H155: 0
B156: Total | C156: =SUM(C140:C155) -> 0 | D156: =SUM(D140:D155) -> 0 | E156: 0 | F156: 0 | G156: 0 | H156: 0 | I156: 0 | J156: 0

Sheet E10. Overheads
B1: =IF(dms_MultiYear_ResponseFlag="Yes","REGULATORY REPORTING STATEMENT - HISTORICAL INFORMATION",INDEX(dms_Worksheet_List,MATCH(dms_Model,dms_Model_List))) -> REGULATORY REPORTING STATEMENT - HISTORICAL INFORMATION
B2: =INDEX(dms_TradingNameFull_List,MATCH(dms_TradingName,dms_TradingName_List)) -> Jemena Gas Networks (NSW) Ltd
B3: =CONCATENATE(CRY," to ",dms_MultiYear_FinalYear_Result) -> 2010-11 to 2017-18
B4: E10. OVERHEADS
B6: E10.1 - NETWORK
C7: EXPENDITURE
C8: $0's, nominal
C9: =PRCP_y1 -> 2010-11 | D9: =PRCP_y2 -> 2011-12 | E9: =PRCP_y3 -> 2012-13 | F9: =PRCP_y4 -> 2013-14 | G9: =PRCP_y5 -> 2014-15 | H9: =CRCP_y1 -> 2015-16 | I9: =CRCP_y2 -> 2016-17 | J9: =CRCP_y3 -> 2017-18
B10: E10.1.1 - OPEX
B11: Reference services | C11: 51976659.96 | D11: 52639385.35 | E11: 54677166.65 | F11: 59754907.28 | G11: 60350623.23 | H11: 66505101.37
B12: Non-reference services | C12: 0 | D12: 0 | E12: 0 | F12: 0 | G12: 0 | H12: 0
B13: Total | C13: =SUM(C11:C12) -> 51976659.96 | D13: =SUM(D11:D12) -> 52639385.35 | E13: 54677166.65 | F13: 59754907.28 | G13: 60350623.23 | H13: 66505101.37 | I13: 0 | J13: 0
B14: E10.1.2 - CAPEX
B15: Reference services | C15: 15499363.99 | D15: 21031502.92 | E15: 21239399.51 | F15: 22817463.41 | G15: 14318159.68 | H15: 14951337.81
B16: Non-reference services | C16: 0 | D16: 0 | E16: 0 | F16: 0 | G16: 0 | H16: 0
B17: Total | C17: =SUM(C15:C16) -> 15499363.99 | D17: =SUM(D15:D16) -> 21031502.92 | E17: 21239399.51 | F17: 22817463.41 | G17: 14318159.68 | H17: 14951337.81 | I17: 0 | J17: 0
B21: E10.2 - CORPORATE
C22: EXPENDITURE
C23: $0's, nominal
C24: =PRCP_y1 -> 2010-11 | D24: =PRCP_y2 -> 2011-12 | E24: =PRCP_y3 -> 2012-13 | F24: =PRCP_y4 -> 2013-14 | G24: =PRCP_y5 -> 2014-15 | H24: =CRCP_y1 -> 2015-16 | I24: =CRCP_y2 -> 2016-17 | J24: =CRCP_y3 -> 2017-18
B25: E10.2.1 - OPEX
B26: Reference services | C26: 28322353.37 | D26: 29429033.51 | E26: 31993007.22 | F26: 28376018.27 | G26: 29248396.49 | H26: 24260276.75
B27: Non-reference services | C27: 0 | D27: 0 | E27: 0 | F27: 0 | G27: 0 | H27: 0
B28: Total | C28: =SUM(C26:C27) -> 28322353.37 | D28: =SUM(D26:D27) -> 29429033.51 | E28: 31993007.22 | F28: 28376018.27 | G28: 29248396.49 | H28: 24260276.75 | I28: 0 | J28: 0
B29: E10.2.2 - CAPEX
B30: Reference services | C30: 303361.8996 | D30: 472452.7052 | E30: 1606297.182 | F30: 1905006.246 | G30: 13814249.93 | H30: 15186698.67
B31: Non-reference services | C31: 0 | D31: 0 | E31: 0 | F31: 0 | G31: 0 | H31: 0
B32: Total | C32: =SUM(C30:C31) -> 303361.8996 | D32: =SUM(D30:D31) -> 472452.7052 | E32: 1606297.182 | F32: 1905006.246 | G32: 13814249.93 | H32: 15186698.67 | I32: 0 | J32: 0

Sheet E11. Labour
B1: =IF(dms_MultiYear_ResponseFlag="Yes","REGULATORY REPORTING STATEMENT - HISTORICAL INFORMATION",INDEX(dms_Worksheet_List,MATCH(dms_Model,dms_Model_List))) -> REGULATORY REPORTING STATEMENT - HISTORICAL INFORMATION
B2: =INDEX(dms_TradingNameFull_List,MATCH(dms_TradingName,dms_TradingName_List)) -> Jemena Gas Networks (NSW) Ltd
B3: =CONCATENATE(CRY," to ",dms_MultiYear_FinalYear_Result) -> 2010-11 to 2017-18
B4: E11. LABOUR
B6: Tables E11.1 and E11.2 deliberately omitted.
B8: E11.3 - LABOUR / NON-LABOUR EXPENDITURE SPLIT
C9: EXPENDITURE
C10: $0's, nominal
C11: =PRCP_y1 -> 2010-11 | D11: =PRCP_y2 -> 2011-12 | E11: =PRCP_y3 -> 2012-13 | F11: =PRCP_y4 -> 2013-14 | G11: =PRCP_y5 -> 2014-15 | H11: =CRCP_y1 -> 2015-16 | I11: =CRCP_y2 -> 2016-17 | J11: =CRCP_y3 -> 2017-18
B12: E11.3.1 - OPEX
B13: In-house labour expenditure | C13: 75994234.47 | D13: 77168805.28 | E13: 78800815.7 | F13: 73935076.72 | G13: 84346930.46 | H13: 88954190.79 | I13: 88162115.48 | J13: 91065352.43
B14: Labour expenditure outsourced to related parties | C14: 1734248.814 | D14: 1907280.927 | E14: 2041437.592 | F14: 2317597.254 | G14: 1958900.89 | H14: 4913511.19 | I14: 5320317.66 | J14: 7742906.145
B15: Labour expenditure outsourced to unrelated parties | C15: 0 | D15: 0 | E15: 0 | F15: 0 | G15: 0 | H15: 510 | I15: 0 | J15: 0
B16: Controllable non-labour expenditure | C16: 55688892.57 | D16: 55859847.84 | E16: 63414585.34 | F16: 70425382.96 | G16: 64482263.55 | H16: 63701933.64 | I16: 76885319.11 | J16: 70153776.41
B17: Uncontrollable non-labour expenditure | C17: 3388623.15 | D17: 5346944.08 | E17: 12379747.83 | F17: 11199386.89 | G17: 4325062.35 | H17: 5927750.83 | I17: 5320911.95 | J17: 4999405.98
B18: Total | C18: =SUM(C13:C17) -> 136805999 | D18: =SUM(D13:D17) -> 140282878.1 | E18: 156636586.5 | F18: 157877443.8 | G18: 155113157.2 | H18: 163497896.5 | I18: 175688664.2 | J18: 173961441
B19: E11.3.2 - CAPEX
B20: In-house labour expenditure | C20: 20245585.78 | D20: 20926439.06 | E20: 17843147.92 | F20: 17844000 | G20: 21501598.29 | H20: 27091152.92 | I20: 28221823.71 | J20: 31590738.41
B21: Labour expenditure outsourced to related parties | C21: 1354941.244 | D21: 1427599.252 | E21: 1090090.443 | F21: 1300561.584 | G21: 1807047.72 | H21: 3205044.24 | I21: 3140612.19 | J21: 3021657.804
B22: Labour expenditure outsourced to unrelated parties | C22: 0 | D22: 0 | E22: 0 | F22: 0 | G22: 0 | H22: 0 | I22: 0 | J22: 0
B23: Controllable non-labour expenditure | C23: 144726967 | D23: 152494044.7 | E23: 116306817.5 | F23: 138918094.4 | G23: 194825394.9 | H23: 176216035.4 | I23: 152217482.9 | J23: 156406516.8
B24: Uncontrollable non-labour expenditure | C24: 0 | D24: 0 | E24: 0 | F24: 0 | G24: 0 | H24: 0 | I24: 0 | J24: 0
B25: Total | C25: =SUM(C20:C24) -> 166327494 | D25: 174848083 | E25: 135240055.9 | F25: 158062656 | G25: 218134040.9 | H25: 206512232.6 | I25: 183579918.8 | J25: 191018913

Sheet E12. ICT
B1: =IF(dms_MultiYear_ResponseFlag="Yes","REGULATORY REPORTING STATEMENT - HISTORICAL INFORMATION",INDEX(dms_Worksheet_List,MATCH(dms_Model,dms_Model_List))) -> REGULATORY REPORTING STATEMENT - HISTORICAL INFORMATION
B2: =INDEX(dms_TradingNameFull_List,MATCH(dms_TradingName,dms_TradingName_List)) -> Jemena Gas Networks (NSW) Ltd
B3: =CONCATENATE(CRY," to ",dms_MultiYear_FinalYear_Result) -> 2010-11 to 2017-18
B4: E12. INFORMATION AND COMMUNICATION TECHNOLOGY
B6: Please list all projects here:
B7: Asset Management & Geospatial Systems
B8: Corporate Systems/SAP ERP Incl. GASS+ Migration
B9: Customer Experience
B10: Cyber-Security
B11: Data Warehouse & Reporting
B12: Document & Content Management
B13: Enabling Platforms & Networking
B14: End-User Services & Support
B15: Market Interactions & Regulatory Compliance
B16: Metering
B17: Mobility
B18: JGN SCADA & RTS Program
B23: E12.1 - CAPEX - BY PROJECT
B24: A. DIRECT INTERNAL LABOUR EXPENDITURE
C25: EXPENDITURE
C26: $0's, nominal
C27: =PRCP_y1 -> 2010-11 | D27: =PRCP_y2 -> 2011-12 | E27: =PRCP_y3 -> 2012-13 | F27: =PRCP_y4 -> 2013-14 | G27: =PRCP_y5 -> 2014-15 | H27: =CRCP_y1 -> 2015-16 | I27: =CRCP_y2 -> 2016-17 | J27: =CRCP_y3 -> 2017-18
B28: =IF(ISBLANK(dms_E12_Projects_01),"",dms_E12_Projects_01) -> Asset Management & Geospatial Systems | C28: 0 | D28: 0 | E28: 0 | F28: 0 | G28: 67126.22 | H28: 622992.87
B29: =IF(ISBLANK(dms_E12_Projects_02),"",dms_E12_Projects_02) -> Corporate Systems/SAP ERP Incl. GASS+ Migration | C29: 6016503.71 | D29: 957883.5183 | E29: 322342.149 | F29: 211138.43 | G29: 1389698.92 | H29: 3235020.42
B30: =IF(ISBLANK(dms_E12_Projects_03),"",dms_E12_Projects_03) -> Customer Experience | C30: 0 | D30: 0 | E30: 0 | F30: 0 | G30: 28883.37 | H30: 55865.31
B31: =IF(ISBLANK(dms_E12_Projects_04),"",dms_E12_Projects_04) -> Cyber-Security | C31: 0 | D31: 0 | E31: 0 | F31: 0 | G31: 0 | H31: 281203.76
B32: =IF(ISBLANK(dms_E12_Projects_05),"",dms_E12_Projects_05) -> Data Warehouse & Reporting | C32: 0 | D32: 101428.5525 | E32: 0 | F32: 0 | G32: 2496.45 | H32: 310215.71
B33: =IF(ISBLANK(dms_E12_Projects_06),"",dms_E12_Projects_06) -> Document & Content Management | C33: 0 | D33: 0 | E33: 0 | F33: 0 | G33: 93493.59 | H33: 195249.85
B34: =IF(ISBLANK(dms_E12_Projects_07),"",dms_E12_Projects_07) -> Enabling Platforms & Networking | C34: 32483.75624 | D34: 716983.0971 | E34: 149551.1229 | F34: 0 | G34: 26456.75 | H34: 864359.66
B35: =IF(ISBLANK(dms_E12_Projects_08),"",dms_E12_Projects_08) -> End-User Services & Support | C35: 185224.2539 | D35: 0 | E35: 100005.9879 | F35: 221456.38 | G35: 290390.38 | H35: 356314.87
B36: =IF(ISBLANK(dms_E12_Projects_09),"",dms_E12_Projects_09) -> Market Interactions & Regulatory Compliance | C36: 981636.496 | D36: 926912.9805 | E36: 773073.945 | F36: 22412.88 | G36: 15262.2 | H36: 4527.61
B37: =IF(ISBLANK(dms_E12_Projects_10),"",dms_E12_Projects_10) -> Metering | C37: 0 | D37: 0 | E37: 0 | F37: 0 | G37: 0 | H37: 98537.32
B38: =IF(ISBLANK(dms_E12_Projects_11),"",dms_E12_Projects_11) -> Mobility | C38: 0 | D38: 0 | E38: 0 | F38: 0 | G38: 0 | H38: 130408.99
B39: =IF(ISBLANK(dms_E12_Projects_12),"",dms_E12_Projects_12) -> JGN SCADA & RTS Program | C39: 0 | D39: 0 | E39: 0 | F39: 0 | G39: 0 | H39: 25093.99
B40: =IF(ISBLANK(dms_E12_Projects_13),"",dms_E12_Projects_13) -> 
B41: =IF(ISBLANK(dms_E12_Projects_14),"",dms_E12_Projects_14) -> 
B42: =IF(ISBLANK(dms_E12_Projects_15),"",dms_E12_Projects_15) -> 
B43: Aggregate of other projects with total expenditure of less than $500,000 | C43: 742467.964 | D43: 93729.16758 | E43: 39389.067 | F43: 155050.23 | G43: 0 | H43: 0
B44: Total | C44: =SUM(C28:C43) -> 7958316.18 | D44: =SUM(D28:D43) -> 2796937.316 | E44: 1384362.272 | F44: 610057.92 | G44: 1913807.88 | H44: 6179790.36 | I44: 0 | J44: 0
B46: B. DIRECT CONTRACTOR EXPENDITURE
C47: EXPENDITURE
C48: $0's, nominal
C49: =PRCP_y1 -> 2010-11 | D49: =PRCP_y2 -> 2011-12 | E49: =PRCP_y3 -> 2012-13 | F49: =PRCP_y4 -> 2013-14 | G49: =PRCP_y5 -> 2014-15 | H49: =CRCP_y1 -> 2015-16 | I49: =CRCP_y2 -> 2016-17 | J49: =CRCP_y3 -> 2017-18
B50: =IF(ISBLANK(dms_E12_Projects_01),"",dms_E12_Projects_01) -> Asset Management & Geospatial Systems | D50: 0 | E50: 0 | F50: 0 | G50: 0 | H50: -219.19
B51: =IF(ISBLANK(dms_E12_Projects_02),"",dms_E12_Projects_02) -> Corporate Systems/SAP ERP Incl. GASS+ Migration | D51: 5428006.604 | E51: 1826605.511 | F51: -117042.12 | G51: 2928155.73 | H51: 0
B52: =IF(ISBLANK(dms_E12_Projects_03),"",dms_E12_Projects_03) -> Customer Experience | D52: 0 | E52: 0 | F52: 0 | G52: 0 | H52: 0
B53: =IF(ISBLANK(dms_E12_Projects_04),"",dms_E12_Projects_04) -> Cyber-Security | D53: 0 | E53: 0 | F53: 0 | G53: 0 | H53: 0
B54: =IF(ISBLANK(dms_E12_Projects_05),"",dms_E12_Projects_05) -> Data Warehouse & Reporting | D54: 574761.7975 | E54: 0 | F54: 0 | G54: 0 | H54: 18497.77
B55: =IF(ISBLANK(dms_E12_Projects_06),"",dms_E12_Projects_06) -> Document & Content Management | D55: 0 | E55: 0 | F55: 0 | G55: 0 | H55: 0
B56: =IF(ISBLANK(dms_E12_Projects_07),"",dms_E12_Projects_07) -> Enabling Platforms & Networking | D56: 4062904.217 | E56: 847456.3632 | F56: 0 | G56: 0 | H56: 0
B57: =IF(ISBLANK(dms_E12_Projects_08),"",dms_E12_Projects_08) -> End-User Services & Support | D57: 0 | E57: 566700.5982 | F57: 342109.5 | G57: 0 | H57: 22683.07
B58: =IF(ISBLANK(dms_E12_Projects_09),"",dms_E12_Projects_09) -> Market Interactions & Regulatory Compliance | D58: 5252506.89 | E58: 4380752.355 | F58: 0 | G58: 0 | H58: 0
B59: =IF(ISBLANK(dms_E12_Projects_10),"",dms_E12_Projects_10) -> Metering | D59: 0 | E59: 0 | F59: 0 | G59: 0 | H59: 0
B60: =IF(ISBLANK(dms_E12_Projects_11),"",dms_E12_Projects_11) -> Mobility | D60: 0 | E60: 0 | F60: 0 | G60: 0 | H60: 0
B61: =IF(ISBLANK(dms_E12_Projects_12),"",dms_E12_Projects_12) -> JGN SCADA & RTS Program | D61: 0 | E61: 0 | F61: 0 | G61: 0 | H61: 0
B62: =IF(ISBLANK(dms_E12_Projects_13),"",dms_E12_Projects_13) -> 
B63: =IF(ISBLANK(dms_E12_Projects_14),"",dms_E12_Projects_14) -> 
B64: =IF(ISBLANK(dms_E12_Projects_15),"",dms_E12_Projects_15) -> 
B65: Aggregate of other projects with total expenditure of less than $500,000 | D65: 531131.9496 | E65: 223204.713 | F65: 213500.44 | G65: 0 | H65: 0
B66: Total | D66: =SUM(D50:D65) -> 15849311.46 | E66: 7844719.54 | F66: 438567.82 | G66: 2928155.73 | H66: 40961.65 | I66: 0 | J66: 0
B68: C. OTHER INTERNAL DIRECT EXPENDITURE
C69: EXPENDITURE
C70: $0's, nominal
C71: =PRCP_y1 -> 2010-11 | D71: =PRCP_y2 -> 2011-12 | E71: =PRCP_y3 -> 2012-13 | F71: =PRCP_y4 -> 2013-14 | G71: =PRCP_y5 -> 2014-15 | H71: =CRCP_y1 -> 2015-16 | I71: =CRCP_y2 -> 2016-17 | J71: =CRCP_y3 -> 2017-18
B72: =IF(ISBLANK(dms_E12_Projects_01),"",dms_E12_Projects_01) -> Asset Management & Geospatial Systems | C72: 0 | D72: 0 | E72: 0 | F72: 0 | G72: 1564197.17 | H72: 32536.79
B73: =IF(ISBLANK(dms_E12_Projects_02),"",dms_E12_Projects_02) -> Corporate Systems/SAP ERP Incl. GASS+ Migration | C73: 703113.7358 | D73: 338608.1174 | E73: 0 | F73: 5872777.93 | G73: 27860672.3 | H73: 28389422.5
B74: =IF(ISBLANK(dms_E12_Projects_03),"",dms_E12_Projects_03) -> Customer Experience | C74: 0 | D74: 0 | E74: 0 | F74: 0 | G74: 26997.99 | H74: 8077.6
B75: =IF(ISBLANK(dms_E12_Projects_04),"",dms_E12_Projects_04) -> Cyber-Security | C75: 0 | D75: 0 | E75: 0 | F75: 0 | G75: 7384.09 | H75: 282810.54
B76: =IF(ISBLANK(dms_E12_Projects_05),"",dms_E12_Projects_05) -> Data Warehouse & Reporting | C76: 0 | D76: 0 | E76: 0 | F76: 0 | G76: 0 | H76: 122509.44
B77: =IF(ISBLANK(dms_E12_Projects_06),"",dms_E12_Projects_06) -> Document & Content Management | C77: 0 | D77: 0 | E77: 0 | F77: 0 | G77: 156729.3 | H77: 81839.04
B78: =IF(ISBLANK(dms_E12_Projects_07),"",dms_E12_Projects_07) -> Enabling Platforms & Networking | C78: 230805.6364 | D78: 5094353.585 | E78: 1062600.084 | F78: 0 | G78: 1298013.58 | H78: 956681.08
B79: =IF(ISBLANK(dms_E12_Projects_08),"",dms_E12_Projects_08) -> End-User Services & Support | C79: 2466704.582 | D79: 1829314.605 | E79: 1755336.064 | F79: -643899.53 | G79: 992865.74 | H79: 808293.49
B80: =IF(ISBLANK(dms_E12_Projects_09),"",dms_E12_Projects_09) -> Market Interactions & Regulatory Compliance | C80: 0 | D80: 0 | E80: 0 | F80: 720833.76 | G80: 4141.66 | H80: 1012.84
B81: =IF(ISBLANK(dms_E12_Projects_10),"",dms_E12_Projects_10) -> Metering | C81: 0 | D81: 0 | E81: 0 | F81: 0 | G81: 0 | H81: 814136.64
B82: =IF(ISBLANK(dms_E12_Projects_11),"",dms_E12_Projects_11) -> Mobility | C82: 0 | D82: 0 | E82: 0 | F82: 0 | G82: 0 | H82: 173540.26
B83: =IF(ISBLANK(dms_E12_Projects_12),"",dms_E12_Projects_12) -> JGN SCADA & RTS Program | C83: 0 | D83: 0 | E83: 0 | F83: 0 | G83: 0 | H83: 0
B84: =IF(ISBLANK(dms_E12_Projects_13),"",dms_E12_Projects_13) -> 
B85: =IF(ISBLANK(dms_E12_Projects_14),"",dms_E12_Projects_14) -> 
B86: =IF(ISBLANK(dms_E12_Projects_15),"",dms_E12_Projects_15) -> 
B87: Aggregate of other projects with total expenditure of less than $500,000 | C87: 0 | D87: 0 | E87: 0 | F87: 2067550.38 | G87: 0 | H87: 0
B88: Total | C88: =SUM(C72:C87) -> 3400623.955 | D88: =SUM(D72:D87) -> 7262276.307 | E88: 2817936.148 | F88: 8017262.54 | G88: 31911001.83 | H88: 31670860.22 | I88: 0 | J88: 0
B90: D. TOTAL OVERHEAD EXPENDITURE
C91: EXPENDITURE
C92: $0's, nominal
C93: =PRCP_y1 -> 2010-11 | D93: =PRCP_y2 -> 2011-12 | E93: =PRCP_y3 -> 2012-13 | F93: =PRCP_y4 -> 2013-14 | G93: =PRCP_y5 -> 2014-15 | H93: =CRCP_y1 -> 2015-16 | I93: =CRCP_y2 -> 2016-17 | J93: =CRCP_y3 -> 2017-18
B94: =IF(ISBLANK(dms_E12_Projects_01),"",dms_E12_Projects_01) -> Asset Management & Geospatial Systems | C94: 0 | D94: 0 | E94: 0 | F94: 0 | G94: 0 | H94: 0
B95: =IF(ISBLANK(dms_E12_Projects_02),"",dms_E12_Projects_02) -> Corporate Systems/SAP ERP Incl. GASS+ Migration | C95: 0 | D95: 0 | E95: 0 | F95: 0 | G95: 0 | H95: 0
B96: =IF(ISBLANK(dms_E12_Projects_03),"",dms_E12_Projects_03) -> Customer Experience | C96: 0 | D96: 0 | E96: 0 | F96: 0 | G96: 0 | H96: 0
B97: =IF(ISBLANK(dms_E12_Projects_04),"",dms_E12_Projects_04) -> Cyber-Security | C97: 0 | D97: 0 | E97: 0 | F97: 0 | G97: 0 | H97: 0
B98: =IF(ISBLANK(dms_E12_Projects_05),"",dms_E12_Projects_05) -> Data Warehouse & Reporting | C98: 0 | D98: 0 | E98: 0 | F98: 0 | G98: 0 | H98: 0
B99: =IF(ISBLANK(dms_E12_Projects_06),"",dms_E12_Projects_06) -> Document & Content Management | C99: 0 | D99: 0 | E99: 0 | F99: 0 | G99: 0 | H99: 0
B100: =IF(ISBLANK(dms_E12_Projects_07),"",dms_E12_Projects_07) -> Enabling Platforms & Networking | C100: 0 | D100: 0 | E100: 0 | F100: 0 | G100: 0 | H100: 0
B101: =IF(ISBLANK(dms_E12_Projects_08),"",dms_E12_Projects_08) -> End-User Services & Support | C101: 0 | D101: 0 | E101: 0 | F101: 0 | G101: 0 | H101: 0
B102: =IF(ISBLANK(dms_E12_Projects_09),"",dms_E12_Projects_09) -> Market Interactions & Regulatory Compliance | C102: 0 | D102: 0 | E102: 0 | F102: 0 | G102: 0 | H102: 0
B103: =IF(ISBLANK(dms_E12_Projects_10),"",dms_E12_Projects_10) -> Metering | C103: 0 | D103: 0 | E103: 0 | F103: 0 | G103: 0 | H103: 0
B104: =IF(ISBLANK(dms_E12_Projects_11),"",dms_E12_Projects_11) -> Mobility | C104: 0 | D104: 0 | E104: 0 | F104: 0 | G104: 0 | H104: 0
B105: =IF(ISBLANK(dms_E12_Projects_12),"",dms_E12_Projects_12) -> JGN SCADA & RTS Program | C105: 0 | D105: 0 | E105: 0 | F105: 0 | G105: 0 | H105: 0
B106: =IF(ISBLANK(dms_E12_Projects_13),"",dms_E12_Projects_13) -> 
B107: =IF(ISBLANK(dms_E12_Projects_14),"",dms_E12_Projects_14) -> 
B108: =IF(ISBLANK(dms_E12_Projects_15),"",dms_E12_Projects_15) -> 
B109: Aggregate of other projects with total expenditure of less than $500,000 | C109: 0 | D109: 0 | E109: 0 | F109: 0 | G109: 0 | H109: 0
B110: Total | C110: =SUM(C94:C109) -> 0 | D110: =SUM(D94:D109) -> 0 | E110: 0 | F110: 0 | G110: 0 | H110: 0 | I110: 0 | J110: 0
B112: E. RELATED PARTY MARGIN EXPENDITURE
C113: EXPENDITURE
C114: $0's, nominal
C115: =PRCP_y1 -> 2010-11 | D115: =PRCP_y2 -> 2011-12 | E115: =PRCP_y3 -> 2012-13 | F115: =PRCP_y4 -> 2013-14 | G115: =PRCP_y5 -> 2014-15 | H115: =CRCP_y1 -> 2015-16 | I115: =CRCP_y2 -> 2016-17 | J115: =CRCP_y3 -> 2017-18
B116: =IF(ISBLANK(dms_E12_Projects_01),"",dms_E12_Projects_01) -> Asset Management & Geospatial Systems | D116: 0 | E116: 0 | F116: 0 | G116: 0 | H116: 0
B117: =IF(ISBLANK(dms_E12_Projects_02),"",dms_E12_Projects_02) -> Corporate Systems/SAP ERP Incl. GASS+ Migration | D117: 0 | E117: 0 | F117: 0 | G117: 0 | H117: 0
B118: =IF(ISBLANK(dms_E12_Projects_03),"",dms_E12_Projects_03) -> Customer Experience | D118: 0 | E118: 0 | F118: 0 | G118: 0 | H118: 0
B119: =IF(ISBLANK(dms_E12_Projects_04),"",dms_E12_Projects_04) -> Cyber-Security | D119: 0 | E119: 0 | F119: 0 | G119: 0 | H119: 0
B120: =IF(ISBLANK(dms_E12_Projects_05),"",dms_E12_Projects_05) -> Data Warehouse & Reporting | D120: 0 | E120: 0 | F120: 0 | G120: 0 | H120: 0
B121: =IF(ISBLANK(dms_E12_Projects_06),"",dms_E12_Projects_06) -> Document & Content Management | D121: 0 | E121: 0 | F121: 0 | G121: 0 | H121: 0
B122: =IF(ISBLANK(dms_E12_Projects_07),"",dms_E12_Projects_07) -> Enabling Platforms & Networking | D122: 0 | E122: 0 | F122: 0 | G122: 0 | H122: 0
B123: =IF(ISBLANK(dms_E12_Projects_08),"",dms_E12_Projects_08) -> End-User Services & Support | D123: 0 | E123: 0 | F123: 0 | G123: 0 | H123: 0
B124: =IF(ISBLANK(dms_E12_Projects_09),"",dms_E12_Projects_09) -> Market Interactions & Regulatory Compliance | D124: 0 | E124: 0 | F124: 0 | G124: 0 | H124: 0
B125: =IF(ISBLANK(dms_E12_Projects_10),"",dms_E12_Projects_10) -> Metering | D125: 0 | E125: 0 | F125: 0 | G125: 0 | H125: 0
B126: =IF(ISBLANK(dms_E12_Projects_11),"",dms_E12_Projects_11) -> Mobility | D126: 0 | E126: 0 | F126: 0 | G126: 0 | H126: 0
B127: =IF(ISBLANK(dms_E12_Projects_12),"",dms_E12_Projects_12) -> JGN SCADA & RTS Program | D127: 0 | E127: 0 | F127: 0 | G127: 0 | H127: 0
B128: =IF(ISBLANK(dms_E12_Projects_13),"",dms_E12_Projects_13) -> 
B129: =IF(ISBLANK(dms_E12_Projects_14),"",dms_E12_Projects_14) -> 
B130: =IF(ISBLANK(dms_E12_Projects_15),"",dms_E12_Projects_15) -> 
B131: Aggregate of other projects with total expenditure of less than $500,000 | D131: 0 | E131: 0 | F131: 0 | G131: 0 | H131: 0
B132: Total | D132: =SUM(D116:D131) -> 0 | E132: 0 | F132: 0 | G132: 0 | H132: 0 | I132: 0 | J132: 0
B134: F. CUSTOMER CONTRIBUTIONS included in the above
C135: EXPENDITURE
C136: $0's, nominal
C137: =PRCP_y1 -> 2010-11 | D137: =PRCP_y2 -> 2011-12 | E137: =PRCP_y3 -> 2012-13 | F137: =PRCP_y4 -> 2013-14 | G137: =PRCP_y5 -> 2014-15 | H137: =CRCP_y1 -> 2015-16 | I137: =CRCP_y2 -> 2016-17 | J137: =CRCP_y3 -> 2017-18
B138: =IF(ISBLANK(dms_E12_Projects_01),"",dms_E12_Projects_01) -> Asset Management & Geospatial Systems | C138: 0 | D138: 0 | E138: 0 | F138: 0 | G138: 0 | H138: 0
B139: =IF(ISBLANK(dms_E12_Projects_02),"",dms_E12_Projects_02) -> Corporate Systems/SAP ERP Incl. GASS+ Migration | C139: 0 | D139: 0 | E139: 0 | F139: 0 | G139: 0 | H139: 0
B140: =IF(ISBLANK(dms_E12_Projects_03),"",dms_E12_Projects_03) -> Customer Experience | C140: 0 | D140: 0 | E140: 0 | F140: 0 | G140: 0 | H140: 0
B141: =IF(ISBLANK(dms_E12_Projects_04),"",dms_E12_Projects_04) -> Cyber-Security | C141: 0 | D141: 0 | E141: 0 | F141: 0 | G141: 0 | H141: 0
B142: =IF(ISBLANK(dms_E12_Projects_05),"",dms_E12_Projects_05) -> Data Warehouse & Reporting | C142: 0 | D142: 0 | E142: 0 | F142: 0 | G142: 0 | H142: 0
B143: =IF(ISBLANK(dms_E12_Projects_06),"",dms_E12_Projects_06) -> Document & Content Management | C143: 0 | D143: 0 | E143: 0 | F143: 0 | G143: 0 | H143: 0
B144: =IF(ISBLANK(dms_E12_Projects_07),"",dms_E12_Projects_07) -> Enabling Platforms & Networking | C144: 0 | D144: 0 | E144: 0 | F144: 0 | G144: 0 | H144: 0
B145: =IF(ISBLANK(dms_E12_Projects_08),"",dms_E12_Projects_08) -> End-User Services & Support | C145: 0 | D145: 0 | E145: 0 | F145: 0 | G145: 0 | H145: 0
B146: =IF(ISBLANK(dms_E12_Projects_09),"",dms_E12_Projects_09) -> Market Interactions & Regulatory Compliance | C146: 0 | D146: 0 | E146: 0 | F146: 0 | G146: 0 | H146: 0
B147: =IF(ISBLANK(dms_E12_Projects_10),"",dms_E12_Projects_10) -> Metering | C147: 0 | D147: 0 | E147: 0 | F147: 0 | G147: 0 | H147: 0
B148: =IF(ISBLANK(dms_E12_Projects_11),"",dms_E12_Projects_11) -> Mobility | C148: 0 | D148: 0 | E148: 0 | F148: 0 | G148: 0 | H148: 0
B149: =IF(ISBLANK(dms_E12_Projects_12),"",dms_E12_Projects_12) -> JGN SCADA & RTS Program | C149: 0 | D149: 0 | E149: 0 | F149: 0 | G149: 0 | H149: 0
B150: =IF(ISBLANK(dms_E12_Projects_13),"",dms_E12_Projects_13) -> 
B151: =IF(ISBLANK(dms_E12_Projects_14),"",dms_E12_Projects_14) -> 
B152: =IF(ISBLANK(dms_E12_Projects_15),"",dms_E12_Projects_15) -> 
B153: Aggregate of other projects with total expenditure of less than $500,000 | C153: 0 | D153: 0 | E153: 0 | F153: 0 | G153: 0 | H153: 0
B154: Total | C154: =SUM(C138:C153) -> 0 | D154: =SUM(D138:D153) -> 0 | E154: 0 | F154: 0 | G154: 0 | H154: 0 | I154: 0 | J154: 0

Sheet E13. Other capex
B1: =IF(dms_MultiYear_ResponseFlag="Yes","REGULATORY REPORTING STATEMENT - HISTORICAL INFORMATION",INDEX(dms_Worksheet_List,MATCH(dms_Model,dms_Model_List))) -> REGULATORY REPORTING STATEMENT - HISTORICAL INFORMATION
B2: =INDEX(dms_TradingNameFull_List,MATCH(dms_TradingName,dms_TradingName_List)) -> Jemena Gas Networks (NSW) Ltd
B3: =CONCATENATE(CRY," to ",dms_MultiYear_FinalYear_Result) -> 2010-11 to 2017-18
B4: E13. OTHER CAPITAL EXPENDITURE
B6: Please list all projects here:
B7: ALBV replacement projects
B8: Allocations - Facilities projects
B9: Allocations - Networks projects
B10: Allocations - Pipes projects
B11: Facility land projects
B12: Facility upgrade projects - POTS
B13: Facility upgrade projects - PRS
B14: Facility upgrade projects - TRS
B15: Mains relocation projects
B16: Mine subsidence projects
B17: Non Network General - AA
B18: Non Network General - Plant & Equipt
B19: Non Network General - Property
B20: Non Network General - Vehicles
B21: Pigging & Validation digs
B22: Pigging facilities projects
B23: Pipes upgrade projects
B24: Pipes washaway projects
B25: Primary mains integrity projects - PPM
B26: Primary mains integrity projects - SPM
B27: Primary mains integrity projects - WPM
B28: SRS replacement projects
B29: Trunk mains integrity projects
B38: E13.1 - OTHER CAPEX - BY PROJECT
B39: A. DIRECT INTERNAL LABOUR EXPENDITURE
C40: EXPENDITURE
C41: $0's, nominal
C42: =PRCP_y1 -> 2010-11 | D42: =PRCP_y2 -> 2011-12 | E42: =PRCP_y3 -> 2012-13 | F42: =PRCP_y4 -> 2013-14 | G42: =PRCP_y5 -> 2014-15 | H42: =CRCP_y1 -> 2015-16 | I42: =CRCP_y2 -> 2016-17 | J42: =CRCP_y3 -> 2017-18
B43: =IF(ISBLANK(dms_E13_Projects_01),"",dms_E13_Projects_01) -> ALBV replacement projects | C43: 159792.86 | D43: 263206.06 | E43: 107261.3157 | F43: 27663.68 | G43: 54271.42 | H43: 0
B44: =IF(ISBLANK(dms_E13_Projects_02),"",dms_E13_Projects_02) -> Allocations - Facilities projects | C44: 0 | D44: 0 | E44: 15791.10398 | F44: 116509.76 | G44: 40576.24 | H44: 52077.34
B45: =IF(ISBLANK(dms_E13_Projects_03),"",dms_E13_Projects_03) -> Allocations - Networks projects | C45: 140085.93 | D45: 215606.41 | E45: 81856.44 | F45: 0 | G45: 6855.66 | H45: 259.73
B46: =IF(ISBLANK(dms_E13_Projects_04),"",dms_E13_Projects_04) -> Allocations - Pipes projects | C46: 242049.0915 | D46: 380639.0617 | E46: 266929.2635 | F46: 0 | G46: 342031.14 | H46: 416704.08
B47: =IF(ISBLANK(dms_E13_Projects_05),"",dms_E13_Projects_05) -> Facility land projects | C47: 0 | D47: 0 | E47: 0 | F47: 0 | G47: 16424.28 | H47: 18597.66
B48: =IF(ISBLANK(dms_E13_Projects_06),"",dms_E13_Projects_06) -> Facility upgrade projects - POTS | C48: 270957.79 | D48: 1115945.82 | E48: 291368.226 | F48: 120625.75 | G48: 133018.41 | H48: 0
B49: =IF(ISBLANK(dms_E13_Projects_07),"",dms_E13_Projects_07) -> Facility upgrade projects - PRS | C49: 177505.61 | D49: 84177.75 | E49: 279756.0635 | F49: 130769.54 | G49: 630738.12 | H49: 694343.37
B50: =IF(ISBLANK(dms_E13_Projects_08),"",dms_E13_Projects_08) -> Facility upgrade projects - TRS | C50: 632808.65 | D50: 991310.73 | E50: 1538140.679 | F50: 689833.93 | G50: 675308.09 | H50: 618219.1
B51: =IF(ISBLANK(dms_E13_Projects_09),"",dms_E13_Projects_09) -> Mains relocation projects | C51: 18993.6 | D51: 5006.69 | E51: 49169.87 | F51: 291618.8558 | G51: 347885.02 | H51: 244945.85
B52: =IF(ISBLANK(dms_E13_Projects_10),"",dms_E13_Projects_10) -> Mine subsidence projects | C52: 134706.23 | D52: 12265.26 | E52: 2990.65 | F52: 2115.29 | G52: 3859.68 | H52: 29239.41
B53: =IF(ISBLANK(dms_E13_Projects_11),"",dms_E13_Projects_11) -> Non Network General - AA | C53: 417240.93 | D53: 0 | E53: 36911.723 | F53: 2128123.65 | G53: 0 | H53: 0
B54: =IF(ISBLANK(dms_E13_Projects_12),"",dms_E13_Projects_12) -> Non Network General - Plant & Equipt | C54: 124667.71 | D54: 59893.5 | E54: 58189.50593 | F54: 10097.04 | G54: 0 | H54: 0
B55: =IF(ISBLANK(dms_E13_Projects_13),"",dms_E13_Projects_13) -> Non Network General - Property | C55: 0 | D55: 0 | E55: 0 | F55: 0 | G55: 224675.21 | H55: 274924.35
B56: =IF(ISBLANK(dms_E13_Projects_14),"",dms_E13_Projects_14) -> Non Network General - Vehicles | C56: 0 | D56: 0 | E56: 0 | F56: 0 | G56: 0 | H56: 0
B57: =IF(ISBLANK(dms_E13_Projects_15),"",dms_E13_Projects_15) -> Pigging & Validation digs | C57: 19845.14 | D57: 0 | E57: 0 | F57: 4456.69 | G57: 225447.85 | H57: 204196.3
B58: =IF(ISBLANK(dms_E13_Projects_16),"",dms_E13_Projects_16) -> Pigging facilities projects | C58: 13083.12 | D58: 195751.05 | E58: 19409.52532 | F58: 0 | G58: 0 | H58: 28595.88
B59: =IF(ISBLANK(dms_E13_Projects_17),"",dms_E13_Projects_17) -> Pipes upgrade projects | C59: 2130.38 | D59: 0 | E59: 0 | F59: 0 | G59: 13820.77 | H59: 0
B60: =IF(ISBLANK(dms_E13_Projects_18),"",dms_E13_Projects_18) -> Pipes washaway projects | C60: 16697.60177 | D60: 147039.44 | E60: 80678.75 | F60: 57953.64 | G60: 69440.34 | H60: 55129.26
B61: =IF(ISBLANK(dms_E13_Projects_19),"",dms_E13_Projects_19) -> Primary mains integrity projects - PPM | C61: 0 | D61: 0 | E61: 0 | F61: 0 | G61: 0 | H61: 25847.66
B62: =IF(ISBLANK(dms_E13_Projects_20),"",dms_E13_Projects_20) -> Primary mains integrity projects - SPM | C62: 0 | D62: 0 | E62: 0 | F62: 0 | G62: 99662.81 | H62: 298355.98
B63: =IF(ISBLANK(dms_E13_Projects_21),"",dms_E13_Projects_21) -> Primary mains integrity projects - WPM | C63: 0 | D63: 0 | E63: 0 | F63: 0 | G63: 15515.5 | H63: 28757.53
B64: =IF(ISBLANK(dms_E13_Projects_22),"",dms_E13_Projects_22) -> SRS replacement projects | C64: 23282.63 | D64: 206824 | E64: 346248.67 | F64: 207626.65 | G64: 217372.16 | H64: 297546.14
B65: =IF(ISBLANK(dms_E13_Projects_23),"",dms_E13_Projects_23) -> Trunk mains integrity projects | C65: 0 | D65: 0 | E65: 0 | F65: 0 | G65: 100644 | H65: 82885.63
B66: =IF(ISBLANK(dms_E13_Projects_24),"",dms_E13_Projects_24) -> 
B67: =IF(ISBLANK(dms_E13_Projects_25),"",dms_E13_Projects_25) -> 
B68: =IF(ISBLANK(dms_E13_Projects_26),"",dms_E13_Projects_26) -> 
B69: =IF(ISBLANK(dms_E13_Projects_27),"",dms_E13_Projects_27) -> 
B70: =IF(ISBLANK(dms_E13_Projects_28),"",dms_E13_Projects_28) -> 
B71: =IF(ISBLANK(dms_E13_Projects_29),"",dms_E13_Projects_29) -> 
B72: =IF(ISBLANK(dms_E13_Projects_30),"",dms_E13_Projects_30) -> 
B73: Aggregate of other projects with total expenditure of less than $500,000 | C73: 105852.83 | D73: 215595.95 | E73: 88917.48689 | F73: 364789.9 | G73: 1271.12 | H73: 0
B74: Total | C74: =SUM(C43:C73) -> 2499700.103 | D74: =SUM(D43:D73) -> 3893261.722 | E74: 3263619.273 | F74: 4152184.376 | G74: 3218817.82 | H74: 3370625.27 | I74: 0 | J74: 0
B76: B. DIRECT CONTRACTOR EXPENDITURE
C77: EXPENDITURE
C78: $0's, nominal
C79: =PRCP_y1 -> 2010-11 | D79: =PRCP_y2 -> 2011-12 | E79: =PRCP_y3 -> 2012-13 | F79: =PRCP_y4 -> 2013-14 | G79: =PRCP_y5 -> 2014-15 | H79: =CRCP_y1 -> 2015-16 | I79: =CRCP_y2 -> 2016-17 | J79: =CRCP_y3 -> 2017-18
B80: =IF(ISBLANK(dms_E13_Projects_01),"",dms_E13_Projects_01) -> ALBV replacement projects
B81: =IF(ISBLANK(dms_E13_Projects_02),"",dms_E13_Projects_02) -> Allocations - Facilities projects
B82: =IF(ISBLANK(dms_E13_Projects_03),"",dms_E13_Projects_03) -> Allocations - Networks projects
B83: =IF(ISBLANK(dms_E13_Projects_04),"",dms_E13_Projects_04) -> Allocations - Pipes projects
B84: =IF(ISBLANK(dms_E13_Projects_05),"",dms_E13_Projects_05) -> Facility land projects
B85: =IF(ISBLANK(dms_E13_Projects_06),"",dms_E13_Projects_06) -> Facility upgrade projects - POTS
B86: =IF(ISBLANK(dms_E13_Projects_07),"",dms_E13_Projects_07) -> Facility upgrade projects - PRS
B87: =IF(ISBLANK(dms_E13_Projects_08),"",dms_E13_Projects_08) -> Facility upgrade projects - TRS
B88: =IF(ISBLANK(dms_E13_Projects_09),"",dms_E13_Projects_09) -> Mains relocation projects
B89: =IF(ISBLANK(dms_E13_Projects_10),"",dms_E13_Projects_10) -> Mine subsidence projects
B90: =IF(ISBLANK(dms_E13_Projects_11),"",dms_E13_Projects_11) -> Non Network General - AA
B91: =IF(ISBLANK(dms_E13_Projects_12),"",dms_E13_Projects_12) -> Non Network General - Plant & Equipt
B92: =IF(ISBLANK(dms_E13_Projects_13),"",dms_E13_Projects_13) -> Non Network General - Property
B93: =IF(ISBLANK(dms_E13_Projects_14),"",dms_E13_Projects_14) -> Non Network General - Vehicles
B94: =IF(ISBLANK(dms_E13_Projects_15),"",dms_E13_Projects_15) -> Pigging & Validation digs
B95: =IF(ISBLANK(dms_E13_Projects_16),"",dms_E13_Projects_16) -> Pigging facilities projects
B96: =IF(ISBLANK(dms_E13_Projects_17),"",dms_E13_Projects_17) -> Pipes upgrade projects
B97: =IF(ISBLANK(dms_E13_Projects_18),"",dms_E13_Projects_18) -> Pipes washaway projects
B98: =IF(ISBLANK(dms_E13_Projects_19),"",dms_E13_Projects_19) -> Primary mains integrity projects - PPM
B99: =IF(ISBLANK(dms_E13_Projects_20),"",dms_E13_Projects_20) -> Primary mains integrity projects - SPM
B100: =IF(ISBLANK(dms_E13_Projects_21),"",dms_E13_Projects_21) -> Primary mains integrity projects - WPM
B101: =IF(ISBLANK(dms_E13_Projects_22),"",dms_E13_Projects_22) -> SRS replacement projects
B102: =IF(ISBLANK(dms_E13_Projects_23),"",dms_E13_Projects_23) -> Trunk mains integrity projects
B103: =IF(ISBLANK(dms_E13_Projects_24),"",dms_E13_Projects_24) -> 
B104: =IF(ISBLANK(dms_E13_Projects_25),"",dms_E13_Projects_25) -> 
B105: =IF(ISBLANK(dms_E13_Projects_26),"",dms_E13_Projects_26) -> 
B106: =IF(ISBLANK(dms_E13_Projects_27),"",dms_E13_Projects_27) -> 
B107: =IF(ISBLANK(dms_E13_Projects_28),"",dms_E13_Projects_28) -> 
B108: =IF(ISBLANK(dms_E13_Projects_29),"",dms_E13_Projects_29) -> 
B109: =IF(ISBLANK(dms_E13_Projects_30),"",dms_E13_Projects_30) -> 
B110: Aggregate of other projects with total expenditure of less than $500,000
B111: Total | C111: =SUM(C80:C110) -> 0 | D111: =SUM(D80:D110) -> 0 | E111: 0 | F111: 0 | G111: 0 | H111: 0 | I111: 0 | J111: 0
B113: C. OTHER INTERNAL DIRECT EXPENDITURE
C114: EXPENDITURE
C115: $0's, nominal
C116: =PRCP_y1 -> 2010-11 | D116: =PRCP_y2 -> 2011-12 | E116: =PRCP_y3 -> 2012-13 | F116: =PRCP_y4 -> 2013-14 | G116: =PRCP_y5 -> 2014-15 | H116: =CRCP_y1 -> 2015-16 | I116: =CRCP_y2 -> 2016-17 | J116: =CRCP_y3 -> 2017-18
B117: =IF(ISBLANK(dms_E13_Projects_01),"",dms_E13_Projects_01) -> ALBV replacement projects | C117: 23532.07 | D117: 502796.68 | E117: -46665.64 | F117: 997.4 | G117: 281.95 | H117: 0
B118: =IF(ISBLANK(dms_E13_Projects_02),"",dms_E13_Projects_02) -> Allocations - Facilities projects | C118: 0 | D118: 0 | E118: 416.6 | F118: 2988.07 | G118: 125893.99 | H118: 279187.96
B119: =IF(ISBLANK(dms_E13_Projects_03),"",dms_E13_Projects_03) -> Allocations - Networks projects | C119: 18.17 | D119: 1418.74 | E119: 36818.83 | F119: 0 | G119: 19642.05 | H119: 5080.91
B120: =IF(ISBLANK(dms_E13_Projects_04),"",dms_E13_Projects_04) -> Allocations - Pipes projects | C120: -69.78912921 | D120: 11542.43 | E120: 5956.32 | F120: 0 | G120: 60094.2 | H120: 40069.99
B121: =IF(ISBLANK(dms_E13_Projects_05),"",dms_E13_Projects_05) -> Facility land projects | C121: 0 | D121: 0 | E121: 877433.5 | F121: 924547.6 | G121: 736.44 | H121: 6722.12
B122: =IF(ISBLANK(dms_E13_Projects_06),"",dms_E13_Projects_06) -> Facility upgrade projects - POTS | C122: 226405.44 | D122: 796858.24 | E122: 29395.73 | F122: 4725.56 | G122: 4280.61 | H122: 0
B123: =IF(ISBLANK(dms_E13_Projects_07),"",dms_E13_Projects_07) -> Facility upgrade projects - PRS | C123: 424321.97 | D123: 92178.9 | E123: 29988.9 | F123: 12143.09 | G123: 496052.37 | H123: 275247.5
B124: =IF(ISBLANK(dms_E13_Projects_08),"",dms_E13_Projects_08) -> Facility upgrade projects - TRS | C124: 300184.55 | D124: 279583 | E124: 588055.33 | F124: 48269.74 | G124: 102319.39 | H124: 1253754.85
B125: =IF(ISBLANK(dms_E13_Projects_09),"",dms_E13_Projects_09) -> Mains relocation projects | C125: 131.74 | D125: 2215.73 | E125: 68905.73 | F125: 588773.6883 | G125: 23171.27 | H125: 125539.02
B126: =IF(ISBLANK(dms_E13_Projects_10),"",dms_E13_Projects_10) -> Mine subsidence projects | C126: 122091 | D126: -273976.46 | E126: 0 | F126: 260.49 | G126: 290.7 | H126: 55028.43
B127: =IF(ISBLANK(dms_E13_Projects_11),"",dms_E13_Projects_11) -> Non Network General - AA | C127: 1656031.24 | D127: 35.32 | E127: 0 | F127: 536707.26 | G127: 3175649 | H127: 0
B128: =IF(ISBLANK(dms_E13_Projects_12),"",dms_E13_Projects_12) -> Non Network General - Plant & Equipt | C128: 254944.95 | D128: 746254.58 | E128: 663989.5 | F128: 890958.88 | G128: 277196.98 | H128: 958480.13
B129: =IF(ISBLANK(dms_E13_Projects_13),"",dms_E13_Projects_13) -> Non Network General - Property | C129: 0 | D129: 581912.21 | E129: 1556389.74 | F129: 1629993.85 | G129: 36215574.49 | H129: 16844105.32
B130: =IF(ISBLANK(dms_E13_Projects_14),"",dms_E13_Projects_14) -> Non Network General - Vehicles | C130: 3403801.26 | D130: 2703143.63 | E130: 2020663.41 | F130: 6154394 | G130: 977170.52 | H130: 809588.54
B131: =IF(ISBLANK(dms_E13_Projects_15),"",dms_E13_Projects_15) -> Pigging & Validation digs | C131: 776.46 | D131: 0 | E131: 0 | F131: 0 | G131: 15052.43 | H131: 20178.65
B132: =IF(ISBLANK(dms_E13_Projects_16),"",dms_E13_Projects_16) -> Pigging facilities projects | C132: 0 | D132: 173536.3933 | E132: 4297.6 | F132: 0 | G132: 0 | H132: 733.2
B133: =IF(ISBLANK(dms_E13_Projects_17),"",dms_E13_Projects_17) -> Pipes upgrade projects | C133: 227.78 | D133: 0 | E133: 0 | F133: 0 | G133: -560.82 | H133: 698690.75
B134: =IF(ISBLANK(dms_E13_Projects_18),"",dms_E13_Projects_18) -> Pipes washaway projects | C134: 1.818989404e-12 | D134: 10365.83 | E134: 62576.63 | F134: 3411.89 | G134: 546.44 | H134: 2415.07
B135: =IF(ISBLANK(dms_E13_Projects_19),"",dms_E13_Projects_19) -> Primary mains integrity projects - PPM | C135: 0 | D135: 0 | E135: 0 | F135: 0 | G135: 0 | H135: 4754.88
B136: =IF(ISBLANK(dms_E13_Projects_20),"",dms_E13_Projects_20) -> Primary mains integrity projects - SPM | C136: 0 | D136: 0 | E136: 0 | F136: 0 | G136: -13428.18 | H136: 26839.87
B137: =IF(ISBLANK(dms_E13_Projects_21),"",dms_E13_Projects_21) -> Primary mains integrity projects - WPM | C137: 0 | D137: 0 | E137: 0 | F137: 0 | G137: 2540.3 | H137: 1549.85
B138: =IF(ISBLANK(dms_E13_Projects_22),"",dms_E13_Projects_22) -> SRS replacement projects | C138: 431892.52 | D138: 1903031.72 | E138: 843492.35 | F138: 481317.09 | G138: 110212.61 | H138: 499491.95
B139: =IF(ISBLANK(dms_E13_Projects_23),"",dms_E13_Projects_23) -> Trunk mains integrity projects | C139: 0 | D139: 0 | E139: 1.136868377e-13 | F139: 0 | G139: 5680.38 | H139: 24996.51
B140: =IF(ISBLANK(dms_E13_Projects_24),"",dms_E13_Projects_24) -> 
B141: =IF(ISBLANK(dms_E13_Projects_25),"",dms_E13_Projects_25) -> 
B142: =IF(ISBLANK(dms_E13_Projects_26),"",dms_E13_Projects_26) -> 
B143: =IF(ISBLANK(dms_E13_Projects_27),"",dms_E13_Projects_27) -> 
B144: =IF(ISBLANK(dms_E13_Projects_28),"",dms_E13_Projects_28) -> 
B145: =IF(ISBLANK(dms_E13_Projects_29),"",dms_E13_Projects_29) -> 
B146: =IF(ISBLANK(dms_E13_Projects_30),"",dms_E13_Projects_30) -> 
B147: Aggregate of other projects with total expenditure of less than $500,000 | C147: 68081.24 | D147: 167968.33 | E147: 47038.84 | F147: 268802.84 | G147: 463349.58 | H147: 23516.35
B148: Total | C148: =SUM(C117:C147) -> 6912370.601 | D148: =SUM(D117:D147) -> 7698865.273 | E148: 6788753.37 | F148: 11548291.45 | G148: 42061746.7 | H148: 21955971.85 | I148: 0 | J148: 0
B150: D. TOTAL OVERHEAD EXPENDITURE
C151: EXPENDITURE
C152: $0's, nominal
C153: =PRCP_y1 -> 2010-11 | D153: =PRCP_y2 -> 2011-12 | E153: =PRCP_y3 -> 2012-13 | F153: =PRCP_y4 -> 2013-14 | G153: =PRCP_y5 -> 2014-15 | H153: =CRCP_y1 -> 2015-16 | I153: =CRCP_y2 -> 2016-17 | J153: =CRCP_y3 -> 2017-18
B154: =IF(ISBLANK(dms_E13_Projects_01),"",dms_E13_Projects_01) -> ALBV replacement projects | C154: 66013.37041 | D154: 137567.9434 | E154: 17844.7896 | F154: 7092.445385 | G154: 16483.11 | H154: 0
B155: =IF(ISBLANK(dms_E13_Projects_02),"",dms_E13_Projects_02) -> Allocations - Facilities projects | C155: 0 | D155: 0 | E155: 2807.375867 | F155: 25974.85 | G155: 72714.5 | H155: 88921.85
B156: =IF(ISBLANK(dms_E13_Projects_03),"",dms_E13_Projects_03) -> Allocations - Networks projects | C156: 22445.00395 | D156: 52271.07086 | E156: 33701.40782 | F156: 49306.22 | G156: 32250.53 | H156: 1620.64
B157: =IF(ISBLANK(dms_E13_Projects_04),"",dms_E13_Projects_04) -> Allocations - Pipes projects | C157: 51444.81248 | D157: 105286.8302 | E157: 107322.1842 | F157: 0 | G157: 65042.18 | H157: 175642.82
B158: =IF(ISBLANK(dms_E13_Projects_05),"",dms_E13_Projects_05) -> Facility land projects | C158: 0 | D158: 0 | E158: 0 | F158: 0 | G158: 4274.64 | H158: 6102.36
B159: =IF(ISBLANK(dms_E13_Projects_06),"",dms_E13_Projects_06) -> Facility upgrade projects - POTS | C159: 361305.0146 | D159: 1281202.758 | E159: 111006.3563 | F159: 32929.21678 | G159: 44869.39 | H159: 0
B160: =IF(ISBLANK(dms_E13_Projects_07),"",dms_E13_Projects_07) -> Facility upgrade projects - PRS | C160: 127782.9553 | D160: 41173.65852 | E160: 123171.9947 | F160: 31642.28 | G160: 889468.54 | H160: 708783.61
B161: =IF(ISBLANK(dms_E13_Projects_08),"",dms_E13_Projects_08) -> Facility upgrade projects - TRS | C161: 270104.1541 | D161: 407795.2247 | E161: 633832.357 | F161: 234739.0464 | G161: 356219.52 | H161: 709174.39
B162: =IF(ISBLANK(dms_E13_Projects_09),"",dms_E13_Projects_09) -> Mains relocation projects | C162: 15728.72862 | D162: 8158.14553 | E162: 86485.99122 | F162: 616093.3241 | G162: 278187.33 | H162: 89390.67
B163: =IF(ISBLANK(dms_E13_Projects_10),"",dms_E13_Projects_10) -> Mine subsidence projects | C163: 691998.129 | D163: 83979.03084 | E163: 41467.51962 | F163: 47252.26 | G163: 30791.94 | H163: 138197.41
B164: =IF(ISBLANK(dms_E13_Projects_11),"",dms_E13_Projects_11) -> Non Network General - AA | C164: 0 | D164: 0 | E164: 0 | F164: 67282.53 | G164: 0 | H164: 0
B165: =IF(ISBLANK(dms_E13_Projects_12),"",dms_E13_Projects_12) -> Non Network General - Plant & Equipt | C165: 47441.06359 | D165: 2556.82592 | E165: 111940.7245 | F165: 40937.25461 | G165: 5437.24 | H165: 0
B166: =IF(ISBLANK(dms_E13_Projects_13),"",dms_E13_Projects_13) -> Non Network General - Property | C166: 0 | D166: 0 | E166: 0 | F166: 0 | G166: 360266.25 | H166: 51136.16
B167: =IF(ISBLANK(dms_E13_Projects_14),"",dms_E13_Projects_14) -> Non Network General - Vehicles | C167: 0 | D167: 0 | E167: 0 | F167: 0 | G167: 0 | H167: 0
B168: =IF(ISBLANK(dms_E13_Projects_15),"",dms_E13_Projects_15) -> Pigging & Validation digs | C168: 21884.60942 | D168: 46.26239092 | E168: 0 | F168: 1405.130318 | G168: 100055.93 | H168: 119242.18
B169: =IF(ISBLANK(dms_E13_Projects_16),"",dms_E13_Projects_16) -> Pigging facilities projects | C169: -4487.534491 | D169: 52631.64746 | E169: 5457.384672 | F169: 0 | G169: 0 | H169: 7038.96
B170: =IF(ISBLANK(dms_E13_Projects_17),"",dms_E13_Projects_17) -> Pipes upgrade projects | C170: 147.1642354 | D170: 0 | E170: 0 | F170: 0 | G170: 3520.34 | H170: 90266.25
B171: =IF(ISBLANK(dms_E13_Projects_18),"",dms_E13_Projects_18) -> Pipes washaway projects | C171: 22643.21738 | D171: 107439.9329 | E171: 70157.81643 | F171: 37165.05 | G171: 40667.27 | H171: 58854.14
B172: =IF(ISBLANK(dms_E13_Projects_19),"",dms_E13_Projects_19) -> Primary mains integrity projects - PPM | C172: 0 | D172: 0 | E172: 0 | F172: 0 | G172: 0 | H172: 99529.1
B173: =IF(ISBLANK(dms_E13_Projects_20),"",dms_E13_Projects_20) -> Primary mains integrity projects - SPM | C173: 0 | D173: 0 | E173: 0 | F173: 0 | G173: 43944.25 | H173: 420046.91
B174: =IF(ISBLANK(dms_E13_Projects_21),"",dms_E13_Projects_21) -> Primary mains integrity projects - WPM | C174: 0 | D174: 0 | E174: 0 | F174: 0 | G174: 25713.44 | H174: 73356.7
B175: =IF(ISBLANK(dms_E13_Projects_22),"",dms_E13_Projects_22) -> SRS replacement projects | C175: 107496.2183 | D175: 866886.92 | E175: 955831.1397 | F175: 581103.81 | G175: 151215.15 | H175: 687737.5
B176: =IF(ISBLANK(dms_E13_Projects_23),"",dms_E13_Projects_23) -> Trunk mains integrity projects | C176: 0 | D176: 0 | E176: 0 | F176: -1.83 | G176: 75628.73 | H176: 255841.25
B177: =IF(ISBLANK(dms_E13_Projects_24),"",dms_E13_Projects_24) -> 
B178: =IF(ISBLANK(dms_E13_Projects_25),"",dms_E13_Projects_25) -> 
B179: =IF(ISBLANK(dms_E13_Projects_26),"",dms_E13_Projects_26) -> 
B180: =IF(ISBLANK(dms_E13_Projects_27),"",dms_E13_Projects_27) -> 
B181: =IF(ISBLANK(dms_E13_Projects_28),"",dms_E13_Projects_28) -> 
B182: =IF(ISBLANK(dms_E13_Projects_29),"",dms_E13_Projects_29) -> 
B183: =IF(ISBLANK(dms_E13_Projects_30),"",dms_E13_Projects_30) -> 
B184: Aggregate of other projects with total expenditure of less than $500,000 | C184: 150293.1062 | D184: 148726.02 | E184: 34766.62018 | F184: 265388.8986 | G184: 2127.73 | H184: 6205.39
B185: Total | C185: =SUM(C154:C184) -> 1952240.013 | D185: =SUM(D154:D184) -> 3295722.271 | E185: 2335793.662 | F185: 2038310.486 | G185: 2598878.01 | H185: 3787088.29 | I185: 0 | J185: 0
B187: E. RELATED PARTY MARGIN EXPENDITURE
C188: EXPENDITURE
C189: $0's, nominal
C190: =PRCP_y1 -> 2010-11 | D190: =PRCP_y2 -> 2011-12 | E190: =PRCP_y3 -> 2012-13 | F190: =PRCP_y4 -> 2013-14 | G190: =PRCP_y5 -> 2014-15 | H190: =CRCP_y1 -> 2015-16 | I190: =CRCP_y2 -> 2016-17 | J190: =CRCP_y3 -> 2017-18
B191: =IF(ISBLANK(dms_E13_Projects_01),"",dms_E13_Projects_01) -> ALBV replacement projects
B192: =IF(ISBLANK(dms_E13_Projects_02),"",dms_E13_Projects_02) -> Allocations - Facilities projects
B193: =IF(ISBLANK(dms_E13_Projects_03),"",dms_E13_Projects_03) -> Allocations - Networks projects
B194: =IF(ISBLANK(dms_E13_Projects_04),"",dms_E13_Projects_04) -> Allocations - Pipes projects
B195: =IF(ISBLANK(dms_E13_Projects_05),"",dms_E13_Projects_05) -> Facility land projects
B196: =IF(ISBLANK(dms_E13_Projects_06),"",dms_E13_Projects_06) -> Facility upgrade projects - POTS
B197: =IF(ISBLANK(dms_E13_Projects_07),"",dms_E13_Projects_07) -> Facility upgrade projects - PRS
B198: =IF(ISBLANK(dms_E13_Projects_08),"",dms_E13_Projects_08) -> Facility upgrade projects - TRS
B199: =IF(ISBLANK(dms_E13_Projects_09),"",dms_E13_Projects_09) -> Mains relocation projects
B200: =IF(ISBLANK(dms_E13_Projects_10),"",dms_E13_Projects_10) -> Mine subsidence projects
B201: =IF(ISBLANK(dms_E13_Projects_11),"",dms_E13_Projects_11) -> Non Network General - AA
B202: =IF(ISBLANK(dms_E13_Projects_12),"",dms_E13_Projects_12) -> Non Network General - Plant & Equipt
B203: =IF(ISBLANK(dms_E13_Projects_13),"",dms_E13_Projects_13) -> Non Network General - Property
B204: =IF(ISBLANK(dms_E13_Projects_14),"",dms_E13_Projects_14) -> Non Network General - Vehicles
B205: =IF(ISBLANK(dms_E13_Projects_15),"",dms_E13_Projects_15) -> Pigging & Validation digs
B206: =IF(ISBLANK(dms_E13_Projects_16),"",dms_E13_Projects_16) -> Pigging facilities projects
B207: =IF(ISBLANK(dms_E13_Projects_17),"",dms_E13_Projects_17) -> Pipes upgrade projects
B208: =IF(ISBLANK(dms_E13_Projects_18),"",dms_E13_Projects_18) -> Pipes washaway projects
B209: =IF(ISBLANK(dms_E13_Projects_19),"",dms_E13_Projects_19) -> Primary mains integrity projects - PPM
B210: =IF(ISBLANK(dms_E13_Projects_20),"",dms_E13_Projects_20) -> Primary mains integrity projects - SPM
B211: =IF(ISBLANK(dms_E13_Projects_21),"",dms_E13_Projects_21) -> Primary mains integrity projects - WPM
B212: =IF(ISBLANK(dms_E13_Projects_22),"",dms_E13_Projects_22) -> SRS replacement projects
B213: =IF(ISBLANK(dms_E13_Projects_23),"",dms_E13_Projects_23) -> Trunk mains integrity projects
... 45 more rows

Sheet E20. Opex
B1: =IF(dms_MultiYear_ResponseFlag="Yes","REGULATORY REPORTING STATEMENT - HISTORICAL INFORMATION",INDEX(dms_Worksheet_List,MATCH(dms_Model,dms_Model_List))) -> REGULATORY REPORTING STATEMENT - HISTORICAL INFORMATION
B2: =INDEX(dms_TradingNameFull_List,MATCH(dms_TradingName,dms_TradingName_List)) -> Jemena Gas Networks (NSW) Ltd
B3: =CONCATENATE(CRY," to ",dms_MultiYear_FinalYear_Result) -> 2010-11 to 2017-18
B4: E20. OPERATING EXPENDITURE
B6: Table E20.1 deliberately omitted
B8: E20.2 - OPEX BY CATEGORY
B9: E20.2.1 - REFERENCE SERVICES
C10: EXPENDITURE
C11: $0's, nominal
C12: =PRCP_y1 -> 2010-11 | D12: =PRCP_y2 -> 2011-12 | E12: =PRCP_y3 -> 2012-13 | F12: =PRCP_y4 -> 2013-14 | G12: =PRCP_y5 -> 2014-15 | H12: =CRCP_y1 -> 2015-16 | I12: =CRCP_y2 -> 2016-17 | J12: =CRCP_y3 -> 2017-18
B13: A. OPERATING EXPENDITURE
B14: Maintenance | C14: 20255105.04 | D14: 22940741.99 | E14: 23237501.17 | F14: 23720419.56 | G14: 21895097.47 | H14: 23838321.82 | I14: 33549916.47 | J14: 33125715.54
B15: Emergency Response | C15: 3445080.084 | D15: 802817.9631 | E15: 4331509.037 | F15: 3278880.595 | G15: 4031957.13 | H15: 2355623.73 | I15: 5071620.56 | J15: 4766487
B16: Management | C16: 10295197 | D16: 7266924.208 | E16: 10263838.66 | F16: 10390688.66 | G16: 8745561.66 | H16: 9149218.85 | I16: 6740115.83 | J16: 5570246.41
B17: Network planning | C17: 4914797.795 | D17: 6082853.133 | E17: 6096993.237 | F17: 6874805.401 | G17: 5140689.54 | H17: 8094022.84 | I17: 7426565.66 | J17: 8461316.1
B18: Network control and operational switching | C18: 2856954.832 | D18: 2592027.69 | E18: 2935598.69 | F18: 2244081.307 | G18: 3098239.41 | H18: 6071439.21 | I18: 6803639.21 | J18: 7199990.93
B19: Project governance and related functions | C19: 1189718.603 | D19: 760342.7841 | E19: 47124.31002 | F19: 2226370.083 | G19: 2363878.87 | H19: 44997.09 | I19: 105037.64 | J19: 994281.99
B20: Quality and standard functions | C20: 3010639.686 | D20: 3113476.287 | E20: 3083704.972 | F20: 3391205.394 | G20: 4300732.22 | H20: 5376136.33 | I20: 3943762.22 | J20: 3895822.88
B21: Other network overheads | C21: 10086437.23 | D21: 10486316.56 | E21: 16827329.99 | F21: 16386538.48 | G21: 16680434.71 | H21: 21404176.17 | I21: 22417772.77 | J21: 20850002.66
B22: Information technology | C22: 15111545.7 | D22: 14173349.44 | E22: 10743047.07 | F22: 14073911.51 | G22: 16028729.2 | H22: 9784266.98 | I22: 9400846.19 | J22: 7539047.56
B23: Corporate overheads | C23: 27845832.31 | D23: 29031252.32 | E23: 31492831.52 | F23: 27959467.38 | G23: 28882931.04 | H23: 23692776.34 | I23: 23310875.58 | J23: 23510955.26
B24: Pigging/integrity digs, adhoc, mains renewal | C24: 2605981.51 | D24: 1535021.608 | E24: 1558872.45 | F24: 1462394.01 | G24: 2067362 | H24: 0 | I24: 0 | J24: 0
B25: Step changes
B29: Total | C29: =SUM(C14:C28) -> 101617289.8 | D29: =SUM(D14:D28) -> 98785123.98 | E29: 110618351.1 | F29: 112008762.4 | G29: 113235613.3 | H29: 109810979.4 | I29: 118770152.1 | J29: 115913866.3
B30: B. NON- OPERATING EXPENDITURE
B31: Administration and overheads | C31: 0 | D31: 0 | E31: 0 | F31: 0 | G31: 0 | H31: 0 | I31: 0 | J31: 0
B32: Corporate overheads | C32: 476521.06 | D32: 397781.19 | E32: 500175.7 | F32: 416550.89 | G32: 365465.45 | H32: 567500.41 | I32: 399497 | J32: 494322.88
B33: Management administration and overheads | C33: 4511369.108 | D33: 8164095.257 | E33: 4679529.72 | F33: 4167306.446 | G33: 3992357.62 | H33: 6580843.9 | I33: 7459868.08 | J33: 8697693.31
B34: Other direct expenditure | C34: 5868035.04 | D34: 2602556.25 | E34: 5689808.865 | F34: 4978652.709 | G34: 5466036.52 | H34: 8274380.79 | I34: 5274273.465 | J34: 6900801.905
B35: Government levies | C35: 2818140.09 | D35: 4949162.89 | E35: 3179458.47 | F35: 3908299.2 | G35: 3378594.16 | H35: 5572854.57 | I35: 4820297.76 | J35: 4394696.87
B36: Marketing | C36: 5848263.49 | D36: 5940015.19 | E36: 5419631.79 | F36: 7518619.51 | G36: 7890769.66 | H36: 3909141.92 | I36: 6958467.19 | J36: 4415901.16
B37: Unaccounted for gas expenditure | C37: 11931013.39 | D37: 15395561.93 | E37: 13887262.98 | F37: 13512200.5 | G37: 16240519.63 | H37: 21564195.28 | I37: 20399644.5 | J37: 21301402.33
B38: Carbon costs | C38: 0 | D38: 0 | E38: 8847105.56 | F38: 7044742.32 | G38: 379693.12 | H38: 0 | I38: 0 | J38: 0
B39: Self insurance | C39: 0 | D39: 0 | E39: 0 | F39: 0 | G39: 0 | H39: 0 | I39: 0 | J39: 0
B40: Debt raising costs | C40: 0 | D40: 0 | E40: 0 | F40: 0 | G40: 0 | H40: 0 | I40: 0 | J40: 0
B41: Step changes | C41: 0 | D41: 0 | E41: 0 | F41: 0 | G41: 0 | H41: 0 | I41: 0 | J41: 0
B45: Total | C45: =SUM(C31:C44) -> 31453342.18 | D45: =SUM(D31:D44) -> 37449172.71 | E45: 42202973.08 | F45: 41546371.58 | G45: 37713436.16 | H45: 46468916.87 | I45: 45312048 | J45: 46204818.46
B46: C. ANCILLARY REFERENCE SERVICES
B47: Request for service | C47: 53709.42632 | D47: 55204.67524 | E47: 53363.63 | F47: 54831.12983 | G47: 0 | H47: 0 | I47: 0 | J47: 0
B48: Temporary disconnection | C48: 260946.9612 | D48: 281840.5485 | E48: 290333.8022 | F48: 411815.6614 | G48: 301929.1429 | H48: 822421.1334 | I48: 4224604.258 | J48: 3084378.179
B49: Permanent disconnection | C49: 1997120.646 | D49: 1848898.597 | E49: 1648789.721 | F49: 1940700.761 | G49: 1583058.722 | H49: 3062863.836 | I49: 3032403.946 | J49: 3404750.11
B50: De-commissioning and meter removal | C50: 1423590.382 | D50: 1641871.976 | E50: 1749466.38 | F50: 1826920.968 | G50: 2181045.27 | H50: 3228324.358 | I50: 4235242.089 | J50: 5247957.84
B51: Special meter reads | C51: 0 | D51: 0 | E51: 0 | F51: 0 | G51: 0 | H51: 0 | I51: 0 | J51: 0
B52: Hourly charge non-standard requests | C52: 0 | D52: 0 | E52: 0 | F52: 0 | G52: 0 | H52: 0 | I52: 0 | J52: 0
B56: Total | C56: =SUM(C47:C55) -> 3735367.416 | D56: =SUM(D47:D55) -> 3827815.797 | E56: 3741953.534 | F56: 4234268.52 | G56: 4066033.135 | H56: 7113609.328 | I56: 11492250.29 | J56: 11737086.13
B57: TOTAL | C57: =SUM(C56,C45,C29) -> 136805999.4 | D57: =SUM(D56,D45,D29) -> 140062112.5 | E57: 156563277.7 | F57: 157789402.5 | G57: 155015082.5 | H57: 163393505.5 | I57: 175574450.4 | J57: 173855770.9
B60: E20.2.2 - NON-REFERENCE SERVICES
C61: EXPENDITURE
C62: $0's, nominal
C63: =PRCP_y1 -> 2010-11 | D63: =PRCP_y2 -> 2011-12 | E63: =PRCP_y3 -> 2012-13 | F63: =PRCP_y4 -> 2013-14 | G63: =PRCP_y5 -> 2014-15 | H63: =CRCP_y1 -> 2015-16 | I63: =CRCP_y2 -> 2016-17 | J63: =CRCP_y3 -> 2017-18
B64: Maintenance | C64: 0 | D64: 220765.8462 | E64: 73308.30384 | F64: 88041.13555 | G64: 98074.70057 | H64: 104546.1768 | I64: 105453.7876 | J64: 105669.8798
B89: Total | C89: =SUM(C64:C88) -> 0 | D89: 220765.8462 | E89: 73308.30384 | F89: 88041.13555 | G89: 98074.70057 | H89: 104546.1768 | I89: 105453.7876 | J89: 105669.8798
B92: E20.3 - OPEX BY CATEGORY - RELATED PARTY MARGIN EXPENDITURE
B93: E20.3.1 - REFERENCE SERVICES
C94: EXPENDITURE
C95: $0's, nominal
C96: =PRCP_y1 -> 2010-11 | D96: =PRCP_y2 -> 2011-12 | E96: =PRCP_y3 -> 2012-13 | F96: =PRCP_y4 -> 2013-14 | G96: =PRCP_y5 -> 2014-15 | H96: =CRCP_y1 -> 2015-16 | I96: =CRCP_y2 -> 2016-17 | J96: =CRCP_y3 -> 2017-18
B97: A. OPERATING EXPENDITURE
B98: Maintenance
B99: Emergency Response
B100: Management
B101: Network planning
B102: Network control and operational switching
B103: Project governance and related functions
B104: Quality and standard functions
B105: Other network overheads
B106: Information technology
B107: Corporate overheads | C107: 0 | D107: 0 | E107: 0 | F107: 0 | G107: 0 | H107: 0 | I107: 0 | J107: 0
B108: Pigging/integrity digs, adhoc, mains renewal
B109: Step changes | C109: 0 | D109: 0 | E109: 0 | F109: 0 | G109: 0 | H109: 0 | I109: 0 | J109: 0
B110: =IF(ISBLANK(B26),"",B26) -> 
B111: =IF(ISBLANK(B27),"",B27) -> 
B112: =IF(ISBLANK(B28),"",B28) -> 
B113: Total
B114: B. NON- OPERATING EXPENDITURE
B115: Administration and overheads | C115: 0 | D115: 0 | E115: 0 | F115: 0 | G115: 0 | H115: 0 | I115: 0 | J115: 0
B116: Corporate overheads | C116: 0 | D116: 0 | E116: 0 | F116: 0 | G116: 0 | H116: 0 | I116: 0 | J116: 0
B117: Management administration and overheads
B118: Other direct expenditure
B119: Government levies | C119: 0 | D119: 0 | E119: 0 | F119: 0 | G119: 0 | H119: 0 | I119: 0 | J119: 0
B120: Marketing | C120: 0 | D120: 0 | E120: 0 | F120: 0 | G120: 0 | H120: 0 | I120: 0 | J120: 0
B121: Unaccounted for gas expenditure | C121: 0 | D121: 0 | E121: 0 | F121: 0 | G121: 0 | H121: 0 | I121: 0 | J121: 0
B122: Carbon costs | C122: 0 | D122: 0 | E122: 0 | F122: 0 | G122: 0 | H122: 0 | I122: 0 | J122: 0
B123: Self insurance | C123: 0 | D123: 0 | E123: 0 | F123: 0 | G123: 0 | H123: 0 | I123: 0 | J123: 0
B124: Debt raising costs | C124: 0 | D124: 0 | E124: 0 | F124: 0 | G124: 0 | H124: 0 | I124: 0 | J124: 0
B125: Step changes | C125: 0 | D125: 0 | E125: 0 | F125: 0 | G125: 0 | H125: 0 | I125: 0 | J125: 0
B126: =IF(ISBLANK(B42),"",B42) -> 
B127: =IF(ISBLANK(B43),"",B43) -> 
B128: =IF(ISBLANK(B44),"",B44) -> 
B129: Total
B130: C. ANCILLARY REFERENCE SERVICES
B131: Request for service | C131: 0 | D131: 0 | E131: 0 | F131: 0 | G131: 0 | H131: 0 | I131: 0 | J131: 0
B132: Temporary disconnection | C132: 0 | D132: 0 | E132: 0 | F132: 0 | G132: 0 | H132: 0 | I132: 0 | J132: 0
B133: Permanent disconnection | C133: 0 | D133: 0 | E133: 0 | F133: 0 | G133: 0 | H133: 0 | I133: 0 | J133: 0
B134: De-commissioning and meter removal | C134: 0 | D134: 0 | E134: 0 | F134: 0 | G134: 0 | H134: 0 | I134: 0 | J134: 0
B135: Special meter reads | C135: 0 | D135: 0 | E135: 0 | F135: 0 | G135: 0 | H135: 0 | I135: 0 | J135: 0
B136: Hourly charge non-standard requests | C136: 0 | D136: 0 | E136: 0 | F136: 0 | G136: 0 | H136: 0 | I136: 0 | J136: 0
B137: =IF(ISBLANK(B53),"",B53) -> 
B138: =IF(ISBLANK(B54),"",B54) -> 
B139: =IF(ISBLANK(B55),"",B55) -> 
B140: Total | C140: =SUM(C131:C139) -> 0 | D140: 0 | E140: 0 | F140: 0 | G140: 0 | H140: 0 | I140: 0 | J140: 0
B141: TOTAL
B144: E20.3.2 - NON-REFERENCE SERVICES
C145: EXPENDITURE
C146: $0's, nominal
C147: =PRCP_y1 -> 2010-11 | D147: =PRCP_y2 -> 2011-12 | E147: =PRCP_y3 -> 2012-13 | F147: =PRCP_y4 -> 2013-14 | G147: =PRCP_y5 -> 2014-15 | H147: =CRCP_y1 -> 2015-16 | I147: =CRCP_y2 -> 2016-17 | J147: =CRCP_y3 -> 2017-18
B148: =IF(ISBLANK(B64),"",B64) -> Maintenance | C148: 0 | D148: 0 | E148: 0 | F148: 0 | G148: 0 | H148: 0 | I148: 0 | J148: 0
B149: =IF(ISBLANK(B65),"",B65) ->  | C149: 0 | D149: 0 | E149: 0 | F149: 0 | G149: 0 | H149: 0 | I149: 0 | J149: 0
C150: 0 | D150: 0 | E150: 0 | F150: 0 | G150: 0 | H150: 0 | I150: 0 | J150: 0
C151: 0 | D151: 0 | E151: 0 | F151: 0 | G151: 0 | H151: 0 | I151: 0 | J151: 0
C152: 0 | D152: 0 | E152: 0 | F152: 0 | G152: 0 | H152: 0 | I152: 0 | J152: 0
C153: 0 | D153: 0 | E153: 0 | F153: 0 | G153: 0 | H153: 0 | I153: 0 | J153: 0
C154: 0 | D154: 0 | E154: 0 | F154: 0 | G154: 0 | H154: 0 | I154: 0 | J154: 0
C155: 0 | D155: 0 | E155: 0 | F155: 0 | G155: 0 | H155: 0 | I155: 0 | J155: 0
C156: 0 | D156: 0 | E156: 0 | F156: 0 | G156: 0 | H156: 0 | I156: 0 | J156: 0
C157: 0 | D157: 0 | E157: 0 | F157: 0 | G157: 0 | H157: 0 | I157: 0 | J157: 0
C158: 0 | D158: 0 | E158: 0 | F158: 0 | G158: 0 | H158: 0 | I158: 0 | J158: 0
C159: 0 | D159: 0 | E159: 0 | F159: 0 | G159: 0 | H159: 0 | I159: 0 | J159: 0
C160: 0 | D160: 0 | E160: 0 | F160: 0 | G160: 0 | H160: 0 | I160: 0 | J160: 0
C161: 0 | D161: 0 | E161: 0 | F161: 0 | G161: 0 | H161: 0 | I161: 0 | J161: 0
C162: 0 | D162: 0 | E162: 0 | F162: 0 | G162: 0 | H162: 0 | I162: 0 | J162: 0
C163: 0 | D163: 0 | E163: 0 | F163: 0 | G163: 0 | H163: 0 | I163: 0 | J163: 0
C164: 0 | D164: 0 | E164: 0 | F164: 0 | G164: 0 | H164: 0 | I164: 0 | J164: 0
C165: 0 | D165: 0 | E165: 0 | F165: 0 | G165: 0 | H165: 0 | I165: 0 | J165: 0
C166: 0 | D166: 0 | E166: 0 | F166: 0 | G166: 0 | H166: 0 | I166: 0 | J166: 0
C167: 0 | D167: 0 | E167: 0 | F167: 0 | G167: 0 | H167: 0 | I167: 0 | J167: 0
C168: 0 | D168: 0 | E168: 0 | F168: 0 | G168: 0 | H168: 0 | I168: 0 | J168: 0
C169: 0 | D169: 0 | E169: 0 | F169: 0 | G169: 0 | H169: 0 | I169: 0 | J169: 0
C170: 0 | D170: 0 | E170: 0 | F170: 0 | G170: 0 | H170: 0 | I170: 0 | J170: 0
C171: 0 | D171: 0 | E171: 0 | F171: 0 | G171: 0 | H171: 0 | I171: 0 | J171: 0
C172: 0 | D172: 0 | E172: 0 | F172: 0 | G172: 0 | H172: 0 | I172: 0 | J172: 0
B173: Total | C173: =SUM(C148:C172) -> 0 | D173: =SUM(D148:D172) -> 0 | E173: 0 | F173: 0 | G173: 0 | H173: 0 | I173: 0 | J173: 0

Sheet E21. ARS
B1: =IF(dms_MultiYear_ResponseFlag="Yes","REGULATORY REPORTING STATEMENT - HISTORICAL INFORMATION",INDEX(dms_Worksheet_List,MATCH(dms_Model,dms_Model_List))) -> REGULATORY REPORTING STATEMENT - HISTORICAL INFORMATION
B2: =INDEX(dms_TradingNameFull_List,MATCH(dms_TradingName,dms_TradingName_List)) -> Jemena Gas Networks (NSW) Ltd
B3: =CONCATENATE(CRY," to ",dms_MultiYear_FinalYear_Result) -> 2010-11 to 2017-18
B4: E21. ANCILLARY REFERENCE SERVICES
B6: E21.1 - VOLUMES
C7: VOLUMES
C8: 0's
C9: =PRCP_y1 -> 2010-11 | D9: =PRCP_y2 -> 2011-12 | E9: =PRCP_y3 -> 2012-13 | F9: =PRCP_y4 -> 2013-14 | G9: =PRCP_y5 -> 2014-15 | H9: =CRCP_y1 -> 2015-16 | I9: =CRCP_y2 -> 2016-17 | J9: =CRCP_y3 -> 2017-18
B10: Request for service | C10: 390 | D10: 202 | E10: 145 | F10: 131 | G10: 156 | H10: 2
B11: Temporary Disconnection | C11: 2095 | D11: 2259 | E11: 2547 | F11: 4210 | G11: 3666 | H11: 4720
B12: Permanent Disconnection
B13: Decommissioning & meter removal | C13: 1844 | D13: 1659 | E13: 1529 | F13: 1754 | G13: 2197 | H13: 3075
B14: Special Meter Reading | C14: 175033 | D14: 191613 | E14: 206062 | F14: 210634 | G14: 219834 | H14: 299979
B15: Hourly charge non-standard requests
B16: Other
B17: Total | C17: =SUM(C10:C16) -> 179362 | D17: 195733 | E17: 210283 | F17: 216729 | G17: 225853 | H17: 307776 | I17: 0 | J17: 0
B19: E21.2 - REVENUE
C20: REVENUE
C21: $0's, nominal
C22: =PRCP_y1 -> 2010-11 | D22: =PRCP_y2 -> 2011-12 | E22: =PRCP_y3 -> 2012-13 | F22: =PRCP_y4 -> 2013-14 | G22: =PRCP_y5 -> 2014-15 | H22: =CRCP_y1 -> 2015-16 | I22: =CRCP_y2 -> 2016-17 | J22: =CRCP_y3 -> 2017-18
B23: Request for service | C23: 26843.7 | D23: 14552.08 | E23: 11673.95 | F23: 11683.89 | G23: 15444 | H23: 949 | I23: 18103 | J23: 8600
B24: Temporary Disconnection | C24: 256306.57 | D24: 272183.9 | E24: 337040.12 | F24: 592929.5 | G24: 604677.3 | H24: 709908.56 | I24: 3580200 | J24: 2570400
B25: Permanent Disconnection
B26: Decommissioning & meter removal | C26: 1356934.64 | D26: 1322876.7 | E26: 1342304.67 | F26: 1683013.62 | G26: 2378424.64 | H26: 3257137.28 | I26: 3145888 | J26: 3510782
B27: Special Meter Reading | C27: 6148909.29 | D27: 6909564.78 | E27: 7723203.76 | F27: 8134685.08 | G27: 8793360 | H27: 5189273.98 | I27: 5733712.4 | J27: 6986443.6
B28: Hourly charge non-standard requests
B29: Other
B30: Total | C30: =SUM(C23:C29) -> 7788994.2 | D30: 8519177.46 | E30: 9414222.5 | F30: 10422312.09 | G30: 11791905.94 | H30: 9157268.82 | I30: 12477903.4 | J30: 13076225.6
B32: E21.3 - EXPENDITURE
C33: EXPENDITURE
C34: $0's, nominal
C35: =PRCP_y1 -> 2010-11 | D35: =PRCP_y2 -> 2011-12 | E35: =PRCP_y3 -> 2012-13 | F35: =PRCP_y4 -> 2013-14 | G35: =PRCP_y5 -> 2014-15 | H35: =CRCP_y1 -> 2015-16 | I35: =CRCP_y2 -> 2016-17 | J35: =CRCP_y3 -> 2017-18
B36: Request for service | C36: 53709.42632 | D36: 55204.67524 | E36: 53363.63 | F36: 54831.12983 | G36: 0 | H36: 0 | I36: 0 | J36: 0
B37: Temporary Disconnection | C37: 260946.9612 | D37: 281840.5485 | E37: 290333.8022 | F37: 411815.6614 | G37: 301929.1429 | H37: 822421.1334 | I37: 4224604.258 | J37: 3084378.179
B38: Permanent Disconnection
B39: Decommissioning & meter removal | C39: 1997120.646 | D39: 1848898.597 | E39: 1648789.721 | F39: 1940700.761 | G39: 1583058.722 | H39: 3062863.836 | I39: 3032403.946 | J39: 3404750.11
B40: Special Meter Reading | C40: 1423590.382 | D40: 1641871.976 | E40: 1749466.38 | F40: 1826920.968 | G40: 2181045.27 | H40: 3228324.358 | I40: 4235242.089 | J40: 5247957.84
B41: Hourly charge non-standard requests
B42: Other
B43: Total | C43: =SUM(C36:C42) -> 3735367.416 | D43: 3827815.797 | E43: 3741953.534 | F43: 4234268.52 | G43: 4066033.135 | H43: 7113609.328 | I43: 11492250.29 | J43: 11737086.13
B45: E21.4 - PRICE
C46: PRICE
C47: $0's, nominal
C48: =PRCP_y1 -> 2010-11 | D48: =PRCP_y2 -> 2011-12 | E48: =PRCP_y3 -> 2012-13 | F48: =PRCP_y4 -> 2013-14 | G48: =PRCP_y5 -> 2014-15 | H48: =CRCP_y1 -> 2015-16 | I48: =CRCP_y2 -> 2016-17 | J48: =CRCP_y3 -> 2017-18
B49: Request for service | C49: =C36/C10 -> 137.7164777 | D49: 273.2904715 | E49: 368.0250345 | F49: 418.5582429 | G49: 0 | H49: 0
B50: Temporary Disconnection | C50: 124.557022 | D50: 124.7634124 | E50: 113.9904995 | F50: 97.81844689 | G50: 82.35928611 | H50: 174.2417656
B51: Permanent Disconnection
B52: Decommissioning & meter removal | C52: 1083.037227 | D52: 1114.4657 | E52: 1078.345142 | F52: 1106.442851 | G52: 720.5547209 | H52: 996.05328
B53: Special Meter Reading | C53: 8.133268483 | D53: 8.568687805 | E53: 8.49 | F53: 8.673438134 | G53: 9.921328229 | H53: 10.76183452
B54: Hourly charge non-standard requests | C54: =C41/C15 -> 
B55: Other | C55: =C42/C16 -> 

Sheet N1.1. Demand
B1: =IF(dms_MultiYear_ResponseFlag="Yes","REGULATORY REPORTING STATEMENT - HISTORICAL INFORMATION",INDEX(dms_Worksheet_List,MATCH(dms_Model,dms_Model_List))) -> REGULATORY REPORTING STATEMENT - HISTORICAL INFORMATION
B2: =INDEX(dms_TradingNameFull_List,MATCH(dms_TradingName,dms_TradingName_List)) -> Jemena Gas Networks (NSW) Ltd
B3: =CONCATENATE(CRY," to ",dms_MultiYear_FinalYear_Result) -> 2010-11 to 2017-18
B4: N1. DEMAND
B7: N1.1 - DEMAND - BY CUSTOMER TYPE
C8: VOLUMES
C9: Gj
C10: =PRCP_y1 -> 2010-11 | D10: =PRCP_y2 -> 2011-12 | E10: =PRCP_y3 -> 2012-13 | F10: =PRCP_y4 -> 2013-14 | G10: =PRCP_y5 -> 2014-15 | H10: =CRCP_y1 -> 2015-16 | I10: =CRCP_y2 -> 2016-17 | J10: =CRCP_y3 -> 2017-18
B11: Residential | C11: 20458681.12 | D11: 22461496.22 | E11: 23675479.05 | F11: 23575938.51 | G11: 21979375.42 | H11: 23432528.73
B12: Commercial | C12: 12848519.29 | D12: 13110893.48 | E12: 13065220.12 | F12: 12807424.62 | G12: 13334419.11 | H12: 13547326.76
B13: Industrial | C13: 64496807.97 | D13: 53989810.27 | E13: 57839182.78 | F13: 55098849.27 | G13: 54234540.27 | H13: 50807642.91
B14: Total | C14: =SUM(C11:C13) -> 97804008.37 | D14: =SUM(D11:D13) -> 89562199.97 | E14: 94579881.95 | F14: 91482212.41 | G14: 89548334.8 | H14: 87787498.4 | I14: 0 | J14: 0

Sheet N1.2. Demand
B1: =IF(dms_MultiYear_ResponseFlag="Yes","REGULATORY REPORTING STATEMENT - HISTORICAL INFORMATION",INDEX(dms_Worksheet_List,MATCH(dms_Model,dms_Model_List))) -> REGULATORY REPORTING STATEMENT - HISTORICAL INFORMATION
B2: =INDEX(dms_TradingNameFull_List,MATCH(dms_TradingName,dms_TradingName_List)) -> Jemena Gas Networks (NSW) Ltd
B3: =CONCATENATE(CRY," to ",dms_MultiYear_FinalYear_Result) -> 2010-11 to 2017-18
B4: N1. DEMAND
B7: N1.2 - DEMAND - BY TARIFF
C8: VOLUMES
C9: Gj
B10: Tariff | C10: =PRCP_y1 -> 2010-11 | D10: =PRCP_y2 -> 2011-12 | E10: =PRCP_y3 -> 2012-13 | F10: =PRCP_y4 -> 2013-14 | G10: =PRCP_y5 -> 2014-15 | H10: =CRCP_y1 -> 2015-16 | I10: =CRCP_y2 -> 2016-17 | J10: =CRCP_y3 -> 2017-18
B11: Volume - Individual metered (VI-Coastal) | C11: 29532285.12 | D11: 31385869.29 | E11: 32540456.87 | F11: 32263170.91 | G11: 31462211.42 | H11: 32994568.86
B12: Volume - Individual metered (VI-Country) | C12: 3774915.286 | D12: 4186520.405 | E12: 4200242.297 | F12: 4120192.221 | G12: 3851583.108 | H12: 3984780.26
B13: Volume - Boundary metered (VB-Coastal) | C13: 0 | D13: 0 | E13: 0 | F13: 0 | G13: 0 | H13: 506.372
B14: Volume - Boundary metered (VB-Country) | C14: 0 | D14: 0 | E14: 0 | F14: 0 | G14: 0 | H14: 0
B15: Volume - Residential distributed generation technology (VRT3) | C15: 0 | D15: 0 | E15: 0 | F15: 0 | G15: 0 | H15: 0
B16: Volume - Residential distributed generation technology (VRT4) | C16: 0 | D16: 0 | E16: 0 | F16: 0 | G16: 0 | H16: 0
B17: Volume - Residential distributed generation technology (VRT6) | C17: 0 | D17: 0 | E17: 0 | F17: 0 | G17: 0 | H17: 0
B18: Volume - Residential distributed generation technology (VRT10) | C18: 0 | D18: 0 | E18: 0 | F18: 0 | G18: 0 | H18: 0
B19: Demand - Capacity country (DC Country) - Distance | C19: 0 | D19: 0 | E19: 0 | F19: 0 | G19: 0 | H19: 0
B20: Demand - Capacity country (DC Country) - Pressure reduction | C20: 2951471.729 | D20: 3247043.628 | E20: 3232715.396 | F20: 3073781.288 | G20: 3254672.342 | H20: 3138929.517
B21: Demand - Capacity coastal (DC1) | C21: 3393357.821 | D21: 3251602.362 | E21: 3055185.296 | F21: 2984899.323 | G21: 3003910.177 | H21: 3150783.629
B22: Demand - Capacity coastal (DC2) | C22: 8853598.056 | D22: 8528833.631 | E22: 6760534.035 | F22: 5100895.006 | G22: 4346881.46 | H22: 4221690.898
B23: Demand - Capacity coastal (DC3) | C23: 5666996.091 | D23: 7876314.758 | E23: 6847647.226 | F23: 7612716.895 | G23: 8084546.065 | H23: 7657630.615
B24: Demand - Capacity coastal (DC4) | C24: 2122550.436 | D24: 2113362.018 | E24: 1453458.381 | F24: 1408073.449 | G24: 1600757.271 | H24: 1512922.056
B25: Demand - Capacity coastal (DC5)
B26: Demand - Capacity coastal (DC6) | C26: 2787331.148 | D26: 8071679.552 | E26: 4912475.518 | F26: 4752110.52 | G26: 17290715.28 | H26: 3713284.87
B27: Demand - Capacity coastal (DC7) | C27: 2143090.598 | D27: 2159166.819 | E27: 1629927.583 | F27: 1581296.366 | G27: 1588883.472 | H27: 1380305.254
B28: Demand - Capacity coastal (DC8) | C28: 106599.123 | D28: 193705.909 | E28: 194437.07 | F28: 190878.149 | G28: 198971.693 | H28: 183987.133
B29: Demand - Capacity coastal (DC9)
B30: Demand - Capacity coastal (DC10) | C30: 706915.143 | D30: 641666.496 | E30: 507401.452 | F30: 385754.444 | G30: 382715.134 | H30: 385081.884
B31: Demand - Capacity coastal (DC11) | C31: 0 | D31: 0 | E31: 0 | F31: 0 | G31: 0 | H31: 0
B32: Demand - Throughput (DT) | C32: 260905.064 | D32: 289187.763 | E32: 299343.34 | F32: 356999.018 | G32: 386708.413 | H32: 404745.425
B33: Demand - Major end-user (throughput) (DMT1)
B34: Demand - Major end-user (throughput) (DMT2)
B35: Demand - Major end-user (throughput) (DMT3)
B36: Demand - Major end-user (throughput) (DMT4) | C36: 0 | D36: 0 | E36: 0 | F36: 0 | G36: 0 | H36: 0
B37: Demand - Major end-user (throughput) (DMT5) | C37: 0 | D37: 0 | E37: 0 | F37: 0 | G37: 0 | H37: 0
B38: Demand - First response (DCFR1)
B39: Demand - First response (DCFR6)
B40: Demand - First response (DMTFR3)
B41: Unknown | C41: 25487231.52 | D41: 5903360.272 | E41: 17983099.72 | F41: 18723569 | G41: 3938654.203 | H41: 46765.172
B42: Prudent discount

Sheet N2. Network characteristics
B1: =IF(dms_MultiYear_ResponseFlag="Yes","REGULATORY REPORTING STATEMENT - HISTORICAL INFORMATION",INDEX(dms_Worksheet_List,MATCH(dms_Model,dms_Model_List))) -> REGULATORY REPORTING STATEMENT - HISTORICAL INFORMATION
B2: =INDEX(dms_TradingNameFull_List,MATCH(dms_TradingName,dms_TradingName_List)) -> Jemena Gas Networks (NSW) Ltd
B3: =CONCATENATE(CRY," to ",dms_MultiYear_FinalYear_Result) -> 2010-11 to 2017-18
B4: N2. NETWORK CHARACTERISTICS
B6: N2.1 - NETWORK LENGTH - BY PRESSURE AND ASSET TYPE
D7: VOLUMES
D8: KM
D9: =PRCP_y1 -> 2010-11 | E9: =PRCP_y2 -> 2011-12 | F9: =PRCP_y3 -> 2012-13 | G9: =PRCP_y4 -> 2013-14 | H9: =PRCP_y5 -> 2014-15 | I9: =CRCP_y1 -> 2015-16 | J9: =CRCP_y2 -> 2016-17 | K9: =CRCP_y3 -> 2017-18
B10: N2.1.1 - LOW PRESSURE
C11: Cast Iron
C12: PVC
C13: Polyamide
C14: High density polyethylene (80)
C15: High density polyethylene (100)
C16: High density polyethylene (250)
C17: High density polyethylene (575)
C18: Medium density polyethylene
C19: Other polyethylene
C20: Unprotected steel
C21: Protected steel
C22: Other
B23: N2.1.2 - MEDIUM PRESSURE
C24: Cast Iron
C25: PVC
C26: Polyamide
C27: High density polyethylene (80)
C28: High density polyethylene (100)
C29: High density polyethylene (250)
C30: High density polyethylene (575)
C31: Medium density polyethylene
C32: Other polyethylene
C33: Unprotected steel
C34: Protected steel
C35: Other
B36: N2.1.3 - HIGH PRESSURE
C37: Cast Iron
C38: PVC
C39: Polyamide
C40: High density polyethylene (80)
C41: High density polyethylene (100)
C42: High density polyethylene (250)
C43: High density polyethylene (575)
C44: Medium density polyethylene
C45: Other polyethylene
C46: Unprotected steel
C47: Protected steel
C48: Other
B49: N2.1.4 - TRANSMISSION
C50: Protected steel
C51: Other
C52: TOTAL | D52: =SUM(D11:D51) -> 0 | E52: 0 | F52: 0 | G52: 0 | H52: 0 | I52: 0 | J52: 0 | K52: 0
B55: N2.2 - CITY GATES/REGULATORS
D56: VOLUMES
D57: 0's
D58: =PRCP_y1 -> 2010-11 | E58: =PRCP_y2 -> 2011-12 | F58: =PRCP_y3 -> 2012-13 | G58: =PRCP_y4 -> 2013-14 | H58: =PRCP_y5 -> 2014-15 | I58: =CRCP_y1 -> 2015-16 | J58: =CRCP_y2 -> 2016-17 | K58: =CRCP_y3 -> 2017-18
C59: City Gate
C60: Field Regulator
C61: District Regulator
C62: Total | D62: =SUM(D59:D61) -> 0 | E62: =SUM(E59:E61) -> 0 | F62: 0 | G62: 0 | H62: 0 | I62: 0 | J62: 0 | K62: 0
B65: N2.5 - NETWORK LENGTH BY POST CODE
D66: VOLUMES
D67: Metres, 0's
B68: Post Code | C68: Asset Type (drop down) | D68: =PRCP_y1 -> 2010-11 | E68: =PRCP_y2 -> 2011-12 | F68: =PRCP_y3 -> 2012-13 | G68: =PRCP_y4 -> 2013-14 | H68: =PRCP_y5 -> 2014-15 | I68: =CRCP_y1 -> 2015-16 | J68: =CRCP_y2 -> 2016-17 | K68: =CRCP_y3 -> 2017-18
B69: 2000 | C69: Cast Iron
B70: 2000 | C70: High density polyethylene (100)
B71: 2000 | C71: High density polyethylene (575)
B72: 2000 | C72: High density polyethylene (80)
B73: 2000 | C73: Other
B74: 2000 | C74: Polyamide
B75: 2000 | C75: Protected Steel
B76: 2007 | C76: High density polyethylene (100)
B77: 2007 | C77: High density polyethylene (80)
B78: 2007 | C78: Polyamide
B79: 2007 | C79: Protected Steel
B80: 2008 | C80: High density polyethylene (100)
B81: 2008 | C81: High density polyethylene (575)
B82: 2008 | C82: Polyamide
B83: 2008 | C83: Protected Steel
B84: 2009 | C84: High density polyethylene (100)
B85: 2009 | C85: High density polyethylene (80)
B86: 2009 | C86: Polyamide
B87: 2009 | C87: Protected Steel
B88: 2010 | C88: High density polyethylene (100)
B89: 2010 | C89: Polyamide
B90: 2010 | C90: Protected Steel
B91: 2011 | C91: High density polyethylene (100)
B92: 2011 | C92: High density polyethylene (575)
B93: 2011 | C93: High density polyethylene (80)
B94: 2011 | C94: Polyamide
B95: 2011 | C95: Protected Steel
B96: 2015 | C96: High density polyethylene (100)
B97: 2015 | C97: Polyamide
B98: 2015 | C98: Protected Steel
B99: 2016 | C99: Polyamide
B100: 2016 | C100: Protected Steel
B101: 2017 | C101: High density polyethylene (100)
B102: 2017 | C102: High density polyethylene (575)
B103: 2017 | C103: Polyamide
B104: 2017 | C104: Protected Steel
B105: 2018 | C105: High density polyethylene (100)
B106: 2018 | C106: Polyamide
B107: 2018 | C107: Protected Steel
B108: 2019 | C108: Cast Iron
B109: 2019 | C109: High density polyethylene (100)
B110: 2019 | C110: Polyamide
B111: 2019 | C111: Protected Steel
B112: 2020 | C112: High density polyethylene (100)
B113: 2020 | C113: High density polyethylene (575)
B114: 2020 | C114: Other
B115: 2020 | C115: Polyamide
B116: 2020 | C116: Protected Steel
B117: 2021 | C117: High density polyethylene (100)
B118: 2021 | C118: High density polyethylene (575)
B119: 2021 | C119: Polyamide
B120: 2021 | C120: Protected Steel
B121: 2022 | C121: High density polyethylene (100)
B122: 2022 | C122: High density polyethylene (575)
B123: 2022 | C123: High density polyethylene (80)
B124: 2022 | C124: Polyamide
B125: 2022 | C125: Protected Steel
B126: 2023 | C126: High density polyethylene (100)
B127: 2023 | C127: High density polyethylene (80)
B128: 2023 | C128: Polyamide
B129: 2024 | C129: Polyamide
B130: 2025 | C130: High density polyethylene (100)
B131: 2025 | C131: High density polyethylene (80)
B132: 2025 | C132: Polyamide
B133: 2025 | C133: Protected Steel
B134: 2026 | C134: High density polyethylene (100)
B135: 2026 | C135: High density polyethylene (575)
B136: 2026 | C136: High density polyethylene (80)
B137: 2026 | C137: Polyamide
B138: 2027 | C138: Polyamide
B139: 2027 | C139: Protected Steel
B140: 2028 | C140: High density polyethylene (100)
B141: 2028 | C141: High density polyethylene (80)
B142: 2028 | C142: Polyamide
B143: 2028 | C143: Protected Steel
B144: 2029 | C144: High density polyethylene (100)
B145: 2029 | C145: High density polyethylene (80)
B146: 2029 | C146: Polyamide
B147: 2029 | C147: Protected Steel
B148: 2030 | C148: Polyamide
B149: 2031 | C149: High density polyethylene (100)
B150: 2031 | C150: High density polyethylene (80)
B151: 2031 | C151: Polyamide
B152: 2031 | C152: Protected Steel
B153: 2032 | C153: Polyamide
B154: 2033 | C154: High density polyethylene (100)
B155: 2033 | C155: High density polyethylene (575)
B156: 2033 | C156: Polyamide
B157: 2033 | C157: Protected Steel
B158: 2034 | C158: High density polyethylene (575)
B159: 2034 | C159: Polyamide
B160: 2035 | C160: Cast Iron
B161: 2035 | C161: High density polyethylene (100)
B162: 2035 | C162: Other
B163: 2035 | C163: Polyamide
B164: 2035 | C164: Protected Steel
B165: 2036 | C165: Cast Iron
B166: 2036 | C166: High density polyethylene (100)
B167: 2036 | C167: High density polyethylene (575)
B168: 2036 | C168: High density polyethylene (80)
B169: 2036 | C169: Polyamide
B170: 2036 | C170: Protected Steel
B171: 2037 | C171: High density polyethylene (100)
B172: 2037 | C172: High density polyethylene (575)
B173: 2037 | C173: High density polyethylene (80)
B174: 2037 | C174: Polyamide
B175: 2038 | C175: High density polyethylene (100)
B176: 2038 | C176: High density polyethylene (575)
B177: 2038 | C177: High density polyethylene (80)
B178: 2038 | C178: Polyamide
B179: 2038 | C179: Protected Steel
B180: 2039 | C180: High density polyethylene (100)
B181: 2039 | C181: High density polyethylene (80)
B182: 2039 | C182: Polyamide
B183: 2039 | C183: Protected Steel
B184: 2040 | C184: High density polyethylene (100)
B185: 2040 | C185: Polyamide
B186: 2040 | C186: Protected Steel
B187: 2041 | C187: High density polyethylene (80)
B188: 2041 | C188: Polyamide
B189: 2041 | C189: Protected Steel
B190: 2042 | C190: High density polyethylene (100)
B191: 2042 | C191: Polyamide
B192: 2042 | C192: Protected Steel
B193: 2043 | C193: Polyamide
B194: 2043 | C194: Protected Steel
B195: 2044 | C195: High density polyethylene (100)
B196: 2044 | C196: High density polyethylene (80)
B197: 2044 | C197: Other
B198: 2044 | C198: Polyamide
B199: 2044 | C199: Protected Steel
B200: 2045 | C200: Cast Iron
B201: 2045 | C201: High density polyethylene (100)
B202: 2045 | C202: High density polyethylene (575)
B203: 2045 | C203: High density polyethylene (80)
B204: 2045 | C204: Polyamide
B205: 2045 | C205: Protected Steel
... 1131 more rows

Sheet S1.1. Customer numbers
B1: =IF(dms_MultiYear_ResponseFlag="Yes","REGULATORY REPORTING STATEMENT - HISTORICAL INFORMATION",INDEX(dms_Worksheet_List,MATCH(dms_Model,dms_Model_List))) -> REGULATORY REPORTING STATEMENT - HISTORICAL INFORMATION
B2: =INDEX(dms_TradingNameFull_List,MATCH(dms_TradingName,dms_TradingName_List)) -> Jemena Gas Networks (NSW) Ltd
B3: =CONCATENATE(CRY," to ",dms_MultiYear_FinalYear_Result) -> 2010-11 to 2017-18
B4: S1. CUSTOMER NUMBERS
B7: S1.1 - CUSTOMER NUMBERS - BY CUSTOMER TYPE
C8: VOLUMES
C9: 0's
C10: =PRCP_y1 -> 2010-11 | D10: =PRCP_y2 -> 2011-12 | E10: =PRCP_y3 -> 2012-13 | F10: =PRCP_y4 -> 2013-14 | G10: =PRCP_y5 -> 2014-15 | H10: =CRCP_y1 -> 2015-16 | I10: =CRCP_y2 -> 2016-17 | J10: =CRCP_y3 -> 2017-18
B11: A. RESIDENTIAL
B12: Customer numbers as at 1 July | C12: 1055124 | D12: 1080449 | E12: 1108882 | F12: 1139276 | G12: 1174229 | H12: 1214200
B13: Customer numbers as at 30 June | C13: 1080449 | D13: 1108882 | E13: 1139276 | F13: 1174229 | G13: 1214200 | H13: 1259119
B14: Total customer connections | C14: 34621 | D14: 37029 | E14: 38969 | F14: 44118 | G14: 47717 | H14: 48014
B15: Total customer disconnections | C15: 9296 | D15: 8596 | E15: 8575 | F15: 9165 | G15: 7746 | H15: 3095
B16: B. COMMERCIAL
B17: Customer numbers as at 1 July | C17: 31492 | D17: 32021 | E17: 32501 | F17: 33003 | G17: 33466 | H17: 34114
B18: Customer numbers as at 30 June | C18: 32021 | D18: 32501 | E18: 33003 | F18: 33466 | G18: 34114 | H18: 34858
B19: Total customer connections | C19: 1007 | D19: 1010 | E19: 1041 | F19: 1154 | G19: 1138 | H19: 1033
B20: Total customer disconnections | C20: 478 | D20: 530 | E20: 539 | F20: 691 | G20: 490 | H20: 289
B21: C. INDUSTRIAL
B22: Customer numbers as at 1 July | C22: 409 | D22: 402 | E22: 400 | F22: 394 | G22: 385 | H22: 394
B23: Customer numbers as at 30 June | C23: 402 | D23: 400 | E23: 394 | F23: 385 | G23: 390 | H23: 402
B24: Total customer connections | C24: 5 | D24: 10 | E24: 8 | F24: 13 | G24: 15 | H24: 9
B25: Total customer disconnections | C25: 0 | D25: 4 | E25: 8 | F25: 6 | G25: 12 | H25: 14

Sheet S1.2. Customer numbers
B1: =IF(dms_MultiYear_ResponseFlag="Yes","REGULATORY REPORTING STATEMENT - HISTORICAL INFORMATION",INDEX(dms_Worksheet_List,MATCH(dms_Model,dms_Model_List))) -> REGULATORY REPORTING STATEMENT - HISTORICAL INFORMATION
B2: =INDEX(dms_TradingNameFull_List,MATCH(dms_TradingName,dms_TradingName_List)) -> Jemena Gas Networks (NSW) Ltd
B3: =CONCATENATE(CRY," to ",dms_MultiYear_FinalYear_Result) -> 2010-11 to 2017-18
B4: S1. CUSTOMER NUMBERS
B6: S1.2 - CUSTOMER NUMBERS - BY TARIFF
B7: S1.2.1 - CUSTOMER NUMBERS AS AT 1 JULY
C8: VOLUMES
C9: 0's
C10: =PRCP_y1 -> 2010-11 | D10: =PRCP_y2 -> 2011-12 | E10: =PRCP_y3 -> 2012-13 | F10: =PRCP_y4 -> 2013-14 | G10: =PRCP_y5 -> 2014-15 | H10: =CRCP_y1 -> 2015-16 | I10: =CRCP_y2 -> 2016-17 | J10: =CRCP_y3 -> 2017-18
B11: =IF(ISBLANK('N1.2. Demand'!B11),"",'N1.2. Demand'!B11) -> Volume - Individual metered (VI-Coastal) | C11: 1005908 | D11: =C68 -> 1029644 | E11: 1056570 | F11: 1085428 | G11: 1118843 | H11: 1157326 | I11: 1200688 | J11: 0
B12: =IF(ISBLANK('N1.2. Demand'!B12),"",'N1.2. Demand'!B12) -> Volume - Individual metered (VI-Country) | C12: 80708 | D12: 82826 | E12: 84813 | F12: 86851 | G12: 88852 | H12: 90988 | I12: 93288 | J12: 0
B13: =IF(ISBLANK('N1.2. Demand'!B13),"",'N1.2. Demand'!B13) -> Volume - Boundary metered (VB-Coastal) | C13: 0 | D13: 0 | E13: 0 | F13: 0 | G13: 0 | H13: 0 | I13: 1 | J13: 0
B14: =IF(ISBLANK('N1.2. Demand'!B14),"",'N1.2. Demand'!B14) -> Volume - Boundary metered (VB-Country) | C14: 0 | D14: 0 | E14: 0 | F14: 0 | G14: 0 | H14: 0 | I14: 0 | J14: 0
B15: =IF(ISBLANK('N1.2. Demand'!B15),"",'N1.2. Demand'!B15) -> Volume - Residential distributed generation technology (VRT3) | C15: 0 | D15: 0 | E15: 0 | F15: 0 | G15: 0 | H15: 0 | I15: 0 | J15: 0
B16: =IF(ISBLANK('N1.2. Demand'!B16),"",'N1.2. Demand'!B16) -> Volume - Residential distributed generation technology (VRT4) | C16: 0 | D16: 0 | E16: 0 | F16: 0 | G16: 0 | H16: 0 | I16: 0 | J16: 0
B17: =IF(ISBLANK('N1.2. Demand'!B17),"",'N1.2. Demand'!B17) -> Volume - Residential distributed generation technology (VRT6) | C17: 0 | D17: 0 | E17: 0 | F17: 0 | G17: 0 | H17: 0 | I17: 0 | J17: 0
B18: =IF(ISBLANK('N1.2. Demand'!B18),"",'N1.2. Demand'!B18) -> Volume - Residential distributed generation technology (VRT10) | C18: 0 | D18: 0 | E18: 0 | F18: 0 | G18: 0 | H18: 0 | I18: 0 | J18: 0
B19: =IF(ISBLANK('N1.2. Demand'!B19),"",'N1.2. Demand'!B19) -> Demand - Capacity country (DC Country) - Distance | C19: 0 | D19: 0 | E19: 0 | F19: 0 | G19: 0 | H19: 0 | I19: 0 | J19: 0
B20: =IF(ISBLANK('N1.2. Demand'!B20),"",'N1.2. Demand'!B20) -> Demand - Capacity country (DC Country) - Pressure reduction | C20: 47 | D20: 47 | E20: 46 | F20: 44 | G20: 45 | H20: 45 | I20: 44 | J20: 0
B21: =IF(ISBLANK('N1.2. Demand'!B21),"",'N1.2. Demand'!B21) -> Demand - Capacity coastal (DC1) | C21: 40 | D21: =C78 -> 36 | E21: 35 | F21: 33 | G21: 32 | H21: 32 | I21: 35 | J21: 0
B22: =IF(ISBLANK('N1.2. Demand'!B22),"",'N1.2. Demand'!B22) -> Demand - Capacity coastal (DC2) | C22: 87 | D22: 83 | E22: 80 | F22: 76 | G22: 72 | H22: 74 | I22: 77 | J22: 0
B23: =IF(ISBLANK('N1.2. Demand'!B23),"",'N1.2. Demand'!B23) -> Demand - Capacity coastal (DC3) | C23: 107 | D23: 106 | E23: 106 | F23: 108 | G23: 104 | H23: 105 | I23: 103 | J23: 0
B24: =IF(ISBLANK('N1.2. Demand'!B24),"",'N1.2. Demand'!B24) -> Demand - Capacity coastal (DC4) | C24: 45 | D24: 48 | E24: 48 | F24: 46 | G24: 47 | H24: 46 | I24: 47 | J24: 0
B25: =IF(ISBLANK('N1.2. Demand'!B25),"",'N1.2. Demand'!B25) -> Demand - Capacity coastal (DC5) | C25: 0 | D25: 0 | E25: 0 | F25: 0 | G25: 0 | H25: 0 | I25: 1 | J25: 0
B26: =IF(ISBLANK('N1.2. Demand'!B26),"",'N1.2. Demand'!B26) -> Demand - Capacity coastal (DC6) | C26: 28 | D26: 27 | E26: 27 | F26: 27 | G26: 26 | H26: 27 | I26: 30 | J26: 0
B27: =IF(ISBLANK('N1.2. Demand'!B27),"",'N1.2. Demand'!B27) -> Demand - Capacity coastal (DC7) | C27: 24 | D27: 23 | E27: 25 | F27: 25 | G27: 22 | H27: 23 | I27: 20 | J27: 0
B28: =IF(ISBLANK('N1.2. Demand'!B28),"",'N1.2. Demand'!B28) -> Demand - Capacity coastal (DC8) | C28: 3 | D28: 4 | E28: 4 | F28: 4 | G28: 4 | H28: 5 | I28: 5 | J28: 0
B29: =IF(ISBLANK('N1.2. Demand'!B29),"",'N1.2. Demand'!B29) -> Demand - Capacity coastal (DC9) | C29: 0 | D29: 0 | E29: 0 | F29: 0 | G29: 0 | H29: 0 | I29: 3 | J29: 0
B30: =IF(ISBLANK('N1.2. Demand'!B30),"",'N1.2. Demand'!B30) -> Demand - Capacity coastal (DC10) | C30: 11 | D30: =C87 -> 11 | E30: 12 | F30: 13 | G30: 13 | H30: 13 | I30: 11 | J30: 0
B31: =IF(ISBLANK('N1.2. Demand'!B31),"",'N1.2. Demand'!B31) -> Demand - Capacity coastal (DC11) | C31: 0 | D31: =C88 -> 0 | E31: =D88 -> 0 | F31: =E88 -> 0 | G31: =F88 -> 0 | H31: =G88 -> 0 | I31: =H88 -> 0 | J31: =I88 -> 0
B32: =IF(ISBLANK('N1.2. Demand'!B32),"",'N1.2. Demand'!B32) -> Demand - Throughput (DT) | C32: 12 | D32: 12 | E32: 12 | F32: 13 | G32: 15 | H32: 15 | I32: 17 | J32: 0
B33: =IF(ISBLANK('N1.2. Demand'!B33),"",'N1.2. Demand'!B33) -> Demand - Major end-user (throughput) (DMT1) | C33: 1 | D33: 1 | E33: 1 | F33: 1 | G33: 1 | H33: 1 | I33: 1 | J33: 0
B34: =IF(ISBLANK('N1.2. Demand'!B34),"",'N1.2. Demand'!B34) -> Demand - Major end-user (throughput) (DMT2) | C34: 2 | D34: 2 | E34: 2 | F34: 2 | G34: 2 | H34: 1 | I34: 1 | J34: 0
B35: =IF(ISBLANK('N1.2. Demand'!B35),"",'N1.2. Demand'!B35) -> Demand - Major end-user (throughput) (DMT3) | C35: 1 | D35: 1 | E35: 1 | F35: 1 | G35: 1 | H35: 1 | I35: 0 | J35: 0
B36: =IF(ISBLANK('N1.2. Demand'!B36),"",'N1.2. Demand'!B36) -> Demand - Major end-user (throughput) (DMT4) | C36: 0 | D36: 0 | E36: 0 | F36: 0 | G36: 0 | H36: 0 | I36: 0 | J36: 0
B37: =IF(ISBLANK('N1.2. Demand'!B37),"",'N1.2. Demand'!B37) -> Demand - Major end-user (throughput) (DMT5) | C37: 0 | D37: 0 | E37: 0 | F37: 0 | G37: 0 | H37: 0 | I37: 0 | J37: 0
B38: =IF(ISBLANK('N1.2. Demand'!B38),"",'N1.2. Demand'!B38) -> Demand - First response (DCFR1) | C38: 1 | D38: 1 | E38: 1 | F38: 1 | G38: 1 | H38: 1 | I38: 1 | J38: 0
B39: =IF(ISBLANK('N1.2. Demand'!B39),"",'N1.2. Demand'!B39) -> Demand - First response (DCFR6) | C39: 0 | D39: 0 | E39: 0 | F39: 0 | G39: 0 | H39: 1 | I39: 1 | J39: 0
B40: =IF(ISBLANK('N1.2. Demand'!B40),"",'N1.2. Demand'!B40) -> Demand - First response (DMTFR3) | C40: 0 | D40: 0 | E40: 0 | F40: 0 | G40: 0 | H40: 0 | I40: 1 | J40: 0
B41: =IF(ISBLANK('N1.2. Demand'!B41),"",'N1.2. Demand'!B41) -> Unknown | D41: 0 | E41: 0 | F41: 0 | G41: 0 | H41: 0 | I41: 0 | J41: 0
B42: =IF(ISBLANK('N1.2. Demand'!B42),"",'N1.2. Demand'!B42) -> Prudent discount | D42: 0 | E42: 0 | F42: 0 | G42: 0 | H42: 0 | I42: 4 | J42: 0
B43: =IF(ISBLANK('N1.2. Demand'!B43),"",'N1.2. Demand'!B43) ->  | D43: 0 | E43: 0 | F43: 0 | G43: 0 | H43: 0 | I43: 0 | J43: 0
B44: =IF(ISBLANK('N1.2. Demand'!B44),"",'N1.2. Demand'!B44) ->  | D44: 0 | E44: 0 | F44: 0 | G44: 0 | H44: 0 | I44: 0 | J44: 0
B45: =IF(ISBLANK('N1.2. Demand'!B45),"",'N1.2. Demand'!B45) ->  | D45: 0 | E45: 0 | F45: 0 | G45: 0 | H45: 0 | I45: 0 | J45: 0
B46: =IF(ISBLANK('N1.2. Demand'!B46),"",'N1.2. Demand'!B46) ->  | D46: 0 | E46: 0 | F46: 0 | G46: 0 | H46: 0 | I46: 0 | J46: 0
B47: =IF(ISBLANK('N1.2. Demand'!B47),"",'N1.2. Demand'!B47) ->  | D47: 0 | E47: 0 | F47: 0 | G47: 0 | H47: 0 | I47: 0 | J47: 0
B48: =IF(ISBLANK('N1.2. Demand'!B48),"",'N1.2. Demand'!B48) ->  | D48: 0 | E48: 0 | F48: 0 | G48: 0 | H48: 0 | I48: 0 | J48: 0
B49: =IF(ISBLANK('N1.2. Demand'!B49),"",'N1.2. Demand'!B49) ->  | D49: 0 | E49: 0 | F49: 0 | G49: 0 | H49: 0 | I49: 0 | J49: 0
B50: =IF(ISBLANK('N1.2. Demand'!B50),"",'N1.2. Demand'!B50) ->  | D50: 0 | E50: 0 | F50: 0 | G50: 0 | H50: 0 | I50: 0 | J50: 0
B51: =IF(ISBLANK('N1.2. Demand'!B51),"",'N1.2. Demand'!B51) ->  | D51: 0 | E51: 0 | F51: 0 | G51: 0 | H51: 0 | I51: 0 | J51: 0
B52: =IF(ISBLANK('N1.2. Demand'!B52),"",'N1.2. Demand'!B52) ->  | D52: 0 | E52: 0 | F52: 0 | G52: 0 | H52: 0 | I52: 0 | J52: 0
B53: =IF(ISBLANK('N1.2. Demand'!B53),"",'N1.2. Demand'!B53) ->  | D53: 0 | E53: 0 | F53: 0 | G53: 0 | H53: 0 | I53: 0 | J53: 0
B54: =IF(ISBLANK('N1.2. Demand'!B54),"",'N1.2. Demand'!B54) ->  | D54: 0 | E54: 0 | F54: 0 | G54: 0 | H54: 0 | I54: 0 | J54: 0
B55: =IF(ISBLANK('N1.2. Demand'!B55),"",'N1.2. Demand'!B55) ->  | D55: 0 | E55: 0 | F55: 0 | G55: 0 | H55: 0 | I55: 0 | J55: 0
B56: =IF(ISBLANK('N1.2. Demand'!B56),"",'N1.2. Demand'!B56) ->  | D56: 0 | E56: 0 | F56: 0 | G56: 0 | H56: 0 | I56: 0 | J56: 0
B57: =IF(ISBLANK('N1.2. Demand'!B57),"",'N1.2. Demand'!B57) ->  | D57: 0 | E57: 0 | F57: 0 | G57: 0 | H57: 0 | I57: 0 | J57: 0
B58: =IF(ISBLANK('N1.2. Demand'!B58),"",'N1.2. Demand'!B58) ->  | D58: 0 | E58: 0 | F58: 0 | G58: 0 | H58: 0 | I58: 0 | J58: 0
B59: =IF(ISBLANK('N1.2. Demand'!B59),"",'N1.2. Demand'!B59) ->  | D59: 0 | E59: 0 | F59: 0 | G59: 0 | H59: 0 | I59: 0 | J59: 0
B60: =IF(ISBLANK('N1.2. Demand'!B60),"",'N1.2. Demand'!B60) ->  | D60: 0 | E60: 0 | F60: 0 | G60: 0 | H60: 0 | I60: 0 | J60: 0
B61: Total | C61: =SUM(C11:C60) -> 1087025 | D61: 1112872 | E61: 1141783 | F61: 1172673 | G61: 1208080 | H61: 1248704 | I61: 1294379 | J61: 0
B64: S1.2.2 - CUSTOMER NUMBERS AS AT 30 JUNE
C65: VOLUMES
C66: 0's
C67: =PRCP_y1 -> 2010-11 | D67: =PRCP_y2 -> 2011-12 | E67: =PRCP_y3 -> 2012-13 | F67: =PRCP_y4 -> 2013-14 | G67: =PRCP_y5 -> 2014-15 | H67: =CRCP_y1 -> 2015-16 | I67: =CRCP_y2 -> 2016-17 | J67: =CRCP_y3 -> 2017-18
B68: =IF(ISBLANK(B11),"",B11) -> Volume - Individual metered (VI-Coastal) | C68: 1029644 | D68: 1056570 | E68: 1085428 | F68: 1118843 | G68: 1157326 | H68: 1200688
B69: Volume - Individual metered (VI-Country) | C69: 82826 | D69: 84813 | E69: 86851 | F69: 88852 | G69: 90988 | H69: 93288
B70: Volume - Boundary metered (VB-Coastal) | C70: 0 | D70: 0 | E70: 0 | F70: 0 | G70: 0 | H70: 1
B71: Volume - Boundary metered (VB-Country) | C71: 0 | D71: 0 | E71: 0 | F71: 0 | G71: 0 | H71: 0
B72: Volume - Residential distributed generation technology (VRT3) | C72: 0 | D72: 0 | E72: 0 | F72: 0 | G72: 0 | H72: 0
B73: Volume - Residential distributed generation technology (VRT4) | C73: 0 | D73: 0 | E73: 0 | F73: 0 | G73: 0 | H73: 0
B74: Volume - Residential distributed generation technology (VRT6) | C74: 0 | D74: 0 | E74: 0 | F74: 0 | G74: 0 | H74: 0
B75: Volume - Residential distributed generation technology (VRT10) | C75: 0 | D75: 0 | E75: 0 | F75: 0 | G75: 0 | H75: 0
B76: Demand - Capacity country (DC Country) - Distance | C76: 0 | D76: 0 | E76: 0 | F76: 0 | G76: 0 | H76: 0
B77: Demand - Capacity country (DC Country) - Pressure reduction | C77: 47 | D77: 46 | E77: 44 | F77: 45 | G77: 45 | H77: 44
B78: Demand - Capacity coastal (DC1) | C78: 36 | D78: 35 | E78: 33 | F78: 32 | G78: 32 | H78: 35
B79: Demand - Capacity coastal (DC2) | C79: 83 | D79: 80 | E79: 76 | F79: 72 | G79: 74 | H79: 77
B80: Demand - Capacity coastal (DC3) | C80: 106 | D80: 106 | E80: 108 | F80: 104 | G80: 105 | H80: 103
B81: Demand - Capacity coastal (DC4) | C81: 48 | D81: 48 | E81: 46 | F81: 47 | G81: 46 | H81: 47
B82: Demand - Capacity coastal (DC5) | C82: 0 | D82: 0 | E82: 0 | F82: 0 | G82: 0 | H82: 1
B83: Demand - Capacity coastal (DC6) | C83: 27 | D83: 27 | E83: 27 | F83: 26 | G83: 27 | H83: 30
B84: Demand - Capacity coastal (DC7) | C84: 23 | D84: 25 | E84: 25 | F84: 22 | G84: 23 | H84: 20
B85: Demand - Capacity coastal (DC8) | C85: 4 | D85: 4 | E85: 4 | F85: 4 | G85: 5 | H85: 5
B86: Demand - Capacity coastal (DC9) | C86: 0 | D86: 0 | E86: 0 | F86: 0 | G86: 0 | H86: 3
B87: Demand - Capacity coastal (DC10) | C87: 11 | D87: 12 | E87: 13 | F87: 13 | G87: 13 | H87: 11
B88: Demand - Capacity coastal (DC11) | C88: 0 | D88: 0 | E88: 0 | F88: 0 | G88: 0 | H88: 0
B89: Demand - Throughput (DT) | C89: 12 | D89: 12 | E89: 13 | F89: 15 | G89: 15 | H89: 17
B90: Demand - Major end-user (throughput) (DMT1) | C90: 1 | D90: 1 | E90: 1 | F90: 1 | G90: 1 | H90: 1
B91: Demand - Major end-user (throughput) (DMT2) | C91: 2 | D91: 2 | E91: 2 | F91: 2 | G91: 1 | H91: 1
B92: Demand - Major end-user (throughput) (DMT3) | C92: 1 | D92: 1 | E92: 1 | F92: 1 | G92: 1 | H92: 0
B93: Demand - Major end-user (throughput) (DMT4) | C93: 0 | D93: 0 | E93: 0 | F93: 0 | G93: 0 | H93: 0
B94: Demand - Major end-user (throughput) (DMT5) | C94: 0 | D94: 0 | E94: 0 | F94: 0 | G94: 0 | H94: 0
B95: Demand - First response (DCFR1) | C95: 1 | D95: 1 | E95: 1 | F95: 1 | G95: 1 | H95: 1
B96: Demand - First response (DCFR6) | C96: 0 | D96: 0 | E96: 0 | F96: 0 | G96: 1 | H96: 1
B97: Demand - First response (DMTFR3) | C97: 0 | D97: 0 | E97: 0 | F97: 0 | G97: 0 | H97: 1
B98: Unknown | C98: 0 | D98: 0 | E98: 0 | F98: 0 | G98: 0 | H98: 0
B99: Prudent discount | C99: 0 | D99: 0 | E99: 0 | F99: 0 | G99: 0 | H99: 4
B100: =IF(ISBLANK(B43),"",B43) -> 
B118: Total | C118: =SUM(C68:C117) -> 1112872 | D118: 1141783 | E118: 1172673 | F118: 1208080 | G118: 1248704 | H118: 1294379 | I118: 0 | J118: 0
B121: S1.2.3 - TOTAL CUSTOMER CONNECTIONS
C122: VOLUMES
C123: 0's
C124: =PRCP_y1 -> 2010-11 | D124: =PRCP_y2 -> 2011-12 | E124: =PRCP_y3 -> 2012-13 | F124: =PRCP_y4 -> 2013-14 | G124: =PRCP_y5 -> 2014-15 | H124: =CRCP_y1 -> 2015-16 | I124: =CRCP_y2 -> 2016-17 | J124: =CRCP_y3 -> 2017-18
B125: =IF(ISBLANK(B11),"",B11) -> Volume - Individual metered (VI-Coastal) | C125: 33119 | D125: 35593 | E125: 37498 | F125: 42731 | G125: 46307 | H125: 46663
B126: Volume - Individual metered (VI-Country) | C126: 2509 | D126: 2446 | E126: 2512 | F126: 2541 | G126: 2548 | H126: 2383
B127: Volume - Boundary metered (VB-Coastal) | C127: 0 | D127: 0 | E127: 0 | F127: 0 | G127: 0 | H127: 1
B128: Volume - Boundary metered (VB-Country) | C128: 0 | D128: 0 | E128: 0 | F128: 0 | G128: 0 | H128: 0
B129: Volume - Residential distributed generation technology (VRT3) | C129: 0 | D129: 0 | E129: 0 | F129: 0 | G129: 0 | H129: 0
B130: Volume - Residential distributed generation technology (VRT4) | C130: 0 | D130: 0 | E130: 0 | F130: 0 | G130: 0 | H130: 0
B131: Volume - Residential distributed generation technology (VRT6) | C131: 0 | D131: 0 | E131: 0 | F131: 0 | G131: 0 | H131: 0
B132: Volume - Residential distributed generation technology (VRT10) | C132: 0 | D132: 0 | E132: 0 | F132: 0 | G132: 0 | H132: 0
B133: Demand - Capacity country (DC Country) - Distance | C133: 0 | D133: 0 | E133: 0 | F133: 0 | G133: 0 | H133: 0
B134: Demand - Capacity country (DC Country) - Pressure reduction | C134: 1 | D134: 0 | E134: 0 | F134: 0 | G134: 1 | H134: 0
B135: Demand - Capacity coastal (DC1) | C135: 0 | D135: 1 | E135: 0 | F135: 0 | G135: 0 | H135: 2
B136: Demand - Capacity coastal (DC2) | C136: 1 | D136: 1 | E136: 1 | F136: 5 | G136: 4 | H136: 1
B137: Demand - Capacity coastal (DC3) | C137: 0 | D137: 2 | E137: 3 | F137: 3 | G137: 3 | H137: 3
B138: Demand - Capacity coastal (DC4) | C138: 2 | D138: 3 | E138: 3 | F138: 1 | G138: 1 | H138: 1
B139: Demand - Capacity coastal (DC5) | C139: 0 | D139: 0 | E139: 0 | F139: 0 | G139: 0 | H139: 1
B140: Demand - Capacity coastal (DC6) | C140: 0 | D140: 0 | E140: 0 | F140: 1 | G140: 2 | H140: 1
B141: Demand - Capacity coastal (DC7) | C141: 0 | D141: 2 | E141: 0 | F141: 1 | G141: 1 | H141: 0
B142: Demand - Capacity coastal (DC8) | C142: 1 | D142: 0 | E142: 0 | F142: 0 | G142: 1 | H142: 0
B143: Demand - Capacity coastal (DC9) | C143: 0 | D143: 0 | E143: 0 | F143: 0 | G143: 0 | H143: 0
B144: Demand - Capacity coastal (DC10) | C144: 0 | D144: 1 | E144: 1 | F144: 1 | G144: 1 | H144: 0
B145: Demand - Capacity coastal (DC11) | C145: 0 | D145: 0 | E145: 0 | F145: 0 | G145: 0 | H145: 0
B146: Demand - Throughput (DT) | C146: 0 | D146: 0 | E146: 0 | F146: 1 | G146: 0 | H146: 0
B147: Demand - Major end-user (throughput) (DMT1) | C147: 0 | D147: 0 | E147: 0 | F147: 0 | G147: 0 | H147: 0
B148: Demand - Major end-user (throughput) (DMT2) | C148: 0 | D148: 0 | E148: 0 | F148: 0 | G148: 0 | H148: 0
B149: Demand - Major end-user (throughput) (DMT3) | C149: 0 | D149: 0 | E149: 0 | F149: 0 | G149: 0 | H149: 0
B150: Demand - Major end-user (throughput) (DMT4) | C150: 0 | D150: 0 | E150: 0 | F150: 0 | G150: 0 | H150: 0
B151: Demand - Major end-user (throughput) (DMT5) | C151: 0 | D151: 0 | E151: 0 | F151: 0 | G151: 0 | H151: 0
B152: Demand - First response (DCFR1) | C152: 0 | D152: 0 | E152: 0 | F152: 0 | G152: 0 | H152: 0
B153: Demand - First response (DCFR6) | C153: 0 | D153: 0 | E153: 0 | F153: 0 | G153: 1 | H153: 0
B154: Demand - First response (DMTFR3) | C154: 0 | D154: 0 | E154: 0 | F154: 0 | G154: 0 | H154: 0
B155: Unknown
B156: Prudent discount
B157: =IF(ISBLANK(B43),"",B43) -> 
B175: Total | C175: =SUM(C125:C174) -> 35633 | D175: 38049 | E175: 40018 | F175: 45285 | G175: 48870 | H175: 49056 | I175: 0 | J175: 0
B178: S1.2.4 - TOTAL CUSTOMER DISCONNECTIONS
C179: VOLUMES
C180: 0's
C181: =PRCP_y1 -> 2010-11 | D181: =PRCP_y2 -> 2011-12 | E181: =PRCP_y3 -> 2012-13 | F181: =PRCP_y4 -> 2013-14 | G181: =PRCP_y5 -> 2014-15 | H181: =CRCP_y1 -> 2015-16 | I181: =CRCP_y2 -> 2016-17 | J181: =CRCP_y3 -> 2017-18
B182: =IF(ISBLANK(B11),"",B11) -> Volume - Individual metered (VI-Coastal) | C182: 9383 | D182: 8667 | E182: 8640 | F182: 9316 | G182: 7824 | H182: 3301
B183: Volume - Individual metered (VI-Country) | C183: 391 | D183: 459 | E183: 474 | F183: 540 | G183: 412 | H183: 83
B184: Volume - Boundary metered (VB-Coastal) | C184: 0 | D184: 0 | E184: 0 | F184: 0 | G184: 0 | H184: 0
B185: Volume - Boundary metered (VB-Country) | C185: 0 | D185: 0 | E185: 0 | F185: 0 | G185: 0 | H185: 0
B186: Volume - Residential distributed generation technology (VRT3) | C186: 0 | D186: 0 | E186: 0 | F186: 0 | G186: 0 | H186: 0
B187: Volume - Residential distributed generation technology (VRT4) | C187: 0 | D187: 0 | E187: 0 | F187: 0 | G187: 0 | H187: 0
B188: Volume - Residential distributed generation technology (VRT6) | C188: 0 | D188: 0 | E188: 0 | F188: 0 | G188: 0 | H188: 0
B189: Volume - Residential distributed generation technology (VRT10) | C189: 0 | D189: 0 | E189: 0 | F189: 0 | G189: 0 | H189: 0
B190: Demand - Capacity country (DC Country) - Distance | C190: 0 | D190: 0 | E190: 0 | F190: 0 | G190: 0 | H190: 0
B191: Demand - Capacity country (DC Country) - Pressure reduction | C191: 0 | D191: 1 | E191: 1 | F191: 0 | G191: 1 | H191: 1
B192: Demand - Capacity coastal (DC1) | C192: 0 | D192: 0 | E192: 1 | F192: 1 | G192: 0 | H192: 1
B193: Demand - Capacity coastal (DC2) | C193: 0 | D193: 0 | E193: 2 | F193: 2 | G193: 2 | H193: 3
B194: Demand - Capacity coastal (DC3) | C194: 0 | D194: 2 | E194: 1 | F194: 3 | G194: 2 | H194: 6
B195: Demand - Capacity coastal (DC4) | C195: 0 | D195: 1 | E195: 3 | F195: 0 | G195: 2 | H195: 0
B196: Demand - Capacity coastal (DC5) | C196: 0 | D196: 0 | E196: 0 | F196: 0 | G196: 0 | H196: 0
B197: Demand - Capacity coastal (DC6) | C197: 0 | D197: 0 | E197: 0 | F197: 0 | G197: 1 | H197: 1
B198: Demand - Capacity coastal (DC7) | C198: 0 | D198: 0 | E198: 0 | F198: 0 | G198: 0 | H198: 2
B199: Demand - Capacity coastal (DC8) | C199: 0 | D199: 0 | E199: 0 | F199: 0 | G199: 0 | H199: 0
B200: Demand - Capacity coastal (DC9) | C200: 0 | D200: 0 | E200: 0 | F200: 0 | G200: 0 | H200: 0
B201: Demand - Capacity coastal (DC10) | C201: 0 | D201: 0 | E201: 0 | F201: 0 | G201: 1 | H201: 0
B202: Demand - Capacity coastal (DC11) | C202: 0 | D202: 0 | E202: 0 | F202: 0 | G202: 0 | H202: 0
B203: Demand - Throughput (DT) | C203: 0 | D203: 0 | E203: 0 | F203: 0 | G203: 0 | H203: 0
B204: Demand - Major end-user (throughput) (DMT1) | C204: 0 | D204: 0 | E204: 0 | F204: 0 | G204: 0 | H204: 0
B205: Demand - Major end-user (throughput) (DMT2) | C205: 0 | D205: 0 | E205: 0 | F205: 0 | G205: 1 | H205: 0
B206: Demand - Major end-user (throughput) (DMT3) | C206: 0 | D206: 0 | E206: 0 | F206: 0 | G206: 0 | H206: 0
B207: Demand - Major end-user (throughput) (DMT4) | C207: 0 | D207: 0 | E207: 0 | F207: 0 | G207: 0 | H207: 0
B208: Demand - Major end-user (throughput) (DMT5) | C208: 0 | D208: 0 | E208: 0 | F208: 0 | G208: 0 | H208: 0
B209: Demand - First response (DCFR1) | C209: 0 | D209: 0 | E209: 0 | F209: 0 | G209: 0 | H209: 0
B210: Demand - First response (DCFR6) | C210: 0 | D210: 0 | E210: 0 | F210: 0 | G210: 0 | H210: 0
B211: Demand - First response (DMTFR3) | C211: 0 | D211: 0 | E211: 0 | F211: 0 | G211: 0 | H211: 0
B212: Unknown
B213: Prudent discount
B214: =IF(ISBLANK(B43),"",B43) -> 
B232: Total | C232: =SUM(C182:C231) -> 9774 | D232: =SUM(D182:D231) -> 9130 | E232: 9122 | F232: 9862 | G232: 8246 | H232: 3398 | I232: 0 | J232: 0

Sheet S10. Supply quality
B1: =IF(dms_MultiYear_ResponseFlag="Yes","REGULATORY REPORTING STATEMENT - HISTORICAL INFORMATION",INDEX(dms_Worksheet_List,MATCH(dms_Model,dms_Model_List))) -> REGULATORY REPORTING STATEMENT - HISTORICAL INFORMATION
B2: =INDEX(dms_TradingNameFull_List,MATCH(dms_TradingName,dms_TradingName_List)) -> Jemena Gas Networks (NSW) Ltd
B3: =CONCATENATE(CRY," to ",dms_MultiYear_FinalYear_Result) -> 2010-11 to 2017-18
B4: S10. SUPPLY QUALITY
B7: S10.1 - PRESSURE FAULTS
C8: VOLUMES
C9: 0's
C10: =PRCP_y1 -> 2010-11 | D10: =PRCP_y2 -> 2011-12 | E10: =PRCP_y3 -> 2012-13 | F10: =PRCP_y4 -> 2013-14 | G10: =PRCP_y5 -> 2014-15 | H10: =CRCP_y1 -> 2015-16 | I10: =CRCP_y2 -> 2016-17 | J10: =CRCP_y3 -> 2017-18
B11: Poor Pressure events - mains
B12: Poor Pressure events - services | C12: 312 | D12: 371 | E12: 372 | F12: 260 | G12: 384 | H12: 653
B13: Poor Pressure event - meters | C13: 826 | D13: 889 | E13: 878 | F13: 755 | G13: 1058 | H13: 716
B14: Pressure events impacting 5+ customers | C14: 0 | D14: 0 | E14: 0 | F14: 0 | G14: 1 | H14: 0
B15: Pressure events with >12 hr resolution | C15: 833 | D15: 957 | E15: 939 | F15: 747 | G15: 1033 | H15: 920

Sheet S11. Network reliability
B1: =IF(dms_MultiYear_ResponseFlag="Yes","REGULATORY REPORTING STATEMENT - HISTORICAL INFORMATION",INDEX(dms_Worksheet_List,MATCH(dms_Model,dms_Model_List))) -> REGULATORY REPORTING STATEMENT - HISTORICAL INFORMATION
B2: =INDEX(dms_TradingNameFull_List,MATCH(dms_TradingName,dms_TradingName_List)) -> Jemena Gas Networks (NSW) Ltd
B3: =CONCATENATE(CRY," to ",dms_MultiYear_FinalYear_Result) -> 2010-11 to 2017-18
B4: S11. NETWORK RELIABILITY
B7: S11.1 - NETWORK OUTAGES
B8: S11.1.1 - PLANNED
C9: VOLUMES
C10: 0's
C11: =PRCP_y1 -> 2010-11 | D11: =PRCP_y2 -> 2011-12 | E11: =PRCP_y3 -> 2012-13 | F11: =PRCP_y4 -> 2013-14 | G11: =PRCP_y5 -> 2014-15 | H11: =CRCP_y1 -> 2015-16 | I11: =CRCP_y2 -> 2016-17 | J11: =CRCP_y3 -> 2017-18
B12: Count of outage events | C12: 30301 | D12: 44736 | E12: 36171 | F12: 44125 | G12: 50215 | H12: 35443
B13: Outages affecting 5+ customers | C13: 77 | D13: 222 | E13: 282 | F13: 142 | G13: 88 | H13: 87
B14: Outages with >12 hr supply interruption | C14: 0 | D14: 0 | E14: 0 | F14: 0 | G14: 0 | H14: 0
B16: S11.1.2 - UNPLANNED
C17: VOLUMES
C18: 0's
C19: =PRCP_y1 -> 2010-11 | D19: =PRCP_y2 -> 2011-12 | E19: =PRCP_y3 -> 2012-13 | F19: =PRCP_y4 -> 2013-14 | G19: =PRCP_y5 -> 2014-15 | H19: =CRCP_y1 -> 2015-16 | I19: =CRCP_y2 -> 2016-17 | J19: =CRCP_y3 -> 2017-18
B20: Count of outage events | C20: 3382 | D20: 3790 | E20: 3484 | F20: 3328 | G20: 4179 | H20: 4675
B21: Outages affecting 5+ customers | C21: 47 | D21: 71 | E21: 43 | F21: 58 | G21: 37 | H21: 36
B22: Outages with >12 hr supply interruption | C22: 1410 | D22: 1927 | E22: 1543 | F22: 1722 | G22: 2100 | H22: 1959
B26: S11.2 - LEAKS - BY ASSET TYPE AND CAUSE OF LEAK
B27: S11.2.1 - LOW PRESSURE
C28: VOLUMES
C29: Number per KM
C30: =PRCP_y1 -> 2010-11 | D30: =PRCP_y2 -> 2011-12 | E30: =PRCP_y3 -> 2012-13 | F30: =PRCP_y4 -> 2013-14 | G30: =PRCP_y5 -> 2014-15 | H30: =CRCP_y1 -> 2015-16 | I30: =CRCP_y2 -> 2016-17 | J30: =CRCP_y3 -> 2017-18
B31: Cast Iron
B32: Broken pipe - cracked | C32: 0 | D32: 0 | E32: 0 | F32: 0 | G32: 0 | H32: 0 | I32: 0 | J32: 0
B33: Broken pipe - full break | C33: 0 | D33: 0 | E33: 0 | F33: 0 | G33: 0 | H33: 0 | I33: 0 | J33: 0
B34: Corrosion | C34: 0 | D34: 0 | E34: 0 | F34: 0 | G34: 0 | H34: 0 | I34: 0 | J34: 0
B35: Joint leak | C35: 0 | D35: 0 | E35: 0 | F35: 0 | G35: 0 | H35: 0 | I35: 0 | J35: 0
B36: 3rd party damage | C36: 8.904042692 | D36: 5.669664203 | E36: 7.231947859 | F36: 7.882130559 | G36: 7.830478709 | H36: 7.86392936 | I36: 10.49952294 | J36: 12.4619448
B37: Identified water in main | C37: 0 | D37: 0 | E37: 0 | F37: 0 | G37: 0 | H37: 0 | I37: 0 | J37: 0
B38: Other | C38: 24.89 | D38: 41.78 | E38: 104.26 | F38: 34.84 | G38: 26 | H38: 22.61 | I38: 13.02 | J38: 59.33888889
B39: PVC
B40: Broken pipe - cracked | C40: 0 | D40: 0 | E40: 0 | F40: 0 | G40: 0 | H40: 0 | I40: 0 | J40: 0
B41: Broken pipe - full break | C41: 0 | D41: 0 | E41: 0 | F41: 0 | G41: 0 | H41: 0 | I41: 0 | J41: 0
B42: Corrosion | C42: 0 | D42: 0 | E42: 0 | F42: 0 | G42: 0 | H42: 0 | I42: 0 | J42: 0
B43: Joint leak | C43: 0 | D43: 0 | E43: 0 | F43: 0 | G43: 0 | H43: 0 | I43: 0 | J43: 0
B44: 3rd party damage | C44: 0 | D44: 0 | E44: 0 | F44: 0 | G44: 0 | H44: 0 | I44: 0 | J44: 0
B45: Identified water in main | C45: 0 | D45: 0 | E45: 0 | F45: 0 | G45: 0 | H45: 0 | I45: 0 | J45: 0
B46: Other | C46: 0 | D46: 0 | E46: 0 | F46: 0 | G46: 0 | H46: 0 | I46: 0 | J46: 0
B47: Polyamide
B48: Broken pipe - cracked | C48: 0 | D48: 0 | E48: 0 | F48: 0 | G48: 0 | H48: 0 | I48: 0 | J48: 0
B49: Broken pipe - full break | C49: 0 | D49: 0 | E49: 0 | F49: 0 | G49: 0 | H49: 0 | I49: 0 | J49: 0
B50: Corrosion | C50: 0 | D50: 0 | E50: 0 | F50: 0 | G50: 0 | H50: 0 | I50: 0 | J50: 0
B51: Joint leak | C51: 0 | D51: 0 | E51: 0 | F51: 0 | G51: 0 | H51: 0 | I51: 0 | J51: 0
B52: 3rd party damage | C52: 100.9212719 | D52: 76.39549617 | E52: 92.88924569 | F52: 97.76894965 | G52: 105.8748399 | H52: 88.3910976 | I52: 125.8556524 | J52: 122.0174462
B53: Identified water in main | C53: 0 | D53: 0 | E53: 0 | F53: 0 | G53: 0 | H53: 0 | I53: 0 | J53: 0
B54: Other | C54: 27.84 | D54: 76.42 | E54: 102.1 | F54: 64.6 | G54: 80 | H54: 69.1 | I54: 61.26 | J54: 110.0351852
B55: High density polyethylene (80)
B56: Broken pipe - cracked | C56: 0 | D56: 0 | E56: 0 | F56: 0 | G56: 0 | H56: 0 | I56: 0 | J56: 0
B57: Broken pipe - full break | C57: 0 | D57: 0 | E57: 0 | F57: 0 | G57: 0 | H57: 0 | I57: 0 | J57: 0
B58: Corrosion | C58: 0 | D58: 0 | E58: 0 | F58: 0 | G58: 0 | H58: 0 | I58: 0 | J58: 0
B59: Joint leak | C59: 0 | D59: 0 | E59: 0 | F59: 0 | G59: 0 | H59: 0 | I59: 0 | J59: 0
B60: 3rd party damage | C60: 7.396470314 | D60: 4.779356214 | E60: 5.695001591 | F60: 7.527564051 | G60: 7.506078343 | H60: 5.637003181 | I60: 7.380668851 | J60: 7.282812676
B61: Identified water in main | C61: 0 | D61: 0 | E61: 0 | F61: 0 | G61: 0 | H61: 0 | I61: 0 | J61: 0
B62: Other | C62: 24.99 | D62: 10.88 | E62: 7.92 | F62: 4.97 | G62: 13 | H62: 13.76 | I62: 9 | J62: 11.38518519
B63: High density polyethylene (100)
B64: Broken pipe - cracked | C64: 0 | D64: 0 | E64: 0 | F64: 0 | G64: 0 | H64: 0 | I64: 0 | J64: 0
B65: Broken pipe - full break | C65: 0 | D65: 0 | E65: 0 | F65: 0 | G65: 0 | H65: 0 | I65: 0 | J65: 0
B66: Corrosion | C66: 0 | D66: 0 | E66: 0 | F66: 0 | G66: 0 | H66: 0 | I66: 0 | J66: 0
B67: Joint leak | C67: 0 | D67: 0 | E67: 0 | F67: 0 | G67: 0 | H67: 0 | I67: 0 | J67: 0
B68: 3rd party damage | C68: 0 | D68: 0 | E68: 0 | F68: 0 | G68: 0 | H68: 0 | I68: 0 | J68: 0
B69: Identified water in main | C69: 0 | D69: 0 | E69: 0 | F69: 0 | G69: 0 | H69: 0 | I69: 0 | J69: 0
B70: Other | C70: 0 | D70: 0 | E70: 0 | F70: 0 | G70: 0 | H70: 0 | I70: 0 | J70: 0
B71: High density polyethylene (250)
B72: Broken pipe - cracked | C72: 0 | D72: 0 | E72: 0 | F72: 0 | G72: 0 | H72: 0 | I72: 0 | J72: 0
B73: Broken pipe - full break | C73: 0 | D73: 0 | E73: 0 | F73: 0 | G73: 0 | H73: 0 | I73: 0 | J73: 0
B74: Corrosion | C74: 0 | D74: 0 | E74: 0 | F74: 0 | G74: 0 | H74: 0 | I74: 0 | J74: 0
B75: Joint leak | C75: 0 | D75: 0 | E75: 0 | F75: 0 | G75: 0 | H75: 0 | I75: 0 | J75: 0
B76: 3rd party damage | C76: 0 | D76: 0 | E76: 0 | F76: 0 | G76: 0 | H76: 0 | I76: 0 | J76: 0
B77: Identified water in main | C77: 0 | D77: 0 | E77: 0 | F77: 0 | G77: 0 | H77: 0 | I77: 0 | J77: 0
B78: Other | C78: 0 | D78: 0 | E78: 0 | F78: 0 | G78: 0 | H78: 0 | I78: 0 | J78: 0
B79: High density polyethylene (575)
B80: Broken pipe - cracked | C80: 0 | D80: 0 | E80: 0 | F80: 0 | G80: 0 | H80: 0 | I80: 0 | J80: 0
B81: Broken pipe - full break | C81: 0 | D81: 0 | E81: 0 | F81: 0 | G81: 0 | H81: 0 | I81: 0 | J81: 0
B82: Corrosion | C82: 0 | D82: 0 | E82: 0 | F82: 0 | G82: 0 | H82: 0 | I82: 0 | J82: 0
B83: Joint leak | C83: 0 | D83: 0 | E83: 0 | F83: 0 | G83: 0 | H83: 0 | I83: 0 | J83: 0
B84: 3rd party damage | C84: 0 | D84: 0 | E84: 0 | F84: 0 | G84: 0 | H84: 0 | I84: 0 | J84: 0
B85: Identified water in main | C85: 0 | D85: 0 | E85: 0 | F85: 0 | G85: 0 | H85: 0 | I85: 0 | J85: 0
B86: Other | C86: 0 | D86: 0 | E86: 0 | F86: 0 | G86: 0 | H86: 0 | I86: 0 | J86: 0
B87: Medium density polyethylene
B88: Broken pipe - cracked | C88: 0 | D88: 0 | E88: 0 | F88: 0 | G88: 0 | H88: 0 | I88: 0 | J88: 0
B89: Broken pipe - full break | C89: 0 | D89: 0 | E89: 0 | F89: 0 | G89: 0 | H89: 0 | I89: 0 | J89: 0
B90: Corrosion | C90: 0 | D90: 0 | E90: 0 | F90: 0 | G90: 0 | H90: 0 | I90: 0 | J90: 0
B91: Joint leak | C91: 0 | D91: 0 | E91: 0 | F91: 0 | G91: 0 | H91: 0 | I91: 0 | J91: 0
B92: 3rd party damage | C92: 0 | D92: 0 | E92: 0 | F92: 0 | G92: 0 | H92: 0 | I92: 0 | J92: 0
B93: Identified water in main | C93: 0 | D93: 0 | E93: 0 | F93: 0 | G93: 0 | H93: 0 | I93: 0 | J93: 0
B94: Other | C94: 0 | D94: 0 | E94: 0 | F94: 0 | G94: 0 | H94: 0 | I94: 0 | J94: 0
B95: Other polyethylene
B96: Broken pipe - cracked | C96: 0 | D96: 0 | E96: 0 | F96: 0 | G96: 0 | H96: 0 | I96: 0 | J96: 0
B97: Broken pipe - full break | C97: 0 | D97: 0 | E97: 0 | F97: 0 | G97: 0 | H97: 0 | I97: 0 | J97: 0
B98: Corrosion | C98: 0 | D98: 0 | E98: 0 | F98: 0 | G98: 0 | H98: 0 | I98: 0 | J98: 0
B99: Joint leak | C99: 0 | D99: 0 | E99: 0 | F99: 0 | G99: 0 | H99: 0 | I99: 0 | J99: 0
B100: 3rd party damage | C100: 0 | D100: 0 | E100: 0 | F100: 0 | G100: 0 | H100: 0 | I100: 0 | J100: 0
B101: Identified water in main | C101: 0 | D101: 0 | E101: 0 | F101: 0 | G101: 0 | H101: 0 | I101: 0 | J101: 0
B102: Other | C102: 0 | D102: 0 | E102: 0 | F102: 0 | G102: 0 | H102: 0 | I102: 0 | J102: 0
B103: Unprotected steel
B104: Broken pipe - cracked | C104: 0 | D104: 0 | E104: 0 | F104: 0 | G104: 0 | H104: 0 | I104: 0 | J104: 0
B105: Broken pipe - full break | C105: 0 | D105: 0 | E105: 0 | F105: 0 | G105: 0 | H105: 0 | I105: 0 | J105: 0
B106: Corrosion | C106: 0 | D106: 0 | E106: 0 | F106: 0 | G106: 0 | H106: 0 | I106: 0 | J106: 0
B107: Joint leak | C107: 0 | D107: 0 | E107: 0 | F107: 0 | G107: 0 | H107: 0 | I107: 0 | J107: 0
B108: 3rd party damage | C108: 11.74996294 | D108: 8.142038961 | E108: 8.167660758 | F108: 12.80365728 | G108: 10.7797538 | H108: 11.09104858 | I108: 13.21416917 | J108: 15.20013573
B109: Identified water in main | C109: 0 | D109: 0 | E109: 0 | F109: 0 | G109: 0 | H109: 0 | I109: 0 | J109: 0
B110: Other | C110: 0 | D110: 5.9 | E110: 1 | F110: 1 | G110: 3 | H110: 1 | I110: 2 | J110: 2
B111: Protected steel
B112: Broken pipe - cracked | C112: 0 | D112: 0 | E112: 0 | F112: 0 | G112: 0 | H112: 0 | I112: 0 | J112: 0
B113: Broken pipe - full break | C113: 0 | D113: 0 | E113: 0 | F113: 0 | G113: 0 | H113: 0 | I113: 0 | J113: 0
B114: Corrosion | C114: 0 | D114: 0 | E114: 0 | F114: 0 | G114: 0 | H114: 0 | I114: 0 | J114: 0
B115: Joint leak | C115: 0 | D115: 0 | E115: 0 | F115: 0 | G115: 0 | H115: 0 | I115: 0 | J115: 0
B116: 3rd party damage | C116: 0 | D116: 0 | E116: 0 | F116: 0 | G116: 0 | H116: 0 | I116: 0 | J116: 0
B117: Identified water in main | C117: 0 | D117: 0 | E117: 0 | F117: 0 | G117: 0 | H117: 0 | I117: 0 | J117: 0
B118: Other | C118: 0 | D118: 0 | E118: 0 | F118: 0 | G118: 0 | H118: 0 | I118: 0 | J118: 0
B120: S11.2.2 - MEDIUM PRESSURE
C121: VOLUMES
C122: Number per KM
C123: =PRCP_y1 -> 2010-11 | D123: =PRCP_y2 -> 2011-12 | E123: =PRCP_y3 -> 2012-13 | F123: =PRCP_y4 -> 2013-14 | G123: =PRCP_y5 -> 2014-15 | H123: =CRCP_y1 -> 2015-16 | I123: =CRCP_y2 -> 2016-17 | J123: =CRCP_y3 -> 2017-18
B124: Cast Iron
B125: Broken pipe - cracked | C125: 0 | D125: 0 | E125: 0 | F125: 0 | G125: 0 | H125: 0 | I125: 0 | J125: 0
B126: Broken pipe - full break | C126: 0 | D126: 0 | E126: 0 | F126: 0 | G126: 0 | H126: 0 | I126: 0 | J126: 0
B127: Corrosion | C127: 0 | D127: 0 | E127: 0 | F127: 0 | G127: 0 | H127: 0 | I127: 0 | J127: 0
B128: Joint leak | C128: 0 | D128: 0 | E128: 0 | F128: 0 | G128: 0 | H128: 0 | I128: 0 | J128: 0
B129: 3rd party damage | C129: 4.769647539 | D129: 4.344822447 | E129: 3.951956213 | F129: 3.262853912 | G129: 3.911841541 | H129: 3.955843215 | I129: 6.586380102 | J129: 5.307691828
B130: Identified water in main | C130: 0 | D130: 0 | E130: 0 | F130: 0 | G130: 0 | H130: 0 | I130: 0 | J130: 0
B131: Other | C131: 36.96 | D131: 38.7 | E131: 42.76 | F131: 64.74 | G131: 15 | H131: 14.79 | I131: 8.56 | J131: 11.38518519
B132: PVC
B133: Broken pipe - cracked | C133: 0 | D133: 0 | E133: 0 | F133: 0 | G133: 0 | H133: 0 | I133: 0 | J133: 0
B134: Broken pipe - full break | C134: 0 | D134: 0 | E134: 0 | F134: 0 | G134: 0 | H134: 0 | I134: 0 | J134: 0
B135: Corrosion | C135: 0 | D135: 0 | E135: 0 | F135: 0 | G135: 0 | H135: 0 | I135: 0 | J135: 0
B136: Joint leak | C136: 0 | D136: 0 | E136: 0 | F136: 0 | G136: 0 | H136: 0 | I136: 0 | J136: 0
B137: 3rd party damage | C137: 0 | D137: 0 | E137: 0 | F137: 0 | G137: 0 | H137: 0 | I137: 0 | J137: 0
B138: Identified water in main | C138: 0 | D138: 0 | E138: 0 | F138: 0 | G138: 0 | H138: 0 | I138: 0 | J138: 0
B139: Other | C139: 0 | D139: 0 | E139: 0 | F139: 0 | G139: 0 | H139: 0 | I139: 0 | J139: 0
B140: Polyamide
B141: Broken pipe - cracked | C141: 0 | D141: 0 | E141: 0 | F141: 0 | G141: 0 | H141: 0 | I141: 0 | J141: 0
B142: Broken pipe - full break | C142: 0 | D142: 0 | E142: 0 | F142: 0 | G142: 0 | H142: 0 | I142: 0 | J142: 0
B143: Corrosion | C143: 0 | D143: 0 | E143: 0 | F143: 0 | G143: 0 | H143: 0 | I143: 0 | J143: 0
B144: Joint leak | C144: 0 | D144: 0 | E144: 0 | F144: 0 | G144: 0 | H144: 0 | I144: 0 | J144: 0
B145: 3rd party damage | C145: 1433.27345 | D145: 1368.061243 | E145: 1470.326115 | F145: 1568.823977 | G145: 1561.652263 | H145: 1598.282439 | I145: 1868.510086 | J145: 2043.219238
B146: Identified water in main | C146: 0 | D146: 0 | E146: 0 | F146: 0 | G146: 0 | H146: 0 | I146: 0 | J146: 0
B147: Other | C147: 773.19 | D147: 699.72 | E147: 634.04 | F147: 545.12 | G147: 811 | H147: 856.36 | I147: 1010.86 | J147: 638.1203704
B148: High density polyethylene (80)
B149: Broken pipe - cracked | C149: 0 | D149: 0 | E149: 0 | F149: 0 | G149: 0 | H149: 0 | I149: 0 | J149: 0
B150: Broken pipe - full break | C150: 0 | D150: 0 | E150: 0 | F150: 0 | G150: 0 | H150: 0 | I150: 0 | J150: 0
B151: Corrosion | C151: 0 | D151: 0 | E151: 0 | F151: 0 | G151: 0 | H151: 0 | I151: 0 | J151: 0
B152: Joint leak | C152: 0 | D152: 0 | E152: 0 | F152: 0 | G152: 0 | H152: 0 | I152: 0 | J152: 0
B153: 3rd party damage | C153: 177.0106399 | D153: 155.1147722 | E153: 169.0349232 | F153: 193.9168936 | G153: 189.7818414 | H153: 200.6316962 | I153: 217.9238599 | J153: 245.7497295
B154: Identified water in main | C154: 0 | D154: 0 | E154: 0 | F154: 0 | G154: 0 | H154: 0 | I154: 0 | J154: 0
B155: Other | C155: 358.15 | D155: 93.32 | E155: 96.92 | F155: 94.48 | G155: 125 | H155: 140.87 | I155: 110.58 | J155: 73.5037037
B156: High density polyethylene (100)
B157: Broken pipe - cracked | C157: 0 | D157: 0 | E157: 0 | F157: 0 | G157: 0 | H157: 0 | I157: 0 | J157: 0
B158: Broken pipe - full break | C158: 0 | D158: 0 | E158: 0 | F158: 0 | G158: 0 | H158: 0 | I158: 0 | J158: 0
B159: Corrosion | C159: 0 | D159: 0 | E159: 0 | F159: 0 | G159: 0 | H159: 0 | I159: 0 | J159: 0
B160: Joint leak | C160: 0 | D160: 0 | E160: 0 | F160: 0 | G160: 0 | H160: 0 | I160: 0 | J160: 0
B161: 3rd party damage | C161: 0 | D161: 0 | E161: 0 | F161: 0 | G161: 0 | H161: 0 | I161: 0 | J161: 0
B162: Identified water in main | C162: 0 | D162: 0 | E162: 0 | F162: 0 | G162: 0 | H162: 0 | I162: 0 | J162: 0
B163: Other | C163: 0 | D163: 0 | E163: 0 | F163: 0 | G163: 0 | H163: 0 | I163: 0 | J163: 0
B164: High density polyethylene (250)
B165: Broken pipe - cracked | C165: 0 | D165: 0 | E165: 0 | F165: 0 | G165: 0 | H165: 0 | I165: 0 | J165: 0
B166: Broken pipe - full break | C166: 0 | D166: 0 | E166: 0 | F166: 0 | G166: 0 | H166: 0 | I166: 0 | J166: 0
B167: Corrosion | C167: 0 | D167: 0 | E167: 0 | F167: 0 | G167: 0 | H167: 0 | I167: 0 | J167: 0
B168: Joint leak | C168: 0 | D168: 0 | E168: 0 | F168: 0 | G168: 0 | H168: 0 | I168: 0 | J168: 0
B169: 3rd party damage | C169: 0 | D169: 0 | E169: 0 | F169: 0 | G169: 0 | H169: 0 | I169: 0 | J169: 0
B170: Identified water in main | C170: 0 | D170: 0 | E170: 0 | F170: 0 | G170: 0 | H170: 0 | I170: 0 | J170: 0
B171: Other | C171: 0 | D171: 0 | E171: 0 | F171: 0 | G171: 0 | H171: 0 | I171: 0 | J171: 0
B172: High density polyethylene (575)
B173: Broken pipe - cracked | C173: 0 | D173: 0 | E173: 0 | F173: 0 | G173: 0 | H173: 0 | I173: 0 | J173: 0
B174: Broken pipe - full break | C174: 0 | D174: 0 | E174: 0 | F174: 0 | G174: 0 | H174: 0 | I174: 0 | J174: 0
B175: Corrosion | C175: 0 | D175: 0 | E175: 0 | F175: 0 | G175: 0 | H175: 0 | I175: 0 | J175: 0
B176: Joint leak | C176: 0 | D176: 0 | E176: 0 | F176: 0 | G176: 0 | H176: 0 | I176: 0 | J176: 0
B177: 3rd party damage | C177: 0 | D177: 0 | E177: 0 | F177: 0 | G177: 0 | H177: 0 | I177: 0 | J177: 0
B178: Identified water in main | C178: 0 | D178: 0 | E178: 0 | F178: 0 | G178: 0 | H178: 0 | I178: 0 | J178: 0
B179: Other | C179: 0 | D179: 0 | E179: 0 | F179: 0 | G179: 0 | H179: 0 | I179: 0 | J179: 0
B180: Medium density polyethylene
B181: Broken pipe - cracked | C181: 0 | D181: 0 | E181: 0 | F181: 0 | G181: 0 | H181: 0 | I181: 0 | J181: 0
B182: Broken pipe - full break | C182: 0 | D182: 0 | E182: 0 | F182: 0 | G182: 0 | H182: 0 | I182: 0 | J182: 0
B183: Corrosion | C183: 0 | D183: 0 | E183: 0 | F183: 0 | G183: 0 | H183: 0 | I183: 0 | J183: 0
B184: Joint leak | C184: 0 | D184: 0 | E184: 0 | F184: 0 | G184: 0 | H184: 0 | I184: 0 | J184: 0
B185: 3rd party damage | C185: 0 | D185: 0 | E185: 0 | F185: 0 | G185: 0 | H185: 0 | I185: 0 | J185: 0
B186: Identified water in main | C186: 0 | D186: 0 | E186: 0 | F186: 0 | G186: 0 | H186: 0 | I186: 0 | J186: 0
B187: Other | C187: 0 | D187: 0 | E187: 0 | F187: 0 | G187: 0 | H187: 0 | I187: 0 | J187: 0
B188: Other polyethylene
B189: Broken pipe - cracked | C189: 0 | D189: 0 | E189: 0 | F189: 0 | G189: 0 | H189: 0 | I189: 0 | J189: 0
B190: Broken pipe - full break | C190: 0 | D190: 0 | E190: 0 | F190: 0 | G190: 0 | H190: 0 | I190: 0 | J190: 0
B191: Corrosion | C191: 0 | D191: 0 | E191: 0 | F191: 0 | G191: 0 | H191: 0 | I191: 0 | J191: 0
B192: Joint leak | C192: 0 | D192: 0 | E192: 0 | F192: 0 | G192: 0 | H192: 0 | I192: 0 | J192: 0
B193: 3rd party damage | C193: 0 | D193: 0 | E193: 0 | F193: 0 | G193: 0 | H193: 0 | I193: 0 | J193: 0
B194: Identified water in main | C194: 0 | D194: 0 | E194: 0 | F194: 0 | G194: 0 | H194: 0 | I194: 0 | J194: 0
B195: Other | C195: 0 | D195: 0 | E195: 0 | F195: 0 | G195: 0 | H195: 0 | I195: 0 | J195: 0
B196: Unprotected steel
B197: Broken pipe - cracked | C197: 0 | D197: 0 | E197: 0 | F197: 0 | G197: 0 | H197: 0 | I197: 0 | J197: 0
B198: Broken pipe - full break | C198: 0 | D198: 0 | E198: 0 | F198: 0 | G198: 0 | H198: 0 | I198: 0 | J198: 0
B199: Corrosion | C199: 0 | D199: 0 | E199: 0 | F199: 0 | G199: 0 | H199: 0 | I199: 0 | J199: 0
B200: Joint leak | C200: 0 | D200: 0 | E200: 0 | F200: 0 | G200: 0 | H200: 0 | I200: 0 | J200: 0
B201: 3rd party damage | C201: 114.8387269 | D201: 108.3612266 | E201: 109.5872189 | F201: 119.8783004 | G201: 126.568458 | H201: 120.9878659 | I201: 148.8730454 | J201: 157.5352068
B202: Identified water in main | C202: 0 | D202: 0 | E202: 0 | F202: 0 | G202: 0 | H202: 0 | I202: 0 | J202: 0
B203: Other | C203: 127.63 | D203: 97.28 | E203: 107.2 | F203: 91.58 | G203: 79 | H203: 62.25 | I203: 64 | J203: 44.92592593
B204: Protected steel
B205: Broken pipe - cracked | C205: 0 | D205: 0 | E205: 0 | F205: 0 | G205: 0 | H205: 0 | I205: 0 | J205: 0
B206: Broken pipe - full break | C206: 0 | D206: 0 | E206: 0 | F206: 0 | G206: 0 | H206: 0 | I206: 0 | J206: 0
B207: Corrosion | C207: 0 | D207: 0 | E207: 0 | F207: 0 | G207: 0 | H207: 0 | I207: 0 | J207: 0
... 102 more rows

Sheet S14. Network integrity
B1: =IF(dms_MultiYear_ResponseFlag="Yes","REGULATORY REPORTING STATEMENT - HISTORICAL INFORMATION",INDEX(dms_Worksheet_List,MATCH(dms_Model,dms_Model_List))) -> REGULATORY REPORTING STATEMENT - HISTORICAL INFORMATION
B2: =INDEX(dms_TradingNameFull_List,MATCH(dms_TradingName,dms_TradingName_List)) -> Jemena Gas Networks (NSW) Ltd
B3: =CONCATENATE(CRY," to ",dms_MultiYear_FinalYear_Result) -> 2010-11 to 2017-18
B4: S14. NETWORK INTEGRITY
B7: S14.1 - LOSS OF CONTAINMENT
D8: VOLUMES
D9: 0's
C10: Units | D10: =PRCP_y1 -> 2010-11 | E10: =PRCP_y2 -> 2011-12 | F10: =PRCP_y3 -> 2012-13 | G10: =PRCP_y4 -> 2013-14 | H10: =PRCP_y5 -> 2014-15 | I10: =CRCP_y1 -> 2015-16 | J10: =CRCP_y2 -> 2016-17 | K10: =CRCP_y3 -> 2017-18
B11: S14.1.1 - MAINS
B12: Number of Leaks - publicly reported | C12: number | D12: 2042 | E12: 2248 | F12: 2213 | G12: 2314 | H12: 2545 | I12: 2360
B13: Number of Leaks - found through survey | C13: number
B14: Repaired Leaks | C14: number | D14: 2067 | E14: 2379 | F14: 2361 | G14: 2351 | H14: 2633 | I14: 2554
B15: Length of network subject to survey | C15: km
B16: S14.1.2 - SERVICES
B17: Number of Leaks - publicly reported | C17: number | D17: 1062 | E17: 1279 | F17: 1239 | G17: 1175 | H17: 1399 | I17: 1165
B18: Number of Leaks - found through survey | C18: number
B19: Repaired Leaks | C19: number | D19: 1427 | E19: 1934 | F19: 1523 | G19: 1434 | H19: 1632 | I19: 1412
B20: Number of services surveyed | C20: number
B21: S14.1.3 - METERS
B22: Number of Leaks - publicly reported | C22: number | D22: 6599 | E22: 7705 | F22: 7089 | G22: 7724 | H22: 9004 | I22: 8522
B23: Number of Leaks - found through survey | C23: number
B24: Repaired Leaks | C24: number | D24: 6623 | E24: 7719 | F24: 7095 | G24: 7732 | H24: 9020 | I24: 8564
B25: Number of meters surveyed | C25: number
B29: S14.2 - INSTANCES OF DAMAGE
D30: VOLUMES
D31: 0's
C32: Units | D32: =PRCP_y1 -> 2010-11 | E32: =PRCP_y2 -> 2011-12 | F32: =PRCP_y3 -> 2012-13 | G32: =PRCP_y4 -> 2013-14 | H32: =PRCP_y5 -> 2014-15 | I32: =CRCP_y1 -> 2015-16 | J32: =CRCP_y2 -> 2016-17 | K32: =CRCP_y3 -> 2017-18
B33: Mains | C33: number per km | D33: 1086 | E33: 1369 | F33: 1554 | G33: 2131 | H33: 2471 | I33: 2207
B34: Services | C34: number | D34: 1012 | E34: 1040 | F34: 1039 | G34: 1091 | H34: 1494 | I34: 1535
B35: Meters | C35: number | D35: 172 | E35: 199 | F35: 207 | G35: 406 | H35: 287 | I35: 365

Sheet F1. Income
B1: =IF(dms_MultiYear_ResponseFlag="Yes","REGULATORY REPORTING STATEMENT - HISTORICAL INFORMATION",INDEX(dms_Worksheet_List,MATCH(dms_Model,dms_Model_List))) -> REGULATORY REPORTING STATEMENT - HISTORICAL INFORMATION
B2: =INDEX(dms_TradingNameFull_List,MATCH(dms_TradingName,dms_TradingName_List)) -> Jemena Gas Networks (NSW) Ltd
B3: =CONCATENATE(CRY," to ",dms_MultiYear_FinalYear_Result) -> 2010-11 to 2017-18
B4: F1. INCOME
B7: F1.1 - AUDITED STATUTORY ACCOUNTS
C8: $0's, nominal
C9: =PRCP_y1 -> 2010-11 | D9: =PRCP_y2 -> 2011-12 | E9: =PRCP_y3 -> 2012-13 | F9: =PRCP_y4 -> 2013-14 | G9: =PRCP_y5 -> 2014-15 | H9: =CRCP_y1 -> 2015-16 | I9: =CRCP_y2 -> 2016-17 | J9: =CRCP_y3 -> 2017-18
B10: F1.1.1 - REVENUE
B11: Distribution revenue | C11: 434860081.2 | D11: 466009599.1 | E11: 530564000 | F11: 585429256 | G11: 666053000 | H11: 577373000
B12: Capital contributions | C12: 0 | D12: 0 | E12: 0 | F12: 0 | G12: 0 | H12: 0
B13: Profit from sale of fixed assets | C13: 0 | D13: 0 | E13: 0 | F13: 0 | G13: 0 | H13: 0
B14: Other revenue | C14: 0 | D14: 0 | E14: 0 | F14: 0 | G14: 0 | H14: 0
B15: Total revenue | C15: =SUM(C11:C14) -> 434860081.2 | D15: =SUM(D11:D14) -> 466009599.1 | E15: 530564000 | F15: 585429256 | G15: 666053000 | H15: 577373000 | I15: 0 | J15: 0
B17: F1.1.2 - EXPENDITURE
B18: Maintenance expenditure | C18: 0 | D18: 0 | E18: 0 | F18: 0 | G18: 0 | H18: 0
B19: Operating expenditure excluding maintenance expenditure | C19: 132848136.8 | D19: 137067242.7 | E19: 175649000 | F19: 174117967.4 | G19: 157945000 | H19: 168896000
B20: Depreciation | C20: 67695088.18 | D20: 61671406.65 | E20: 74827000 | F20: 75780662.15 | G20: 82041000 | H20: 89097000
B21: Net finance expenses | C21: 0 | D21: -237560.18 | E21: -2307435.72 | F21: 3231.5 | G21: 1349521.3 | H21: -407000
B22: Loss from sale of fixed assets | C22: 2215773.62 | D22: 2498356.95 | E22: 1476000 | F22: 1271225.05 | G22: 1274000 | H22: 1359000
B23: Impairment losses | C23: 0 | D23: 0 | E23: 0 | F23: 0 | G23: 0 | H23: 0
B24: Other expenses | C24: 0 | D24: 0 | E24: 0 | F24: 0 | G24: 0 | H24: 0
B25: Total expenditure | C25: =SUM(C18:C24) -> 202758998.6 | D25: 200999446.1 | E25: 249644564.3 | F25: 251173086.2 | G25: 242609521.3 | H25: 258945000 | I25: 0 | J25: 0
B27: F1.1.3 - PROFIT
B28: Profit before tax | C28: =C15-C25 -> 232101082.6 | D28: 265010153 | E28: 280919435.7 | F28: 334256169.9 | G28: 423443478.7 | H28: 318428000 | I28: 0 | J28: 0
B29: Income tax expenses (/ benefit) | C29: 69839000 | D29: 79467139.66 | E29: 78046897.38 | F29: 100225067.7 | G29: 126726079 | H29: 95531323.83
B30: Profit after tax | C30: =C28-C29 -> 162262082.6 | D30: =D28-D29 -> 185543013.3 | E30: 202872538.3 | F30: 234031102.2 | G30: 296717399.7 | H30: 222896676.2 | I30: 0 | J30: 0
B34: F1.2 - ADJUSTMENTS
C35: $0's, nominal
C36: =PRCP_y1 -> 2010-11 | D36: =PRCP_y2 -> 2011-12 | E36: =PRCP_y3 -> 2012-13 | F36: =PRCP_y4 -> 2013-14 | G36: =PRCP_y5 -> 2014-15 | H36: =CRCP_y1 -> 2015-16 | I36: =CRCP_y2 -> 2016-17 | J36: =CRCP_y3 -> 2017-18
B37: F1.2.1 - REVENUE
B38: Distribution revenue | C38: 8767270.46 | D38: 4368964.94 | E38: 6060390.87 | F38: 14943338.31 | G38: 4971266.34 | H38: 36583930.86
B39: Capital contributions | C39: -7493007.82 | D39: -3712933.55 | E39: -5337976.28 | F39: -14468363.44 | G39: -4561202.77 | H39: -2681807.76
B40: Profit from sale of fixed assets | C40: 0 | D40: 0 | E40: 0 | F40: 0 | G40: 0 | H40: 0
B41: Other Revenue | C41: -1274262.64 | D41: -876797.2362 | E41: -795722.8938 | F41: -563016.0055 | G41: -508138.2706 | H41: -352294.5168
B42: Total revenue | C42: =SUM(C38:C41) -> 0 | D42: =SUM(D38:D41) -> -220765.8462 | E42: -73308.30384 | F42: -88041.13555 | G42: -98074.70057 | H42: 33549828.58 | I42: 0 | J42: 0
B44: F1.2.2 - EXPENDITURE
B45: Maintenance expenditure | C45: -23700185.13 | D45: -23743559.96 | E45: -27569010.2 | F45: -26999300.15 | G45: -25927054.6 | H45: -26193945.55
B46: Operating expenditure excluding maintenance expenditure | C46: 19742322.53 | D46: 20527924.34 | E46: 46581424.17 | F46: 43239823.99 | G46: 28758897.36 | H46: 31592048.95
B47: Depreciation | C47: 0 | D47: 0 | E47: 0 | F47: 0 | G47: 87.14982329 | H47: 251338.1435 | I47: 660393.5655 | J47: 982233.8817
B48: Net finance expenses | C48: 0 | D48: -237560.18 | E48: -2307435.72 | F48: 3231.5 | G48: 1349521.3 | H48: -407000
